Workbook

Sheet Title Page
B13: On behalf of:
B14: Version: | D14: V2
B16: Model Owner: | D16: Eunomia Research & Consulting
B17: Contact: | D17: Ann Ballinger | G17: Mark Cordle
B18: Email: | D18: ann.ballinger@eunomia.co.uk | G18: mark.cordle@eunomia.co.uk
B19: Phone:
B21: Project Summary
B23: Provision of a 'ready reckoner' tool for use by London boroughs to calculate GHG emissions from waste management services
B33: Model Description
B35: A tool for London local authorities to assess their current performance against EPS and CIF targets, and explore the carbon and CIF impact of waste collection and management interventions
B45: Modellers
B47: Name | F47: Initials
B48: Mark Cordle | F48: MC
B53: Distributions:
B55: Date | C55: Name | F55: Organisation
B56: 2017-12-20 | C56: Draft Issue to Adam Batchelor | F56: GLA
B57: 2018-03-29 | C57: Issue to Adam Batchelor | F57: GLA
B58: 2018-06-05 | C58: Issue to Adam Batchelor | F58: GLA
B59: 2018-11-15 | C59: V1.1 Issue to Agnieszka Griffin | F59: GLA
B60: 2018-02-19 | C60: V1.3 Issue to Boroughs attending training | F60: Various
B61: 2018-03-15 | C61: V2 Issue to Agnieszka Griffin | F61: GLA

Sheet Model Summary
B2: Model Key
C4: User Inputs
C6: Arrow to higlight user inputs
B9: Model Diagram

Sheet Model Log (hidden)
A2: ="@"&COUNTIF(A$1:A1,"@*")+1 -> @1 | B2: Version Control Log
B3: Description: | C3: Keep track of key changes to the model here. Especially important towards the end of the project, for example between draft and final versions of model/report.
B4: Notes: | C4: Add rows as necessary
B6: Version Number | C6: Date | D6: Note important changes such as off-sheet calculations, insertion of new formulas, linking to other spreadsheets, versions issued to client, QC completed, etc. | E6: Modeller
B7: v0.1 | C7: 2017-12-20 | D7: Draft model issue to GLA | E7: MC
B8: v0.2 | C8: 2018-01-30 | D8: Version after model QA | E8: MC
B9: v0.4 | C9: 2018-03-29 | D9: Updated residual treatment and refreshed guidance text | E9: MC
B10: v1 | C10: 2018-03-29 | D10: Release to GLA | E10: MC
B11: v1 | C11: 2018-06-05 | D11: Re-release to GLA | E11: MC
B12: v1.2 | C12: 2019-02-11 | D12: Edits to residual extraction assumptions and re-use tonnages | E12: MC
A14: @ end

Sheet Start Here
B13: Introduction
B15: This model allows the user to:
B16: Compare the current carbon impact of your waste management against targets set in the Greenhouse Gas EPS (Emissions Performance Standard)
B17: Compare your current residual treatment against the CIF (Carbon Intensity Floor) target
B18: Model the impact of different interventions (increasing recycling and changing residual treatment) on the EPS and CIF
B19: N.B. Links and Macros must be enabled in order for the model to work with full functionality.
B21: Select Authority
E23: Role | F23: WDA | L23: LA No. | M23: WDA No. | N23: WDA No.
B24: Authority | C24: Select LA | E24: =INDEX('LA Data 201718'!$F$3:$AP$3,L24) ->  | F24: =INDEX('LA Data 201718'!$F$4:$AP$4,L24) ->  | L24: =MATCH(C24,'LA Data 201718'!$F$2:$AP$2,0) ->  | M24: =MATCH(F24,'LA Data 201718'!$F$1:$AP$1,0) ->  | N24: =INDEX(Lists!$D$60:$D$96,MATCH(C24,Lists!$B$60:$B$96,0)) -> 
B26: Identify which year the Waste Data Flow (WDF) data inputted relates to. This ensures the correct waste data list is used when pulling data from WDF
B27: WDF Year (For correct waste data list) | C27: 2017/18
B30: Other Key Authority Data
B31: Used to create kg/hh benchmarks with other London boroughs. Data used for other authorities is no. of dwellings reported in WDF
L33: Data Complete?
B34: Number of Households | C34: =C35 -> no data | L34: =IF(AND(C34>0,C24<>"",C34<>"no data"),"OK","Data Missing") -> Data Missing
B35: Est. dwelling stock in WasteDataFlow | C35: =IFERROR(INDEX('nQ100'!H3:H100,MATCH("Dwelling Stock",'nQ100'!F3:F100,0)),"no data") -> no data

Sheet Part 1 ->

Sheet Import WDF data
B42: Name the file
B44: Type the name of the WDF file in this box. It will probably be called 'Raw Data Download' but may have, for example, (3) after it if you have previously downloaded and stored these files
B45: Include the file extension - this will either be .xls or .xlsx
B46: File Name | C46: Raw Data Download.xlsx

Sheet nQ100

Sheet Q100

Sheet Set Up Baseline ->
B13: Baseline Set-up Checklist
B14: This summary shows, for each sheet/data section, whether there are obvious errors in the data and what source is being used (whether your own data input, WDF information or other sources)
B15: If there are data errors, the link will take you to the sheet in question and you can see and edit the data used
B17: Sheet and Data | D17: Data Errors? | E17: Source used | G17: Link
B19: Your Authority Information | D19: ='Start Here'!L34 -> Data Missing | E19: n/a | G19: =HYPERLINK("#'Start Here'!B5","Go") -> Go
B21: Your residual composition | D21: ='Residual Comp'!R41 -> OK | E21: ='Residual Comp'!$C$10 -> EPS London Compositions | G21: =HYPERLINK("#'Residual Comp'!B5","Go") -> Go
B23: Your LA-collected waste | D23: =Collections!W123 -> Missing Data | E23: =Collections!$W$124 -> WasteDataFlow Data | G23: =HYPERLINK("#'Collections'!B5","Go") -> Go
B25: Rejects from material collected separately for recycling | D25: ='Rejects (SS)'!N85 -> OK | E25: ='Rejects (SS)'!$C$15 -> WasteDataFlow Data | G25: =HYPERLINK("#'Rejects (SS)'!B5","Go") -> Go
B27: Composition and reject rate of co-mingled dry recycling | D27: ='Co-mingled Comp'!E12 -> Warning: Incomplete Composition | E27: ='Co-mingled Comp'!$C$12 -> WasteDataFlow Data | G27: =HYPERLINK("#'Co-mingled Comp'!B5","Go") -> Go
B29: Transport and treatment data | D29: ='Treatment and Transport'!P109 -> Incomplete Data | E29: ='Treatment and Transport'!$P$110 -> WDF Data | G29: =HYPERLINK("#'Treatment and Transport'!B5","Go") -> Go
B31: Onward Treatment Assumptions | D31: ='Onward Treatment'!AD61 -> OK | E31: ='Onward Treatment'!$C$13 -> WasteDataFlow Data | G31: =HYPERLINK("#'Onward Treatment'!B5","Go") -> Go
B34: Summary of Loaded Data:
B35: This table shows data summarised from the information loaded into this workbook. Review this to check it is accurate.
B37: Authority | D37: ='Start Here'!C24 -> Select LA
B39: Waste Stream | D39: All Collected, tonnes | E39: Final Destination Recycled, tonnes | G39: (C&I Collected, tonnes)
B40: Dry Recycling/Reuse | D40: =Collections!AB86 -> 0 | E40: =SUM('Final Recycled'!H49:H61,'Final Recycled'!H26:H38)-SUM(E41:E43) -> 0 | G40: =Collections!Z86 -> 0
B41: Food | D41: =Collections!AB87 -> 0 | E41: =SUM('Final Recycled'!H34,'Final Recycled'!H57) -> 0 | G41: =Collections!Z87 -> 0
B42: Garden | D42: =Collections!AB88 -> 0 | E42: =SUM('Final Recycled'!H35,'Final Recycled'!H58) -> 0 | G42: =Collections!Z88 -> 0
B43: Mixed Organics | D43: =Collections!AB89 -> 0 | E43: =SUM('Final Recycled'!H36,'Final Recycled'!H59) -> 0 | G43: =Collections!Z89 -> 0
B44: Residual | D44: =Collections!AB90 -> 0 | E44: =Residual!D87 ->  | G44: =Collections!Z90 -> 0
B45: Total | D45: =SUM(D40:D44) -> 0 | E45: =SUM(E40:E44) ->  | G45: =SUM(G40:G44) -> 0
B47: N.B In the table above, recycling from residual waste excludes recycling of incinerator bottom ash, metals from incinerator bottom ash and compost-like output from residual treatment facilities.
B49: See EPS Performance Results
B50: If you are happy that the above table is accurate, you can click on 'See Results'.
B51: However, you may anyway wish to look through the following sheets to see the data that is entered/pulled out of wdf
B53: =IF(AND(D21="OK",D23="OK",D25="OK",D27="OK",D29="OK",D31="OK"),"Data inputs complete, click button to see results","Caution: Incomplete Data Indicated, check messages in column D 'Data errors?'") -> Caution: Incomplete Data Indicated, check messages in column D 'Data errors?'

Sheet Residual Comp
B2: =HYPERLINK("#'Set Up Baseline ->'!B1","<- Back to overview") -> <- Back to overview
B4: Residual Waste Compositions | I4: =HYPERLINK("#Collections!B1","-> Next: Collections") -> -> Next: Collections | P4: ADMIN SECTION - WILL BE HIDDEN
B6: On this sheet, identify the composition of your residual waste.
B7: This is to form an estimate of the current capture rate of materials
B8: In the absence of your own specific data, average London residual compositions for kerbside, C&I and HWRC waste will be applied to your waste arisings | V8: Supporting Notes or Calculations
B10: Select Data to Use | C10: EPS London Compositions | D10: =MATCH(C10,Lists!$H$48:$H$49,0) -> 2
C12: EPS London Composition for Residual Waste | Q12: Used
C13: Estimated average composition data compiled through Eunomia's EPS Study for the GLA
E15: Kerbside Residual Waste | F15: Commercial Residual Waste | G15: HWRC Residual Waste | H15: Other | J15: London LACW | K15: London LACW incl. MRF Rejects | L15: LA LACW | M15: WfH | Q15: LACW | R15: WfH | S15: Commercial
C16: Paper / Card | E16: 0.1560324871 | F16: 0.2840057573 | G16: 0.05666464189 | H16: 0.1430306373 | J16: =SUMPRODUCT($E16:$H16,$E$32:$H$32) -> 0.1680134857 | K16: =SUMPRODUCT($E16:$H16,$E$33:$H$33) -> 0.1637788503 | L16: =SUMPRODUCT($E16:$H16,$E$34:$H$34) ->  | M16: =SUM(E16*$E$34,G16*$G$34)/SUM($E$34,$G$34) ->  | Q16: =CHOOSE($D$10,J41,L16) ->  | R16: =CHOOSE($D$10,K41,M16) ->  | S16: =CHOOSE($D$10,F41,F16) -> 0.2840057573
C17: Glass | E17: 0.04094510268 | F17: 0.06726917668 | G17: 0.02649217514 | H17: 0.03323997018 | J17: 0.04297391417 | K17: 0.04225683896 | L17: =SUMPRODUCT($E17:$H17,$E$34:$H$34) ->  | M17: =SUM(E17*$E$34,G17*$G$34)/SUM($E$34,$G$34) ->  | Q17: =CHOOSE($D$10,J42,L17) ->  | R17: =CHOOSE($D$10,K42,M17) ->  | S17: =CHOOSE($D$10,F42,F17) -> 0.06726917668
C18: Ferrous Metals | E18: 0.02183211722 | F18: 0.02094973019 | G18: 0.0161722922 | H18: 0.01307943908 | J18: 0.02004293239 | K18: 0.02067531252 | Q18: =CHOOSE($D$10,J43,L18) ->  | S18: 0.02094973019
C19: Non-Ferrous Metals | E19: 0.01218833824 | F19: 0.009863465402 | G19: 0.008505897738 | H19: 0.01958609989 | J19: 0.0127601954 | K19: 0.0125580748 | S19: 0.009863465402
C20: Plastics | E20: 0.1342498424 | F20: 0.1458320896 | G20: 0.09545712912 | H20: 0.09315948499 | J20: 0.1275662096 | K20: 0.1299285125 | S20: 0.1458320896
C21: Textiles | E21: 0.04836153257 | F21: 0.03059859962 | G21: 0.1034159086 | H21: 0.04669108386 | J21: 0.04846821 | K21: 0.0484305053 | S21: 0.03059859962
C22: Wood | E22: 0.01106066091 | F22: 0.04949159516 | G22: 0.1990248695 | H22: 0.09638655616 | J22: 0.04045662441 | K22: 0.03006674018 | S22: 0.04949159516
C23: WEEE | E23: 0.01151427843 | F23: 0.006364197481 | G23: 0.01708278969 | H23: 0.008569985596 | J23: 0.01058920077 | K23: 0.01091616572 | S23: 0.006364197481
C24: Food waste | E24: 0.3683500575 | F24: 0.2625555515 | G24: 0.02378280091 | H24: 0.110563714 | J24: 0.2935660411 | K24: 0.3199981488 | S24: 0.2625555515
C25: Garden Waste | E25: 0.0403624814 | F25: 0.01424922953 | G25: 0.03918583291 | H25: 0.1287290728 | J25: 0.0498336952 | K25: 0.04648613304 | S25: 0.01424922953
C26: Mixed Food and Garden Waste | E26: 0 | F26: 0 | G26: 0.007493144471 | H26: 0 | J26: 0.0004179126631 | K26: 0.000270203125 | S26: 0
C27: Material Recycled not classified (mineral oil etc.) | E27: 0 | F27: 0.01299453792 | G27: 0.1492784987 | H27: 0.129605617 | J27: 0.03013399041 | K27: 0.01948325355 | S27: 0.01299453792
C28: Soil, Rubble, Plasterboard | E28: 0.0142420941 | F28: 0.01717029987 | G28: 0.08000160003 | H28: 0.00211420999 | J28: 0.01650081665 | K28: 0.01570248031 | S28: 0.01717029987
C29: Other Materials | E29: 0.1408610074 | F29: 0.07865576976 | G29: 0.177442419 | H29: 0.1752441291 | J29: 0.1386767716 | K29: 0.1394487809 | S29: 0.07865576976
C30: Total | E30: =SUM(E16:E29) -> 1 | F30: =SUM(F16:F29) -> 1 | G30: =SUM(G16:G29) -> 1 | H30: =SUM(H16:H29) -> 1 | J30: =SUMPRODUCT($E30:$H30,$E$32:$H$32) -> 1 | K30: 1 | S30: 1
C32: % of London Residual Waste | E32: 0.6387778209 | F32: 0.1524695787 | G32: 0.05577266856 | H32: 0.1529799318
C33: % of London Residual Waste (including MRF rejects) | E33: 0.766450337 | F33: 0.09857982364 | G33: 0.03606004476 | H33: 0.09890979456
C34: % of LA Waste | E34: =Collections!V$107/Collections!$AB$107 ->  | F34: =Collections!Z$107/Collections!$AB$107 ->  | G34: =Collections!W$107/Collections!$AB$107 ->  | H34: =1-SUM(E34:G34) -> 
C37: Enter Own Composition Assumptions
C38: Input cells for own composition data. If you just have a kerbside composition, copy and paste the compositions for the other waste streams from above
E40: Kerbside Residual Waste | F40: C&I Waste | G40: HWRC Residual | H40: Other | J40: LA LACW | K40: London LACW incl. MRF Rejects | L40: LA LACW | M40: WfH | Q40: Error Checks
C41: Paper / Card | J41: =SUMPRODUCT($E41:$H41,$E$57:$H$57) ->  | K41: =SUMPRODUCT($E41:$H41,$E$33:$H$33) -> 0 | L41: =SUMPRODUCT($E41:$H41,$E$34:$H$34) ->  | M41: =SUM(E41*$E$34,G41*$G$34)/SUM($E$34,$G$34) ->  | Q41: Composition | R41: =IF(OR($D$10=2,SUM($E$55:$H$55)=4),"OK","INCOMPLETE COMPOSITION") -> OK | S41: If own data selected, checks composition is complete
C42: Glass | K42: 0 | L42: =SUMPRODUCT($E42:$H42,$E$34:$H$34) ->  | M42: =SUM(E42*$E$34,G42*$G$34)/SUM($E$34,$G$34) -> 
C43: Ferrous Metals | K43: 0
C44: Non-Ferrous Metals | K44: 0
C45: Plastics | K45: 0
C46: Textiles | K46: 0
C47: Wood | K47: 0
C48: WEEE | K48: 0
C49: Food waste | K49: 0
C50: Garden Waste | K50: 0
C51: Mixed Food and Garden Waste | K51: 0
C52: Material Recycled not classified (mineral oil etc.) | K52: 0
C53: Soil, Rubble, Plasterboard | K53: 0
C54: Other Materials | K54: 0
C55: Total | E55: =SUM(E41:E54) -> 0 | F55: =SUM(F41:F54) -> 0 | G55: =SUM(G41:G54) -> 0 | H55: =SUM(H41:H54) -> 0 | K55: 0
C57: LA % of Residual Waste | E57: =E34 ->  | F57: =F34 ->  | G57: =G34 ->  | H57: =H34 -> 

Sheet Collections
B2: =HYPERLINK("#'Set Up Baseline ->'!B1","<- Back to overview") -> <- Back to overview
B4: Waste Collected | O4: =HYPERLINK("#'Rejects (SS)'!B1","-> Next: Rejects from Source Segregated Collections") -> -> Next: Rejects from Source Segregated Collections | U4: ADMIN SECTION - WILL BE HIDDEN
B6: Collected for Reuse
AE7: Supporting Notes or Calculations
B8: Select data to use: | C8: WasteDataFlow Data | D8: =MATCH(C8,Lists!$C$48:$C$49,0) -> 2 | E8: =IF(AND(R19=0,C8=Lists!$C$48),"No data entered","") -> 
B10: Reuse | D10: Data from WasteDataFlow | L10: OR Replace with Own Data | V10: Used in RR
B11: Check or enter data on waste collected for re-use | L11: To use your own data, enter data here and select 'own data' from the drop down in cell C8
D12: =Coll!I$7 -> Kerbside | E12: =Coll!J$7 -> HWRC | F12: =Coll!K$7 -> Other Hhld | G12: =Coll!L$7 -> Streets | H12: =Coll!M$7 -> C&I | I12: Other Non-Hhld | J12: Total | L12: =D12 -> Kerbside | M12: HWRC | N12: Other Hhld | O12: Streets | P12: C&I | Q12: Other Non-Hhld | R12: Total | V12: =L12 -> Kerbside | W12: HWRC | X12: Other Hhld | Y12: Streets | Z12: C&I | AA12: Other Non-Hhld | AB12: Total
B13: Textiles | D13: =SUMIF(Coll!$E$13:$E$77,$B13,Coll!O$13:O$77) -> 0 | E13: =SUMIF(Coll!$E$13:$E$77,$B54,Coll!P$13:P$77) -> 0 | F13: =SUMIF(Coll!$E$13:$E$77,$B54,Coll!Q$13:Q$77) -> 0 | G13: =SUMIF(Coll!$E$13:$E$77,$B54,Coll!R$13:R$77) -> 0 | H13: =SUMIF(Coll!$E$13:$E$77,$B54,Coll!S$13:S$77) -> 0 | J13: =SUM(D13:I13) -> 0 | R13: =SUM(L13:Q13) -> 0 | V13: =IF($C$8=Lists!$C$49,D13,L13) -> 0 | W13: =IF($C$8=Lists!$C$49,E13,M13) -> 0 | X13: =IF($C$8=Lists!$C$49,F13,N13) -> 0 | Y13: =IF($C$8=Lists!$C$49,G13,O13) -> 0 | Z13: =IF($C$8=Lists!$C$49,H13,P13) -> 0 | AA13: =IF($C$8=Lists!$C$49,I13,Q13) -> 0 | AB13: =SUM(U13:Z13) -> 0
B14: Furniture | D14: =SUMIF(Coll!$D$13:$D$77,$B14,Coll!O$13:O$77) -> 0 | E14: =SUMIF(Coll!$D$13:$D$77,$B14,Coll!P$13:P$77) -> 0 | F14: =SUMIF(Coll!$D$13:$D$77,$B14,Coll!Q$13:Q$77) -> 0 | G14: =SUMIF(Coll!$D$13:$D$77,$B14,Coll!R$13:R$77) -> 0 | H14: =SUMIF(Coll!$D$13:$D$77,$B14,Coll!S$13:S$77) -> 0 | J14: =SUM(D14:I14) -> 0 | R14: =SUM(L14:Q14) -> 0 | V14: =IF($C$8=Lists!$C$49,D14,L14) -> 0 | W14: =IF($C$8=Lists!$C$49,E14,M14) -> 0 | X14: =IF($C$8=Lists!$C$49,F14,N14) -> 0 | Y14: =IF($C$8=Lists!$C$49,G14,O14) -> 0 | Z14: =IF($C$8=Lists!$C$49,H14,P14) -> 0 | AA14: =IF($C$8=Lists!$C$49,I14,Q14) -> 0 | AB14: =SUM(U14:Z14) -> 0
B15: WEEE | D15: =SUMIF(Coll!$E$13:$E$77,$B15,Coll!O$13:O$77) -> 0 | E15: =SUMIF(Coll!$E$13:$E$77,$B15,Coll!P$13:P$77) -> 0 | F15: =SUMIF(Coll!$E$13:$E$77,$B15,Coll!Q$13:Q$77) -> 0 | G15: =SUMIF(Coll!$E$13:$E$77,$B15,Coll!R$13:R$77) -> 0 | H15: =SUMIF(Coll!$E$13:$E$77,$B15,Coll!S$13:S$77) -> 0 | I15: =SUMIF(Coll!$E$13:$E$77,$B15,Coll!T$13:T$77) -> 0 | J15: =SUM(D15:I15) -> 0 | R15: =SUM(L15:Q15) -> 0 | V15: =IF($C$8=Lists!$C$49,D15,L15) -> 0 | W15: =IF($C$8=Lists!$C$49,E15,M15) -> 0 | X15: =IF($C$8=Lists!$C$49,F15,N15) -> 0 | Y15: =IF($C$8=Lists!$C$49,G15,O15) -> 0 | Z15: =IF($C$8=Lists!$C$49,H15,P15) -> 0 | AA15: =IF($C$8=Lists!$C$49,I15,Q15) -> 0 | AB15: =SUM(U15:Z15) -> 0
B16: Rubble, Soil, Plasterboard | D16: =SUMIF(Coll!$E$13:$E$77,$B16,Coll!O$13:O$77) -> 0 | E16: =SUMIF(Coll!$E$13:$E$77,$B16,Coll!P$13:P$77) -> 0 | F16: =SUMIF(Coll!$E$13:$E$77,$B16,Coll!Q$13:Q$77) -> 0 | G16: =SUMIF(Coll!$E$13:$E$77,$B16,Coll!R$13:R$77) -> 0 | H16: =SUMIF(Coll!$E$13:$E$77,$B16,Coll!S$13:S$77) -> 0 | I16: =SUMIF(Coll!$E$13:$E$77,$B16,Coll!T$13:T$77) -> 0 | J16: =SUM(D16:I16) -> 0 | R16: =SUM(L16:Q16) -> 0 | V16: =IF($C$8=Lists!$C$49,D16,L16) -> 0 | W16: =IF($C$8=Lists!$C$49,E16,M16) -> 0 | X16: =IF($C$8=Lists!$C$49,F16,N16) -> 0 | Y16: =IF($C$8=Lists!$C$49,G16,O16) -> 0 | Z16: =IF($C$8=Lists!$C$49,H16,P16) -> 0 | AA16: =IF($C$8=Lists!$C$49,I16,Q16) -> 0 | AB16: =SUM(U16:Z16) -> 0
B17: Other | D17: =D40-SUM(D13:D16) -> 0 | E17: =E40-SUM(E13:E16) -> 0 | F17: =F40-SUM(F13:F16) -> 0 | G17: =G40-SUM(G13:G16) -> 0 | H17: =H40-SUM(H13:H16) -> 0 | J17: =SUM(D17:I17) -> 0 | R17: =SUM(L17:Q17) -> 0 | V17: =IF($C$8=Lists!$C$49,D17,L17) -> 0 | W17: =IF($C$8=Lists!$C$49,E17,M17) -> 0 | X17: =IF($C$8=Lists!$C$49,F17,N17) -> 0 | Y17: =IF($C$8=Lists!$C$49,G17,O17) -> 0 | Z17: =IF($C$8=Lists!$C$49,H17,P17) -> 0 | AA17: =IF($C$8=Lists!$C$49,I17,Q17) -> 0 | AB17: =SUM(U17:Z17) -> 0
B19: Total Reuse | D19: =SUM(D13:D18) -> 0 | E19: =SUM(E13:E18) -> 0 | F19: =SUM(F13:F18) -> 0 | G19: =SUM(G13:G18) -> 0 | H19: =SUM(H13:H18) -> 0 | J19: =SUM(D19:I19) -> 0 | L19: =SUM(L13:L18) -> 0 | M19: 0 | N19: 0 | O19: 0 | P19: 0 | Q19: 0 | R19: =SUM(L19:Q19) -> 0 | V19: =SUM(V13:V18) -> 0 | W19: 0 | X19: 0 | Y19: 0 | Z19: 0 | AA19: 0 | AB19: =SUM(U19:Z19) -> 0
B21: If desired, enter more detailed breakdown of waste collected in the 'other' category below
B23: Reuse | D23: Data from WDF | L23: Enter Own Data | V23: Used in RR
D25: =Coll!O7 -> Kerbside | E25: =Coll!P7 -> HWRC | F25: =Coll!Q7 -> Other Hhld | G25: =Coll!R7 -> Streets | H25: =Coll!S7 -> C&I | I25: Other Non-Hhld | J25: Total | L25: =D25 -> Kerbside | M25: HWRC | N25: Other Hhld | O25: Streets | P25: C&I | Q25: Other Non-Hhld | R25: Total | V25: =L25 -> Kerbside | W25: HWRC | X25: Other Hhld | Y25: Streets | Z25: C&I | AA25: Other Non-Hhld | AB25: Total
B26: =Lists!B$9 -> Paper / Card | D26: =SUMIF(Coll!$E$13:$E$77,$B49,Coll!O$13:O$77) -> 0 | E26: =SUMIF(Coll!$E$13:$E$77,$B49,Coll!P$13:P$77) -> 0 | F26: =SUMIF(Coll!$E$13:$E$77,$B49,Coll!Q$13:Q$77) -> 0 | G26: =SUMIF(Coll!$E$13:$E$77,$B49,Coll!R$13:R$77) -> 0 | H26: =SUMIF(Coll!$E$13:$E$77,$B49,Coll!S$13:S$77) -> 0 | J26: =SUM(D26:I26) -> 0 | R26: =SUM(L26:Q26) -> 0 | V26: =IF($C$8=Lists!$C$49,D26,L26) -> 0 | W26: =IF($C$8=Lists!$C$49,E26,M26) -> 0 | X26: =IF($C$8=Lists!$C$49,F26,N26) -> 0 | Y26: =IF($C$8=Lists!$C$49,G26,O26) -> 0 | Z26: =IF($C$8=Lists!$C$49,H26,P26) -> 0 | AA26: =IF($C$8=Lists!$C$49,I26,Q26) -> 0 | AB26: =SUM(U26:Z26) -> 0
B27: =Lists!B$10 -> Glass | D27: =SUMIF(Coll!$E$13:$E$77,$B50,Coll!O$13:O$77) -> 0 | E27: =SUMIF(Coll!$E$13:$E$77,$B50,Coll!P$13:P$77) -> 0 | F27: =SUMIF(Coll!$E$13:$E$77,$B50,Coll!Q$13:Q$77) -> 0 | G27: =SUMIF(Coll!$E$13:$E$77,$B50,Coll!R$13:R$77) -> 0 | H27: =SUMIF(Coll!$E$13:$E$77,$B50,Coll!S$13:S$77) -> 0 | J27: 0 | R27: 0 | V27: =IF($C$8=Lists!$C$49,D27,L27) -> 0 | W27: =IF($C$8=Lists!$C$49,E27,M27) -> 0 | X27: =IF($C$8=Lists!$C$49,F27,N27) -> 0 | Y27: =IF($C$8=Lists!$C$49,G27,O27) -> 0 | Z27: =IF($C$8=Lists!$C$49,H27,P27) -> 0 | AA27: =IF($C$8=Lists!$C$49,I27,Q27) -> 0 | AB27: 0
B28: =Lists!B$11 -> Ferrous Metals | D28: =SUMIF(Coll!$E$13:$E$77,$B51,Coll!O$13:O$77)+SUMIF(Coll!$E$13:$E$77,"Mixed Metals",Coll!O$13:O$77)*'Co-mingled Comp'!$D55 -> 0 | E28: =SUMIF(Coll!$E$13:$E$77,$B51,Coll!P$13:P$77)+SUMIF(Coll!$E$13:$E$77,"Mixed Metals",Coll!P$13:P$77)*'Co-mingled Comp'!$D55 -> 0 | F28: =SUMIF(Coll!$E$13:$E$77,$B51,Coll!Q$13:Q$77)+SUMIF(Coll!$E$13:$E$77,"Mixed Metals",Coll!Q$13:Q$77)*'Co-mingled Comp'!$D55 -> 0 | G28: =SUMIF(Coll!$E$13:$E$77,$B51,Coll!R$13:R$77)+SUMIF(Coll!$E$13:$E$77,"Mixed Metals",Coll!R$13:R$77)*'Co-mingled Comp'!$D55 -> 0 | H28: =SUMIF(Coll!$E$13:$E$77,$B51,Coll!S$13:S$77)+SUMIF(Coll!$E$13:$E$77,"Mixed Metals",Coll!S$13:S$77)*'Co-mingled Comp'!$D55 -> 0 | J28: 0 | R28: 0 | V28: =IF($C$8=Lists!$C$49,D28,L28) -> 0 | W28: =IF($C$8=Lists!$C$49,E28,M28) -> 0 | X28: =IF($C$8=Lists!$C$49,F28,N28) -> 0 | Y28: =IF($C$8=Lists!$C$49,G28,O28) -> 0 | Z28: =IF($C$8=Lists!$C$49,H28,P28) -> 0 | AA28: =IF($C$8=Lists!$C$49,I28,Q28) -> 0 | AB28: 0
B29: =Lists!B$12 -> Non-Ferrous Metals | D29: =SUMIF(Coll!$E$13:$E$77,$B52,Coll!O$13:O$77)+SUMIF(Coll!$E$13:$E$77,"Mixed Metals",Coll!O$13:O$77)*'Co-mingled Comp'!$D56 -> 0 | E29: =SUMIF(Coll!$E$13:$E$77,$B52,Coll!P$13:P$77)+SUMIF(Coll!$E$13:$E$77,"Mixed Metals",Coll!P$13:P$77)*'Co-mingled Comp'!$D56 -> 0 | F29: =SUMIF(Coll!$E$13:$E$77,$B52,Coll!Q$13:Q$77)+SUMIF(Coll!$E$13:$E$77,"Mixed Metals",Coll!Q$13:Q$77)*'Co-mingled Comp'!$D56 -> 0 | G29: =SUMIF(Coll!$E$13:$E$77,$B52,Coll!R$13:R$77)+SUMIF(Coll!$E$13:$E$77,"Mixed Metals",Coll!R$13:R$77)*'Co-mingled Comp'!$D56 -> 0 | H29: =SUMIF(Coll!$E$13:$E$77,$B52,Coll!S$13:S$77)+SUMIF(Coll!$E$13:$E$77,"Mixed Metals",Coll!S$13:S$77)*'Co-mingled Comp'!$D56 -> 0 | J29: 0 | R29: 0 | V29: =IF($C$8=Lists!$C$49,D29,L29) -> 0 | W29: =IF($C$8=Lists!$C$49,E29,M29) -> 0 | X29: =IF($C$8=Lists!$C$49,F29,N29) -> 0 | Y29: =IF($C$8=Lists!$C$49,G29,O29) -> 0 | Z29: =IF($C$8=Lists!$C$49,H29,P29) -> 0 | AA29: =IF($C$8=Lists!$C$49,I29,Q29) -> 0 | AB29: 0
B30: =Lists!B$13 -> Plastics | D30: =SUMIF(Coll!$E$13:$E$77,$B53,Coll!O$13:O$77) -> 0 | E30: =SUMIF(Coll!$E$13:$E$77,$B53,Coll!P$13:P$77) -> 0 | F30: =SUMIF(Coll!$E$13:$E$77,$B53,Coll!Q$13:Q$77) -> 0 | G30: =SUMIF(Coll!$E$13:$E$77,$B53,Coll!R$13:R$77) -> 0 | H30: =SUMIF(Coll!$E$13:$E$77,$B53,Coll!S$13:S$77) -> 0 | J30: 0 | R30: 0 | V30: =IF($C$8=Lists!$C$49,D30,L30) -> 0 | W30: =IF($C$8=Lists!$C$49,E30,M30) -> 0 | X30: =IF($C$8=Lists!$C$49,F30,N30) -> 0 | Y30: =IF($C$8=Lists!$C$49,G30,O30) -> 0 | Z30: =IF($C$8=Lists!$C$49,H30,P30) -> 0 | AA30: =IF($C$8=Lists!$C$49,I30,Q30) -> 0 | AB30: 0
B31: =Lists!B$14 -> Textiles | D31: =SUMIF(Coll!$E$13:$E$77,$B54,Coll!O$13:O$77) -> 0 | E31: =SUMIF(Coll!$E$13:$E$77,$B54,Coll!P$13:P$77) -> 0 | F31: =SUMIF(Coll!$E$13:$E$77,$B54,Coll!Q$13:Q$77) -> 0 | G31: =SUMIF(Coll!$E$13:$E$77,$B54,Coll!R$13:R$77) -> 0 | H31: =SUMIF(Coll!$E$13:$E$77,$B54,Coll!S$13:S$77) -> 0 | J31: 0 | L31: =L13 -> 0 | M31: 0 | N31: 0 | O31: 0 | P31: 0 | Q31: 0 | R31: 0 | V31: =IF($C$8=Lists!$C$49,D31,L31) -> 0 | W31: =IF($C$8=Lists!$C$49,E31,M31) -> 0 | X31: =IF($C$8=Lists!$C$49,F31,N31) -> 0 | Y31: =IF($C$8=Lists!$C$49,G31,O31) -> 0 | Z31: =IF($C$8=Lists!$C$49,H31,P31) -> 0 | AA31: =IF($C$8=Lists!$C$49,I31,Q31) -> 0 | AB31: 0
B32: =Lists!B$15 -> Wood | D32: =SUMIF(Coll!$E$13:$E$77,$B55,Coll!O$13:O$77) -> 0 | E32: =SUMIF(Coll!$E$13:$E$77,$B55,Coll!P$13:P$77) -> 0 | F32: =SUMIF(Coll!$E$13:$E$77,$B55,Coll!Q$13:Q$77) -> 0 | G32: =SUMIF(Coll!$E$13:$E$77,$B55,Coll!R$13:R$77) -> 0 | H32: =SUMIF(Coll!$E$13:$E$77,$B55,Coll!S$13:S$77) -> 0 | J32: 0 | R32: 0 | V32: =IF($C$8=Lists!$C$49,D32,L32) -> 0 | W32: =IF($C$8=Lists!$C$49,E32,M32) -> 0 | X32: =IF($C$8=Lists!$C$49,F32,N32) -> 0 | Y32: =IF($C$8=Lists!$C$49,G32,O32) -> 0 | Z32: =IF($C$8=Lists!$C$49,H32,P32) -> 0 | AA32: =IF($C$8=Lists!$C$49,I32,Q32) -> 0 | AB32: 0
B33: =Lists!B$16 -> WEEE | D33: =SUMIF(Coll!$E$13:$E$77,$B56,Coll!O$13:O$77) -> 0 | E33: =SUMIF(Coll!$E$13:$E$77,$B56,Coll!P$13:P$77) -> 0 | F33: =SUMIF(Coll!$E$13:$E$77,$B56,Coll!Q$13:Q$77) -> 0 | G33: =SUMIF(Coll!$E$13:$E$77,$B56,Coll!R$13:R$77) -> 0 | H33: =SUMIF(Coll!$E$13:$E$77,$B56,Coll!S$13:S$77) -> 0 | J33: 0 | L33: =L15 -> 0 | M33: 0 | N33: 0 | O33: 0 | P33: 0 | Q33: 0 | R33: 0 | V33: =IF($C$8=Lists!$C$49,D33,L33) -> 0 | W33: =IF($C$8=Lists!$C$49,E33,M33) -> 0 | X33: =IF($C$8=Lists!$C$49,F33,N33) -> 0 | Y33: =IF($C$8=Lists!$C$49,G33,O33) -> 0 | Z33: =IF($C$8=Lists!$C$49,H33,P33) -> 0 | AA33: =IF($C$8=Lists!$C$49,I33,Q33) -> 0 | AB33: 0
B34: =Lists!B$17 -> Food waste | D34: =SUMIF(Coll!$E$13:$E$77,$B57,Coll!O$13:O$77) -> 0 | E34: =SUMIF(Coll!$E$13:$E$77,$B57,Coll!P$13:P$77) -> 0 | F34: =SUMIF(Coll!$E$13:$E$77,$B57,Coll!Q$13:Q$77) -> 0 | G34: =SUMIF(Coll!$E$13:$E$77,$B57,Coll!R$13:R$77) -> 0 | H34: =SUMIF(Coll!$E$13:$E$77,$B57,Coll!S$13:S$77) -> 0 | J34: 0 | R34: 0 | V34: =IF($C$8=Lists!$C$49,D34,L34) -> 0 | W34: =IF($C$8=Lists!$C$49,E34,M34) -> 0 | X34: =IF($C$8=Lists!$C$49,F34,N34) -> 0 | Y34: =IF($C$8=Lists!$C$49,G34,O34) -> 0 | Z34: =IF($C$8=Lists!$C$49,H34,P34) -> 0 | AA34: =IF($C$8=Lists!$C$49,I34,Q34) -> 0 | AB34: 0
B35: =Lists!B$18 -> Garden Waste | D35: =SUMIF(Coll!$E$13:$E$77,$B58,Coll!O$13:O$77) -> 0 | E35: =SUMIF(Coll!$E$13:$E$77,$B58,Coll!P$13:P$77) -> 0 | F35: =SUMIF(Coll!$E$13:$E$77,$B58,Coll!Q$13:Q$77) -> 0 | G35: =SUMIF(Coll!$E$13:$E$77,$B58,Coll!R$13:R$77) -> 0 | H35: =SUMIF(Coll!$E$13:$E$77,$B58,Coll!S$13:S$77) -> 0 | J35: 0 | R35: 0 | V35: =IF($C$8=Lists!$C$49,D35,L35) -> 0 | W35: =IF($C$8=Lists!$C$49,E35,M35) -> 0 | X35: =IF($C$8=Lists!$C$49,F35,N35) -> 0 | Y35: =IF($C$8=Lists!$C$49,G35,O35) -> 0 | Z35: =IF($C$8=Lists!$C$49,H35,P35) -> 0 | AA35: =IF($C$8=Lists!$C$49,I35,Q35) -> 0 | AB35: 0
B36: =Lists!B$19 -> Mixed Food and Garden Waste | D36: =SUMIF(Coll!$E$13:$E$77,$B59,Coll!O$13:O$77) -> 0 | E36: =SUMIF(Coll!$E$13:$E$77,$B59,Coll!P$13:P$77) -> 0 | F36: =SUMIF(Coll!$E$13:$E$77,$B59,Coll!Q$13:Q$77) -> 0 | G36: =SUMIF(Coll!$E$13:$E$77,$B59,Coll!R$13:R$77) -> 0 | H36: =SUMIF(Coll!$E$13:$E$77,$B59,Coll!S$13:S$77) -> 0 | J36: 0 | R36: 0 | V36: =IF($C$8=Lists!$C$49,D36,L36) -> 0 | W36: =IF($C$8=Lists!$C$49,E36,M36) -> 0 | X36: =IF($C$8=Lists!$C$49,F36,N36) -> 0 | Y36: =IF($C$8=Lists!$C$49,G36,O36) -> 0 | Z36: =IF($C$8=Lists!$C$49,H36,P36) -> 0 | AA36: =IF($C$8=Lists!$C$49,I36,Q36) -> 0 | AB36: 0
B37: =Lists!B$20 -> Material Recycled not classified (mineral oil etc.) | D37: =SUMIF(Coll!$E$13:$E$77,$B60,Coll!O$13:O$77) -> 0 | E37: =SUMIF(Coll!$E$13:$E$77,$B60,Coll!P$13:P$77) -> 0 | F37: =SUMIF(Coll!$E$13:$E$77,$B60,Coll!Q$13:Q$77) -> 0 | G37: =SUMIF(Coll!$E$13:$E$77,$B60,Coll!R$13:R$77) -> 0 | H37: =SUMIF(Coll!$E$13:$E$77,$B60,Coll!S$13:S$77) -> 0 | J37: 0 | L37: =L19-SUM(L26:L36,L38) -> 0 | M37: 0 | N37: 0 | O37: 0 | P37: 0 | Q37: 0 | R37: 0 | V37: =IF($C$8=Lists!$C$49,D37,L37) -> 0 | W37: =IF($C$8=Lists!$C$49,E37,M37) -> 0 | X37: =IF($C$8=Lists!$C$49,F37,N37) -> 0 | Y37: =IF($C$8=Lists!$C$49,G37,O37) -> 0 | Z37: =IF($C$8=Lists!$C$49,H37,P37) -> 0 | AA37: =IF($C$8=Lists!$C$49,I37,Q37) -> 0 | AB37: 0
B38: Rubble, Soil, Plasterboard | D38: =SUMIF(Coll!$E$13:$E$77,$B61,Coll!O$13:O$77) -> 0 | E38: =SUMIF(Coll!$E$13:$E$77,$B61,Coll!P$13:P$77) -> 0 | F38: =SUMIF(Coll!$E$13:$E$77,$B61,Coll!Q$13:Q$77) -> 0 | G38: =SUMIF(Coll!$E$13:$E$77,$B61,Coll!R$13:R$77) -> 0 | H38: =SUMIF(Coll!$E$13:$E$77,$B61,Coll!S$13:S$77) -> 0 | J38: 0 | L38: =L16 -> 0 | M38: 0 | N38: 0 | O38: 0 | P38: 0 | Q38: 0 | R38: 0 | V38: =IF($C$8=Lists!$C$49,D38,L38) -> 0 | W38: =IF($C$8=Lists!$C$49,E38,M38) -> 0 | X38: =IF($C$8=Lists!$C$49,F38,N38) -> 0 | Y38: =IF($C$8=Lists!$C$49,G38,O38) -> 0 | Z38: =IF($C$8=Lists!$C$49,H38,P38) -> 0 | AA38: =IF($C$8=Lists!$C$49,I38,Q38) -> 0 | AB38: 0
B40: Total (all Reuse) | D40: =SUM(D26:D39) -> 0 | E40: =SUM(E26:E39) -> 0 | F40: =SUM(F26:F39) -> 0 | G40: =SUM(G26:G39) -> 0 | H40: =SUM(H26:H39) -> 0 | J40: =SUM(D40:I40) -> 0 | L40: =SUM(L26:L39) -> 0 | M40: 0 | N40: 0 | O40: 0 | P40: 0 | Q40: 0 | R40: =SUM(L40:Q40) -> 0 | V40: =SUM(V26:V39) -> 0 | W40: 0 | X40: 0 | Y40: 0 | Z40: 0 | AA40: 0 | AB40: =SUM(U40:Z40) -> 0
B42: Collected for Recycling
B44: Select data to use: | C44: WasteDataFlow Data | D44: =MATCH(C44,Lists!$C$48:$C$49,0) -> 2 | E44: =IF(AND(SUM(R63,R65)=0,C44=Lists!$C$48),"No data entered","") -> 
B46: Breakdown of Local-Authority Collected Waste Collected for Recycling | D46: Data from WasteDataFlow | L46: OR Replace with Own Data | V46: Used in RR
B47: Check or enter data on waste collected for recycling | L47: To use your own data, enter data here and select 'own data' from the drop down in cell C44
D48: =Coll!I$7 -> Kerbside | E48: =Coll!J$7 -> HWRC | F48: =Coll!K$7 -> Other Hhld | G48: =Coll!L$7 -> Streets | H48: =Coll!M$7 -> C&I | I48: Other Non-Hhld | J48: Total | L48: =D48 -> Kerbside | M48: HWRC | N48: Other Hhld | O48: Streets | P48: C&I | Q48: Other Non-Hhld | R48: Total | V48: =L48 -> Kerbside | W48: HWRC | X48: Other Hhld | Y48: Streets | Z48: C&I | AA48: Other Non-Hhld | AB48: Total
B49: =Lists!B$9 -> Paper / Card | D49: =SUMIF(Coll!$E$13:$E$77,$B49,Coll!I$13:I$77) -> 0 | E49: =SUMIF(Coll!$E$13:$E$77,$B49,Coll!J$13:J$77) -> 0 | F49: =SUMIF(Coll!$E$13:$E$77,$B49,Coll!K$13:K$77) -> 0 | G49: =SUMIF(Coll!$E$13:$E$77,$B49,Coll!L$13:L$77) -> 0 | H49: =SUMIF(Coll!$E$13:$E$77,$B49,Coll!M$13:M$77) -> 0 | J49: =SUM(D49:I49) -> 0 | R49: =SUM(L49:Q49) -> 0 | V49: =IF($C$44=Lists!$C$49,D49,L49) -> 0 | W49: =IF($C$44=Lists!$C$49,E49,M49) -> 0 | X49: =IF($C$44=Lists!$C$49,F49,N49) -> 0 | Y49: =IF($C$44=Lists!$C$49,G49,O49) -> 0 | Z49: =IF($C$44=Lists!$C$49,H49,P49) -> 0 | AA49: =IF($C$44=Lists!$C$49,I49,Q49) -> 0 | AB49: =SUM(V49:AA49) -> 0
B50: =Lists!B$10 -> Glass | D50: =SUMIF(Coll!$E$13:$E$77,$B50,Coll!I$13:I$77) -> 0 | E50: =SUMIF(Coll!$E$13:$E$77,$B50,Coll!J$13:J$77) -> 0 | F50: =SUMIF(Coll!$E$13:$E$77,$B50,Coll!K$13:K$77) -> 0 | G50: =SUMIF(Coll!$E$13:$E$77,$B50,Coll!L$13:L$77) -> 0 | H50: =SUMIF(Coll!$E$13:$E$77,$B50,Coll!M$13:M$77) -> 0 | J50: 0 | R50: 0 | V50: =IF($C$44=Lists!$C$49,D50,L50) -> 0 | W50: =IF($C$44=Lists!$C$49,E50,M50) -> 0 | X50: =IF($C$44=Lists!$C$49,F50,N50) -> 0 | Y50: =IF($C$44=Lists!$C$49,G50,O50) -> 0 | Z50: =IF($C$44=Lists!$C$49,H50,P50) -> 0 | AA50: =IF($C$44=Lists!$C$49,I50,Q50) -> 0 | AB50: 0
B51: =Lists!B$11 -> Ferrous Metals | D51: =SUMIF(Coll!$E$13:$E$77,$B51,Coll!I$13:I$77)+SUMIF(Coll!$E$13:$E$77,"Mixed Metals",Coll!I$13:I$77)*'Co-mingled Comp'!D55 -> 0 | E51: =SUMIF(Coll!$E$13:$E$77,$B51,Coll!J$13:J$77)+SUMIF(Coll!$E$13:$E$77,"Mixed Metals",Coll!J$13:J$77)*'Co-mingled Comp'!$D55 -> 0 | F51: =SUMIF(Coll!$E$13:$E$77,$B51,Coll!K$13:K$77)+SUMIF(Coll!$E$13:$E$77,"Mixed Metals",Coll!K$13:K$77)*'Co-mingled Comp'!$D55 -> 0 | G51: =SUMIF(Coll!$E$13:$E$77,$B51,Coll!L$13:L$77)+SUMIF(Coll!$E$13:$E$77,"Mixed Metals",Coll!L$13:L$77)*'Co-mingled Comp'!$D55 -> 0 | H51: =SUMIF(Coll!$E$13:$E$77,$B51,Coll!M$13:M$77)+SUMIF(Coll!$E$13:$E$77,"Mixed Metals",Coll!M$13:M$77)*'Co-mingled Comp'!$D55 -> 0 | J51: 0 | R51: 0 | V51: =IF($C$44=Lists!$C$49,D51,L51) -> 0 | W51: =IF($C$44=Lists!$C$49,E51,M51) -> 0 | X51: =IF($C$44=Lists!$C$49,F51,N51) -> 0 | Y51: =IF($C$44=Lists!$C$49,G51,O51) -> 0 | Z51: =IF($C$44=Lists!$C$49,H51,P51) -> 0 | AA51: =IF($C$44=Lists!$C$49,I51,Q51) -> 0 | AB51: 0
B52: =Lists!B$12 -> Non-Ferrous Metals | D52: =SUMIF(Coll!$E$13:$E$77,$B52,Coll!I$13:I$77)+SUMIF(Coll!$E$13:$E$77,"Mixed Metals",Coll!I$13:I$77)*'Co-mingled Comp'!D56 -> 0 | E52: =SUMIF(Coll!$E$13:$E$77,$B52,Coll!J$13:J$77)+SUMIF(Coll!$E$13:$E$77,"Mixed Metals",Coll!J$13:J$77)*'Co-mingled Comp'!$D56 -> 0 | F52: =SUMIF(Coll!$E$13:$E$77,$B52,Coll!K$13:K$77)+SUMIF(Coll!$E$13:$E$77,"Mixed Metals",Coll!K$13:K$77)*'Co-mingled Comp'!$D56 -> 0 | G52: =SUMIF(Coll!$E$13:$E$77,$B52,Coll!L$13:L$77)+SUMIF(Coll!$E$13:$E$77,"Mixed Metals",Coll!L$13:L$77)*'Co-mingled Comp'!$D56 -> 0 | H52: =SUMIF(Coll!$E$13:$E$77,$B52,Coll!M$13:M$77)+SUMIF(Coll!$E$13:$E$77,"Mixed Metals",Coll!M$13:M$77)*'Co-mingled Comp'!$D56 -> 0 | J52: 0 | R52: 0 | V52: =IF($C$44=Lists!$C$49,D52,L52) -> 0 | W52: =IF($C$44=Lists!$C$49,E52,M52) -> 0 | X52: =IF($C$44=Lists!$C$49,F52,N52) -> 0 | Y52: =IF($C$44=Lists!$C$49,G52,O52) -> 0 | Z52: =IF($C$44=Lists!$C$49,H52,P52) -> 0 | AA52: =IF($C$44=Lists!$C$49,I52,Q52) -> 0 | AB52: 0
B53: =Lists!B$13 -> Plastics | D53: =SUMIF(Coll!$E$13:$E$77,$B53,Coll!I$13:I$77) -> 0 | E53: =SUMIF(Coll!$E$13:$E$77,$B53,Coll!J$13:J$77) -> 0 | F53: =SUMIF(Coll!$E$13:$E$77,$B53,Coll!K$13:K$77) -> 0 | G53: =SUMIF(Coll!$E$13:$E$77,$B53,Coll!L$13:L$77) -> 0 | H53: =SUMIF(Coll!$E$13:$E$77,$B53,Coll!M$13:M$77) -> 0 | J53: 0 | R53: 0 | V53: =IF($C$44=Lists!$C$49,D53,L53) -> 0 | W53: =IF($C$44=Lists!$C$49,E53,M53) -> 0 | X53: =IF($C$44=Lists!$C$49,F53,N53) -> 0 | Y53: =IF($C$44=Lists!$C$49,G53,O53) -> 0 | Z53: =IF($C$44=Lists!$C$49,H53,P53) -> 0 | AA53: =IF($C$44=Lists!$C$49,I53,Q53) -> 0 | AB53: 0
B54: =Lists!B$14 -> Textiles | D54: =SUMIF(Coll!$E$13:$E$77,$B54,Coll!I$13:I$77) -> 0 | E54: =SUMIF(Coll!$E$13:$E$77,$B54,Coll!J$13:J$77) -> 0 | F54: =SUMIF(Coll!$E$13:$E$77,$B54,Coll!K$13:K$77) -> 0 | G54: =SUMIF(Coll!$E$13:$E$77,$B54,Coll!L$13:L$77) -> 0 | H54: =SUMIF(Coll!$E$13:$E$77,$B54,Coll!M$13:M$77) -> 0 | J54: 0 | R54: 0 | V54: =IF($C$44=Lists!$C$49,D54,L54) -> 0 | W54: =IF($C$44=Lists!$C$49,E54,M54) -> 0 | X54: =IF($C$44=Lists!$C$49,F54,N54) -> 0 | Y54: =IF($C$44=Lists!$C$49,G54,O54) -> 0 | Z54: =IF($C$44=Lists!$C$49,H54,P54) -> 0 | AA54: =IF($C$44=Lists!$C$49,I54,Q54) -> 0 | AB54: 0
B55: =Lists!B$15 -> Wood | D55: =SUMIF(Coll!$E$13:$E$77,$B55,Coll!I$13:I$77) -> 0 | E55: =SUMIF(Coll!$E$13:$E$77,$B55,Coll!J$13:J$77) -> 0 | F55: =SUMIF(Coll!$E$13:$E$77,$B55,Coll!K$13:K$77) -> 0 | G55: =SUMIF(Coll!$E$13:$E$77,$B55,Coll!L$13:L$77) -> 0 | H55: =SUMIF(Coll!$E$13:$E$77,$B55,Coll!M$13:M$77) -> 0 | J55: 0 | R55: 0 | V55: =IF($C$44=Lists!$C$49,D55,L55) -> 0 | W55: =IF($C$44=Lists!$C$49,E55,M55) -> 0 | X55: =IF($C$44=Lists!$C$49,F55,N55) -> 0 | Y55: =IF($C$44=Lists!$C$49,G55,O55) -> 0 | Z55: =IF($C$44=Lists!$C$49,H55,P55) -> 0 | AA55: =IF($C$44=Lists!$C$49,I55,Q55) -> 0 | AB55: 0
B56: =Lists!B$16 -> WEEE | D56: =SUMIF(Coll!$E$13:$E$77,$B56,Coll!I$13:I$77) -> 0 | E56: =SUMIF(Coll!$E$13:$E$77,$B56,Coll!J$13:J$77) -> 0 | F56: =SUMIF(Coll!$E$13:$E$77,$B56,Coll!K$13:K$77) -> 0 | G56: =SUMIF(Coll!$E$13:$E$77,$B56,Coll!L$13:L$77) -> 0 | H56: =SUMIF(Coll!$E$13:$E$77,$B56,Coll!M$13:M$77) -> 0 | J56: 0 | R56: 0 | V56: =IF($C$44=Lists!$C$49,D56,L56) -> 0 | W56: =IF($C$44=Lists!$C$49,E56,M56) -> 0 | X56: =IF($C$44=Lists!$C$49,F56,N56) -> 0 | Y56: =IF($C$44=Lists!$C$49,G56,O56) -> 0 | Z56: =IF($C$44=Lists!$C$49,H56,P56) -> 0 | AA56: =IF($C$44=Lists!$C$49,I56,Q56) -> 0 | AB56: 0
B57: =Lists!B$17 -> Food waste | D57: =SUMIF(Coll!$E$13:$E$77,$B57,Coll!I$13:I$77) -> 0 | E57: =SUMIF(Coll!$E$13:$E$77,$B57,Coll!J$13:J$77) -> 0 | F57: =SUMIF(Coll!$E$13:$E$77,$B57,Coll!K$13:K$77) -> 0 | G57: =SUMIF(Coll!$E$13:$E$77,$B57,Coll!L$13:L$77) -> 0 | H57: =SUMIF(Coll!$E$13:$E$77,$B57,Coll!M$13:M$77) -> 0 | J57: 0 | R57: 0 | V57: =IF($C$44=Lists!$C$49,D57,L57) -> 0 | W57: =IF($C$44=Lists!$C$49,E57,M57) -> 0 | X57: =IF($C$44=Lists!$C$49,F57,N57) -> 0 | Y57: =IF($C$44=Lists!$C$49,G57,O57) -> 0 | Z57: =IF($C$44=Lists!$C$49,H57,P57) -> 0 | AA57: =IF($C$44=Lists!$C$49,I57,Q57) -> 0 | AB57: 0
B58: =Lists!B$18 -> Garden Waste | D58: =SUMIF(Coll!$E$13:$E$77,$B58,Coll!I$13:I$77) -> 0 | E58: =SUMIF(Coll!$E$13:$E$77,$B58,Coll!J$13:J$77) -> 0 | F58: =SUMIF(Coll!$E$13:$E$77,$B58,Coll!K$13:K$77) -> 0 | G58: =SUMIF(Coll!$E$13:$E$77,$B58,Coll!L$13:L$77) -> 0 | H58: =SUMIF(Coll!$E$13:$E$77,$B58,Coll!M$13:M$77) -> 0 | J58: 0 | R58: 0 | V58: =IF($C$44=Lists!$C$49,D58,L58) -> 0 | W58: =IF($C$44=Lists!$C$49,E58,M58) -> 0 | X58: =IF($C$44=Lists!$C$49,F58,N58) -> 0 | Y58: =IF($C$44=Lists!$C$49,G58,O58) -> 0 | Z58: =IF($C$44=Lists!$C$49,H58,P58) -> 0 | AA58: =IF($C$44=Lists!$C$49,I58,Q58) -> 0 | AB58: 0
B59: =Lists!B$19 -> Mixed Food and Garden Waste | D59: =SUMIF(Coll!$E$13:$E$77,$B59,Coll!I$13:I$77) -> 0 | E59: =SUMIF(Coll!$E$13:$E$77,$B59,Coll!J$13:J$77) -> 0 | F59: =SUMIF(Coll!$E$13:$E$77,$B59,Coll!K$13:K$77) -> 0 | G59: =SUMIF(Coll!$E$13:$E$77,$B59,Coll!L$13:L$77) -> 0 | H59: =SUMIF(Coll!$E$13:$E$77,$B59,Coll!M$13:M$77) -> 0 | J59: 0 | R59: 0 | V59: =IF($C$44=Lists!$C$49,D59,L59) -> 0 | W59: =IF($C$44=Lists!$C$49,E59,M59) -> 0 | X59: =IF($C$44=Lists!$C$49,F59,N59) -> 0 | Y59: =IF($C$44=Lists!$C$49,G59,O59) -> 0 | Z59: =IF($C$44=Lists!$C$49,H59,P59) -> 0 | AA59: =IF($C$44=Lists!$C$49,I59,Q59) -> 0 | AB59: 0
B60: =Lists!B$20 -> Material Recycled not classified (mineral oil etc.) | D60: =SUMIF(Coll!$E$13:$E$77,$B60,Coll!I$13:I$77) -> 0 | E60: =SUMIF(Coll!$E$13:$E$77,$B60,Coll!J$13:J$77) -> 0 | F60: =SUMIF(Coll!$E$13:$E$77,$B60,Coll!K$13:K$77) -> 0 | G60: =SUMIF(Coll!$E$13:$E$77,$B60,Coll!L$13:L$77) -> 0 | H60: =SUMIF(Coll!$E$13:$E$77,$B60,Coll!M$13:M$77) -> 0 | J60: 0 | R60: 0 | V60: =IF($C$44=Lists!$C$49,D60,L60) -> 0 | W60: =IF($C$44=Lists!$C$49,E60,M60) -> 0 | X60: =IF($C$44=Lists!$C$49,F60,N60) -> 0 | Y60: =IF($C$44=Lists!$C$49,G60,O60) -> 0 | Z60: =IF($C$44=Lists!$C$49,H60,P60) -> 0 | AA60: =IF($C$44=Lists!$C$49,I60,Q60) -> 0 | AB60: 0
B61: Rubble, Soil, Plasterboard | D61: =SUMIF(Coll!$E$13:$E$77,$B61,Coll!I$13:I$77) -> 0 | E61: =SUMIF(Coll!$E$13:$E$77,$B61,Coll!J$13:J$77) -> 0 | F61: =SUMIF(Coll!$E$13:$E$77,$B61,Coll!K$13:K$77) -> 0 | G61: =SUMIF(Coll!$E$13:$E$77,$B61,Coll!L$13:L$77) -> 0 | H61: =SUMIF(Coll!$E$13:$E$77,$B61,Coll!M$13:M$77) -> 0 | J61: 0 | R61: 0 | V61: =IF($C$44=Lists!$C$49,D61,L61) -> 0 | W61: =IF($C$44=Lists!$C$49,E61,M61) -> 0 | X61: =IF($C$44=Lists!$C$49,F61,N61) -> 0 | Y61: =IF($C$44=Lists!$C$49,G61,O61) -> 0 | Z61: =IF($C$44=Lists!$C$49,H61,P61) -> 0 | AA61: =IF($C$44=Lists!$C$49,I61,Q61) -> 0 | AB61: 0
B63: Total Source-Segregated Recycling/Composting | D63: =SUM(D49:D62) -> 0 | E63: =SUM(E49:E62) -> 0 | F63: =SUM(F49:F62) -> 0 | G63: =SUM(G49:G62) -> 0 | H63: =SUM(H49:H62) -> 0 | J63: =SUM(D63:I63) -> 0 | L63: =SUM(L49:L62) -> 0 | M63: 0 | N63: 0 | O63: 0 | P63: 0 | Q63: 0 | R63: =SUM(L63:Q63) -> 0 | V63: =SUM(V49:V62) -> 0 | W63: 0 | X63: 0 | Y63: 0 | Z63: 0 | AA63: 0 | AB63: =SUM(V63:AA63) -> 0
B65: Co-mingled Materials | D65: =SUMIF(Coll!$E$13:$E$77,$B65,Coll!I$13:I$77) -> 0 | E65: =SUMIF(Coll!$E$13:$E$77,$B65,Coll!J$13:J$77) -> 0 | F65: =SUMIF(Coll!$E$13:$E$77,$B65,Coll!K$13:K$77) -> 0 | G65: =SUMIF(Coll!$E$13:$E$77,$B65,Coll!L$13:L$77) -> 0 | H65: =SUMIF(Coll!$E$13:$E$77,$B65,Coll!M$13:M$77) -> 0 | J65: =SUM(D65:I65) -> 0 | R65: =SUM(L65:Q65) -> 0 | V65: =IF($C$44=Lists!$C$49,D65,L65) -> 0 | W65: =IF($C$44=Lists!$C$49,E65,M65) -> 0 | X65: =IF($C$44=Lists!$C$49,F65,N65) -> 0 | Y65: =IF($C$44=Lists!$C$49,G65,O65) -> 0 | Z65: =IF($C$44=Lists!$C$49,H65,P65) -> 0 | AA65: =IF($C$44=Lists!$C$49,I65,Q65) -> 0 | AB65: =SUM(V65:AA65) -> 0
D66: =D63+D65-Coll!I79 -> 0 | E66: =E63+E65-Coll!J79 -> 0 | F66: =F63+F65-Coll!K79 -> 0 | G66: =G63+G65-Coll!L79 -> 0 | H66: =H63+H65-Coll!M79 -> 0
B67: Total Co-mingled Recycling/Composting | D67: =D65 -> 0 | E67: =E65 -> 0 | F67: 0 | G67: 0 | H67: 0 | I67: 0 | J67: 0 | L67: =L65 -> 0 | M67: =M65 -> 0 | N67: 0 | O67: 0 | P67: 0 | Q67: 0 | R67: 0 | V67: =V65 -> 0 | W67: 0 | X67: 0 | Y67: 0 | Z67: 0 | AA67: 0 | AB67: 0
B69: Residual Collections
B71: Select data to use: | C71: WasteDataFlow Data | D71: =MATCH(C71,Lists!$C$48:$C$49,0) -> 2 | E71: =IF(AND(R76=0,C71=Lists!$C$48),"No data entered","") -> 
B73: Breakdown of Local Authority Collected Waste Residual Collection | D73: Data from WasteDataFlow | L73: Enter Own Data | V73: Used in RR
L74: To use your own data, enter data here and select 'own data' from the drop down in cell C70
D75: =Coll!I$7 -> Kerbside | E75: =Coll!J$7 -> HWRC | F75: =Coll!K$7 -> Other Hhld | G75: =Coll!L$7 -> Streets | H75: =Coll!M$7 -> C&I | I75: Other Non-Hhld | J75: Total | L75: =D75 -> Kerbside | M75: HWRC | N75: Other Hhld | O75: Streets | P75: C&I | Q75: Other Non-Hhld | R75: Total | V75: =L75 -> Kerbside | W75: HWRC | X75: Other Hhld | Y75: Streets | Z75: C&I | AA75: Other Non-Hhld | AB75: Total
D76: =Coll!G85 -> 0 | E76: =Coll!G88 -> 0 | F76: =SUM(Coll!G87,Coll!G92,Coll!G94,Coll!G99,Coll!G96) -> 0 | G76: =Coll!G86 -> 0 | H76: =SUM(Coll!G91) -> 0 | I76: =SUM(Coll!G89,Coll!G90,Coll!G93,Coll!G95,Coll!G97,Coll!G98,Coll!G100,Coll!G101) -> 0 | J76: =SUM(D76:I76) -> 0 | K76: =SUM(D76:I76)-Coll!G102 -> 0 | R76: =SUM(L76:Q76) -> 0 | V76: =IF($C$71=Lists!$C$49,D76,L76) -> 0 | W76: =IF($C$71=Lists!$C$49,E76,M76) -> 0 | X76: =IF($C$71=Lists!$C$49,F76,N76) -> 0 | Y76: =IF($C$71=Lists!$C$49,G76,O76) -> 0 | Z76: =IF($C$71=Lists!$C$49,H76,P76) -> 0 | AA76: =IF($C$71=Lists!$C$49,I76,Q76) -> 0 | AB76: =SUM(V76:AA76) -> 0
B79: Summary Information - Waste Collected
B80: Presents information summed from above into higher-level categories
B82: Waste Collected by Top Level Material Type (tonnes) | D82: Data from WasteDataFlow | L82: Own Data | V82: Used in RR
B83: Summed from above
D84: =Coll!I$7 -> Kerbside | E84: =Coll!J$7 -> HWRC | F84: =Coll!K$7 -> Other Hhld | G84: =Coll!L$7 -> Streets | H84: =Coll!M$7 -> C&I | I84: Other Non-Hhld | J84: Total | L84: =D84 -> Kerbside | M84: HWRC | N84: Other Hhld | O84: Streets | P84: C&I | Q84: Other Non-Hhld | R84: Total | V84: =D84 -> Kerbside | W84: HWRC | X84: Other Hhld | Y84: Streets | Z84: C&I | AA84: Other Non-Hhld | AB84: Total
B85: Reuse | D85: =D19 -> 0 | E85: =E19 -> 0 | F85: 0 | G85: 0 | H85: 0 | I85: 0 | J85: 0 | L85: =L19 -> 0 | M85: =M19 -> 0 | N85: 0 | O85: 0 | P85: 0 | Q85: 0 | R85: 0 | V85: =V19 -> 0 | W85: =W19 -> 0 | X85: 0 | Y85: 0 | Z85: 0 | AA85: 0 | AB85: 0
B86: Dry Recycling | D86: =SUM(D65,D49:D56,D60:D61) -> 0 | E86: 0 | F86: 0 | G86: 0 | H86: 0 | I86: 0 | J86: 0 | L86: =SUM(L65,L49:L56,L60:L61) -> 0 | M86: 0 | N86: 0 | O86: 0 | P86: 0 | Q86: 0 | R86: 0 | V86: =SUM(V65,V49:V56,V60:V61) -> 0 | W86: 0 | X86: 0 | Y86: 0 | Z86: 0 | AA86: 0 | AB86: 0
B87: Food | D87: =D57 -> 0 | E87: 0 | F87: 0 | G87: 0 | H87: 0 | I87: 0 | J87: 0 | L87: =L57 -> 0 | M87: 0 | N87: 0 | O87: 0 | P87: 0 | Q87: 0 | R87: 0 | V87: =V57 -> 0 | W87: 0 | X87: 0 | Y87: 0 | Z87: 0 | AA87: 0 | AB87: 0
B88: Garden | D88: 0 | E88: 0 | F88: 0 | G88: 0 | H88: 0 | I88: 0 | J88: 0 | L88: 0 | M88: 0 | N88: 0 | O88: 0 | P88: 0 | Q88: 0 | R88: 0 | V88: 0 | W88: 0 | X88: 0 | Y88: 0 | Z88: 0 | AA88: 0 | AB88: 0
B89: Mixed Organics | D89: 0 | E89: 0 | F89: 0 | G89: 0 | H89: 0 | I89: 0 | J89: 0 | L89: 0 | M89: 0 | N89: 0 | O89: 0 | P89: 0 | Q89: 0 | R89: 0 | V89: 0 | W89: 0 | X89: 0 | Y89: 0 | Z89: 0 | AA89: 0 | AB89: 0
B90: Residual | D90: =D76 -> 0 | E90: 0 | F90: 0 | G90: 0 | H90: 0 | I90: 0 | J90: 0 | L90: =L76 -> 0 | M90: 0 | N90: 0 | O90: 0 | P90: 0 | Q90: 0 | R90: 0 | V90: =V76 -> 0 | W90: 0 | X90: 0 | Y90: 0 | Z90: 0 | AA90: 0 | AB90: 0
B92: Waste Collected by Top Level Material Type (kg/hhld) | D92: Data from WasteDataFlow | L92: Own Data | V92: Used in RR
B93: Calculated as tonnage*1000/hhlds
D94: =Coll!I$7 -> Kerbside | E94: =Coll!J$7 -> HWRC | F94: =Coll!K$7 -> Other Hhld | G94: =Coll!L$7 -> Streets | H94: =Coll!M$7 -> C&I | I94: Other Non-Hhld | J94: Total | L94: =D94 -> Kerbside | M94: HWRC | N94: Other Hhld | O94: Streets | P94: C&I | Q94: Other Non-Hhld | R94: Total | V94: =D94 -> Kerbside | W94: HWRC | X94: Other Hhld | Y94: Streets | Z94: C&I | AA94: Other Non-Hhld | AB94: Total
B95: Reuse | D95: =D85*1000/'Start Here'!$C$34 ->  | E95: =E85*1000/'Start Here'!$C$34 ->  | F95: =F85*1000/'Start Here'!$C$34 ->  | G95: =G85*1000/'Start Here'!$C$34 ->  | H95: =H85*1000/'Start Here'!$C$34 ->  | I95: =I85*1000/'Start Here'!$C$34 ->  | J95: =J85*1000/'Start Here'!$C$34 ->  | L95: =L85*1000/'Start Here'!$C$34 ->  | M95: =M85*1000/'Start Here'!$C$34 ->  | N95: =N85*1000/'Start Here'!$C$34 ->  | O95: =O85*1000/'Start Here'!$C$34 ->  | P95: =P85*1000/'Start Here'!$C$34 ->  | Q95: =Q85*1000/'Start Here'!$C$34 ->  | R95: =R85*1000/'Start Here'!$C$34 ->  | V95: =V85*1000/'Start Here'!$C$34 ->  | W95: =W85*1000/'Start Here'!$C$34 ->  | X95: =X85*1000/'Start Here'!$C$34 ->  | Y95: =Y85*1000/'Start Here'!$C$34 ->  | Z95: =Z85*1000/'Start Here'!$C$34 ->  | AA95: =AA85*1000/'Start Here'!$C$34 ->  | AB95: =AB85*1000/'Start Here'!$C$34 -> 
B96: Dry Recycling | D96: =D86*1000/'Start Here'!$C$34 ->  | E96: =E86*1000/'Start Here'!$C$34 ->  | F96: =F86*1000/'Start Here'!$C$34 ->  | G96: =G86*1000/'Start Here'!$C$34 ->  | H96: =H86*1000/'Start Here'!$C$34 ->  | I96: =I86*1000/'Start Here'!$C$34 ->  | J96: =J86*1000/'Start Here'!$C$34 ->  | L96: =L86*1000/'Start Here'!$C$34 ->  | M96: =M86*1000/'Start Here'!$C$34 ->  | N96: =N86*1000/'Start Here'!$C$34 ->  | O96: =O86*1000/'Start Here'!$C$34 ->  | P96: =P86*1000/'Start Here'!$C$34 ->  | Q96: =Q86*1000/'Start Here'!$C$34 ->  | R96: =R86*1000/'Start Here'!$C$34 ->  | V96: =V86*1000/'Start Here'!$C$34 ->  | W96: =W86*1000/'Start Here'!$C$34 ->  | X96: =X86*1000/'Start Here'!$C$34 ->  | Y96: =Y86*1000/'Start Here'!$C$34 ->  | Z96: =Z86*1000/'Start Here'!$C$34 ->  | AA96: =AA86*1000/'Start Here'!$C$34 ->  | AB96: =AB86*1000/'Start Here'!$C$34 -> 
B97: Food Waste | D97: =D87*1000/'Start Here'!$C$34 ->  | E97: =E87*1000/'Start Here'!$C$34 ->  | F97: =F87*1000/'Start Here'!$C$34 ->  | G97: =G87*1000/'Start Here'!$C$34 ->  | H97: =H87*1000/'Start Here'!$C$34 ->  | I97: =I87*1000/'Start Here'!$C$34 ->  | J97: =J87*1000/'Start Here'!$C$34 ->  | L97: =L87*1000/'Start Here'!$C$34 ->  | M97: =M87*1000/'Start Here'!$C$34 ->  | N97: =N87*1000/'Start Here'!$C$34 ->  | O97: =O87*1000/'Start Here'!$C$34 ->  | P97: =P87*1000/'Start Here'!$C$34 ->  | Q97: =Q87*1000/'Start Here'!$C$34 ->  | R97: =R87*1000/'Start Here'!$C$34 ->  | V97: =V87*1000/'Start Here'!$C$34 ->  | W97: =W87*1000/'Start Here'!$C$34 ->  | X97: =X87*1000/'Start Here'!$C$34 ->  | Y97: =Y87*1000/'Start Here'!$C$34 ->  | Z97: =Z87*1000/'Start Here'!$C$34 ->  | AA97: =AA87*1000/'Start Here'!$C$34 ->  | AB97: =AB87*1000/'Start Here'!$C$34 -> 
B98: Garden Waste | D98: =D88*1000/'Start Here'!$C$34 ->  | E98: =E88*1000/'Start Here'!$C$34 ->  | F98: =F88*1000/'Start Here'!$C$34 ->  | G98: =G88*1000/'Start Here'!$C$34 ->  | H98: =H88*1000/'Start Here'!$C$34 ->  | I98: =I88*1000/'Start Here'!$C$34 ->  | J98: =J88*1000/'Start Here'!$C$34 ->  | L98: =L88*1000/'Start Here'!$C$34 ->  | M98: =M88*1000/'Start Here'!$C$34 ->  | N98: =N88*1000/'Start Here'!$C$34 ->  | O98: =O88*1000/'Start Here'!$C$34 ->  | P98: =P88*1000/'Start Here'!$C$34 ->  | Q98: =Q88*1000/'Start Here'!$C$34 ->  | R98: =R88*1000/'Start Here'!$C$34 ->  | V98: =V88*1000/'Start Here'!$C$34 ->  | W98: =W88*1000/'Start Here'!$C$34 ->  | X98: =X88*1000/'Start Here'!$C$34 ->  | Y98: =Y88*1000/'Start Here'!$C$34 ->  | Z98: =Z88*1000/'Start Here'!$C$34 ->  | AA98: =AA88*1000/'Start Here'!$C$34 ->  | AB98: =AB88*1000/'Start Here'!$C$34 -> 
B99: Mixed Organics | D99: =D89*1000/'Start Here'!$C$34 ->  | E99: =E89*1000/'Start Here'!$C$34 ->  | F99: =F89*1000/'Start Here'!$C$34 ->  | G99: =G89*1000/'Start Here'!$C$34 ->  | H99: =H89*1000/'Start Here'!$C$34 ->  | I99: =I89*1000/'Start Here'!$C$34 ->  | J99: =J89*1000/'Start Here'!$C$34 ->  | L99: =L89*1000/'Start Here'!$C$34 ->  | M99: =M89*1000/'Start Here'!$C$34 ->  | N99: =N89*1000/'Start Here'!$C$34 ->  | O99: =O89*1000/'Start Here'!$C$34 ->  | P99: =P89*1000/'Start Here'!$C$34 ->  | Q99: =Q89*1000/'Start Here'!$C$34 ->  | R99: =R89*1000/'Start Here'!$C$34 ->  | V99: =V89*1000/'Start Here'!$C$34 ->  | W99: =W89*1000/'Start Here'!$C$34 ->  | X99: =X89*1000/'Start Here'!$C$34 ->  | Y99: =Y89*1000/'Start Here'!$C$34 ->  | Z99: =Z89*1000/'Start Here'!$C$34 ->  | AA99: =AA89*1000/'Start Here'!$C$34 ->  | AB99: =AB89*1000/'Start Here'!$C$34 -> 
B100: Residual Waste | D100: =D90*1000/'Start Here'!$C$34 ->  | E100: =E90*1000/'Start Here'!$C$34 ->  | F100: =F90*1000/'Start Here'!$C$34 ->  | G100: =G90*1000/'Start Here'!$C$34 ->  | H100: =H90*1000/'Start Here'!$C$34 ->  | I100: =I90*1000/'Start Here'!$C$34 ->  | J100: =J90*1000/'Start Here'!$C$34 ->  | L100: =L90*1000/'Start Here'!$C$34 ->  | M100: =M90*1000/'Start Here'!$C$34 ->  | N100: =N90*1000/'Start Here'!$C$34 ->  | O100: =O90*1000/'Start Here'!$C$34 ->  | P100: =P90*1000/'Start Here'!$C$34 ->  | Q100: =Q90*1000/'Start Here'!$C$34 ->  | R100: =R90*1000/'Start Here'!$C$34 ->  | V100: =V90*1000/'Start Here'!$C$34 ->  | W100: =W90*1000/'Start Here'!$C$34 ->  | X100: =X90*1000/'Start Here'!$C$34 ->  | Y100: =Y90*1000/'Start Here'!$C$34 ->  | Z100: =Z90*1000/'Start Here'!$C$34 ->  | AA100: =AA90*1000/'Start Here'!$C$34 ->  | AB100: =AB90*1000/'Start Here'!$C$34 -> 
B102: Waste Collected for Reuse/Recycling/ as Residual Waste (tonnes) | D102: Data from WasteDataFlow | L102: Own Data | V102: Used in RR
B103: Summed from above
D104: =Coll!I$7 -> Kerbside | E104: =Coll!J$7 -> HWRC | F104: =Coll!K$7 -> Other Hhld | G104: =Coll!L$7 -> Streets | H104: =Coll!M$7 -> C&I | I104: Other Non-Hhld | J104: Total | L104: =D104 -> Kerbside | M104: HWRC | N104: Other Hhld | O104: Streets | P104: C&I | Q104: Other Non-Hhld | R104: Total | V104: =D104 -> Kerbside | W104: HWRC | X104: Other Hhld | Y104: Streets | Z104: C&I | AA104: Other Non-Hhld | AB104: Total
B105: Reuse | D105: =D19 -> 0 | E105: 0 | F105: 0 | G105: 0 | H105: 0 | I105: 0 | J105: =SUM(D105:I105) -> 0 | L105: =L19 -> 0 | M105: 0 | N105: 0 | O105: 0 | P105: 0 | Q105: 0 | R105: =SUM(L105:Q105) -> 0 | V105: =V19 -> 0 | W105: 0 | X105: 0 | Y105: 0 | Z105: 0 | AA105: 0 | AB105: =SUM(V105:AA105) -> 0
B106: Recycling | D106: =D63+D65 -> 0 | E106: 0 | F106: 0 | G106: 0 | H106: 0 | I106: 0 | J106: =SUM(D106:I106) -> 0 | L106: =L63+L65 -> 0 | M106: 0 | N106: 0 | O106: 0 | P106: 0 | Q106: 0 | R106: =SUM(L106:Q106) -> 0 | V106: =V63+V65 -> 0 | W106: 0 | X106: 0 | Y106: 0 | Z106: 0 | AA106: 0 | AB106: =SUM(V106:AA106) -> 0
B107: Residual | D107: =D76 -> 0 | E107: 0 | F107: 0 | G107: 0 | H107: 0 | I107: 0 | J107: =SUM(D107:I107) -> 0 | L107: =L76 -> 0 | M107: 0 | N107: 0 | O107: 0 | P107: 0 | Q107: 0 | R107: =SUM(L107:Q107) -> 0 | V107: =V76 -> 0 | W107: 0 | X107: 0 | Y107: 0 | Z107: 0 | AA107: 0 | AB107: =SUM(V107:AA107) -> 0
D108: =SUM(D105:D107) -> 0 | E108: 0 | F108: 0 | G108: 0 | H108: 0 | I108: 0 | J108: 0 | L108: =SUM(L105:L107) -> 0 | M108: 0 | N108: 0 | O108: 0 | P108: 0 | Q108: 0 | R108: 0 | V108: =SUM(V105:V107) -> 0 | W108: 0 | X108: 0 | Y108: 0 | Z108: 0 | AA108: 0 | AB108: 0
B110: Reuse of Rubble, Soil, Plasterboard | D110: =SUM(D16) -> 0 | E110: 0 | F110: 0 | G110: 0 | H110: 0 | I110: 0 | J110: =SUM(D110:I110) -> 0 | L110: =SUM(L16) -> 0 | M110: 0 | N110: 0 | O110: 0 | P110: 0 | Q110: 0 | R110: =SUM(L110:Q110) -> 0 | V110: =SUM(V16) -> 0 | W110: 0 | X110: 0 | Y110: 0 | Z110: 0 | AA110: 0 | AB110: =SUM(V110:AA110) -> 0
B111: Recycling of Rubble, Soil, Plasterboard | D111: =SUM(D61) -> 0 | E111: =SUM(E16,E61) -> 0 | F111: =SUM(F16,F61) -> 0 | G111: =SUM(G16,G61) -> 0 | H111: =SUM(H16,H61) -> 0 | I111: =SUM(I16,I61) -> 0 | J111: =SUM(D111:I111) -> 0 | L111: =SUM(L61) -> 0 | M111: =SUM(M16,M61) -> 0 | N111: =SUM(N16,N61) -> 0 | O111: =SUM(O16,O61) -> 0 | P111: =SUM(P16,P61) -> 0 | Q111: =SUM(Q16,Q61) -> 0 | R111: =SUM(L111:Q111) -> 0 | V111: =SUM(V61) -> 0 | W111: =SUM(W16,W61) -> 0 | X111: =SUM(X16,X61) -> 0 | Y111: =SUM(Y16,Y61) -> 0 | Z111: =SUM(Z16,Z61) -> 0 | AA111: =SUM(AA16,AA61) -> 0 | AB111: =SUM(V111:AA111) -> 0
B113: Waste Collected by LACW/WfH/C&I/Other (tonnes) | D113: Data from WasteDataFlow | L113: Own Data | V113: Used in RR
B114: Summed from above
D115: LACW | E115: WfH | F115: C&I | G115: Other Non Hhld | L115: LACW | M115: WfH | N115: C&I | O115: Other Non Hhld | V115: LACW | W115: WfH | X115: C&I | Y115: Other Non Hhld
B116: Reuse | D116: =J105 -> 0 | E116: =SUM(D105:F105)-SUM(D110:F110) -> 0 | F116: =H105 -> 0 | G116: =SUM(G105,I105,D110:F110) -> 0 | H116: =SUM(E116:G116)-J105 -> 0 | L116: =R105 -> 0 | M116: =SUM(L105:N105)-SUM(L110:N110) -> 0 | N116: =P105 -> 0 | O116: =SUM(O105,Q105,L110:N110) -> 0 | P116: =SUM(M116:O116)-R105 -> 0 | V116: =AB105 -> 0 | W116: =SUM(V105:X105)-SUM(V110:X110) -> 0 | X116: =Z105 -> 0 | Y116: =SUM(Y105,AA105,V110:X110) -> 0 | Z116: =SUM(W116:Y116)-AB105 -> 0
B117: Recycling | D117: =J106 -> 0 | E117: =SUM(D106:F106)-SUM(D111:F111) -> 0 | F117: =H106 -> 0 | G117: =SUM(G106,I106,D111:F111) -> 0 | H117: =SUM(E117:G117)-J106 -> 0 | L117: =R106 -> 0 | M117: =SUM(L106:N106)-SUM(L111:N111) -> 0 | N117: =P106 -> 0 | O117: =SUM(O106,Q106,L111:N111) -> 0 | P117: =SUM(M117:O117)-R106 -> 0 | V117: =AB106 -> 0 | W117: =SUM(V106:X106)-SUM(V111:X111) -> 0 | X117: =Z106 -> 0 | Y117: =SUM(Y106,AA106,V111:X111) -> 0 | Z117: =SUM(W117:Y117)-AB106 -> 0
B118: Residual | D118: =J107 -> 0 | E118: =SUM(D107:F107)-SUM(D112:F112) -> 0 | F118: =H107 -> 0 | G118: =SUM(G107,I107) -> 0 | H118: =SUM(E118:G118)-J107 -> 0 | L118: =R107 -> 0 | M118: =SUM(L107:N107)-SUM(L112:N112) -> 0 | N118: =P107 -> 0 | O118: =SUM(O107,Q107) -> 0 | P118: =SUM(M118:O118)-R107 -> 0 | V118: =AB107 -> 0 | W118: =SUM(V107:X107)-SUM(V112:X112) -> 0 | X118: =Z107 -> 0 | Y118: =SUM(Y107,AA107) -> 0 | Z118: =SUM(W118:Y118)-AB107 -> 0
D119: =SUM(D116:D118) -> 0 | E119: =SUM(E116:E118) -> 0 | F119: =SUM(F116:F118) -> 0 | G119: =SUM(G116:G118) -> 0 | L119: =SUM(L116:L118) -> 0 | M119: =SUM(M116:M118) -> 0 | N119: =SUM(N116:N118) -> 0 | O119: =SUM(O116:O118) -> 0 | V119: =SUM(V116:V118) -> 0 | W119: =SUM(W116:W118) -> 0 | X119: =SUM(X116:X118) -> 0 | Y119: =SUM(Y116:Y118) -> 0
V123: Errors? | W123: =IF(OR(AB76<10,SUM(AB63,AB65)<10),"Missing Data", "OK") -> Missing Data
V124: Source: | W124: =IF(D8*D44*D71 = 1, "Entered Data", IF(D8*D44*D71 = 8, "WasteDataFlow Data", "Mix of WDF and own data")) -> WasteDataFlow Data

Sheet Rejects (SS)
B2: =HYPERLINK("#'Set Up Baseline ->'!B1","<- Back to overview") -> <- Back to overview
B4: Rejects from Source-Separated Collections | G4: =HYPERLINK("#'Co-mingled Comp'!B1","-> Next: Co-mingled Composition") -> -> Next: Co-mingled Composition
B15: Select data to use: | C15: WasteDataFlow Data
B17: Sent for Reuse | F17: WDF Data | J17: Enter Own Reject Rate | M17: Modelled Reject Rate | O17: Modelled Tonnage Adjustment
B18: Tonnages sent for reuse | S18: Supporting Notes or Calculations
D20: Collected | F20: Reused | G20: Difference in Collected for Reused and Reused (Q100) | H20: WDF Implied Tonnage Adjustment | J20: Reject Rate | M20: Modelled % Tonnage Adjustment | O20: Modelled Tonnage Adjustment
B21: Textiles | D21: =SUM(Collections!V13:AA13) -> 0 | F21: =SUMIF(Mgmt!$C$19:$C$86,$B21,Mgmt!E$19:E$86) -> 0 | G21: =D21 - F21 -> 0 | H21: =IF(D21>0,(D21-F21)/D21,0) -> 0 | J21: =H21 -> 0 | M21: =IF($C$15=Lists!$C$49,H21,J21) -> 0 | O21: =D21*M21 -> 0
B22: Furniture | D22: =SUM(Collections!V14:AA14) -> 0 | F22: =SUMIF(Mgmt!$B$19:$B$86,$B22,Mgmt!E$19:E$86) -> 0 | G22: =D22 - F22 -> 0 | H22: =IF(D22>0,(D22-F22)/D22,0) -> 0 | J22: =H22 -> 0 | M22: =IF($C$15=Lists!$C$49,H22,J22) -> 0 | O22: =D22*M22 -> 0
B23: WEEE | D23: =SUM(Collections!V15:AA15) -> 0 | F23: =SUMIF(Mgmt!$C$19:$C$86,$B23,Mgmt!E$19:E$86) -> 0 | G23: =D23 - F23 -> 0 | H23: =IF(D23>0,(D23-F23)/D23,0) -> 0 | J23: =H23 -> 0 | M23: =IF($C$15=Lists!$C$49,H23,J23) -> 0 | O23: =D23*M23 -> 0
B24: Rubble, Soil, Plasterboard | D24: =SUM(Collections!V16:AA16) -> 0 | F24: =SUMIF(Mgmt!$C$19:$C$86,$B24,Mgmt!E$19:E$86) -> 0 | G24: =D24 - F24 -> 0 | H24: =IF(D24>0,(D24-F24)/D24,0) -> 0 | J24: =H24 -> 0 | M24: =IF($C$15=Lists!$C$49,H24,J24) -> 0 | O24: =D24*M24 -> 0
B25: Other | D25: =SUM(Collections!V17:AA17) -> 0 | F25: =F46-SUM(F21:F24) -> 0 | G25: =D25 - F25 -> 0 | H25: =IF(D25>0,(D25-F25)/D25,0) -> 0 | J25: =H25 -> 0 | M25: =IF($C$15=Lists!$C$49,H25,J25) -> 0 | O25: =D25*M25 -> 0
B27: Total Reuse | D27: =SUM(D21:D25) -> 0 | F27: =SUM(F21:F25) -> 0 | G27: =SUM(G21:G25) -> 0 | H27: =IF(D27>0,(D27-F27)/D27,0) -> 0 | O27: =SUM(O21:O25) -> 0
B29: Sent for Reuse - Breakdown of Other Category | F29: WDF Data | J29: Enter Own Reject Rate
D31: Collected for Reuse | F31: Reused (Q100) | G31: Difference in Collected for Reused and Reused (Q100) | H31: WDF Tonnage Adjustment | J31: Reject Rate | M31: Modelled % Tonnage Adjustment | O31: Modelled Tonnage Adjustment
B32: =Lists!B$9 -> Paper / Card | D32: =SUM(Collections!V26:AA26) -> 0 | F32: =SUMIF(Mgmt!$C$19:$C$86,$B32,Mgmt!E$19:E$86) -> 0 | G32: =D32 - F32 -> 0 | H32: =IF(D32>0,(D32-F32)/D32,0) -> 0 | J32: 0 | M32: =IF($C$15=Lists!$C$49,H32,J32) -> 0 | O32: =D32*M32 -> 0
B33: =Lists!B$10 -> Glass | D33: =SUM(Collections!V27:AA27) -> 0 | F33: =SUMIF(Mgmt!$C$19:$C$86,$B33,Mgmt!E$19:E$86) -> 0 | G33: 0 | H33: =IF(D33>0,(D33-F33)/D33,0) -> 0 | J33: 0 | M33: =IF($C$15=Lists!$C$49,H33,J33) -> 0 | O33: 0
B34: =Lists!B$11 -> Ferrous Metals | D34: =SUM(Collections!V28:AA28) -> 0 | F34: =SUMIF(Mgmt!$C$19:$C$86,$B34,Mgmt!E$19:E$86)+SUMIF(Mgmt!$C$19:$C$86,"Mixed Metals",Mgmt!E$19:E$86)*'Co-mingled Comp'!D55 -> 0 | G34: 0 | H34: =IF(D34>0,(D34-F34)/D34,0) -> 0 | J34: 0 | M34: =IF($C$15=Lists!$C$49,H34,J34) -> 0 | O34: 0
B35: =Lists!B$12 -> Non-Ferrous Metals | D35: =SUM(Collections!V29:AA29) -> 0 | F35: =SUMIF(Mgmt!$C$19:$C$86,$B35,Mgmt!E$19:E$86)+SUMIF(Mgmt!$C$19:$C$86,"Mixed Metals",Mgmt!E$19:E$86)*'Co-mingled Comp'!D56 -> 0 | G35: 0 | H35: =IF(D35>0,(D35-F35)/D35,0) -> 0 | J35: 0 | M35: =IF($C$15=Lists!$C$49,H35,J35) -> 0 | O35: 0
B36: =Lists!B$13 -> Plastics | D36: =SUM(Collections!V30:AA30) -> 0 | F36: =SUMIF(Mgmt!$C$19:$C$86,$B36,Mgmt!E$19:E$86) -> 0 | G36: 0 | H36: =IF(D36>0,(D36-F36)/D36,0) -> 0 | J36: 0 | M36: =IF($C$15=Lists!$C$49,H36,J36) -> 0 | O36: 0
B37: =Lists!B$14 -> Textiles | D37: =D21 -> 0 | F37: =F21 -> 0 | G37: 0 | H37: =H21 -> 0 | J37: =J21 -> 0 | M37: =IF($C$15=Lists!$C$49,H37,J37) -> 0 | O37: 0
B38: =Lists!B$15 -> Wood | D38: =SUM(Collections!V32:AA32) -> 0 | F38: =SUMIF(Mgmt!$C$19:$C$86,$B38,Mgmt!E$19:E$86) -> 0 | G38: 0 | H38: =IF(D38>0,(D38-F38)/D38,0) -> 0 | J38: 0 | M38: =IF($C$15=Lists!$C$49,H38,J38) -> 0 | O38: =D38*M38 -> 0
B39: =Lists!B$16 -> WEEE | D39: =D23 -> 0 | F39: =F23 -> 0 | G39: 0 | H39: =H23 -> 0 | J39: =J23 -> 0 | M39: =IF($C$15=Lists!$C$49,H39,J39) -> 0 | O39: 0
B40: =Lists!B$17 -> Food waste | G40: 0 | M40: =IF($C$15=Lists!$C$49,H40,J40) -> 0 | O40: 0
B41: =Lists!B$18 -> Garden Waste | G41: 0 | M41: =IF($C$15=Lists!$C$49,H41,J41) -> 0 | O41: 0
B42: =Lists!B$19 -> Mixed Food and Garden Waste | G42: 0 | M42: =IF($C$15=Lists!$C$49,H42,J42) -> 0 | O42: 0
B43: =Lists!B$20 -> Material Recycled not classified (mineral oil etc.) | D43: =SUM(Collections!V37:AA37) -> 0 | F43: =SUMIF(Mgmt!$C$19:$C$86,$B43,Mgmt!E$19:E$86) -> 0 | G43: 0 | H43: =IF(D43>0,(D43-F43)/D43,0) -> 0 | J43: 0 | M43: =IF($C$15=Lists!$C$49,H43,J43) -> 0 | O43: 0
B44: Rubble, Soil, Plasterboard | F44: =F24 -> 0 | G44: =D44 - F44 -> 0 | H44: =H24 -> 0 | J44: =J24 -> 0 | M44: =IF($C$15=Lists!$C$49,H44,J44) -> 0 | O44: 0
B46: Total Reuse | D46: =SUM(D32:D44) -> 0 | F46: =SUM(F32:F44) -> 0 | G46: =SUM(G32:G44) -> 0 | H46: =IF(D46>0,(D46-F46)/D46,0) -> 0 | O46: =SUM(O32:O44) -> 0
B49: Sent for Recycling | F49: WDF Data | J49: Enter Own Reject Rate
D52: Collected for Recycling | F52: Recycled (Q100) | G52: Difference in Collected for Recycling and Recycled (Q100) | H52: WDF Tonnage Adjustment | J52: Reject Rate | M52: Modelled % Tonnage Adjustment | O52: Modelled Tonnage Adjustment
B53: =Lists!B$9 -> Paper / Card | D53: =SUM(Collections!V49:AA49) -> 0 | F53: =SUMIF(Mgmt!$C$19:$C$86,$B53,Mgmt!G$19:G$86)-F32 -> 0 | G53: =D53 - F53 -> 0 | H53: =IF(D53>0,(D53-F53)/D53,0) -> 0 | J53: =H53 -> 0 | M53: =IF($C$15=Lists!$C$49,H53,J53) -> 0 | O53: =M53*D53 -> 0
B54: =Lists!B$10 -> Glass | D54: =SUM(Collections!V50:AA50) -> 0 | F54: =SUMIF(Mgmt!$C$19:$C$86,$B54,Mgmt!G$19:G$86)-F33 -> 0 | G54: =D54 - F54 -> 0 | H54: 0 | J54: 0 | M54: =IF($C$15=Lists!$C$49,H54,J54) -> 0 | O54: 0
B55: =Lists!B$11 -> Ferrous Metals | D55: =SUM(Collections!V51:AA51) -> 0 | F55: =SUMIF(Mgmt!$C$19:$C$86,$B55,Mgmt!G$19:G$86)+SUMIF(Mgmt!$C$19:$C$86,"Mixed Metals",Mgmt!G$19:G$86)*'Co-mingled Comp'!D55-F34 -> 0 | G55: 0 | H55: 0 | J55: 0 | M55: =IF($C$15=Lists!$C$49,H55,J55) -> 0 | O55: 0
B56: =Lists!B$12 -> Non-Ferrous Metals | D56: =SUM(Collections!V52:AA52) -> 0 | F56: =SUMIF(Mgmt!$C$19:$C$86,$B56,Mgmt!G$19:G$86)+SUMIF(Mgmt!$C$19:$C$86,"Mixed Metals",Mgmt!G$19:G$86)*'Co-mingled Comp'!D56-F35 -> 0 | G56: 0 | H56: 0 | J56: 0 | M56: =IF($C$15=Lists!$C$49,H56,J56) -> 0 | O56: 0
B57: =Lists!B$13 -> Plastics | D57: =SUM(Collections!V53:AA53) -> 0 | F57: =SUMIF(Mgmt!$C$19:$C$86,$B57,Mgmt!G$19:G$86)-F36 -> 0 | G57: 0 | H57: 0 | J57: 0 | M57: =IF($C$15=Lists!$C$49,H57,J57) -> 0 | O57: 0
B58: =Lists!B$14 -> Textiles | D58: =SUM(Collections!V54:AA54) -> 0 | F58: =SUMIF(Mgmt!$C$19:$C$86,$B58,Mgmt!G$19:G$86)-F37 -> 0 | G58: 0 | H58: 0 | J58: 0 | M58: =IF($C$15=Lists!$C$49,H58,J58) -> 0 | O58: 0
B59: =Lists!B$15 -> Wood | D59: =SUM(Collections!V55:AA55) -> 0 | F59: =SUMIF(Mgmt!$C$19:$C$86,$B59,Mgmt!G$19:G$86)-F38 -> 0 | G59: 0 | H59: 0 | J59: 0 | M59: =IF($C$15=Lists!$C$49,H59,J59) -> 0 | O59: 0
B60: =Lists!B$16 -> WEEE | D60: =SUM(Collections!V56:AA56) -> 0 | F60: =SUMIF(Mgmt!$C$19:$C$86,$B60,Mgmt!G$19:G$86)-F39 -> 0 | G60: 0 | H60: 0 | J60: 0 | M60: =IF($C$15=Lists!$C$49,H60,J60) -> 0 | O60: 0
B61: =Lists!B$17 -> Food waste | D61: =SUM(Collections!V57:AA57) -> 0 | F61: =SUMIF(Mgmt!$C$19:$C$86,$B61,Mgmt!L$19:L$86)-F40 -> 0 | G61: 0 | H61: 0 | J61: 0 | M61: =IF($C$15=Lists!$C$49,H61,J61) -> 0 | O61: 0
B62: =Lists!B$18 -> Garden Waste | D62: =SUM(Collections!V58:AA58) -> 0 | F62: =SUMIF(Mgmt!$C$19:$C$86,$B62,Mgmt!L$19:L$86)-F41 -> 0 | G62: 0 | H62: 0 | J62: 0 | M62: =IF($C$15=Lists!$C$49,H62,J62) -> 0 | O62: 0
B63: =Lists!B$19 -> Mixed Food and Garden Waste | D63: =SUM(Collections!V59:AA59) -> 0 | F63: =SUMIF(Mgmt!$C$19:$C$86,$B63,Mgmt!L$19:L$86)-F42 -> 0 | G63: 0 | H63: 0 | J63: 0 | M63: =IF($C$15=Lists!$C$49,H63,J63) -> 0 | O63: 0
B64: =Lists!B$20 -> Material Recycled not classified (mineral oil etc.) | D64: =SUM(Collections!V60:AA60) -> 0 | F64: =SUMIF(Mgmt!$C$19:$C$86,$B64,Mgmt!G$19:G$86)-F43 -> 0 | G64: 0 | H64: 0 | J64: =H64 -> 0 | M64: =IF($C$15=Lists!$C$49,H64,J64) -> 0 | O64: 0
B65: Rubble, Soil, Plasterboard | D65: =SUM(Collections!V61:AA61) -> 0 | F65: =SUMIF(Mgmt!$C$19:$C$86,$B65,Mgmt!G$19:G$86)-F44 -> 0 | G65: 0 | H65: 0 | J65: =H65 -> 0 | M65: =IF($C$15=Lists!$C$49,H65,J65) -> 0 | O65: 0
B67: Total Recycling | D67: =SUM(D53:D65) -> 0 | F67: =SUM(F53:F65) -> 0 | G67: =SUM(G53:G65) -> 0 | H67: =IF(D67>0,(D67-F67)/D67,0) -> 0 | J67: =SUMPRODUCT(J53:J65,$D$53:$D$65) / D67 ->  | M67: =$D$67-SUMPRODUCT(M53:M65,$D$53:$D$65) -> 0 | O67: =SUM(O53:O65) -> 0
B69: Net Changes | F69: WDF Data | J69: Enter Own Reject Rate
D71: Collected for Recycling | F71: Recycled (Q100) | G71: Difference | H71: Percentage Tonnage Adjustment | J71: Difference - Using Own Reject Rates
B72: Reuse | D72: =D27 -> 0 | F72: =F27 -> 0 | G72: =D72 - F72 -> 0 | H72: =IF(D72>0,(D72-F72)/D72,0) -> 0 | J72: =SUMPRODUCT(J21:J25,D21:D25) -> 0
B73: Dry Recycling | D73: =D67-D74 -> 0 | F73: =F67-F74 -> 0 | G73: =D73 - F73 -> 0 | H73: =IF(D73>0,(D73-F73)/D73,0) -> 0 | J73: =SUMPRODUCT(D53:D65, J53:J65) -> 0
B74: Organics | D74: =SUM(D61:D63) -> 0 | F74: =SUM(F61:F63) -> 0 | G74: =D74 - F74 -> 0 | H74: =IF(D74>0,(D74-F74)/D74,0) -> 0 | J74: =SUMPRODUCT(J61:J63,D61:D63) -> 0
B75: Total | D75: =SUM(D72:D74) -> 0 | F75: =SUM(F72:F74) -> 0 | G75: =SUM(G72:G74) -> 0 | H75: =IF(D75>0,(D75-F75)/D75,0) -> 0 | J75: =SUM(J72:J74) -> 0
B80: N.B. | C80: Due to some materials being separated out after collection, or small differences due to storage over time, reject rates can be negative
C81: Net rejects are shown at the bottom of the table
B83: Breakdown by WasteDataFlow Material
M85: Error: | N85: =IF(OR(MAX(M53:M65)>0.3,MIN(M53:M65)<-0.3),"High reject rates - check","OK") -> OK
C86: WDF Collected for Recycling | D86: WDF Collected for Reuse | F86: Q100 Final Destination Recycled | G86: Q100 Final Destination Reuse | K86: EPS Material Catgory
B87: =Coll!D13 -> Absorbent Hygiene Products (AHP) | C87: =Coll!U13 -> 0 | D87: =Coll!V13 -> 0 | F87: =SUM(Mgmt!G19,Mgmt!I19:K19)-Mgmt!E19 -> 0 | G87: =Mgmt!E19 -> 0 | K87: =Coll!E13 -> Material Recycled not classified (mineral oil etc.)
B88: =Coll!D14 -> Aerosols | C88: =Coll!U14 -> 0 | D88: =Coll!V14 -> 0 | F88: =SUM(Mgmt!G20,Mgmt!I20:K20)-Mgmt!E20 -> 0 | G88: =Mgmt!E20 -> 0 | K88: =Coll!E14 -> Ferrous Metals
B89: =Coll!D15 -> Aluminium cans | C89: =Coll!U15 -> 0 | D89: =Coll!V15 -> 0 | F89: =SUM(Mgmt!G21,Mgmt!I21:K21)-Mgmt!E21 -> 0 | G89: =Mgmt!E21 -> 0 | K89: =Coll!E15 -> Non-Ferrous Metals
B90: =Coll!D16 -> Aluminium foil | C90: =Coll!U16 -> 0 | D90: =Coll!V16 -> 0 | F90: =SUM(Mgmt!G22,Mgmt!I22:K22)-Mgmt!E22 -> 0 | G90: =Mgmt!E22 -> 0 | K90: =Coll!E16 -> Non-Ferrous Metals
B91: =Coll!D17 -> Automotive batteries | C91: =Coll!U17 -> 0 | D91: =Coll!V17 -> 0 | F91: =SUM(Mgmt!G23,Mgmt!I23:K23)-Mgmt!E23 -> 0 | G91: =Mgmt!E23 -> 0 | K91: =Coll!E17 -> Material Recycled not classified (mineral oil etc.)
B92: =Coll!D18 -> Brown glass | C92: =Coll!U18 -> 0 | D92: =Coll!V18 -> 0 | F92: =SUM(Mgmt!G24,Mgmt!I24:K24)-Mgmt!E24 -> 0 | G92: =Mgmt!E24 -> 0 | K92: =Coll!E18 -> Glass
B93: =Coll!D19 -> Card | C93: =Coll!U19 -> 0 | D93: =Coll!V19 -> 0 | F93: =SUM(Mgmt!G25,Mgmt!I25:K25)-Mgmt!E25 -> 0 | G93: =Mgmt!E25 -> 0 | K93: =Coll!E19 -> Paper / Card
B94: =Coll!D20 -> Composite food and beverage cartons | C94: =Coll!U20 -> 0 | D94: =Coll!V20 -> 0 | F94: =SUM(Mgmt!G26,Mgmt!I26:K26)-Mgmt!E26 -> 0 | G94: =Mgmt!E26 -> 0 | K94: =Coll!E20 -> Paper / Card
B95: =Coll!D21 -> Carpets | C95: =Coll!U21 -> 0 | D95: =Coll!V21 -> 0 | F95: =SUM(Mgmt!G27,Mgmt!I27:K27)-Mgmt!E27 -> 0 | G95: =Mgmt!E27 -> 0 | K95: =Coll!E21 -> Textiles
B96: =Coll!D22 -> Clear glass | C96: =Coll!U22 -> 0 | D96: =Coll!V22 -> 0 | F96: =SUM(Mgmt!G28,Mgmt!I28:K28)-Mgmt!E28 -> 0 | G96: =Mgmt!E28 -> 0 | K96: =Coll!E22 -> Glass
B97: =Coll!D23 -> Co mingled materials | K97: =Coll!E23 -> Co-mingled Materials
B98: =Coll!D24 -> Gas bottles | C98: =Coll!U24 -> 0 | D98: =Coll!V24 -> 0 | F98: =SUM(Mgmt!G30,Mgmt!I30:K30)-Mgmt!E30 -> 0 | G98: =Mgmt!E30 -> 0 | K98: =Coll!E24 -> Material Recycled not classified (mineral oil etc.)
B99: =Coll!D25 -> Green glass | C99: =Coll!U25 -> 0 | D99: =Coll!V25 -> 0 | F99: =SUM(Mgmt!G31,Mgmt!I31:K31)-Mgmt!E31 -> 0 | G99: =Mgmt!E31 -> 0 | K99: =Coll!E25 -> Glass
B100: =Coll!D26 -> HDPE [2] | C100: =Coll!U26 -> 0 | D100: =Coll!V26 -> 0 | F100: =SUM(Mgmt!G32,Mgmt!I32:K32)-Mgmt!E32 -> 0 | G100: =Mgmt!E32 -> 0 | K100: =Coll!E26 -> Plastics
B101: =Coll!D27 -> LDPE [4] | C101: =Coll!U27 -> 0 | D101: =Coll!V27 -> 0 | F101: =SUM(Mgmt!G33,Mgmt!I33:K33)-Mgmt!E33 -> 0 | G101: =Mgmt!E33 -> 0 | K101: =Coll!E27 -> Plastics
B102: =Coll!D28 -> Mixed cans | C102: =Coll!U28 -> 0 | D102: =Coll!V28 -> 0 | F102: =SUM(Mgmt!G34,Mgmt!I34:K34)-Mgmt!E34 -> 0 | G102: =Mgmt!E34 -> 0 | K102: =Coll!E28 -> Mixed Metals
B103: =Coll!D29 -> Mixed glass | C103: =Coll!U29 -> 0 | D103: =Coll!V29 -> 0 | F103: =SUM(Mgmt!G35,Mgmt!I35:K35)-Mgmt!E35 -> 0 | G103: =Mgmt!E35 -> 0 | K103: =Coll!E29 -> Glass
B104: =Coll!D30 -> Mixed paper & card | C104: =Coll!U30 -> 0 | D104: =Coll!V30 -> 0 | F104: =SUM(Mgmt!G36,Mgmt!I36:K36)-Mgmt!E36 -> 0 | G104: =Mgmt!E36 -> 0 | K104: =Coll!E30 -> Paper / Card
B105: =Coll!D31 -> Mixed Plastic Bottles | C105: =Coll!U31 -> 0 | D105: =Coll!V31 -> 0 | F105: =SUM(Mgmt!G37,Mgmt!I37:K37)-Mgmt!E37 -> 0 | G105: =Mgmt!E37 -> 0 | K105: =Coll!E31 -> Plastics
B106: =Coll!D32 -> Other Scrap metal | C106: =Coll!U32 -> 0 | D106: =Coll!V32 -> 0 | F106: =SUM(Mgmt!G38,Mgmt!I38:K38)-Mgmt!E38 -> 0 | G106: =Mgmt!E38 -> 0 | K106: =Coll!E32 -> Mixed Metals
B107: =Coll!D33 -> OTHER PLASTICS [7] | C107: =Coll!U33 -> 0 | D107: =Coll!V33 -> 0 | F107: =SUM(Mgmt!G39,Mgmt!I39:K39)-Mgmt!E39 -> 0 | G107: =Mgmt!E39 -> 0 | K107: =Coll!E33 -> Plastics
B108: =Coll!D34 -> Paper | C108: =Coll!U34 -> 0 | D108: =Coll!V34 -> 0 | F108: =SUM(Mgmt!G40,Mgmt!I40:K40)-Mgmt!E40 -> 0 | G108: =Mgmt!E40 -> 0 | K108: =Coll!E34 -> Paper / Card
B109: =Coll!D35 -> PET [1] | C109: =Coll!U35 -> 0 | D109: =Coll!V35 -> 0 | F109: =SUM(Mgmt!G41,Mgmt!I41:K41)-Mgmt!E41 -> 0 | G109: =Mgmt!E41 -> 0 | K109: =Coll!E35 -> Plastics
B110: =Coll!D36 -> Plastics | C110: =Coll!U36 -> 0 | D110: =Coll!V36 -> 0 | F110: =SUM(Mgmt!G42,Mgmt!I42:K42)-Mgmt!E42 -> 0 | G110: =Mgmt!E42 -> 0 | K110: =Coll!E36 -> Plastics
B111: =Coll!D37 -> Post consumer, non automotive batteries | C111: =Coll!U37 -> 0 | D111: =Coll!V37 -> 0 | F111: =SUM(Mgmt!G43,Mgmt!I43:K43)-Mgmt!E43 -> 0 | G111: =Mgmt!E43 -> 0 | K111: =Coll!E37 -> Material Recycled not classified (mineral oil etc.)
B112: =Coll!D38 -> PP [5] | C112: =Coll!U38 -> 0 | D112: =Coll!V38 -> 0 | F112: =SUM(Mgmt!G44,Mgmt!I44:K44)-Mgmt!E44 -> 0 | G112: =Mgmt!E44 -> 0 | K112: =Coll!E38 -> Plastics
B113: =Coll!D39 -> PS [6] | C113: =Coll!U39 -> 0 | D113: =Coll!V39 -> 0 | F113: =SUM(Mgmt!G45,Mgmt!I45:K45)-Mgmt!E45 -> 0 | G113: =Mgmt!E45 -> 0 | K113: =Coll!E39 -> Plastics
B114: =Coll!D40 -> PVC [3] | C114: =Coll!U40 -> 0 | D114: =Coll!V40 -> 0 | F114: =SUM(Mgmt!G46,Mgmt!I46:K46)-Mgmt!E46 -> 0 | G114: =Mgmt!E46 -> 0 | K114: =Coll!E40 -> Plastics
B115: =Coll!D41 -> Steel cans | C115: =Coll!U41 -> 0 | D115: =Coll!V41 -> 0 | F115: =SUM(Mgmt!G47,Mgmt!I47:K47)-Mgmt!E47 -> 0 | G115: =Mgmt!E47 -> 0 | K115: =Coll!E41 -> Ferrous Metals
B116: =Coll!D42 -> Textiles & footwear | C116: =Coll!U42 -> 0 | D116: =Coll!V42 -> 0 | F116: =SUM(Mgmt!G48,Mgmt!I48:K48)-Mgmt!E48 -> 0 | G116: =Mgmt!E48 -> 0 | K116: =Coll!E42 -> Textiles
B117: =Coll!D43 -> Textiles only | C117: =Coll!U43 -> 0 | D117: =Coll!V43 -> 0 | F117: =SUM(Mgmt!G49,Mgmt!I49:K49)-Mgmt!E49 -> 0 | G117: =Mgmt!E49 -> 0 | K117: =Coll!E43 -> Textiles
B118: =Coll!D44 -> Footwear only | C118: =Coll!U44 -> 0 | D118: =Coll!V44 -> 0 | F118: =SUM(Mgmt!G50,Mgmt!I50:K50)-Mgmt!E50 -> 0 | G118: =Mgmt!E50 -> 0 | K118: =Coll!E44 -> Textiles
B119: =Coll!D45 -> Yellow Pages | C119: =Coll!U45 -> 0 | D119: =Coll!V45 -> 0 | F119: =SUM(Mgmt!G51,Mgmt!I51:K51)-Mgmt!E51 -> 0 | G119: =Mgmt!E51 -> 0 | K119: =Coll!E45 -> Paper / Card
B120: =Coll!D46 -> Bicycles | C120: =Coll!U46 -> 0 | D120: =Coll!V46 -> 0 | F120: =SUM(Mgmt!G52,Mgmt!I52:K52)-Mgmt!E52 -> 0 | G120: =Mgmt!E52 -> 0 | K120: =Coll!E46 -> Material Recycled not classified (mineral oil etc.)
B121: =Coll!D47 -> Books | C121: =Coll!U47 -> 0 | D121: =Coll!V47 -> 0 | F121: =SUM(Mgmt!G53,Mgmt!I53:K53)-Mgmt!E53 -> 0 | G121: =Mgmt!E53 -> 0 | K121: =Coll!E47 -> Paper / Card
B122: =Coll!D48 -> Bric-a-brac | C122: =Coll!U48 -> 0 | D122: =Coll!V48 -> 0 | F122: =SUM(Mgmt!G54,Mgmt!I54:K54)-Mgmt!E54 -> 0 | G122: =Mgmt!E54 -> 0 | K122: =Coll!E48 -> Material Recycled not classified (mineral oil etc.)
B123: =Coll!D49 -> Car tyres | C123: =Coll!U49 -> 0 | D123: =Coll!V49 -> 0 | F123: =SUM(Mgmt!G55,Mgmt!I55:K55)-Mgmt!E55 -> 0 | G123: =Mgmt!E55 -> 0 | K123: =Coll!E49 -> Material Recycled not classified (mineral oil etc.)
B124: =Coll!D50 -> Chipboard and mdf | C124: =Coll!U50 -> 0 | D124: =Coll!V50 -> 0 | F124: =SUM(Mgmt!G56,Mgmt!I56:K56)-Mgmt!E56 -> 0 | G124: =Mgmt!E56 -> 0 | K124: =Coll!E50 -> Wood
B125: =Coll!D51 -> Fire extinguishers | C125: =Coll!U51 -> 0 | D125: =Coll!V51 -> 0 | F125: =SUM(Mgmt!G57,Mgmt!I57:K57)-Mgmt!E57 -> 0 | G125: =Mgmt!E57 -> 0 | K125: =Coll!E51 -> Material Recycled not classified (mineral oil etc.)
B126: =Coll!D52 -> Furniture | C126: =Coll!U52 -> 0 | D126: =Coll!V52 -> 0 | F126: =SUM(Mgmt!G58,Mgmt!I58:K58)-Mgmt!E58 -> 0 | G126: =Mgmt!E58 -> 0 | K126: =Coll!E52 -> Material Recycled not classified (mineral oil etc.)
B127: =Coll!D53 -> Ink & toner cartridges | C127: =Coll!U53 -> 0 | D127: =Coll!V53 -> 0 | F127: =SUM(Mgmt!G59,Mgmt!I59:K59)-Mgmt!E59 -> 0 | G127: =Mgmt!E59 -> 0 | K127: =Coll!E53 -> Material Recycled not classified (mineral oil etc.)
B128: =Coll!D54 -> Large vehicle tyres | C128: =Coll!U54 -> 0 | D128: =Coll!V54 -> 0 | F128: =SUM(Mgmt!G60,Mgmt!I60:K60)-Mgmt!E60 -> 0 | G128: =Mgmt!E60 -> 0 | K128: =Coll!E54 -> Material Recycled not classified (mineral oil etc.)
B129: =Coll!D55 -> Mattresses | C129: =Coll!U55 -> 0 | D129: =Coll!V55 -> 0 | F129: =SUM(Mgmt!G61,Mgmt!I61:K61)-Mgmt!E61 -> 0 | G129: =Mgmt!E61 -> 0 | K129: =Coll!E55 -> Material Recycled not classified (mineral oil etc.)
B130: =Coll!D56 -> Mineral Oil | C130: =Coll!U56 -> 0 | D130: =Coll!V56 -> 0 | F130: =SUM(Mgmt!G62,Mgmt!I62:K62)-Mgmt!E62 -> 0 | G130: =Mgmt!E62 -> 0 | K130: =Coll!E56 -> Material Recycled not classified (mineral oil etc.)
B131: =Coll!D57 -> Mixed tyres | C131: =Coll!U57 -> 0 | D131: =Coll!V57 -> 0 | F131: =SUM(Mgmt!G63,Mgmt!I63:K63)-Mgmt!E63 -> 0 | G131: =Mgmt!E63 -> 0 | K131: =Coll!E57 -> Material Recycled not classified (mineral oil etc.)
B132: =Coll!D58 -> Other materials | C132: =Coll!U58 -> 0 | D132: =Coll!V58 -> 0 | F132: =SUM(Mgmt!G64,Mgmt!I64:K64)-Mgmt!E64 -> 0 | G132: =Mgmt!E64 -> 0 | K132: =Coll!E58 -> Material Recycled not classified (mineral oil etc.)
B133: =Coll!D59 -> Paint | C133: =Coll!U59 -> 0 | D133: =Coll!V59 -> 0 | F133: =SUM(Mgmt!G65,Mgmt!I65:K65)-Mgmt!E65 -> 0 | G133: =Mgmt!E65 -> 0 | K133: =Coll!E59 -> Material Recycled not classified (mineral oil etc.)
B134: =Coll!D60 -> Plasterboard | C134: =Coll!U60 -> 0 | D134: =Coll!V60 -> 0 | F134: =SUM(Mgmt!G66,Mgmt!I66:K66)-Mgmt!E66 -> 0 | G134: =Mgmt!E66 -> 0 | K134: =Coll!E60 -> Rubble, Soil, Plasterboard
B135: =Coll!D61 -> Van tyres | C135: =Coll!U61 -> 0 | D135: =Coll!V61 -> 0 | F135: =SUM(Mgmt!G67,Mgmt!I67:K67)-Mgmt!E67 -> 0 | G135: =Mgmt!E67 -> 0 | K135: =Coll!E61 -> Material Recycled not classified (mineral oil etc.)
B136: =Coll!D62 -> Vegetable Oil | C136: =Coll!U62 -> 0 | D136: =Coll!V62 -> 0 | F136: =SUM(Mgmt!G68,Mgmt!I68:K68)-Mgmt!E68 -> 0 | G136: =Mgmt!E68 -> 0 | K136: =Coll!E62 -> Material Recycled not classified (mineral oil etc.)
B137: =Coll!D63 -> Video tapes, DVDs and CDs | C137: =Coll!U63 -> 0 | D137: =Coll!V63 -> 0 | F137: =SUM(Mgmt!G69,Mgmt!I69:K69)-Mgmt!E69 -> 0 | G137: =Mgmt!E69 -> 0 | K137: =Coll!E63 -> Material Recycled not classified (mineral oil etc.)
B138: =Coll!D64 -> WEEE - TVs & Monitors | C138: =Coll!U64 -> 0 | D138: =Coll!V64 -> 0 | F138: =SUM(Mgmt!G70,Mgmt!I70:K70)-Mgmt!E70 -> 0 | G138: =Mgmt!E70 -> 0 | K138: =Coll!E64 -> WEEE
B139: =Coll!D65 -> WEEE - Flourescent tubes and other light bulbs | C139: =Coll!U65 -> 0 | D139: =Coll!V65 -> 0 | F139: =SUM(Mgmt!G71,Mgmt!I71:K71)-Mgmt!E71 -> 0 | G139: =Mgmt!E71 -> 0 | K139: =Coll!E65 -> WEEE
B140: =Coll!D66 -> WEEE - Fridges & Freezers | C140: =Coll!U66 -> 0 | D140: =Coll!V66 -> 0 | F140: =SUM(Mgmt!G72,Mgmt!I72:K72)-Mgmt!E72 -> 0 | G140: =Mgmt!E72 -> 0 | K140: =Coll!E66 -> WEEE
B141: =Coll!D67 -> WEEE - Large Domestic App | C141: =Coll!U67 -> 0 | D141: =Coll!V67 -> 0 | F141: =SUM(Mgmt!G73,Mgmt!I73:K73)-Mgmt!E73 -> 0 | G141: =Mgmt!E73 -> 0 | K141: =Coll!E67 -> WEEE
B142: =Coll!D68 -> WEEE - Small Domestic App | C142: =Coll!U68 -> 0 | D142: =Coll!V68 -> 0 | F142: =SUM(Mgmt!G74,Mgmt!I74:K74)-Mgmt!E74 -> 0 | G142: =Mgmt!E74 -> 0 | K142: =Coll!E68 -> WEEE
B143: =Coll!D69 -> Wood | C143: =Coll!U69 -> 0 | D143: =Coll!V69 -> 0 | F143: =SUM(Mgmt!G75,Mgmt!I75:K75)-Mgmt!E75 -> 0 | G143: =Mgmt!E75 -> 0 | K143: =Coll!E69 -> Wood
B144: =Coll!D70 -> Soil | C144: =Coll!U70 -> 0 | D144: =Coll!V70 -> 0 | F144: =SUM(Mgmt!G76,Mgmt!I76:K76)-Mgmt!E76 -> 0 | G144: =Mgmt!E76 -> 0 | K144: =Coll!E70 -> Rubble, Soil, Plasterboard
B145: =Coll!D71 -> Composite wood materials | C145: =Coll!U71 -> 0 | D145: =Coll!V71 -> 0 | F145: =SUM(Mgmt!G77,Mgmt!I77:K77)-Mgmt!E77 -> 0 | G145: =Mgmt!E77 -> 0 | K145: =Coll!E71 -> Wood
B146: =Coll!D72 -> Mixed garden and food waste | C146: =Coll!U72 -> 0 | D146: =Coll!V72 -> 0 | F146: =SUM(Mgmt!G78,Mgmt!I78:K78)-Mgmt!E78 -> 0 | G146: =Mgmt!E78 -> 0 | K146: =Coll!E72 -> Mixed Food and Garden Waste
B147: =Coll!D73 -> Green garden waste only | C147: =Coll!U73 -> 0 | D147: =Coll!V73 -> 0 | F147: =SUM(Mgmt!G79,Mgmt!I79:K79)-Mgmt!E79 -> 0 | G147: =Mgmt!E79 -> 0 | K147: =Coll!E73 -> Garden Waste
B148: =Coll!D74 -> Other compostable waste | C148: =Coll!U74 -> 0 | D148: =Coll!V74 -> 0 | F148: =SUM(Mgmt!G80,Mgmt!I80:K80)-Mgmt!E80 -> 0 | G148: =Mgmt!E80 -> 0 | K148: =Coll!E74 -> Mixed Food and Garden Waste
B149: =Coll!D75 -> Waste food only | C149: =Coll!U75 -> 0 | D149: =Coll!V75 -> 0 | F149: =SUM(Mgmt!G81,Mgmt!I81:K81)-Mgmt!E81 -> 0 | G149: =Mgmt!E81 -> 0 | K149: =Coll!E75 -> Food waste
B150: =Coll!D76 -> Wood for composting | C150: =Coll!U76 -> 0 | D150: =Coll!V76 -> 0 | F150: =SUM(Mgmt!G82,Mgmt!I82:K82)-Mgmt!E82 -> 0 | G150: =Mgmt!E82 -> 0 | K150: =Coll!E76 -> Wood
B151: =Coll!D77 -> Rubble | C151: =Coll!U77 -> 0 | D151: =Coll!V77 -> 0 | F151: =SUM(Mgmt!G83,Mgmt!I83:K83)-Mgmt!E83 -> 0 | G151: =Mgmt!E83 -> 0 | K151: =Coll!E77 -> Rubble, Soil, Plasterboard

Sheet Co-mingled Comp
B2: =HYPERLINK("#'Set Up Baseline ->'!B1","<- Back to overview") -> <- Back to overview
B4: Recycling from Co-mingled Recyclate | K4: =HYPERLINK("#'Treatment and Transport'!B1","-> Next: Treatment and Transport") -> -> Next: Treatment and Transport
B6: Co-mingled Waste Composition
T7: Supporting Notes or Calculations
B8: Select or enter a co-mingled waste composition to estimate material recycled from co-mingled recycling collections
B9: We have included a calculator to help you use MRF input compositions if you have these (they are available from https://mfrp.wrap.org.uk/)
B12: Select data to use: | C12: WasteDataFlow Data | D12: =MATCH(C12,Lists!$B$48:$B$50,0) -> 1 | E12: =IF(J31=1,"OK","Warning: Incomplete Composition") -> Warning: Incomplete Composition
E14: Data from WDF | F14: MF Return | H14: Enter Own Data | J14: Used | L14: Tonnages | P14: KS Composition
C16: Material Type | E16: WDF Reported | F16: MF Portal Estimate | H16: Own Composition | J16: Used | L16: Hhld | M16: C&I | N16: Total LACW | P16: KS Dry | Q16: KS Dry Comp
C17: =Lists!B$9 -> Paper / Card | E17: =IF(Mgmt!$H$111>0,Mgmt!H93/Mgmt!$H$111,0) -> 0 | F17: =E40*(1-$F$30) -> 0 | J17: =CHOOSE($D$12,E17,F17,H17) -> 0 | L17: =J17*SUM(Collections!$V$65:$Y$65) -> 0 | M17: =J17*Collections!$Z$65 -> 0 | N17: =SUM(L17:M17) -> 0 | P17: =L17+Collections!V49*(1-'Rejects (SS)'!M53) -> 0 | Q17: =IF($P$31>0,P17/$P$31,0) -> 0
C18: =Lists!B$10 -> Glass | E18: =IF(Mgmt!$H$111>0,Mgmt!H94/Mgmt!$H$111,0) -> 0 | F18: =E42*(1-$F$30) -> 0 | J18: =CHOOSE($D$12,E18,F18,H18) -> 0 | L18: =J18*SUM(Collections!$V$65:$Y$65) -> 0 | M18: =J18*Collections!$Z$65 -> 0 | N18: 0 | P18: =L18+Collections!V50*(1-'Rejects (SS)'!M54) -> 0 | Q18: =IF($P$31>0,P18/$P$31,0) -> 0
C19: =Lists!B$11 -> Ferrous Metals | E19: =IF(Mgmt!$H$111>0,Mgmt!H95/Mgmt!$H$111,0) -> 0 | F19: =E43*D55*(1-$F$30) -> 0 | J19: 0 | L19: =J19*SUM(Collections!$V$65:$Y$65) -> 0 | M19: =J19*Collections!$Z$65 -> 0 | N19: 0 | P19: =L19+Collections!V51*(1-'Rejects (SS)'!M55) -> 0 | Q19: 0
C20: =Lists!B$12 -> Non-Ferrous Metals | E20: =IF(Mgmt!$H$111>0,Mgmt!H96/Mgmt!$H$111,0) -> 0 | F20: =E43*D56*(1-$F$30) -> 0 | J20: 0 | L20: =J20*SUM(Collections!$V$65:$Y$65) -> 0 | M20: =J20*Collections!$Z$65 -> 0 | N20: 0 | P20: =L20+Collections!V52*(1-'Rejects (SS)'!M56) -> 0 | Q20: 0
C21: =Lists!B$13 -> Plastics | E21: =IF(Mgmt!$H$111>0,Mgmt!H97/Mgmt!$H$111,0) -> 0 | F21: =E41*(1-$F$30) -> 0 | J21: 0 | L21: =J21*SUM(Collections!$V$65:$Y$65) -> 0 | M21: =J21*Collections!$Z$65 -> 0 | N21: 0 | P21: =L21+Collections!V53*(1-'Rejects (SS)'!M57) -> 0 | Q21: 0
C22: =Lists!B$14 -> Textiles | E22: =IF(Mgmt!$H$111>0,Mgmt!H98/Mgmt!$H$111,0) -> 0 | J22: 0 | L22: =J22*SUM(Collections!$V$65:$Y$65) -> 0 | M22: =J22*Collections!$Z$65 -> 0 | N22: 0 | Q22: 0
C23: =Lists!B$15 -> Wood | E23: =IF(Mgmt!$H$111>0,Mgmt!H99/Mgmt!$H$111,0) -> 0 | J23: 0 | L23: =J23*SUM(Collections!$V$65:$Y$65) -> 0 | M23: =J23*Collections!$Z$65 -> 0 | N23: 0 | Q23: 0
C24: =Lists!B$16 -> WEEE | E24: =IF(Mgmt!$H$111>0,Mgmt!H100/Mgmt!$H$111,0) -> 0 | J24: 0 | L24: =J24*SUM(Collections!$V$65:$Y$65) -> 0 | M24: =J24*Collections!$Z$65 -> 0 | N24: 0 | Q24: 0
C25: =Lists!B$17 -> Food waste | E25: =IF(Mgmt!$H$111>0,Mgmt!H101/Mgmt!$H$111,0) -> 0 | J25: 0 | L25: =J25*SUM(Collections!$V$65:$Y$65) -> 0 | M25: =J25*Collections!$Z$65 -> 0 | N25: 0 | Q25: 0
C26: =Lists!B$18 -> Garden Waste | E26: =IF(Mgmt!$H$111>0,Mgmt!H102/Mgmt!$H$111,0) -> 0 | J26: 0 | L26: =J26*SUM(Collections!$V$65:$Y$65) -> 0 | M26: =J26*Collections!$Z$65 -> 0 | N26: 0 | Q26: 0
C27: =Lists!B$19 -> Mixed Food and Garden Waste | E27: =IF(Mgmt!$H$111>0,Mgmt!H103/Mgmt!$H$111,0) -> 0 | J27: 0 | L27: =J27*SUM(Collections!$V$65:$Y$65) -> 0 | M27: =J27*Collections!$Z$65 -> 0 | N27: 0 | Q27: 0
C28: =Lists!B$20 -> Material Recycled not classified (mineral oil etc.) | E28: =IF(Mgmt!$H$111>0,Mgmt!H104/Mgmt!$H$111,0) -> 0 | J28: 0 | L28: =J28*SUM(Collections!$V$65:$Y$65) -> 0 | M28: =J28*Collections!$Z$65 -> 0 | N28: 0 | Q28: 0
C29: Rubble, Soil, Plasterboard | E29: =IF(Mgmt!$H$111>0,Mgmt!H105/Mgmt!$H$111,0) -> 0 | J29: 0 | L29: =J29*SUM(Collections!$V$65:$Y$65) -> 0 | M29: =J29*Collections!$Z$65 -> 0 | N29: 0 | Q29: 0
C30: Rejected Material (not recycled) | E30: =IF(Mgmt!$H$111>0,Mgmt!H106/Mgmt!$H$111,0) -> 0 | F30: =MAX(D50,SUM(D44:D45)) -> 0 | J30: 0 | L30: =J30*SUM(Collections!$V$65:$Y$65) -> 0 | M30: =J30*Collections!$Z$65 -> 0 | N30: 0 | Q30: 0
C31: Total (should add up to 100%) | E31: =SUM(E17:E30) -> 0 | F31: =SUM(F17:F30) -> 0 | H31: =SUM(H17:H30) -> 0 | J31: =SUM(J17:J30) -> 0 | L31: =SUM(L17:L30) -> 0 | M31: =SUM(M17:M30) -> 0 | N31: =SUM(N17:N30) -> 0 | P31: =SUM(P17:P30) -> 0
M32: check =0: | N32: =N31-Collections!AB65 -> 0
B34: Optional Calculator: Enter MRF Input Composition
B35: Inputs for calculating compositon from MF data returns and a reject rate
B37: Input composition reported by the MRF
C39: MF Material Category | D39: Input | E39: Scaled
C40: Paper/Card | E40: =IF(SUM($D$40:$D$43)>0,D40/SUM($D$40:$D$43),0) -> 0
C41: Plastics | E41: =IF(SUM($D$40:$D$43)>0,D41/SUM($D$40:$D$43),0) -> 0
C42: Glass | E42: =IF(SUM($D$40:$D$43)>0,D42/SUM($D$40:$D$43),0) -> 0
C43: Metals | E43: =IF(SUM($D$40:$D$43)>0,D43/SUM($D$40:$D$43),0) -> 0
C44: Non-Target
C45: Non-Recyclable
D46: =SUM(D40:D45) -> 0
B48: Reject rate reported by MRF
E49: Rejects from WasteDataFlow
C50: Enter Reject Rate | E50: =E30 -> 0
B52: Ferrous/non-ferrous mix in metals
D54: % of metals
C55: Ferrous | D55: 0.7
C56: Non-Ferrous | D56: 0.3

Sheet Treatment and Transport
B2: =HYPERLINK("#'Set Up Baseline ->'!B1","<- Back to overview") -> <- Back to overview
B4: Transport and Treatment Data | F4: =HYPERLINK("#'Onward Treatment'!B1","-> Next: Onward Treatment") -> -> Next: Onward Treatment | N4: ADMIN SECTION - WILL BE HIDDEN
A6: ="@"&COUNTIF(A$1:A5,"@*")+1 -> @1 | B6: Anearobic Digestion
B7: Set outputs of AD process and, if applicable, energy efficiencies regarding useful heat output
Y8: Supporting Notes or Calculations
C10: EPS Assumption | F10: Replace with Own Data | I10: Used In Model
B11: Set Operating Mode | C11: Electricity Generation (CHP) | F11: Electricity Generation (CHP) | I11: =IF(F11<>"",F11,C11) -> Electricity Generation (CHP)
B12: Net Efficiency of Electricity Generation | C12: 0.32 | I12: =IF($I$11=Lists!$H$36,IF(F12<>"",F12,C12),"n/a") -> 0.32
B13: Efficiency of (Utilised) Heat Generation | C13: 0.26 | I13: =IF($I$11=Lists!$H$36,IF(F13<>"",F13,C13),"n/a") -> 0.26
A16: ="@"&COUNTIF(A$1:A15,"@*")+1 -> @2 | B16: Residual Treatment Initial Destinations
B17: Select or enter the initial treatment destinations of the residual waste collected.
B18: If you are a waste collection authority and part of a wider waste disposal authority (WDA), you will need to apply your WDA treatment routes to your collected tonnage.
B19: The averages by WDA for 2015/16 are given in tables below
B21: Select data to use: | C21: WDF Q100 Data Scaled to Collection Tonnage | D21: =MATCH(C21,Lists!$D$48:$D$51,0) -> 3 | E21: =IF(ROUND(K34,-1)=0,"OK","INCOMPLETE DATA - COMPLETE OR CHANGE DATA SOURCE") -> OK
B23: Residual Waste Collected | C23: =Collections!$AB$76 -> 0
C25: WDF Data (Disposal - Q100) | D25: WDF Q100 Data Scaled to Collected Tonnage | E25: 2017/18 WDA | G25: Enter Own Data | K25: Used in Model
B26: Incineration | C26: =SUM(Mgmt!E143:E144) -> 0 | D26: =IF($C$33>0,$C$23*C26/$C$33,0) -> 0 | E26: =IFERROR(INDEX('LA Data 201718'!$F41:$AP41,'Start Here'!$M$24)*$C$23,0) -> 0 | K26: =CHOOSE($D$21,G26,E26,D26,C26) -> 0
B27: Gasification | C27: =SUM(Mgmt!E146) -> 0 | D27: =IF($C$33>0,$C$23*C27/$C$33,0) -> 0 | E27: =IFERROR(INDEX('LA Data 201718'!$F42:$AP42,'Start Here'!$M$24)*$C$23,0) -> 0 | K27: 0
B28: =Lists!$B32 -> RDF/Autoclave | C28: =SUM(Mgmt!E145) -> 0 | D28: 0 | E28: =IFERROR(INDEX('LA Data 201718'!$F43:$AP43,'Start Here'!$M$24)*$C$23,0) -> 0 | K28: 0
B29: =Lists!$B34 -> MBT | C29: =SUM(Mgmt!E147) -> 0 | D29: 0 | E29: =IFERROR(INDEX('LA Data 201718'!$F44:$AP44,'Start Here'!$M$24)*$C$23,0) -> 0 | K29: 0
B30: =Lists!$B35 -> R-MRF | C30: =SUM(Mgmt!E148) -> 0 | D30: 0 | E30: =IFERROR(INDEX('LA Data 201718'!$F45:$AP45,'Start Here'!$M$24)*$C$23,0) -> 0 | K30: 0
B31: =Lists!$B36 -> Landfill | C31: =SUM(Mgmt!E140:E142) -> 0 | D31: 0 | E31: =IFERROR(INDEX('LA Data 201718'!$F46:$AP46,'Start Here'!$M$24)*$C$23,0) -> 0 | K31: 0
B32: =Lists!$B37 -> Other | C32: =SUM(Mgmt!E149) -> 0 | D32: 0 | E32: =IFERROR(INDEX('LA Data 201718'!$F47:$AP47,'Start Here'!$M$24)*$C$23,0) -> 0 | K32: 0
C33: =SUM(C26:C32) -> 0 | D33: =SUM(D26:D32) -> 0 | E33: =SUM(E26:E32) -> 0 | G33: =SUM(G26:G32) -> 0 | K33: =SUM(K26:K32) -> 0
B34: Check: residual treatment tonnage = residual collection tonnage | C34: =Collections!$J$76-C33 -> 0 | D34: =Collections!$J$76-D33 -> 0 | E34: =Collections!$J$76-E33 -> 0 | G34: =Collections!$J$76-G33 -> 0 | K34: =Collections!$J$76-K33 -> 0
B36: =IF(AND(D21=4,ROUND(C34,-2)<>0),"Note: WDF is reporting different amount of residual waste managed than you have entered collected. You can use the cells above to enter your own data, or select 'WDF Q100 scaled to collection tonnage' to adjust automatically","") -> 
B38: Energy Efficiency of Incineration
B39: Residual waste sent for incineration - select the destination incinerator for each waste stream and/or replace energy efficiencies with your own data.
B40: Incinerators can be set up with efficiencies over time in the sheet 'carbon assumptions': | G40: =HYPERLINK("#'Carbon Assumptions'!B99","-> Go to sheet") -> -> Go to sheet
H41: Replace with Own Data | O41: Applied
C43: Select Incinerator | D43: % Residual waste to EfW treated | E43: Efficiency of Electricity Generation | F43: Efficiency of (Utilised) Heat Generation | H43: Efficiency of Electricity Generation | I43: Efficiency of (Utilised) Heat Generation | O43: Incinerator 1 | P43: Efficiency of Electricity Generation | Q43: Efficiency of Heat Generation
B44: Direct to Incineration 1 | C44: EPS Default | D44: 1 | E44: =INDEX('Carbon Assumptions'!$I$96:$I$105, MATCH(C44, 'Carbon Assumptions'!$B$96:$B$105, 0)) -> 0.26 | F44: =INDEX('Carbon Assumptions'!$I$110:$I$119, MATCH(C44, 'Carbon Assumptions'!$B$110:$B$119, 0)) -> 0 | O44: =B44 -> Direct to Incineration 1 | P44: =IF(H44<>"",H44,E44) -> 0.26 | Q44: 0
B45: Direct to Incineration 2 | C45: EPS Default | D45: =1-SUM(D44) -> 0 | E45: =INDEX('Carbon Assumptions'!$I$96:$I$105, MATCH(C45, 'Carbon Assumptions'!$B$96:$B$105, 0)) -> 0.26 | F45: =INDEX('Carbon Assumptions'!$I$110:$I$119, MATCH(C45, 'Carbon Assumptions'!$B$110:$B$119, 0)) -> 0 | O45: =B45 -> Direct to Incineration 2 | P45: 0.26 | Q45: 0
B46: Incineration following R-MRF | C46: EPS Default | E46: =INDEX('Carbon Assumptions'!$I$96:$I$105, MATCH(C46, 'Carbon Assumptions'!$B$96:$B$105, 0)) -> 0.26 | F46: =INDEX('Carbon Assumptions'!$I$110:$I$119, MATCH(C46, 'Carbon Assumptions'!$B$110:$B$119, 0)) -> 0 | O46: =B46 -> Incineration following R-MRF | P46: 0.26 | Q46: 0
B47: Incineration following RDF/Autoclave | C47: EPS Default | E47: =INDEX('Carbon Assumptions'!$I$96:$I$105, MATCH(C47, 'Carbon Assumptions'!$B$96:$B$105, 0)) -> 0.26 | F47: =INDEX('Carbon Assumptions'!$I$110:$I$119, MATCH(C47, 'Carbon Assumptions'!$B$110:$B$119, 0)) -> 0 | O47: =B47 -> Incineration following RDF/Autoclave | P47: 0.26 | Q47: 0
B48: Incineration following MBT | C48: EPS Default | E48: =INDEX('Carbon Assumptions'!$I$96:$I$105, MATCH(C48, 'Carbon Assumptions'!$B$96:$B$105, 0)) -> 0.26 | F48: =INDEX('Carbon Assumptions'!$I$110:$I$119, MATCH(C48, 'Carbon Assumptions'!$B$110:$B$119, 0)) -> 0 | O48: =B48 -> Incineration following MBT | P48: 0.26 | Q48: 0
O50: Default Transport Methods
B52: Transport Methods | P52: Primary Transport Method | Q52: Distance (km) | T52: Second Method | U52: Distance (km) | V52: % By Second Method
B53: Input cells for transport methods and distances from waste transfer stations to primary treatment facilities | O53: Thermal | P53: Road | Q53: 9 | S53: Road | T53: N/A
B54: Default values are entered based on London averages. | O54: MBT | P54: Road | Q54: 11 | S54: Rail | T54: N/A
B55: You can set a second transport method and distance for a proportion of waste (if for instance two landfill sites are used) | O55: Landfill | P55: Rail | Q55: 41 | S55: Water | T55: N/A
B56: =S107 -> OK | O56: AD | P56: Road | Q56: 10 | S56: N/A | T56: N/A
C57: Primary Transport Method | D57: Distance (km) | F57: Second Method | G57: Distance (km) | H57: % By Second Method | O57: OAW | P57: Road | Q57: 10 | T57: N/A
B58: Incineration | C58: Road | D58: 9 | F58: N/A | O58: IVC | P58: Road | Q58: 10 | T58: N/A
B59: MBT | C59: Road | D59: 11 | F59: N/A | O59: Other Method | P59: Road | Q59: 10 | T59: N/A
B60: Landfill | C60: Rail | D60: 41 | F60: N/A
B61: AD | C61: Road | D61: 10 | F61: N/A | P61: First Stage Transport | Q61: Distance (km) | S61: Second Stage Transport | T61: Distance (km) | V61: % Output Shipped | W61: Distance (km)
B62: OAW | C62: Road | D62: 10 | F62: N/A | O62: Incineration following R-MRF | P62: Road | Q62: 9 | S62: N/A | V62: 0 | W62: 434
B63: IVC | C63: Road | D63: 10 | F63: N/A | O63: Incineration following RDF/Autoclave | P63: Road | Q63: 9 | S63: N/A | V63: 0 | W63: 434
B64: Other Method | C64: Road | D64: 10 | F64: N/A | O64: Incineration following MBT | P64: Road | Q64: 9 | S64: N/A | V64: 0 | W64: 434
B66: Secondary Treatment
B67: Add up to three stages of transport for outputs from R-MRF/RDF/MBT facilities | O67: Transport Tonnages - Residual Waste
O68: Potential to set based on estimates from 2015/16 or by WDA
C69: First Stage Transport | D69: Distance (km) | F69: Second Stage Transport | G69: Distance (km) | I69: % Output Shipped | J69: Distance (km)
B70: Incineration following R-MRF | C70: Road | D70: 9 | F70: N/A | I70: 0 | J70: 434 | P70: Method | Q70: % | R70: Distance | S70: Check | T70: EPS | U70: Used
B71: Incineration following RDF/Autoclave | C71: Road | D71: 9 | F71: N/A | I71: 0 | J71: 434 | O71: Thermal | P71: Road | Q71: =IF(F$58=P71,H$58,IF(P71=C$58,1-H$58,0)) -> 1 | R71: =IF(F$58=P71,G$58,IF(P71=C$58,D$58,0)) -> 9 | S71: =IF(Q71>0,IF(R71=0,FALSE,TRUE),TRUE) -> TRUE | T71: 9 | U71: =IF(R71<>0,R71,T71) -> 9
B72: Incineration following MBT | C72: Road | D72: 9 | F72: N/A | I72: 0 | J72: 434 | O72: Thermal | P72: Rail | Q72: =IF(F$58=P72,H$58,IF(P72=C$58,1-H$58,0)) -> 0 | R72: =IF(F$58=P72,G$58,IF(P72=C$58,D$58,0)) -> 0 | S72: TRUE | T72: 41 | U72: 41
O73: Thermal | P73: Water | Q73: =IF(F$58=P73,H$58,IF(P73=C$58,1-H$58,0)) -> 0 | R73: =IF(F$58=P73,G$58,IF(P73=C$58,D$58,0)) -> 0 | S73: TRUE | T73: 24 | U73: 24
O74: MBT | P74: Road | Q74: =IF(F$59=P74,H$59,IF(P74=C$59,1-H$59,0)) -> 1 | R74: =IF(F$59=P74,G$59,IF(P74=C$59,D$59,0)) -> 11 | S74: TRUE | T74: 11 | U74: 11
B75: Destination of MRF Rejects | O75: MBT | P75: Rail | Q75: =IF(F$59=P75,H$59,IF(P75=C$59,1-H$59,0)) -> 0 | R75: =IF(F$59=P75,G$59,IF(P75=C$59,D$59,0)) -> 0 | S75: TRUE | T75: 41 | U75: 41
B76: Controls the residual treatment assumptions for waste rejected from recycling collections | O76: MBT | P76: Water | Q76: =IF(F$59=P76,H$59,IF(P76=C$59,1-H$59,0)) -> 0 | R76: =IF(F$59=P76,G$59,IF(P76=C$59,D$59,0)) -> 0 | S76: TRUE | T76: 24 | U76: 24
O77: Landfill | P77: Road | Q77: =IF(F$60=P77,H$60,IF(P77=C$60,1-H$60,0)) -> 0 | R77: =IF(F$60=P77,G$60,IF(P77=C$60,D$60,0)) -> 0 | S77: TRUE | T77: 33 | U77: 33
B78: Use Residual Treatment | C78: WasteDataFlow Data | D78: =MATCH(C78,Lists!$F$48:$F$50,0) -> 2 | E78: =IF(K85=1,"OK","Incomplete Split - Change data source or edit own data") -> Incomplete Split - Change data source or edit own data | O78: Landfill | P78: Rail | Q78: =IF(F$60=P78,H$60,IF(P78=C$60,1-H$60,0)) -> 1 | R78: =IF(F$60=P78,G$60,IF(P78=C$60,D$60,0)) -> 41 | S78: TRUE | T78: 41 | U78: 41
O79: Landfill | P79: Water | Q79: =IF(F$60=P79,H$60,IF(P79=C$60,1-H$60,0)) -> 0 | R79: =IF(F$60=P79,G$60,IF(P79=C$60,D$60,0)) -> 0 | S79: TRUE | T79: 24 | U79: 24
C80: From WDF | D80: From Residual Split | F80: Enter Own Data | K80: Used in RR | O80: AD | P80: Road | Q80: =IF(F$61=P80,H$61,IF(P80=C$61,1-H$61,0)) -> 1 | R80: =IF(F$61=P80,G$61,IF(P80=C$61,D$61,0)) -> 10 | S80: TRUE | T80: 10 | U80: 10
B81: Incineration | C81: =SUM(Mgmt!F126,Mgmt!F128,Mgmt!F132) -> 0 | D81: =IF($K$33>0,K26/($K$33-SUM($K$28,$K$30,$K$32)),0) -> 0 | K81: =CHOOSE($D$78,F81,C81,D81) -> 0 | O81: AD | P81: Rail | Q81: =IF(F$61=P81,H$61,IF(P81=C$61,1-H$61,0)) -> 0 | R81: =IF(F$61=P81,G$61,IF(P81=C$61,D$61,0)) -> 0 | S81: TRUE | T81: 10 | U81: 10
B82: Gasification | C82: 0 | D82: =IF($K$33>0,K27/($K$33-SUM($K$28,$K$30,$K$32)),0) -> 0 | K82: =CHOOSE($D$78,F82,C82,D82) -> 0 | O82: AD | P82: Water | Q82: =IF(F$61=P82,H$61,IF(P82=C$61,1-H$61,0)) -> 0 | R82: =IF(F$61=P82,G$61,IF(P82=C$61,D$61,0)) -> 0 | S82: TRUE | T82: 10 | U82: 10
B83: MBT | C83: =Mgmt!F125 -> 0 | D83: =IF($K$33>0,K29/($K$33-SUM($K$28,$K$30,$K$32)),0) -> 0 | K83: =CHOOSE($D$78,F83,C83,D83) -> 0 | O83: OAW | P83: Road | Q83: =IF(F$62=P83,H$62,IF(P83=C$62,1-H$62,0)) -> 1 | R83: =IF(F$62=P83,G$62,IF(P83=C$62,D$62,0)) -> 10 | S83: TRUE | T83: 10 | U83: 10
B84: Landfill (Rejects) | C84: =IF(SUM(Mgmt!$F$129:$F$131)>0,1-SUM(C81:C83),0) -> 0 | D84: =IF($K$33>0,K31/($K$33-SUM($K$28,$K$30,$K$32)),0) -> 0 | K84: =CHOOSE($D$78,F84,C84,D84) -> 0 | O84: OAW | P84: Rail | Q84: =IF(F$62=P84,H$62,IF(P84=C$62,1-H$62,0)) -> 0 | R84: =IF(F$62=P84,G$62,IF(P84=C$62,D$62,0)) -> 0 | S84: TRUE | T84: 10 | U84: 10
C85: =SUM(C81:C84) -> 0 | D85: =SUM(D81:D84) -> 0 | F85: =SUM(F81:F84) -> 0 | K85: =SUM(K81:K84) -> 0 | O85: OAW | P85: Water | Q85: =IF(F$62=P85,H$62,IF(P85=C$62,1-H$62,0)) -> 0 | R85: =IF(F$62=P85,G$62,IF(P85=C$62,D$62,0)) -> 0 | S85: TRUE | T85: 10 | U85: 10
C86: =1-C85 -> 1 | D86: =1-D85 -> 1 | F86: =1-F85 -> 1 | K86: =1-K85 -> 1 | O86: IVC | P86: Road | Q86: =IF(F$63=P86,H$63,IF(P86=C$63,1-H$63,0)) -> 1 | R86: =IF(F$63=P86,G$63,IF(P86=C$63,D$63,0)) -> 10 | S86: TRUE | T86: 10 | U86: 10
O87: IVC | P87: Rail | Q87: =IF(F$63=P87,H$63,IF(P87=C$63,1-H$63,0)) -> 0 | R87: =IF(F$63=P87,G$63,IF(P87=C$63,D$63,0)) -> 0 | S87: TRUE | T87: 10 | U87: 10
B88: Incinerator Bottom Ash Rates | O88: IVC | P88: Water | Q88: =IF(F$63=P88,H$63,IF(P88=C$63,1-H$63,0)) -> 0 | R88: =IF(F$63=P88,G$63,IF(P88=C$63,D$63,0)) -> 0 | S88: TRUE | T88: 10 | U88: 10
B89: Controls amount of IBA and IBA metals recycled (impacts recycling rate but not EPS) | O89: Other Method | P89: Road | Q89: =IF(F$64=P89,H$64,IF(P89=C$64,1-H$64,0)) -> 1 | R89: =IF(F$64=P89,G$64,IF(P89=C$64,D$64,0)) -> 10 | S89: TRUE | T89: 10 | U89: 10
O90: Other Method | P90: Rail | Q90: =IF(F$64=P90,H$64,IF(P90=C$64,1-H$64,0)) -> 0 | R90: =IF(F$64=P90,G$64,IF(P90=C$64,D$64,0)) -> 0 | S90: =IF(Q90>0,IF(R90=0,FALSE,TRUE),TRUE) -> TRUE | T90: 10 | U90: =IF(R90<>0,R90,T90) -> 10
B91: Use Residual Treatment | C91: London Data | D91: =MATCH(C91,Lists!$E$48:$E$50,0) -> 3 | O91: Other Method | P91: Water | Q91: =IF(F$64=P91,H$64,IF(P91=C$64,1-H$64,0)) -> 0 | R91: =IF(F$64=P91,G$64,IF(P91=C$64,D$64,0)) -> 0 | S91: =IF(Q91>0,IF(R91=0,FALSE,TRUE),TRUE) -> TRUE | T91: 10 | U91: =IF(R91<>0,R91,T91) -> 10
A93: ="@"&COUNTIF(A$1:A35,"@*")+1 -> @3 | C93: From WDF | D93: London Average | F93: Enter Own Data | H93: Used in RR
B94: IBA as % of input waste | D94: 0.2157244393 | H94: =CHOOSE($D$91,F94,C94,D94) -> 0.2157244393 | O94: Incineration following R-MRF | P94: Road | Q94: =IF(OR(P94=C$70,P94=F$70),1,0) -> 1 | R94: =IF(P94=$C$70,$D$70,0)+IF(P94=$F$70,$G$70,0) -> 9 | S94: =IF(Q94>0,IF(R94=0,FALSE,TRUE),TRUE) -> TRUE | T94: 9 | U94: =IF(R94<>0,R94,T94) -> 9
B95: IBA Metals as % of input waste | D95: 0.03554167707 | H95: =CHOOSE($D$91,F95,C95,D95) -> 0.03554167707 | O95: Incineration following R-MRF | P95: Rail | Q95: =IF(OR(P95=C$70,P95=F$70),1,0) -> 0 | R95: =IF(P95=$C$70,$D$70,0)+IF(P95=$F$70,$G$70,0) -> 0 | S95: =IF(Q95>0,IF(R95=0,FALSE,TRUE),TRUE) -> TRUE | T95: 41 | U95: 41
O96: Incineration following R-MRF | P96: Water | Q96: =IF(OR(P96=C$70,P96=F$70),1,0) -> 0 | R96: =IF(P96=$C$70,$D$70,0)+IF(P96=$F$70,$G$70,0) -> 0 | S96: =IF(Q96>0,IF(R96=0,FALSE,TRUE),TRUE) -> TRUE | T96: 24 | U96: 24
B97: IBA % Recycled | D97: 0.9412690576 | H97: =CHOOSE($D$91,F97,C97,D97) -> 0.9412690576 | O97: Incineration following R-MRF | P97: Shipping | Q97: =I70 -> 0 | R97: =J70 -> 434 | S97: =IF(Q97>0,IF(R97=0,FALSE,TRUE),TRUE) -> TRUE | T97: 434 | U97: 434
B98: IBA % Landfilled | D98: =1-D97 -> 0.05873094245 | F98: =1-F97 -> 1 | H98: =CHOOSE($D$91,F98,C98,D98) -> 0.05873094245 | O98: Incineration following RDF/Autoclave | P98: Road | Q98: =IF(OR(P98=C$71,P98=F$71),1,0) -> 1 | R98: =IF(P98=$C$71,$D$71,0)+IF(P98=$F$71,$G$71,0) -> 9 | S98: =IF(Q98>0,IF(R98=0,FALSE,TRUE),TRUE) -> TRUE | T98: 9 | U98: 9
O99: Incineration following RDF/Autoclave | P99: Rail | Q99: =IF(OR(P99=C$71,P99=F$71),1,0) -> 0 | R99: =IF(P99=$C$71,$D$71,0)+IF(P99=$F$71,$G$71,0) -> 0 | S99: TRUE | T99: 41 | U99: 41
O100: Incineration following RDF/Autoclave | P100: Water | Q100: =IF(OR(P100=C$71,P100=F$71),1,0) -> 0 | R100: =IF(P100=$C$71,$D$71,0)+IF(P100=$F$71,$G$71,0) -> 0 | S100: TRUE | T100: 24 | U100: 24
O101: Incineration following RDF/Autoclave | P101: Shipping | Q101: =I71 -> 0 | R101: =J71 -> 434 | S101: TRUE | T101: 434 | U101: 434
O102: Incineration following MBT | P102: Road | Q102: =IF(OR(P102=C$72,P102=F$72),1,0) -> 1 | R102: =IF(P102=$C$72,$D$72,0)+IF(P102=$F$72,$G$72,0) -> 9 | S102: TRUE | T102: 9 | U102: 9
O103: Incineration following MBT | P103: Rail | Q103: =IF(OR(P103=C$72,P103=F$72),1,0) -> 0 | R103: =IF(P103=$C$72,$D$72,0)+IF(P103=$F$72,$G$72,0) -> 0 | S103: TRUE | T103: 41 | U103: 41
O104: Incineration following MBT | P104: Water | Q104: =IF(OR(P104=C$72,P104=F$72),1,0) -> 0 | R104: =IF(P104=$C$72,$D$72,0)+IF(P104=$F$72,$G$72,0) -> 0 | S104: TRUE | T104: 24 | U104: 24
O105: Incineration following MBT | P105: Shipping | Q105: =I72 -> 0 | R105: =J72 -> 434 | S105: TRUE | T105: 434 | U105: 434
A106: ="@"&COUNTIF(A$1:A104,"@*")+1 -> @4
R107: Error | S107: =IF(AND(S71:S105),"OK","Incomplete distance information") -> OK
O109: Error | P109: =IF(AND(E21="OK",E78="OK",S107="OK"),"OK","Incomplete Data") -> Incomplete Data
O110: Data | P110: =IF(D78*D21=1,"Entered Data",IF(D78*D21=6,"WDF Data","Mix")) -> WDF Data
A119: ="@end" -> @end

Sheet Onward Treatment
B2: =HYPERLINK("#'Set up Baseline ->'!B1","<- Back to overview") -> <- Back to overview
B4: Residual Waste Treatment Assumptions | R4: =HYPERLINK("#'Set Up Baseline ->'!B1","-> Next: Check all Complete") -> -> Next: Check all Complete | AB4: ADMIN SECTION - WILL BE HIDDEN
A7: ="@"&COUNTIF(A$1:A6,"@*")+1 -> @1 | B7: Onward Treatment Assumptions
B8: Enter the output breakdown of residual waste entering waste sorting plants - residual MRFs, RDF production, or 'Other' waste treatment.
B9: The first table is for the amount of input waste that is extracted as recylate streams and sent to recycling reprocessors
B10: Metals from incinerator bottom ash is separately accounted for (see previous page)
B11: The second table is to set the destination for the remaining waste
B13: Select data to use: | C13: WasteDataFlow Data | D13: =MATCH(C13,Lists!$E$48:$E$50,0) -> 2 | E13: =AD61 -> OK
A15: ="@"&COUNTIF(A$1:A14,"@*")+1 -> @2 | B15: Recycling Extracted from Residual Treatment
B16: Sets percentages of input material captured for recycling from residual waste treatment | AN16: Supporting Notes or Calculations
C18: Data from WDF | K18: Average London | R18: Enter Own Assumptions | AC18: Used
B20: Waste Sent To These Facilities? | C20: =IF('Treatment and Transport'!$K$30>0,TRUE) -> FALSE | D20: =C20 -> FALSE | E20: =IF('Treatment and Transport'!$K$28>0,TRUE) -> FALSE | F20: =IF('Treatment and Transport'!$K$32>0,TRUE) -> FALSE | G20: =IF('Treatment and Transport'!$K$29>0,TRUE) -> FALSE | H20: =G20 -> FALSE | K20: =C20 -> FALSE | L20: FALSE | M20: FALSE | N20: FALSE | O20: FALSE | P20: FALSE | R20: =C20 -> FALSE | S20: FALSE | T20: FALSE | U20: FALSE | V20: FALSE | W20: FALSE | AC20: =C20 -> FALSE | AD20: FALSE | AE20: FALSE | AF20: FALSE | AG20: FALSE | AH20: FALSE
C22: Residual waste MRF | D22: High Performance R-MRF | E22: RDF, autoclave, MHT or similar | F22: Other | G22: MBT | H22: High Performance MBT | I22: Material from WDA, Tonnes | K22: Residual waste MRF | L22: High Performance R-MRF | M22: RDF, autoclave, MHT or similar | N22: Other | O22: MBT | P22: High Performance MBT | R22: Residual waste MRF | S22: High Performance R-MRF | T22: RDF, autoclave, MHT or similar | U22: Other | V22: MBT | W22: High Performance MBT | AC22: Residual waste MRF | AD22: High Performance MRF | AE22: RDF, autoclave, MHT or similar | AF22: Other | AG22: MBT | AH22: High Performance MBT
B23: =Lists!B9 -> Paper / Card | C23: =IF(Mgmt!O$113>0,Mgmt!O93/Mgmt!O$113,K23) -> 0.04216711405 | D23: 0.03 | E23: =IF(Mgmt!P$113>0,Mgmt!P93/Mgmt!P$113,M23) -> 0.000359112508 | F23: =IF(Mgmt!Q$113>0,Mgmt!Q93/Mgmt!Q$113,N23) -> 7.316568491e-05 | G23: =IF(Mgmt!R$113>0,Mgmt!R93/Mgmt!R$113,O23) -> 0 | H23: 0.03 | I23: =Mgmt!T93 -> 0 | K23: 0.04216711405 | L23: =D23 -> 0.03 | M23: 0.000359112508 | N23: 7.316568491e-05 | O23: 0 | P23: =H23 -> 0.03 | AC23: =CHOOSE($D$13,R23,C23,K23) -> 0.04216711405 | AD23: =CHOOSE($D$13,S23,D23,L23) -> 0.03 | AE23: =CHOOSE($D$13,T23,E23,M23) -> 0.000359112508 | AF23: =CHOOSE($D$13,U23,F23,N23) -> 7.316568491e-05 | AG23: =CHOOSE($D$13,V23,G23,O23) -> 0 | AH23: 0.03
B24: =Lists!B10 -> Glass | C24: =IF(Mgmt!O$113>0,Mgmt!O94/Mgmt!O$113,K24) -> 0.009700728757 | D24: 0.01 | E24: =IF(Mgmt!P$113>0,Mgmt!P94/Mgmt!P$113,M24) -> 0.002641747186 | F24: =IF(Mgmt!Q$113>0,Mgmt!Q94/Mgmt!Q$113,N24) -> 0 | G24: =IF(Mgmt!R$113>0,Mgmt!R94/Mgmt!R$113,O24) -> 0.0177 | H24: 0.01 | I24: =Mgmt!T94 -> 0 | K24: 0.009700728757 | L24: =D24 -> 0.01 | M24: 0.002641747186 | N24: 0 | O24: 0.0177 | P24: =H24 -> 0.01 | AC24: =CHOOSE($D$13,R24,C24,K24) -> 0.009700728757 | AD24: =CHOOSE($D$13,S24,D24,L24) -> 0.01 | AE24: =CHOOSE($D$13,T24,E24,M24) -> 0.002641747186 | AF24: =CHOOSE($D$13,U24,F24,N24) -> 0 | AG24: 0.0177 | AH24: 0.01
B25: =Lists!B11 -> Ferrous Metals | C25: =IF(Mgmt!O$113>0,Mgmt!O95/Mgmt!O$113,K25) -> 0.01190419628 | D25: 0.02 | E25: =IF(Mgmt!P$113>0,Mgmt!P95/Mgmt!P$113,M25) -> 0.00148121714 | F25: =IF(Mgmt!Q$113>0,Mgmt!Q95/Mgmt!Q$113,N25) -> 0.0003301284797 | G25: =IF(Mgmt!R$113>0,Mgmt!R95/Mgmt!R$113,O25) -> 0.0125 | H25: 0.02 | I25: =Mgmt!T95 -> 0 | K25: 0.01190419628 | L25: 0.02 | M25: 0.00148121714 | N25: 0.0003301284797 | O25: 0.0125 | P25: 0.02 | AC25: 0.01190419628 | AD25: 0.02 | AE25: 0.00148121714 | AF25: 0.0003301284797 | AG25: 0.0125 | AH25: 0.02
B26: =Lists!B12 -> Non-Ferrous Metals | C26: =IF(Mgmt!O$113>0,Mgmt!O96/Mgmt!O$113,K26) -> 0.005101798405 | D26: 0.01 | E26: =IF(Mgmt!P$113>0,Mgmt!P96/Mgmt!P$113,M26) -> 0.0006348073457 | F26: =IF(Mgmt!Q$113>0,Mgmt!Q96/Mgmt!Q$113,N26) -> 0.0002062219172 | G26: =IF(Mgmt!R$113>0,Mgmt!R96/Mgmt!R$113,O26) -> 0.0055 | H26: 0.01 | I26: =Mgmt!T96 -> 0 | K26: 0.005101798405 | L26: 0.01 | M26: 0.0006348073457 | N26: 0.0002062219172 | O26: 0.0055 | P26: 0.01 | AC26: 0.005101798405 | AD26: 0.01 | AE26: 0.0006348073457 | AF26: 0.0002062219172 | AG26: 0.0055 | AH26: 0.01
B27: =Lists!B13 -> Plastics | C27: =IF(Mgmt!O$113>0,Mgmt!O97/Mgmt!O$113,K27) -> 0.02026760897 | D27: 0.07 | E27: =IF(Mgmt!P$113>0,Mgmt!P97/Mgmt!P$113,M27) -> 0 | F27: =IF(Mgmt!Q$113>0,Mgmt!Q97/Mgmt!Q$113,N27) -> 0.0001818056413 | G27: =IF(Mgmt!R$113>0,Mgmt!R97/Mgmt!R$113,O27) -> 0 | H27: 0.07 | I27: =Mgmt!T97 -> 0 | K27: 0.02026760897 | L27: 0.07 | M27: 0 | N27: 0.0001818056413 | O27: 0 | P27: 0.07 | AC27: 0.02026760897 | AD27: 0.07 | AE27: 0 | AF27: 0.0001818056413 | AG27: 0 | AH27: 0.07
B28: =Lists!B14 -> Textiles | C28: =IF(Mgmt!O$113>0,Mgmt!O98/Mgmt!O$113,K28) -> 0.0004799852838 | D28: 0 | E28: =IF(Mgmt!P$113>0,Mgmt!P98/Mgmt!P$113,M28) -> 0 | F28: =IF(Mgmt!Q$113>0,Mgmt!Q98/Mgmt!Q$113,N28) -> 0 | G28: =IF(Mgmt!R$113>0,Mgmt!R98/Mgmt!R$113,O28) -> 0 | H28: 0 | I28: =Mgmt!T98 -> 0 | K28: 0.0004799852838 | L28: 0 | M28: 0 | N28: 0 | O28: 0 | P28: 0 | AC28: 0.0004799852838 | AD28: 0 | AE28: 0 | AF28: 0 | AG28: 0 | AH28: 0
B29: =Lists!B15 -> Wood | C29: =IF(Mgmt!O$113>0,Mgmt!O99/Mgmt!O$113,K29) -> 0.03211292418 | D29: 0.03 | E29: =IF(Mgmt!P$113>0,Mgmt!P99/Mgmt!P$113,M29) -> 0.01271265783 | F29: =IF(Mgmt!Q$113>0,Mgmt!Q99/Mgmt!Q$113,N29) -> 0 | G29: =IF(Mgmt!R$113>0,Mgmt!R99/Mgmt!R$113,O29) -> 0 | H29: 0.03 | I29: =Mgmt!T99 -> 0 | K29: 0.03211292418 | L29: 0.03 | M29: 0.01271265783 | N29: 0 | O29: 0 | P29: 0.03 | AC29: 0.03211292418 | AD29: 0.03 | AE29: 0.01271265783 | AF29: 0 | AG29: 0 | AH29: 0.03
B30: =Lists!B16 -> WEEE | C30: =IF(Mgmt!O$113>0,Mgmt!O100/Mgmt!O$113,K30) -> 0.002211211188 | D30: 0 | E30: =IF(Mgmt!P$113>0,Mgmt!P100/Mgmt!P$113,M30) -> 0.0003831283915 | F30: =IF(Mgmt!Q$113>0,Mgmt!Q100/Mgmt!Q$113,N30) -> 0.001020914692 | G30: =IF(Mgmt!R$113>0,Mgmt!R100/Mgmt!R$113,O30) -> 0 | H30: 0 | I30: =Mgmt!T100 -> 0 | K30: 0.002211211188 | L30: 0 | M30: 0.0003831283915 | N30: 0.001020914692 | O30: 0 | P30: 0 | AC30: 0.002211211188 | AD30: 0 | AE30: 0.0003831283915 | AF30: 0.001020914692 | AG30: 0 | AH30: 0
B31: =Lists!B17 -> Food waste | C31: =IF(Mgmt!O$113>0,Mgmt!O101/Mgmt!O$113,K31) -> 0 | D31: 0 | E31: =IF(Mgmt!P$113>0,Mgmt!P101/Mgmt!P$113,M31) -> 2.251489079e-06 | F31: =IF(Mgmt!Q$113>0,Mgmt!Q101/Mgmt!Q$113,N31) -> 0 | G31: =IF(Mgmt!R$113>0,Mgmt!R101/Mgmt!R$113,O31) -> 0 | H31: 0 | I31: =Mgmt!T101 -> 0 | K31: 0 | L31: 0 | M31: 2.251489079e-06 | N31: 0 | O31: 0 | P31: 0 | AC31: 0 | AD31: 0 | AE31: 2.251489079e-06 | AF31: 0 | AG31: 0 | AH31: 0
B32: =Lists!B18 -> Garden Waste | C32: =IF(Mgmt!O$113>0,Mgmt!O102/Mgmt!O$113,K32) -> 0.002090431046 | D32: 0 | E32: =IF(Mgmt!P$113>0,Mgmt!P102/Mgmt!P$113,M32) -> 0.001319747848 | F32: =IF(Mgmt!Q$113>0,Mgmt!Q102/Mgmt!Q$113,N32) -> 0.0005582446738 | G32: =IF(Mgmt!R$113>0,Mgmt!R102/Mgmt!R$113,O32) -> 0 | H32: 0 | I32: =Mgmt!T102 -> 0 | K32: 0.002090431046 | L32: 0 | M32: 0.001319747848 | N32: 0.0005582446738 | O32: 0 | P32: 0 | AC32: 0.002090431046 | AD32: 0 | AE32: 0.001319747848 | AF32: 0.0005582446738 | AG32: 0 | AH32: 0
B33: =Lists!B19 -> Mixed Food and Garden Waste | C33: =IF(Mgmt!O$113>0,Mgmt!O103/Mgmt!O$113,K33) -> 0.002121915496 | D33: 0 | E33: =IF(Mgmt!P$113>0,Mgmt!P103/Mgmt!P$113,M33) -> 0 | F33: =IF(Mgmt!Q$113>0,Mgmt!Q103/Mgmt!Q$113,N33) -> 0.002650791181 | G33: =IF(Mgmt!R$113>0,Mgmt!R103/Mgmt!R$113,O33) -> 0 | H33: 0 | I33: =Mgmt!T103 -> 0 | K33: 0.002121915496 | L33: 0 | M33: 0 | N33: 0.002650791181 | O33: 0 | P33: 0 | AC33: 0.002121915496 | AD33: 0 | AE33: 0 | AF33: 0.002650791181 | AG33: 0 | AH33: 0
B34: =Lists!B20 -> Material Recycled not classified (mineral oil etc.) | C34: =IF(Mgmt!O$113>0,Mgmt!O104/Mgmt!O$113,K34) -> 0.04283005259 | D34: 0.07 | E34: =IF(Mgmt!P$113>0,Mgmt!P104/Mgmt!P$113,M34) -> 0.007443047646 | F34: =IF(Mgmt!Q$113>0,Mgmt!Q104/Mgmt!Q$113,N34) -> 0.02921436909 | G34: =IF(Mgmt!R$113>0,Mgmt!R104/Mgmt!R$113,O34) -> 0 | H34: 0.07 | I34: =Mgmt!T104 -> 0 | K34: 0.04283005259 | L34: 0.07 | M34: 0.007443047646 | N34: 0.02921436909 | O34: 0 | P34: 0.07 | AC34: 0.04283005259 | AD34: 0.07 | AE34: 0.007443047646 | AF34: 0.02921436909 | AG34: 0 | AH34: 0.07
B35: =Lists!B21 -> Rubble, Soil, Plasterboard | C35: =IF(Mgmt!O$113>0,Mgmt!O105/Mgmt!O$113,K35) -> 0 | D35: 0 | E35: =IF(Mgmt!P$113>0,Mgmt!P105/Mgmt!P$113,M35) -> 0 | F35: =IF(Mgmt!Q$113>0,Mgmt!Q105/Mgmt!Q$113,N35) -> 0 | G35: =IF(Mgmt!R$113>0,Mgmt!R105/Mgmt!R$113,O35) -> 0 | H35: 0 | I35: =Mgmt!T105 -> 0 | K35: 0 | L35: 0 | M35: 0 | N35: 0 | O35: 0 | P35: 0 | AC35: 0 | AD35: 0 | AE35: 0 | AF35: 0 | AG35: 0 | AH35: 0
B36: Total Recycling Extracted | C36: =SUM(C23:C35) -> 0.1709879662 | D36: 0.24 | E36: 0.02697771739 | F36: 0.03423564136 | G36: 0.0357 | H36: 0.24 | I36: 0 | K36: =SUM(K23:K35) -> 0.1709879662 | L36: 0.24 | M36: 0.02697771739 | N36: 0.03423564136 | O36: 0.0357 | P36: 0.24 | R36: =SUM(R23:R35) -> 0 | S36: 0 | T36: 0 | U36: 0 | V36: 0 | W36: 0 | AC36: =SUM(AC23:AC35) -> 0.1709879662 | AD36: 0.24 | AE36: 0.02697771739 | AF36: 0.03423564136 | AG36: 0.0357 | AH36: 0.24
A38: ="@"&COUNTIF(A$1:A37,"@*")+1 -> @3 | B38: Destination of Remaining Material
B39: Controls the destination of waste after it has been through these initial treatment routes
C41: Data from WDF | K41: Average London (2015/16) | R41: Enter Own Assumptions | AC41: Used
C43: Residual waste MRF | D43: High Performance R-MRF | E43: RDF, autoclave, MHT or similar | F43: Other | G43: MBT | H43: High Performance MBT | K43: Residual waste MRF | L43: High Performance R-MRF | M43: RDF, autoclave, MHT or similar | N43: Other | O43: MBT | P43: High Performance MBT | R43: Residual waste MRF | S43: High Performance R-MRF | T43: RDF, autoclave, MHT or similar | U43: Other | V43: MBT | W43: High Performance MBT | AC43: Residual waste MRF | AD43: High Performance MRF | AE43: RDF, autoclave, MHT or similar | AF43: Other | AG43: =V43 -> MBT | AH43: =W43 -> High Performance MBT
B44: (All recycling) | C44: =C36 -> 0.1709879662 | D44: =D36 -> 0.24 | E44: 0.02697771739 | F44: 0.03423564136 | G44: 0.0357 | H44: 0.24 | K44: =K36 -> 0.1709879662 | L44: 0.24 | M44: 0.02697771739 | N44: 0.03423564136 | O44: =O36 -> 0.0357 | P44: =P36 -> 0.24 | R44: =R36 -> 0 | S44: 0 | T44: 0 | U44: 0 | V44: 0 | W44: 0
B45: CLO and Landfill Output | G45: 0.12 | H45: 0.12 | O45: 0.12 | P45: 0.12 | AC45: =CHOOSE($D$13,R45,C45,K45) -> 0 | AD45: 0 | AE45: 0 | AF45: 0 | AG45: 0.12 | AH45: 0.12
B46: Incineration | E46: 0 | F46: =(1-F36-F49-F58) -> 0.02009562446 | M46: 0 | N46: =1-N36-N49 -> 0.02009562446 | U46: =1-U36-U49-U58 -> 1 | AC46: =CHOOSE($D$13,R46,C46,K46) -> 0 | AD46: =CHOOSE($D$13,S46,D46,L46) -> 0 | AE46: =CHOOSE($D$13,T46,E46,M46) -> 0 | AF46: =CHOOSE($D$13,U46,F46,N46) -> 0.02009562446 | AG46: =CHOOSE($D$13,V46,G46,O46) -> 0 | AH46: =CHOOSE($D$13,W46,H46,P46) -> 0
B47: Gasification | AC47: 0 | AD47: 0 | AE47: 0 | AF47: 0 | AG47: 0 | AH47: 0
B48: MBT | AC48: 0 | AD48: 0 | AE48: 0 | AF48: 0 | AG48: 0 | AH48: 0
B49: Landfill (Direct) | F49: =N49 -> 0.9456687342 | N49: 0.9456687342 | AC49: 0 | AD49: 0 | AE49: 0 | AF49: 0.9456687342 | AG49: 0 | AH49: 0
B50: Landfill (Rejects) | AC50: 0 | AD50: 0 | AE50: 0 | AF50: 0 | AG50: 0 | AH50: 0
B51: R-MRF to Landfill | C51: =K51 -> 0.09469957074 | K51: 0.09469957074 | AC51: 0.09469957074 | AD51: 0 | AE51: 0 | AF51: 0 | AG51: 0 | AH51: 0
B52: R-MRF to Incineration | C52: =(1-C51-C36-C58) -> 0.734312463 | D52: =1-D36-D58 -> 0.76 | K52: =1-K51-K36-K58 -> 0.734312463 | L52: =1-L36-L58 -> 0.76 | R52: =1-SUM(R36,R51,R54,R58) -> 1 | S52: =1-S36-S51-S58 -> 1 | AC52: 0.734312463 | AD52: 0.76 | AE52: 0 | AF52: 0 | AG52: 0 | AH52: 0
B53: RDF/Autoclave to Incineration | E53: =(1-E36-E58-E46) -> 0.9730222826 | M53: =(1-M36-M58-M46) -> 0.9730222826 | T53: =(1-T36-T58-T46) -> 1 | AC53: =CHOOSE($D$13,R53,C53,K53) -> 0 | AD53: 0 | AE53: 0.9730222826 | AF53: 0 | AG53: 0 | AH53: 0
B54: MBT to Incineration | G54: =(1-G51-G36-G45-G58) -> 0.5043 | H54: =(1-H51-H36-H45-H58) -> 0.32 | O54: =(1-O45-O36-O58) -> 0.5043 | P54: =(1-P45-P36-P58) -> 0.32 | V54: =(1-V45-V36-V58) -> 1 | W54: =(1-W45-W36-W58) -> 1 | AC54: =CHOOSE($D$13,K54,C54,R54) -> 0 | AD54: 0 | AE54: 0 | AF54: 0 | AG54: 0.5043 | AH54: 0.32
B56: Total Composition | C56: =SUM(C36,C45:C54, C58) -> 1 | D56: 1 | E56: 1 | F56: 1 | G56: 1 | H56: 1 | K56: =SUM(K36,K45:K54, K58) -> 1 | L56: 1 | M56: 1 | N56: 1 | O56: 1 | P56: 1 | R56: =SUM(R36,R45:R54, R58) -> 1 | S56: 1 | T56: 1 | U56: 1 | V56: 1 | W56: 1 | AC56: =SUM(AC36,AC45:AC54, AC58) -> 1 | AD56: 1 | AE56: 1 | AF56: 1 | AG56: 1 | AH56: 1
R57: =IF(R52<0,"Error","") ->  | S57: =IF(S52<0,"Error","") ->  | T57: =IF(T46<0,"Error","") ->  | U57: =IF(U46<0,"Error","") -> 
B58: Mositure Loss | C58: 0 | D58: 0 | E58: 0 | F58: 0 | G58: 0.34 | H58: 0.32 | K58: 0 | L58: 0 | M58: 0 | N58: 0 | O58: 0.34 | P58: 0.32 | AC58: =CHOOSE($D$13,K58,C58,R58) -> 0 | AD58: 0 | AE58: 0 | AF58: 0 | AG58: 0.34 | AH58: 0.32
AC60: =IF(C20,IF(AC56<>1,"0","1"),"1") -> 1 | AD60: 1 | AE60: 1 | AF60: 1 | AG60: 1 | AH60: 1 | AI60: =AC60*AD60*AE60*AF60 -> 1
A61: ="@"&COUNTIF(A$1:A60,"@*")+1 -> @4 | B61: Recycling Extracted from Residual Treatment - Baseline | AC61: Error: | AD61: =IF(AI60=0,"Missing Data - Change source or edit own data","OK") -> OK
B62: For information: view tonnages extracted from residual treatment, set by extraction assumptions above
C64: Data from WDF | K64: Average London | R64: Enter Own Assumptions
C66: Residual waste MRF | D66: High Performance R-MRF | E66: RDF, autoclave, MHT or similar | F66: Other | G66: MBT | H66: High Performance MBT | I66: Material from WDA, Tonnes | K66: Residual waste MRF | L66: High Performance R-MRF | M66: RDF, autoclave, MHT or similar | N66: Other | O66: MBT | P66: High Performance MBT | R66: Residual waste MRF | S66: High Performance R-MRF | T66: RDF, autoclave, MHT or similar | U66: Other | V66: MBT | W66: High Performance MBT | AC66: Residual waste MRF | AD66: High Performance MRF | AE66: RDF, autoclave, MHT or similar | AF66: Other | AG66: MBT | AH66: High Performance MBT
B67: Input to Facility | C67: ='Treatment and Transport'!$K$28 -> 0 | E67: ='Treatment and Transport'!$K$28 -> 0 | F67: ='Treatment and Transport'!$K$32 -> 0 | G67: ='Treatment and Transport'!$K$29 -> 0 | K67: ='Treatment and Transport'!$K$28 -> 0 | M67: ='Treatment and Transport'!$K$28 -> 0 | N67: ='Treatment and Transport'!$K$32 -> 0 | O67: ='Treatment and Transport'!$K$29 -> 0 | R67: ='Treatment and Transport'!$K$28 -> 0 | T67: ='Treatment and Transport'!$K$28 -> 0 | U67: ='Treatment and Transport'!$K$32 -> 0 | V67: ='Treatment and Transport'!$K$29 -> 0
B69: =B23 -> Paper / Card | C69: =C$67*C23 -> 0 | E69: =E$67*E23 -> 0 | F69: =F$67*F23 -> 0 | G69: =G$67*G23 -> 0 | I69: =I23 -> 0 | K69: =K$67*K23 -> 0 | M69: =M$67*M23 -> 0 | N69: =N$67*N23 -> 0 | O69: =O$67*O23 -> 0 | R69: =R$67*R23 -> 0 | T69: =T$67*T23 -> 0 | U69: =U$67*U23 -> 0 | V69: =V$67*V23 -> 0
B70: Glass | C70: 0 | E70: =E$67*E24 -> 0 | F70: =F$67*F24 -> 0 | G70: 0 | I70: =I24 -> 0 | K70: 0 | M70: =M$67*M24 -> 0 | N70: =N$67*N24 -> 0 | O70: 0 | R70: 0 | T70: =T$67*T24 -> 0 | U70: =U$67*U24 -> 0 | V70: 0
B71: Ferrous Metals | C71: 0 | E71: 0 | F71: 0 | G71: 0 | I71: 0 | K71: 0 | M71: 0 | N71: 0 | O71: 0 | R71: 0 | T71: 0 | U71: 0 | V71: 0
B72: Non-Ferrous Metals | C72: 0 | E72: 0 | F72: 0 | G72: 0 | I72: 0 | K72: 0 | M72: 0 | N72: 0 | O72: 0 | R72: 0 | T72: 0 | U72: 0 | V72: 0
B73: Plastics | C73: 0 | E73: 0 | F73: 0 | G73: 0 | I73: 0 | K73: 0 | M73: 0 | N73: 0 | O73: 0 | R73: 0 | T73: 0 | U73: 0 | V73: 0
B74: Textiles | C74: 0 | E74: 0 | F74: 0 | G74: 0 | I74: 0 | K74: 0 | M74: 0 | N74: 0 | O74: 0 | R74: 0 | T74: 0 | U74: 0 | V74: 0
B75: Wood | C75: 0 | E75: 0 | F75: 0 | G75: 0 | I75: 0 | K75: 0 | M75: 0 | N75: 0 | O75: 0 | R75: 0 | T75: 0 | U75: 0 | V75: 0
B76: WEEE | C76: 0 | E76: 0 | F76: 0 | G76: 0 | I76: 0 | K76: 0 | M76: 0 | N76: 0 | O76: 0 | R76: 0 | T76: 0 | U76: 0 | V76: 0
B77: Food waste | C77: 0 | E77: 0 | F77: 0 | G77: 0 | I77: 0 | K77: 0 | M77: 0 | N77: 0 | O77: 0 | R77: 0 | T77: 0 | U77: 0 | V77: 0
B78: Garden Waste | C78: 0 | E78: 0 | F78: 0 | G78: 0 | I78: 0 | K78: 0 | M78: 0 | N78: 0 | O78: 0 | R78: 0 | T78: 0 | U78: 0 | V78: 0
B79: Mixed Food and Garden Waste | C79: 0 | E79: 0 | F79: 0 | G79: 0 | I79: 0 | K79: 0 | M79: 0 | N79: 0 | O79: 0 | R79: 0 | T79: 0 | U79: 0 | V79: 0
B80: Material Recycled not classified (mineral oil etc.) | C80: 0 | E80: 0 | F80: 0 | G80: 0 | I80: 0 | K80: 0 | M80: 0 | N80: 0 | O80: 0 | R80: 0 | T80: 0 | U80: 0 | V80: 0
B81: Rubble, Soil, Plasterboard | C81: 0 | E81: 0 | F81: 0 | G81: 0 | I81: 0 | K81: 0 | M81: 0 | N81: 0 | O81: 0 | R81: 0 | T81: 0 | U81: 0 | V81: 0
B82: Total Recycling Extracted | C82: 0 | E82: 0 | F82: 0 | G82: 0 | I82: 0 | K82: 0 | M82: 0 | N82: 0 | O82: 0 | R82: 0 | T82: 0 | U82: 0 | V82: 0

Sheet Final Recycled
B2: THIS SHEET IS FOR INFORMATION ONLY
B5: Reuse and Recycling
B7: Reused
B8: Information only: calculation of reuse by waste category (LACW, C&I, Other Non-Hhld)
B10: Sent for Reuse | D10: WDF Data | H10: Calculated
B11: Calculated from WDF data/user inputs in previous sheets
D12: All LACW | E12: Of Which C&I | F12: Other Non-Hhld | H12: All LACW | I12: Of Which C&I | J12: Other Non-Hhld
B13: Textiles | D13: =SUMIF(Mgmt!$C$19:$C$86,$B13,Mgmt!E$19:E$86) -> 0 | E13: =Collections!H13 -> 0 | H13: =Collections!AB13*(1-'Rejects (SS)'!$M21) -> 0 | I13: =Collections!Y13*(1-'Rejects (SS)'!$M21) -> 0 | J13: =Collections!Z13*(1-'Rejects (SS)'!$M21) -> 0
B14: Furniture | D14: =SUMIF(Mgmt!$B$19:$B$86,$B14,Mgmt!E$19:E$86) -> 0 | E14: =Collections!H14 -> 0 | H14: =Collections!AB14*(1-'Rejects (SS)'!$M22) -> 0 | I14: =Collections!Y14*(1-'Rejects (SS)'!$M22) -> 0 | J14: =Collections!Z14*(1-'Rejects (SS)'!$M22) -> 0
B15: WEEE | D15: =SUMIF(Mgmt!$C$19:$C$86,$B15,Mgmt!E$19:E$86) -> 0 | E15: =Collections!H15 -> 0 | H15: =Collections!AB15*(1-'Rejects (SS)'!$M23) -> 0 | I15: =Collections!Y15*(1-'Rejects (SS)'!$M23) -> 0 | J15: =Collections!Z15*(1-'Rejects (SS)'!$M23) -> 0
B16: Rubble, Soil, Plasterboard | D16: =SUMIF(Mgmt!$C$19:$C$86,$B16,Mgmt!E$19:E$86) -> 0 | E16: =Collections!H16 -> 0 | F16: =SUM(Collections!D16:G16) -> 0 | H16: =Collections!AB16*(1-'Rejects (SS)'!$M24) -> 0 | I16: =Collections!Y16*(1-'Rejects (SS)'!$M24) -> 0 | J16: =Collections!Z16*(1-'Rejects (SS)'!$M24) -> 0
B17: Other | D17: =D42-SUM(D13:D16) -> 0 | E17: =Collections!H17 -> 0 | H17: =Collections!AB17*(1-'Rejects (SS)'!$M25) -> 0 | I17: =Collections!Y17*(1-'Rejects (SS)'!$M25) -> 0 | J17: =Collections!Z17*(1-'Rejects (SS)'!$M25) -> 0
B19: Rejected Material | H19: =SUMPRODUCT(Collections!AB13:AB17,'Rejects (SS)'!$M21:$M25) -> 0 | I19: =SUMPRODUCT(Collections!Y13:Y17,'Rejects (SS)'!$M21:$M25) -> 0 | J19: =SUMPRODUCT(Collections!Z13:Z17,'Rejects (SS)'!$M21:$M25) -> 0
D21: =SUM(D13:D18) -> 0 | E21: =SUM(E13:E18) -> 0 | F21: =SUM(F13:F18) -> 0 | H21: =SUM(H13:H18) -> 0 | I21: =SUM(I13:I18) -> 0 | J21: =SUM(J13:J18) -> 0
B23: Sent for Reuse | D23: WDF Data | H23: Calculated
B24: Information Only: Calculated from WDF data/user inputs in previous sheets
D25: All LACW | E25: Of Which C&I | F25: Other Non-Hhld | H25: All LACW | I25: Of Which C&I | J25: Other Non-Hhld
B26: =Lists!B$9 -> Paper / Card | D26: =SUMIF(Mgmt!$C$19:$C$86,$B26,Mgmt!E$19:E$86) -> 0 | E26: =Collections!H26 -> 0 | H26: =Collections!AB26*(1-'Rejects (SS)'!$M32) -> 0 | I26: =Collections!Y26*(1-'Rejects (SS)'!$M32) -> 0 | J26: =Collections!Z26*(1-'Rejects (SS)'!$M32) -> 0 | AR26: x
B27: =Lists!B$10 -> Glass | D27: =SUMIF(Mgmt!$C$19:$C$86,$B27,Mgmt!E$19:E$86) -> 0 | E27: =Collections!H27 -> 0 | H27: =Collections!AB27*(1-'Rejects (SS)'!$M33) -> 0 | I27: =Collections!Y27*(1-'Rejects (SS)'!$M33) -> 0 | J27: =Collections!Z27*(1-'Rejects (SS)'!$M33) -> 0 | AR27: x
B28: =Lists!B$11 -> Ferrous Metals | D28: =SUMIF(Mgmt!$C$19:$C$86,$B28,Mgmt!E$19:E$86)+SUMIF(Mgmt!$C$19:$C$86,"Mixed Metals",Mgmt!E$19:E$86)*'Co-mingled Comp'!D55 -> 0 | E28: =Collections!H28 -> 0 | H28: =Collections!AB28*(1-'Rejects (SS)'!$M34) -> 0 | I28: =Collections!Y28*(1-'Rejects (SS)'!$M34) -> 0 | J28: =Collections!Z28*(1-'Rejects (SS)'!$M34) -> 0 | AR28: x
B29: =Lists!B$12 -> Non-Ferrous Metals | D29: =SUMIF(Mgmt!$C$19:$C$86,$B29,Mgmt!E$19:E$86)+SUMIF(Mgmt!$C$19:$C$86,"Mixed Metals",Mgmt!E$19:E$86)*'Co-mingled Comp'!D56 -> 0 | E29: =Collections!H29 -> 0 | H29: =Collections!AB29*(1-'Rejects (SS)'!$M35) -> 0 | I29: =Collections!Y29*(1-'Rejects (SS)'!$M35) -> 0 | J29: =Collections!Z29*(1-'Rejects (SS)'!$M35) -> 0 | AR29: x
B30: =Lists!B$13 -> Plastics | D30: =SUMIF(Mgmt!$C$19:$C$86,$B30,Mgmt!E$19:E$86) -> 0 | E30: =Collections!H30 -> 0 | H30: =Collections!AB30*(1-'Rejects (SS)'!$M36) -> 0 | I30: =Collections!Y30*(1-'Rejects (SS)'!$M36) -> 0 | J30: =Collections!Z30*(1-'Rejects (SS)'!$M36) -> 0 | AR30: x
B31: =Lists!B$14 -> Textiles | D31: =SUMIF(Mgmt!$C$19:$C$86,$B31,Mgmt!E$19:E$86) -> 0 | E31: =Collections!H31 -> 0 | H31: =Collections!AB31*(1-'Rejects (SS)'!$M37) -> 0 | I31: =Collections!Y31*(1-'Rejects (SS)'!$M37) -> 0 | J31: =Collections!Z31*(1-'Rejects (SS)'!$M37) -> 0 | AR31: x
B32: =Lists!B$15 -> Wood | D32: =SUMIF(Mgmt!$C$19:$C$86,$B32,Mgmt!E$19:E$86) -> 0 | E32: =Collections!H32 -> 0 | H32: =Collections!AB32*(1-'Rejects (SS)'!$M38) -> 0 | I32: =Collections!Y32*(1-'Rejects (SS)'!$M38) -> 0 | J32: =Collections!Z32*(1-'Rejects (SS)'!$M38) -> 0 | AR32: x
B33: =Lists!B$16 -> WEEE | D33: =SUMIF(Mgmt!$C$19:$C$86,$B33,Mgmt!E$19:E$86) -> 0 | E33: =Collections!H33 -> 0 | H33: =Collections!AB33*(1-'Rejects (SS)'!$M39) -> 0 | I33: =Collections!Y33*(1-'Rejects (SS)'!$M39) -> 0 | J33: =Collections!Z33*(1-'Rejects (SS)'!$M39) -> 0 | AR33: x
B34: =Lists!B$17 -> Food waste | D34: =SUMIF(Mgmt!$C$19:$C$86,$B34,Mgmt!E$19:E$86) -> 0 | E34: =Collections!H34 -> 0 | H34: =Collections!AB34*(1-'Rejects (SS)'!$M40) -> 0 | I34: =Collections!Y34*(1-'Rejects (SS)'!$M40) -> 0 | J34: =Collections!Z34*(1-'Rejects (SS)'!$M40) -> 0 | AR34: x
B35: =Lists!B$18 -> Garden Waste | D35: =SUMIF(Mgmt!$C$19:$C$86,$B35,Mgmt!E$19:E$86) -> 0 | E35: =Collections!H35 -> 0 | H35: =Collections!AB35*(1-'Rejects (SS)'!$M41) -> 0 | I35: =Collections!Y35*(1-'Rejects (SS)'!$M41) -> 0 | J35: =Collections!Z35*(1-'Rejects (SS)'!$M41) -> 0 | AR35: x
B36: =Lists!B$19 -> Mixed Food and Garden Waste | D36: =SUMIF(Mgmt!$C$19:$C$86,$B36,Mgmt!E$19:E$86) -> 0 | E36: =Collections!H36 -> 0 | H36: =Collections!AB36*(1-'Rejects (SS)'!$M42) -> 0 | I36: =Collections!Y36*(1-'Rejects (SS)'!$M42) -> 0 | J36: =Collections!Z36*(1-'Rejects (SS)'!$M42) -> 0 | AR36: x
B37: =Lists!B$20 -> Material Recycled not classified (mineral oil etc.) | D37: =SUMIF(Mgmt!$C$19:$C$86,$B37,Mgmt!E$19:E$86) -> 0 | E37: =Collections!H37 -> 0 | H37: =Collections!AB37*(1-'Rejects (SS)'!$M43) -> 0 | I37: =Collections!Y37*(1-'Rejects (SS)'!$M43) -> 0 | J37: =Collections!Z37*(1-'Rejects (SS)'!$M43) -> 0 | AR37: x
B38: Rubble, Soil, Plasterboard | D38: =SUMIF(Mgmt!$C$19:$C$86,$B38,Mgmt!E$19:E$86) -> 0 | E38: =Collections!H38 -> 0 | F38: =SUM(Collections!D16:G16) -> 0 | H38: =Collections!AB38*(1-'Rejects (SS)'!$M44) -> 0 | I38: =Collections!Y38*(1-'Rejects (SS)'!$M44) -> 0 | J38: =Collections!Z38*(1-'Rejects (SS)'!$M44) -> 0 | AR38: x
B40: Rejected Material | H40: =SUMPRODUCT(Collections!AB26:AB38,'Rejects (SS)'!$M32:$M44) -> 0 | I40: =SUMPRODUCT(Collections!Y26:Y38,'Rejects (SS)'!$M32:$M44) -> 0 | J40: =SUMPRODUCT(Collections!Z26:Z38,'Rejects (SS)'!$M32:$M44) -> 0
D42: =SUM(D26:D41) -> 0 | E42: =SUM(E26:E41) -> 0 | F42: =SUM(F26:F41) -> 0 | H42: =SUM(H26:H41) -> 0 | I42: =SUM(I26:I41) -> 0 | J42: =SUM(J26:J41) -> 0
B44: Recycled
B45: Information only: calculation of final recycling by waste category (LACW, C&I, Other Non-Hhld)
B46: Recycled | D46: WDF Data | H46: Calculated
D48: LACW Recycled (Excluding Reuse) | E48: Of Which C&I | F48: Other Non-Hhld | H48: LACW Recycled (Excluding Reuse) | I48: Of Which C&I | J48: Other Non-Hhld
B49: =Lists!B$9 -> Paper / Card | D49: =Mgmt!L93-D26 -> 0 | E49: =Collections!H49+Collections!$H$65*'Co-mingled Comp'!H17 -> 0 | F49: =SUM(Collections!G49,Collections!I49) -> 0 | H49: =Collections!AB49*(1-'Rejects (SS)'!$M53)+'Co-mingled Comp'!N17 -> 0 | I49: =Collections!Z49*(1-'Rejects (SS)'!$M53)+'Co-mingled Comp'!M17 -> 0 | J49: =Collections!AA49*(1-'Rejects (SS)'!$M53) -> 0
B50: =Lists!B$10 -> Glass | D50: =Mgmt!L94-D27 -> 0 | E50: =Collections!H50+Collections!$H$65*'Co-mingled Comp'!H18 -> 0 | F50: =SUM(Collections!G50,Collections!I50) -> 0 | H50: =Collections!AB50*(1-'Rejects (SS)'!$M54)+'Co-mingled Comp'!N18 -> 0 | I50: =Collections!Z50*(1-'Rejects (SS)'!$M54)+'Co-mingled Comp'!M18 -> 0 | J50: =Collections!AA50*(1-'Rejects (SS)'!$M54) -> 0
B51: =Lists!B$11 -> Ferrous Metals | D51: =Mgmt!L95-D28 -> 0 | E51: =Collections!H51+Collections!$H$65*'Co-mingled Comp'!H19 -> 0 | F51: =SUM(Collections!G51,Collections!I51) -> 0 | H51: =Collections!AB51*(1-'Rejects (SS)'!$M55)+'Co-mingled Comp'!N19 -> 0 | I51: =Collections!Z51*(1-'Rejects (SS)'!$M55)+'Co-mingled Comp'!M19 -> 0 | J51: =Collections!AA51*(1-'Rejects (SS)'!$M55) -> 0
B52: =Lists!B$12 -> Non-Ferrous Metals | D52: =Mgmt!L96-D29 -> 0 | E52: =Collections!H52+Collections!$H$65*'Co-mingled Comp'!H20 -> 0 | F52: =SUM(Collections!G52,Collections!I52) -> 0 | H52: =Collections!AB52*(1-'Rejects (SS)'!$M56)+'Co-mingled Comp'!N20 -> 0 | I52: =Collections!Z52*(1-'Rejects (SS)'!$M56)+'Co-mingled Comp'!M20 -> 0 | J52: =Collections!AA52*(1-'Rejects (SS)'!$M56) -> 0
B53: =Lists!B$13 -> Plastics | D53: =Mgmt!L97-D30 -> 0 | E53: =Collections!H53+Collections!$H$65*'Co-mingled Comp'!H21 -> 0 | F53: =SUM(Collections!G53,Collections!I53) -> 0 | H53: =Collections!AB53*(1-'Rejects (SS)'!$M57)+'Co-mingled Comp'!N21 -> 0 | I53: =Collections!Z53*(1-'Rejects (SS)'!$M57)+'Co-mingled Comp'!M21 -> 0 | J53: =Collections!AA53*(1-'Rejects (SS)'!$M57) -> 0
B54: =Lists!B$14 -> Textiles | D54: =Mgmt!L98-D31 -> 0 | E54: =Collections!H54+Collections!$H$65*'Co-mingled Comp'!H22 -> 0 | F54: =SUM(Collections!G54,Collections!I54) -> 0 | H54: =Collections!AB54*(1-'Rejects (SS)'!$M58)+'Co-mingled Comp'!N22 -> 0 | I54: =Collections!Z54*(1-'Rejects (SS)'!$M58)+'Co-mingled Comp'!M22 -> 0 | J54: =Collections!AA54*(1-'Rejects (SS)'!$M58) -> 0
B55: =Lists!B$15 -> Wood | D55: =Mgmt!L99-D32 -> 0 | E55: =Collections!H55+Collections!$H$65*'Co-mingled Comp'!H23 -> 0 | F55: =SUM(Collections!G55,Collections!I55) -> 0 | H55: =Collections!AB55*(1-'Rejects (SS)'!$M59)+'Co-mingled Comp'!N23 -> 0 | I55: =Collections!Z55*(1-'Rejects (SS)'!$M59)+'Co-mingled Comp'!M23 -> 0 | J55: =Collections!AA55*(1-'Rejects (SS)'!$M59) -> 0
B56: =Lists!B$16 -> WEEE | D56: =Mgmt!L100-D33 -> 0 | E56: =Collections!H56+Collections!$H$65*'Co-mingled Comp'!H24 -> 0 | F56: =SUM(Collections!G56,Collections!I56) -> 0 | H56: =Collections!AB56*(1-'Rejects (SS)'!$M60)+'Co-mingled Comp'!N24 -> 0 | I56: =Collections!Z56*(1-'Rejects (SS)'!$M60)+'Co-mingled Comp'!M24 -> 0 | J56: =Collections!AA56*(1-'Rejects (SS)'!$M60) -> 0
B57: =Lists!B$17 -> Food waste | D57: =Mgmt!L101-D34 -> 0 | E57: =Collections!H57+Collections!$H$65*'Co-mingled Comp'!H25 -> 0 | F57: =SUM(Collections!G57,Collections!I57) -> 0 | H57: =Collections!AB57*(1-'Rejects (SS)'!$M61)+'Co-mingled Comp'!N25 -> 0 | I57: =Collections!Z57*(1-'Rejects (SS)'!$M61)+'Co-mingled Comp'!M25 -> 0 | J57: =Collections!AA57*(1-'Rejects (SS)'!$M61) -> 0
B58: =Lists!B$18 -> Garden Waste | D58: =Mgmt!L102-D35 -> 0 | E58: =Collections!H58+Collections!$H$65*'Co-mingled Comp'!H26 -> 0 | F58: =SUM(Collections!G58,Collections!I58) -> 0 | H58: =Collections!AB58*(1-'Rejects (SS)'!$M62)+'Co-mingled Comp'!N26 -> 0 | I58: =Collections!Z58*(1-'Rejects (SS)'!$M62)+'Co-mingled Comp'!M26 -> 0 | J58: =Collections!AA58*(1-'Rejects (SS)'!$M62) -> 0
B59: =Lists!B$19 -> Mixed Food and Garden Waste | D59: =Mgmt!L103-D36 -> 0 | E59: =Collections!H59+Collections!$H$65*'Co-mingled Comp'!H27 -> 0 | F59: =SUM(Collections!G59,Collections!I59) -> 0 | H59: =Collections!AB59*(1-'Rejects (SS)'!$M63)+'Co-mingled Comp'!N27 -> 0 | I59: =Collections!Z59*(1-'Rejects (SS)'!$M63)+'Co-mingled Comp'!M27 -> 0 | J59: =Collections!AA59*(1-'Rejects (SS)'!$M63) -> 0
B60: =Lists!B$20 -> Material Recycled not classified (mineral oil etc.) | D60: =Mgmt!L104-D37 -> 0 | E60: =Collections!H60+Collections!$H$65*'Co-mingled Comp'!H28 -> 0 | F60: =SUM(Collections!G60,Collections!I60) -> 0 | H60: =Collections!AB60*(1-'Rejects (SS)'!$M64)+'Co-mingled Comp'!N28 -> 0 | I60: =Collections!Z60*(1-'Rejects (SS)'!$M64)+'Co-mingled Comp'!M28 -> 0 | J60: =Collections!AA60*(1-'Rejects (SS)'!$M64) -> 0
B61: Rubble, Soil, Plasterboard | D61: =Mgmt!L105-D38 -> 0 | E61: =Collections!H61+Collections!$H$65*'Co-mingled Comp'!H29 -> 0 | F61: =SUM(Collections!G61,Collections!I61) -> 0 | H61: =Collections!AB61*(1-'Rejects (SS)'!$M65)+'Co-mingled Comp'!N29 -> 0 | I61: =Collections!Z61*(1-'Rejects (SS)'!$M65)+'Co-mingled Comp'!M29 -> 0 | J61: =(Collections!AB61-Collections!Z61)*(1-'Rejects (SS)'!$M65) -> 0
B63: Rejected Material | H63: =SUMPRODUCT(Collections!AB49:AB61,'Rejects (SS)'!$M53:$M65)+'Co-mingled Comp'!$N$30 -> 0 | I63: =SUMPRODUCT(Collections!Z49:Z61,'Rejects (SS)'!$M53:$M65)+'Co-mingled Comp'!$M$30 -> 0 | J63: =SUMPRODUCT(Collections!X49:X61,'Rejects (SS)'!$M53:$M65) -> 0
D65: =SUM(D49:D56,D60) -> 0 | E65: =SUM(E49:E56,E60) -> 0 | F65: =SUM(F49:F56,F60) -> 0 | H65: =SUM(H49:H56,H60) -> 0 | I65: =SUM(I49:I56,I60) -> 0 | J65: =SUM(J49:J56,J60) -> 0
D66: =SUM(D57:D59) -> 0 | E66: =SUM(E57:E59) -> 0 | F66: =SUM(F57:F59) -> 0 | H66: =SUM(H57:H59) -> 0 | I66: =SUM(I57:I59) -> 0 | J66: =SUM(J57:J59) -> 0
D68: =SUM(D49:D61) -> 0 | E68: =SUM(E49:E61) -> 0 | F68: =SUM(F49:F61) -> 0 | H68: =SUM(H49:H61) -> 0 | I68: =SUM(I49:I61) -> 0 | J68: =SUM(J49:J61) -> 0
AR94: x

Sheet Current Performance
Q3: ADMIN SECTION - WILL BE HIDDEN
B16: Total Carbon Impacts, tonnes CO2e | G16: Potential Target Areas for Improvement
G17: Summarises performance in a variety of areas
B19: ='CO2 Impacts'!B7 -> Transport | C19: ='CO2 Impacts'!D7 ->  | G19: Topic | K19: Summary of performance | L19: Link
B20: ='CO2 Impacts'!B8 -> Reuse | C20: ='CO2 Impacts'!D8 -> 0 | G20: Yield of aluminium/textiles (high carbon materials) | K20: =T70 -> N/A | L20: Model improvements on sheet
B21: ='CO2 Impacts'!B9 -> Dry Recyclables | C21: ='CO2 Impacts'!D9 ->  | G21: Yield of steel/plastics (second priority carbon materials) | K21: =T71 -> N/A | L21: Model improvements on sheet
B22: ='CO2 Impacts'!B10 -> Dry Recyclables (Residual) | C22: ='CO2 Impacts'!D10 ->  | G22: Commercial waste recycling | K22: =R87 -> N/A | L22: Model improvements on sheet
B23: ='CO2 Impacts'!B11 -> Organics | C23: ='CO2 Impacts'!D11 -> 0 | G23: MRF Reject Rates | K23: =R92 -> N/A | L23: Model improvements on sheet
B24: ='CO2 Impacts'!B12 -> Organics (Residual) | C24: ='CO2 Impacts'!D12 ->  | G24: Pre-sorting of residual waste | K24: =R98 ->  | L24: Model improvements on sheet
B25: ='CO2 Impacts'!B13 -> Incineration | C25: ='CO2 Impacts'!D13 ->  | G25: Extraction of recyclables from residual treatment | K25: =R103 -> None | L25: Model improvements on sheet
B26: ='CO2 Impacts'!B14 -> Landfill | C26: ='CO2 Impacts'!D14 ->  | G26: Transport | K26: =R43 -> N/A | L26: Model improvements on sheet
B27: ='CO2 Impacts'!B15 -> MBT | C27: ='CO2 Impacts'!D15 ->  | G27: Residual Treatment CIF | K27: =E37 ->  | L27: Model improvements on sheet
B29: ='CO2 Impacts'!B17 -> Total | C29: ='CO2 Impacts'!D17 -> 
B31: Performance Against Targets
B33: ='CO2 Impacts'!B22 -> Total Waste Arisings | C33: ='CO2 Impacts'!D22 -> 
C35: Performance | D35: Target 2020/21 | E35: Met? | F35: Target 2024/25 | G35: Met? | H35: Target 2030/31 | I35: Met?
B36: ='CO2 Impacts'!B25 -> CO2 Impact per Waste Managed (tonnes CO2eq/tonne waste) | C36: ='CO2 Impacts'!D38 ->  | D36: -0.069 | E36: =IF($C36>=D36,"Not met","Met") ->  | F36: -0.085 | G36: =IF($C36>=F36,"Not met","Met") ->  | H36: -0.178 | I36: =IF($C36>=H36,"Not met","Met") -> 
B37: CIF, g CO2 eq. / kWh electricity | C37: ='Treatment CO2'!C229 ->  | D37: 400 | E37: =IF($C37>=D37,"Not met","Met") ->  | F37: 400 | G37: =IF($C37>=F37,"Not met","Met") ->  | H37: 302 | I37: =IF($C37>=H37,"Not met","Met") -> 
B40: Per Tonne Carbon Impacts, Comparison against London Benchmarks
C42: Performance | E42: London Average | F42: London High | G42: London Low | J42: Indicator | K42: Comparison
B43: ='CO2 Impacts'!B28 -> Transport | C43: ='CO2 Impacts'!D28 ->  | E43: 0.007633248918 | F43: 0.006859361587 | G43: 0.008126811434 | J43: =IFERROR(MATCH(K43,Lists!$I$48:$I$51,0),"") ->  | K43: =IF(C43=0,"N/A",IF(C43>G43,"Bottom Quarter Performance",IF(C43>E43,"Lower than Average",IF(C43>F43,"Higher than Average","Top Quarter Performance")))) ->  | R43: =IFERROR(CHOOSE(J43,"Poor","Below Average","Above Average","Good"),"N/A") -> N/A
B44: ='CO2 Impacts'!B29 -> Reuse | C44: ='CO2 Impacts'!D29 ->  | E44: -0.007921740184 | F44: -0.01327492255 | G44: 0 | J44: =IFERROR(MATCH(K44,Lists!$I$48:$I$51,0),"") ->  | K44: =IF(C44=0,"N/A",IF(C44>G44,"Bottom Quarter Performance",IF(C44>E44,"Lower than Average",IF(C44>F44,"Higher than Average","Top Quarter Performance")))) ->  | R44: =IFERROR(CHOOSE(J44,"Poor","Below Average","Above Average","Good"),"N/A") -> N/A
B45: ='CO2 Impacts'!B30 -> Dry Recyclables | C45: ='CO2 Impacts'!D30 ->  | E45: -0.1411853965 | F45: -0.1633002924 | G45: -0.09975644982 | J45: =IFERROR(MATCH(K45,Lists!$I$48:$I$51,0),"") ->  | K45: =IF(C45=0,"N/A",IF(C45>G45,"Bottom Quarter Performance",IF(C45>E45,"Lower than Average",IF(C45>F45,"Higher than Average","Top Quarter Performance")))) ->  | R45: =IFERROR(CHOOSE(J45,"Poor","Below Average","Above Average","Good"),"N/A") -> N/A
B46: ='CO2 Impacts'!B31 -> Dry Recyclables (Residual) | C46: ='CO2 Impacts'!D31 ->  | R46: =IFERROR(CHOOSE(J46,"Poor","Below Average","Above Average","Good"),"N/A") -> N/A
B47: ='CO2 Impacts'!B32 -> Organics | C47: ='CO2 Impacts'!D32 ->  | E47: -0.005353297649 | F47: -0.00755130986 | G47: -0.001114000844 | J47: =IFERROR(MATCH(K47,Lists!$I$48:$I$51,0),"") ->  | K47: =IF(C47=0,"N/A",IF(C47>G47,"Bottom Quarter Performance",IF(C47>E47,"Lower than Average",IF(C47>F47,"Higher than Average","Top Quarter Performance")))) -> 
B48: ='CO2 Impacts'!B33 -> Organics (Residual) | C48: ='CO2 Impacts'!D33 -> 
B49: ='CO2 Impacts'!B34 -> Incineration | C49: ='CO2 Impacts'!D34 ->  | E49: 0.04796333082
B50: ='CO2 Impacts'!B35 -> Landfill | C50: ='CO2 Impacts'!D35 ->  | E50: 0.03593375767
B51: ='CO2 Impacts'!B36 -> MBT | C51: ='CO2 Impacts'!D36 ->  | E51: 0.01085179318
B53: ='CO2 Impacts'!B38 -> Total | C53: ='CO2 Impacts'!D38 ->  | E53: =SUM(E43:E52) -> -0.05207830376
B56: Kerbside Dry Recycling Yield, Comparison against All Other London Authorities
C58: Performance | E58: =E$42 -> London Average | F58: =F$42 -> London High | G58: =G$42 -> London Low | J58: Indicator | K58: Comparison
B59: Dry Recycling | C59: =Collections!V96 ->  | E59: 146.1751509 | F59: 185.0459845 | G59: 128.0242495 | J59: =IFERROR(MATCH(K59,Lists!$I$48:$I$51,0),"") ->  | K59: =IF(C59=0,"N/A",IF(C59<G59,"Bottom Quarter Performance",IF(C59<E59,"Lower than Average",IF(C59<F59,"Higher than Average","Top Quarter Performance")))) -> 
B60: Food | C60: =Collections!V97 ->  | E60: 45.31299724 | F60: 62.96363755 | G60: 31.95426281 | J60: =IFERROR(MATCH(K60,Lists!$I$48:$I$51,0),"") ->  | K60: =IF(C60=0,"N/A",IF(C60<G60,"Bottom Quarter Performance",IF(C60<E60,"Lower than Average",IF(C60<F60,"Higher than Average","Top Quarter Performance")))) -> 
B61: Garden | C61: =Collections!V98 ->  | E61: 24.2941189 | F61: 59.16316606 | G61: 5.067611524 | J61: =IFERROR(MATCH(K61,Lists!$I$48:$I$51,0),"") ->  | K61: =IF(C61=0,"N/A",IF(C61<G61,"Bottom Quarter Performance",IF(C61<E61,"Lower than Average",IF(C61<F61,"Higher than Average","Top Quarter Performance")))) -> 
B62: Mixed Organics | C62: =Collections!V99 ->  | E62: 55.41933488 | F62: 118.013518 | G62: 31.49422106 | J62: =IFERROR(MATCH(K62,Lists!$I$48:$I$51,0),"") ->  | K62: =IF(C62=0,"N/A",IF(C62<G62,"Bottom Quarter Performance",IF(C62<E62,"Lower than Average",IF(C62<F62,"Higher than Average","Top Quarter Performance")))) -> 
B66: Material-by-Material Captures, WfH kg/hhld
C68: Performance | E68: =E$42 -> London Average | F68: =F$42 -> London High | G68: =G$42 -> London Low | J68: Indicator | K68: Comparison | L68: Carbon Priority (1 = Highest Priority)
B69: =Lists!B9 -> Paper / Card | C69: =('Final Recycled'!H49-SUM('Final Recycled'!I49:J49))*1000/'Start Here'!$C$34 ->  | E69: 93.32393876 | F69: 108.151226 | G69: 74.79560129 | J69: =IFERROR(MATCH(K69,Lists!$I$48:$I$51,0),"") ->  | K69: =IF(C69=0,"N/A",IF(C69<G69,"Bottom Quarter Performance",IF(C69<E69,"Lower than Average",IF(C69<F69,"Higher than Average","Top Quarter Performance")))) ->  | L69: 3
B70: =Lists!B10 -> Glass | C70: =('Final Recycled'!H50-SUM('Final Recycled'!I50:J50))*1000/'Start Here'!$C$34 ->  | E70: 36.09083579 | F70: 41.22212741 | G70: 27.98792965 | J70: =IFERROR(MATCH(K70,Lists!$I$48:$I$51,0),"") ->  | L70: 4 | Q70: 1 | R70: high value materials | S70: =ROUNDDOWN(SUMIF($L$69:$L$81,Q70,$J$69:$J$81)/2,0) -> 0 | T70: =IFERROR(CHOOSE(S70,"Low","Below Average","Above Average","High"),"N/A") -> N/A
B71: =Lists!B11 -> Ferrous Metals | C71: =('Final Recycled'!H51-SUM('Final Recycled'!I51:J51))*1000/'Start Here'!$C$34 ->  | E71: 8.003061428 | F71: 9.998653962 | G71: 4.383351004 | J71: =IFERROR(MATCH(K71,Lists!$I$48:$I$51,0),"") ->  | L71: 2 | Q71: 2 | R71: second highest value materials | S71: =ROUNDDOWN(SUMIF($L$69:$L$81,Q71,$J$69:$J$81)/2,0) -> 0 | T71: =IFERROR(CHOOSE(S71,"Low","Below Average","Above Average","High"),"N/A") -> N/A
B72: =Lists!B12 -> Non-Ferrous Metals | C72: =('Final Recycled'!H52-SUM('Final Recycled'!I52:J52))*1000/'Start Here'!$C$34 ->  | E72: 3.391885011 | F72: 4.533301501 | G72: 1.812329695 | J72: =IFERROR(MATCH(K72,Lists!$I$48:$I$51,0),"") ->  | L72: 1 | Q72: 3 | R72: third highest value | S72: =ROUNDDOWN(SUMIF($L$69:$L$81,Q72,$J$69:$J$81)/2,0) -> 0 | T72: =IFERROR(CHOOSE(S72,"Low","Below Average","Above Average","High"),"N/A") -> N/A
B73: =Lists!B13 -> Plastics | C73: =('Final Recycled'!H53-SUM('Final Recycled'!I53:J53))*1000/'Start Here'!$C$34 ->  | E73: 19.21811008 | F73: 22.64986134 | G73: 10.96932387 | J73: =IFERROR(MATCH(K73,Lists!$I$48:$I$51,0),"") ->  | L73: 2
B74: =Lists!B14 -> Textiles | C74: =('Final Recycled'!H54-SUM('Final Recycled'!I54:J54))*1000/'Start Here'!$C$34 ->  | E74: 3.828644647 | F74: 5.704237911 | G74: 2.423238235 | J74: =IFERROR(MATCH(K74,Lists!$I$48:$I$51,0),"") ->  | L74: 1
B75: =Lists!B15 -> Wood | C75: =('Final Recycled'!H55-SUM('Final Recycled'!I55:J55))*1000/'Start Here'!$C$34 ->  | E75: 18.0799898 | F75: 31.04032376 | G75: 5.21314703 | J75: =IFERROR(MATCH(K75,Lists!$I$48:$I$51,0),"") ->  | L75: 3
B76: =Lists!B16 -> WEEE | C76: =('Final Recycled'!H56-SUM('Final Recycled'!I56:J56))*1000/'Start Here'!$C$34 ->  | E76: 5.697511168 | F76: 7.455333658 | G76: 3.987042423 | J76: =IFERROR(MATCH(K76,Lists!$I$48:$I$51,0),"") ->  | L76: 4
B77: =Lists!B17 -> Food waste | C77: =('Final Recycled'!H57-SUM('Final Recycled'!I57:J57))*1000/'Start Here'!$C$34 ->  | E77: 35.99277805 | F77: 44.72709779 | G77: 29.76858349 | J77: =IFERROR(MATCH(K77,Lists!$I$48:$I$51,0),"") ->  | L77: 4
B78: =Lists!B18 -> Garden Waste | C78: =('Final Recycled'!H58-SUM('Final Recycled'!I58:J58))*1000/'Start Here'!$C$34 ->  | E78: 20.81454419 | F78: 77.13902341 | G78: 9.703717044 | J78: =IFERROR(MATCH(K78,Lists!$I$48:$I$51,0),"") ->  | L78: 5
B79: =Lists!B19 -> Mixed Food and Garden Waste | C79: =('Final Recycled'!H59-SUM('Final Recycled'!I59:J59))*1000/'Start Here'!$C$34 ->  | E79: 53.31677314 | F79: 115.1624218 | G79: 31.44068936 | J79: =IFERROR(MATCH(K79,Lists!$I$48:$I$51,0),"") ->  | L79: 5
B80: =Lists!B20 -> Material Recycled not classified (mineral oil etc.) | C80: =('Final Recycled'!H60-SUM('Final Recycled'!I60:J60))*1000/'Start Here'!$C$34 ->  | E80: 14.70356872 | F80: 30.63147873 | G80: 3.394021739 | J80: =IFERROR(MATCH(K80,Lists!$I$48:$I$51,0),"") ->  | L80: 4
B81: =Lists!B21 -> Rubble, Soil, Plasterboard | C81: =('Final Recycled'!H61-SUM('Final Recycled'!I61:J61))*1000/'Start Here'!$C$34 ->  | E81: 16.67717339 | F81: 20.88242722 | G81: 10.63376424 | J81: =IFERROR(MATCH(K81,Lists!$I$48:$I$51,0),"") ->  | L81: 4
B83: Commercial Waste - Market Share
C85: Performance | E85: =E$42 -> London Average | F85: =F$42 -> London High | G85: =G$42 -> London Low | J85: Indicator | K85: Comparison | L85: Carbon Priority (1 = Highest Priority)
B86: Estimated LA Market Share | C86: ='Commercial Waste'!D21 ->  | E86: 0.03 | F86: 0.08 | G86: 0.5 | J86: =IFERROR(MATCH(K86,Lists!$I$48:$I$51,0),"") ->  | K86: =IF(C86=0,"N/A",IF(C86<G86,"Good",IF(C86<E86,"Ok",IF(C86<F86,"Some","Minimal")))) ->  | L86: 4
B87: Recycling Rate | C87: ='Capture Rate Review'!D86 ->  | E87: 0.1 | F87: 0.3 | G87: 0.5 | J87: =IFERROR(MATCH(K87,Lists!$I$48:$I$51,0),"") ->  | K87: =IF(C86=0,"N/A",IF(C87<G87,"Bottom Quarter Performance",IF(C87<E87,"Lower than Average",IF(C87<F87,"Higher than Average","Top Quarter Performance")))) ->  | L87: 4 | R87: =IFERROR(CHOOSE(J87,"Low","Below Average","Above Average","High"),"N/A") -> N/A
B89: MRF Rejects
C91: Performance | E91: =E$42 -> London Average | F91: =F$42 -> London High | G91: =G$42 -> London Low | J91: Indicator | K91: Comparison
B92: MRF Reject Rate | C92: ='Co-mingled Comp'!J30 -> 0 | E92: 0.12 | F92: 0.08 | G92: 0.16 | J92: =IFERROR(MATCH(K92,Lists!$I$48:$I$51,0),"") ->  | K92: =IF(C92=0,"N/A",IF(C92>G92,"Bottom Quarter Performance",IF(C92>E92,"Lower than Average",IF(C92>F92,"Higher than Average","Top Quarter Performance")))) -> N/A | R92: =IFERROR(CHOOSE(J92,"High (Poor)","Higher than average","Lower than average","Low (Good)"),"N/A") -> N/A
B95: Residual Treatment
C97: Performance
B98: % To Pre-treatment Sorting (RDF/Autoclave, MBT or R-MRF) | C98: =SUM('Treatment and Transport'!K28:K30)/'Treatment and Transport'!K33 ->  | R98: =IF(C98=0,"Absent",IF(C98<0.7,"Consider increasing","High")) -> 
B100: Recycling Performance of R-MRF
E102: London Average | F102: London High | G102: London Low | J102: Indicator | K102: Comparison
B103: Extraction of Recycling | C103: =IF(Residual!D97>0,'Onward Treatment'!R36,"n/a") ->  | E103: 0.08 | F103: 0.17 | G103: 0.03 | J103: =IFERROR(MATCH(K103,Lists!$I$48:$I$51,0),"") ->  | K103: =IF(C103=0,"N/A",IF(C103<G103,"Bottom Quarter Performance",IF(C103<E103,"Lower than Average",IF(C103<F103,"Higher than Average","Top Quarter Performance")))) ->  | R103: =IF(J103<>"", CHOOSE(J103,"Low","Below Average","Above Average","High"), "None") -> None
B106: CIF Breakdown
C108: CIF | E108: Electricity (kWh) | F108: Carbon Emissions (tCO2)
B109: Incineration (Direct) | C109: ='Treatment CO2'!C162 ->  | E109: ='Treatment CO2'!C212 ->  | F109: ='Treatment CO2'!C211 -> 
B110: Incineration (Via R-MRF) | C110: ='Treatment CO2'!C176 ->  | E110: ='Treatment CO2'!C217 ->  | F110: ='Treatment CO2'!C216 -> 
B111: Incineration (Via MBT) | C111: ='Treatment CO2'!C204 ->  | E111: ='Treatment CO2'!C227 ->  | F111: ='Treatment CO2'!C226 -> 
B112: RDF/Autoclave | C112: ='Treatment CO2'!$C190 ->  | E112: ='Treatment CO2'!$C193 -> 0 | F112: ='Treatment CO2'!$C192 -> 0
B113: Combined | C113: =SUM(F113)*10^3/SUM(E113) ->  | E113: =SUM(E109:E112) ->  | F113: =SUM(F109:F112) -> 
B115: Anaerobic Digestion | C115: -162 | E115: ='Treatment CO2'!N212 -> 0 | F115: ='Treatment CO2'!N211 -> 0

Sheet SpareSheet1
A1: Sheet provided for miscellaneous additional calculations

Sheet Part 2 ->

Sheet Explore Improvements
A13: ="@"&COUNTIF(A$1:A12,"@*")+1 -> @1 | B13: Name Scenarios
B14: Name up to five scenarios to explore the impact of particular interventions on EPS performance
B15: Set the year that the scenario applies to. This will update carbon values for treatment technologies reflecting projected changes in grid electricity carbon intensity.
D17: Baseline | E17: Scenario 1 | F17: Scenario 2 | G17: Scenario 3 | H17: Scenario 4 | I17: Scenario 5
C18: Name given to scenario | D18: Baseline | E18: Name Scenario 1 | F18: Name Scenario 2 | G18: Name Scenario 3 | H18: Name Scenario 4 | I18: Name Scenario 5
C19: Year of Scenario | D19: ='Start Here'!C27 -> 2017/18 | E19: 2017/18 | F19: 2017/18 | G19: 2017/18 | H19: 2017/18 | I19: 2017/18
A22: ="@"&COUNTIF(A$1:A21,"@*")+1 -> @2 | B22: Change Scenario Assumptions
B23: List of sheets in which to edit assumptions
C26: Sheet | D26: Link
C27: Edit Arisings | D27: =HYPERLINK("#'Arisings'!B10","Go") -> Go
C28: Edit Reuse Tonnages | D28: =HYPERLINK("#'Reuse'!B10","Go") -> Go
C29: Edit Waste from Households Recycling | D29: =HYPERLINK("#'Household Recycling'!B10","Go") -> Go
C30: Edit Commercial Waste | D30: =HYPERLINK("#'Commercial Waste'!B10","Go") -> Go
C31: Edit Other Recycling | D31: =HYPERLINK("#'Other Recycling'!B10","Go") -> Go
C32: Adjust Other Assumptions | D32: =HYPERLINK("#'Other Assumptions'!B10","Go") -> Go
A34: ="@"&COUNTIF(A$1:A33,"@*")+1 -> @3 | B34: Results
B35: Select which scenarios to display on the graph below
D37: =D$18 -> Baseline | E37: Name Scenario 1 | F37: Name Scenario 2 | G37: Name Scenario 3 | H37: Name Scenario 4 | I37: Name Scenario 5
C38: Display on graph: | D38: Y | E38: Y | F38: Y | G38: Y | H38: Y | I38: Y
A41: ="@"&COUNTIF(A$1:A40,"@*")+1 -> @4 | B41: Overall Results
B42: Displays headline results for each scenario modelled. These values update live in response to the edited scenario assumptions
D44: =D$18 -> Baseline | E44: Name Scenario 1 | F44: Name Scenario 2 | G44: Name Scenario 3 | H44: Name Scenario 4 | I44: Name Scenario 5
C45: tCO2eq./tonne of waste managed | D45: ='CO2 Impacts'!D38 ->  | E45: ='CO2 Impacts'!F38 ->  | F45: ='CO2 Impacts'!G38 ->  | G45: ='CO2 Impacts'!H38 ->  | H45: ='CO2 Impacts'!I38 ->  | I45: ='CO2 Impacts'!J38 -> 
C46: Total tCO2eq. | D46: ='CO2 Impacts'!D17 ->  | E46: ='CO2 Impacts'!F17 ->  | F46: ='CO2 Impacts'!G17 ->  | G46: ='CO2 Impacts'!H17 ->  | H46: ='CO2 Impacts'!I17 ->  | I46: ='CO2 Impacts'!J17 -> 
C48: CIF | D48: ='Treatment CO2'!C229 ->  | E48: ='Treatment CO2'!E229 ->  | F48: ='Treatment CO2'!F229 ->  | G48: ='Treatment CO2'!G229 ->  | H48: ='Treatment CO2'!H229 ->  | I48: ='Treatment CO2'!I229 -> 
C50: kh/hh dry (excl. rejects) | D50: ='Capture Rate Review'!D58-'Capture Rate Review'!D60 ->  | E50: ='Capture Rate Review'!F58-'Capture Rate Review'!F60 ->  | F50: ='Capture Rate Review'!G58-'Capture Rate Review'!G60 ->  | G50: ='Capture Rate Review'!H58-'Capture Rate Review'!H60 ->  | H50: ='Capture Rate Review'!I58-'Capture Rate Review'!I60 ->  | I50: ='Capture Rate Review'!J58-'Capture Rate Review'!J60 -> 
C51: kh/hh food | D51: ='Capture Rate Review'!D62 ->  | E51: ='Capture Rate Review'!F62 ->  | F51: ='Capture Rate Review'!G62 ->  | G51: ='Capture Rate Review'!H62 ->  | H51: ='Capture Rate Review'!I62 ->  | I51: ='Capture Rate Review'!J62 -> 
C52: kh/hh garden | D52: ='Capture Rate Review'!D63 ->  | E52: ='Capture Rate Review'!F63 ->  | F52: ='Capture Rate Review'!G63 ->  | G52: ='Capture Rate Review'!H63 ->  | H52: ='Capture Rate Review'!I63 ->  | I52: ='Capture Rate Review'!J63 -> 
C53: kh/hh mixed organics | D53: ='Capture Rate Review'!D64 ->  | E53: ='Capture Rate Review'!F64 ->  | F53: ='Capture Rate Review'!G64 ->  | G53: ='Capture Rate Review'!H64 ->  | H53: ='Capture Rate Review'!I64 ->  | I53: ='Capture Rate Review'!J64 -> 
C54: kh/hh recovered from pre-treatment | D54: =Residual!D87*1000/'Start Here'!$C$34 ->  | E54: =Residual!F87*1000/'Start Here'!$C$34 ->  | F54: =Residual!G87*1000/'Start Here'!$C$34 ->  | G54: =Residual!H87*1000/'Start Here'!$C$34 ->  | H54: =Residual!I87*1000/'Start Here'!$C$34 ->  | I54: =Residual!J87*1000/'Start Here'!$C$34 -> 
A56: ="@"&COUNTIF(A$1:A55,"@*")+1 -> @5 | B56: EPS Result Breakdown
B57: Displays headline results for each scenario modelled. These values update live in response to the edited scenario assumptions
D59: =D44 -> Baseline | E59: Name Scenario 1 | F59: Name Scenario 2 | G59: Name Scenario 3 | H59: Name Scenario 4 | I59: Name Scenario 5
C60: ='CO2 Impacts'!B28 -> Transport | D60: ='CO2 Impacts'!D28 ->  | E60: ='CO2 Impacts'!F28 ->  | F60: ='CO2 Impacts'!G28 ->  | G60: ='CO2 Impacts'!H28 ->  | H60: ='CO2 Impacts'!I28 ->  | I60: ='CO2 Impacts'!J28 -> 
C61: ='CO2 Impacts'!B29 -> Reuse | D61: ='CO2 Impacts'!D29 ->  | E61: ='CO2 Impacts'!F29 ->  | F61: ='CO2 Impacts'!G29 ->  | G61: ='CO2 Impacts'!H29 ->  | H61: ='CO2 Impacts'!I29 ->  | I61: ='CO2 Impacts'!J29 -> 
C62: ='CO2 Impacts'!B30 -> Dry Recyclables | D62: ='CO2 Impacts'!D30 ->  | E62: ='CO2 Impacts'!F30 ->  | F62: ='CO2 Impacts'!G30 ->  | G62: ='CO2 Impacts'!H30 ->  | H62: ='CO2 Impacts'!I30 ->  | I62: ='CO2 Impacts'!J30 -> 
C63: ='CO2 Impacts'!B31 -> Dry Recyclables (Residual) | D63: ='CO2 Impacts'!D31 ->  | E63: ='CO2 Impacts'!F31 ->  | F63: ='CO2 Impacts'!G31 ->  | G63: ='CO2 Impacts'!H31 ->  | H63: ='CO2 Impacts'!I31 ->  | I63: ='CO2 Impacts'!J31 -> 
C64: ='CO2 Impacts'!B32 -> Organics | D64: ='CO2 Impacts'!D32 ->  | E64: ='CO2 Impacts'!F32 ->  | F64: ='CO2 Impacts'!G32 ->  | G64: ='CO2 Impacts'!H32 ->  | H64: ='CO2 Impacts'!I32 ->  | I64: ='CO2 Impacts'!J32 -> 
C65: ='CO2 Impacts'!B33 -> Organics (Residual) | D65: ='CO2 Impacts'!D33 ->  | E65: ='CO2 Impacts'!F33 ->  | F65: ='CO2 Impacts'!G33 ->  | G65: ='CO2 Impacts'!H33 ->  | H65: ='CO2 Impacts'!I33 ->  | I65: ='CO2 Impacts'!J33 -> 
C66: ='CO2 Impacts'!B34 -> Incineration | D66: ='CO2 Impacts'!D34 ->  | E66: ='CO2 Impacts'!F34 ->  | F66: ='CO2 Impacts'!G34 ->  | G66: ='CO2 Impacts'!H34 ->  | H66: ='CO2 Impacts'!I34 ->  | I66: ='CO2 Impacts'!J34 -> 
C67: ='CO2 Impacts'!B35 -> Landfill | D67: ='CO2 Impacts'!D35 ->  | E67: ='CO2 Impacts'!F35 ->  | F67: ='CO2 Impacts'!G35 ->  | G67: ='CO2 Impacts'!H35 ->  | H67: ='CO2 Impacts'!I35 ->  | I67: ='CO2 Impacts'!J35 -> 
C68: ='CO2 Impacts'!B36 -> MBT | D68: ='CO2 Impacts'!D36 ->  | E68: ='CO2 Impacts'!F36 ->  | F68: ='CO2 Impacts'!G36 ->  | G68: ='CO2 Impacts'!H36 ->  | H68: ='CO2 Impacts'!I36 ->  | I68: ='CO2 Impacts'!J36 -> 
C69: Total | D69: =SUM(D60:D68) -> 
A71: ="@"&COUNTIF(A$1:A70,"@*")+1 -> @6 | B71: Results Chart
B72: Shows EPS performance results for each modelled scenario selected in row 36

Sheet Arisings
H3: =HYPERLINK("#'Explore Improvements'!B12","-> Return to Overview") -> -> Return to Overview
A12: ="@"&COUNTIF(A$1:A11,"@*")+1 -> @1 | B12: Household Numbers | U12: Supporting Notes or Calculations
B13: Input changes in household numbers (optional)
D15: ='Explore Improvements'!D$17 -> Baseline | F15: ='Explore Improvements'!E$18 -> Name Scenario 1 | G15: ='Explore Improvements'!F$18 -> Name Scenario 2 | H15: ='Explore Improvements'!G$18 -> Name Scenario 3 | I15: ='Explore Improvements'!H$18 -> Name Scenario 4 | J15: ='Explore Improvements'!I$18 -> Name Scenario 5
B16: Household Numbers | D16: ='Start Here'!C34 -> no data
A18: ="@"&COUNTIF(A$1:A17,"@*")+1 -> @2 | B18: Waste Collected (tonnes)
B19: Information only: Shows headline waste arisings, totalled from tables below
D21: ='Explore Improvements'!D$17 -> Baseline | F21: ='Explore Improvements'!E$18 -> Name Scenario 1 | G21: ='Explore Improvements'!F$18 -> Name Scenario 2 | H21: ='Explore Improvements'!G$18 -> Name Scenario 3 | I21: ='Explore Improvements'!H$18 -> Name Scenario 4 | J21: ='Explore Improvements'!I$18 -> Name Scenario 5
B22: Local Authority Collected Waste | D22: =D23+D24+D25 ->  | F22: =F23+F24+F25 -> 0 | G22: =G23+G24+G25 -> 0 | H22: =H23+H24+H25 -> 0 | I22: =I23+I24+I25 -> 0 | J22: =J23+J24+J25 -> 0
B23: Waste from Households | D23: =D70 ->  | F23: =F70 -> 0 | G23: =G70 -> 0 | H23: =H70 -> 0 | I23: =I70 -> 0 | J23: =J70 -> 0
B24: Commercial Waste | D24: =Collections!$X$119 -> 0 | F24: ='Commercial Waste'!F115 -> 0 | G24: ='Commercial Waste'!G115 -> 0 | H24: ='Commercial Waste'!H115 -> 0 | I24: ='Commercial Waste'!I115 -> 0 | J24: ='Commercial Waste'!J115 -> 0
B25: Other non-household waste | D25: =Arisings!D94 ->  | F25: =Arisings!F94 -> 0 | G25: =Arisings!G94 -> 0 | H25: =Arisings!H94 -> 0 | I25: =Arisings!I94 -> 0 | J25: =Arisings!J94 -> 0
A27: ="@"&COUNTIF(A$1:A26,"@*")+1 -> @3 | B27: Local Authority Collected Waste (LACW) - Arisings (tonnes)
B28: Information only: LACW waste arisings are the sum of all the below arisings
D30: ='Explore Improvements'!D$17 -> Baseline | F30: ='Explore Improvements'!E$18 -> Name Scenario 1 | G30: ='Explore Improvements'!F$18 -> Name Scenario 2 | H30: ='Explore Improvements'!G$18 -> Name Scenario 3 | I30: ='Explore Improvements'!H$18 -> Name Scenario 4 | J30: ='Explore Improvements'!I$18 -> Name Scenario 5
B31: =Lists!$B9 -> Paper / Card | D31: =SUM('Recycling and Reuse'!D22,Residual!$D$8*'Residual Comp'!Q16) ->  | F31: =F54+'Commercial Waste'!F100+Arisings!F79 -> 0 | G31: =G54+'Commercial Waste'!G100+Arisings!G79 -> 0 | H31: =H54+'Commercial Waste'!H100+Arisings!H79 -> 0 | I31: =I54+'Commercial Waste'!I100+Arisings!I79 -> 0 | J31: =J54+'Commercial Waste'!J100+Arisings!J79 -> 0
B32: =Lists!$B10 -> Glass | D32: =SUM('Recycling and Reuse'!D23,Residual!$D$8*'Residual Comp'!Q17) ->  | F32: =F55+'Commercial Waste'!F101+Arisings!F80 -> 0 | G32: =G55+'Commercial Waste'!G101+Arisings!G80 -> 0 | H32: =H55+'Commercial Waste'!H101+Arisings!H80 -> 0 | I32: =I55+'Commercial Waste'!I101+Arisings!I80 -> 0 | J32: =J55+'Commercial Waste'!J101+Arisings!J80 -> 0
B33: =Lists!$B11 -> Ferrous Metals | D33: =SUM('Recycling and Reuse'!D24,Residual!$D$8*'Residual Comp'!Q18) ->  | F33: =F56+'Commercial Waste'!F102+Arisings!F81 -> 0 | G33: =G56+'Commercial Waste'!G102+Arisings!G81 -> 0 | H33: =H56+'Commercial Waste'!H102+Arisings!H81 -> 0 | I33: =I56+'Commercial Waste'!I102+Arisings!I81 -> 0 | J33: =J56+'Commercial Waste'!J102+Arisings!J81 -> 0
B34: =Lists!$B12 -> Non-Ferrous Metals | D34: =SUM('Recycling and Reuse'!D25,Residual!$D$8*'Residual Comp'!Q19) ->  | F34: =F57+'Commercial Waste'!F103+Arisings!F82 -> 0 | G34: =G57+'Commercial Waste'!G103+Arisings!G82 -> 0 | H34: =H57+'Commercial Waste'!H103+Arisings!H82 -> 0 | I34: =I57+'Commercial Waste'!I103+Arisings!I82 -> 0 | J34: =J57+'Commercial Waste'!J103+Arisings!J82 -> 0
B35: =Lists!$B13 -> Plastics | D35: =SUM('Recycling and Reuse'!D26,Residual!$D$8*'Residual Comp'!Q20) ->  | F35: =F58+'Commercial Waste'!F104+Arisings!F83 -> 0 | G35: =G58+'Commercial Waste'!G104+Arisings!G83 -> 0 | H35: =H58+'Commercial Waste'!H104+Arisings!H83 -> 0 | I35: =I58+'Commercial Waste'!I104+Arisings!I83 -> 0 | J35: =J58+'Commercial Waste'!J104+Arisings!J83 -> 0
B36: =Lists!$B14 -> Textiles | D36: =SUM('Recycling and Reuse'!D27,Residual!$D$8*'Residual Comp'!Q21) ->  | F36: =F59+'Commercial Waste'!F105+Arisings!F84 -> 0 | G36: =G59+'Commercial Waste'!G105+Arisings!G84 -> 0 | H36: =H59+'Commercial Waste'!H105+Arisings!H84 -> 0 | I36: =I59+'Commercial Waste'!I105+Arisings!I84 -> 0 | J36: =J59+'Commercial Waste'!J105+Arisings!J84 -> 0
B37: =Lists!$B15 -> Wood | D37: =SUM('Recycling and Reuse'!D28,Residual!$D$8*'Residual Comp'!Q22) ->  | F37: =F60+'Commercial Waste'!F106+Arisings!F85 -> 0 | G37: =G60+'Commercial Waste'!G106+Arisings!G85 -> 0 | H37: =H60+'Commercial Waste'!H106+Arisings!H85 -> 0 | I37: =I60+'Commercial Waste'!I106+Arisings!I85 -> 0 | J37: =J60+'Commercial Waste'!J106+Arisings!J85 -> 0
B38: =Lists!$B16 -> WEEE | D38: =SUM('Recycling and Reuse'!D29,Residual!$D$8*'Residual Comp'!Q23) ->  | F38: =F61+'Commercial Waste'!F107+Arisings!F86 -> 0 | G38: =G61+'Commercial Waste'!G107+Arisings!G86 -> 0 | H38: =H61+'Commercial Waste'!H107+Arisings!H86 -> 0 | I38: =I61+'Commercial Waste'!I107+Arisings!I86 -> 0 | J38: =J61+'Commercial Waste'!J107+Arisings!J86 -> 0
B39: =Lists!$B17 -> Food waste | D39: =SUM('Recycling and Reuse'!D30,Residual!$D$8*'Residual Comp'!Q24) ->  | F39: =F62+'Commercial Waste'!F108+Arisings!F87 -> 0 | G39: =G62+'Commercial Waste'!G108+Arisings!G87 -> 0 | H39: =H62+'Commercial Waste'!H108+Arisings!H87 -> 0 | I39: =I62+'Commercial Waste'!I108+Arisings!I87 -> 0 | J39: =J62+'Commercial Waste'!J108+Arisings!J87 -> 0
B40: =Lists!$B18 -> Garden Waste | D40: =SUM('Recycling and Reuse'!D31,Residual!$D$8*'Residual Comp'!Q25) ->  | F40: =F63+'Commercial Waste'!F109+Arisings!F88 -> 0 | G40: =G63+'Commercial Waste'!G109+Arisings!G88 -> 0 | H40: =H63+'Commercial Waste'!H109+Arisings!H88 -> 0 | I40: =I63+'Commercial Waste'!I109+Arisings!I88 -> 0 | J40: =J63+'Commercial Waste'!J109+Arisings!J88 -> 0
B41: =Lists!$B19 -> Mixed Food and Garden Waste | D41: =SUM('Recycling and Reuse'!D32,Residual!$D$8*'Residual Comp'!Q26) ->  | F41: =F64+'Commercial Waste'!F110+Arisings!F89 -> 0 | G41: =G64+'Commercial Waste'!G110+Arisings!G89 -> 0 | H41: =H64+'Commercial Waste'!H110+Arisings!H89 -> 0 | I41: =I64+'Commercial Waste'!I110+Arisings!I89 -> 0 | J41: =J64+'Commercial Waste'!J110+Arisings!J89 -> 0
B42: =Lists!$B20 -> Material Recycled not classified (mineral oil etc.) | D42: =SUM('Recycling and Reuse'!D33,Residual!$D$8*'Residual Comp'!Q27) ->  | F42: =F65+'Commercial Waste'!F111+Arisings!F90 -> 0 | G42: =G65+'Commercial Waste'!G111+Arisings!G90 -> 0 | H42: =H65+'Commercial Waste'!H111+Arisings!H90 -> 0 | I42: =I65+'Commercial Waste'!I111+Arisings!I90 -> 0 | J42: =J65+'Commercial Waste'!J111+Arisings!J90 -> 0
B43: Soil, Rubble, Plasterboard | D43: =SUM('Recycling and Reuse'!D34,Residual!$D$8*'Residual Comp'!Q28) ->  | F43: =F66+'Commercial Waste'!F112+Arisings!F91 -> 0 | G43: =G66+'Commercial Waste'!G112+Arisings!G91 -> 0 | H43: =H66+'Commercial Waste'!H112+Arisings!H91 -> 0 | I43: =I66+'Commercial Waste'!I112+Arisings!I91 -> 0 | J43: =J66+'Commercial Waste'!J112+Arisings!J91 -> 0
B44: =Lists!$B22 -> Other Materials | D44: =SUM('Recycling and Reuse'!D36,Residual!$D$8*'Residual Comp'!Q29) ->  | F44: =F67+'Commercial Waste'!F113+Arisings!F92 -> 0 | G44: =G67+'Commercial Waste'!G113+Arisings!G92 -> 0 | H44: =H67+'Commercial Waste'!H113+Arisings!H92 -> 0 | I44: =I67+'Commercial Waste'!I113+Arisings!I92 -> 0 | J44: =J67+'Commercial Waste'!J113+Arisings!J92 -> 0
B46: Total LACW Arisings | D46: =SUM(D31:D44) ->  | F46: =SUM(F31:F44) -> 0 | G46: =SUM(G31:G44) -> 0 | H46: =SUM(H31:H44) -> 0 | I46: =SUM(I31:I44) -> 0 | J46: =SUM(J31:J44) -> 0
B48: Organics | D48: =SUM(D39:D41) ->  | F48: 0 | G48: 0 | H48: 0 | I48: 0 | J48: 0
A50: ="@"&COUNTIF(A$1:A49,"@*")+1 -> @4 | B50: Waste from Households (WfH) - Arisings (tonnes)
B51: Input cells for waste arisings by material across scenarios
N52: Change from Baseline, tonnes
D53: ='Explore Improvements'!D$17 -> Baseline | F53: ='Explore Improvements'!E$18 -> Name Scenario 1 | G53: ='Explore Improvements'!F$18 -> Name Scenario 2 | H53: ='Explore Improvements'!G$18 -> Name Scenario 3 | I53: ='Explore Improvements'!H$18 -> Name Scenario 4 | J53: ='Explore Improvements'!I$18 -> Name Scenario 5 | N53: =F53 -> Name Scenario 1 | O53: =G53 -> Name Scenario 2 | P53: =H53 -> Name Scenario 3 | Q53: =I53 -> Name Scenario 4 | R53: =J53 -> Name Scenario 5
B54: =Lists!B9 -> Paper / Card | D54: ='Recycling and Reuse'!D55+Residual!$D$9*'Residual Comp'!R16 ->  | N54: =F54-$D54 ->  | O54: =G54-$D54 ->  | P54: =H54-$D54 ->  | Q54: =I54-$D54 ->  | R54: =J54-$D54 -> 
B55: =Lists!B10 -> Glass | D55: ='Recycling and Reuse'!D56+Residual!$D$9*'Residual Comp'!R17 -> 
B56: =Lists!B11 -> Ferrous Metals | D56: ='Recycling and Reuse'!D57+Residual!$D$9*'Residual Comp'!R18 -> 
B57: =Lists!B12 -> Non-Ferrous Metals | D57: ='Recycling and Reuse'!D58+Residual!$D$9*'Residual Comp'!R19 -> 
B58: =Lists!B13 -> Plastics | D58: ='Recycling and Reuse'!D59+Residual!$D$9*'Residual Comp'!R20 -> 
B59: =Lists!B14 -> Textiles | D59: ='Recycling and Reuse'!D60+Residual!$D$9*'Residual Comp'!R21 -> 
B60: =Lists!B15 -> Wood | D60: ='Recycling and Reuse'!D61+Residual!$D$9*'Residual Comp'!R22 -> 
B61: =Lists!B16 -> WEEE | D61: ='Recycling and Reuse'!D62+Residual!$D$9*'Residual Comp'!R23 -> 
B62: =Lists!B17 -> Food waste | D62: ='Recycling and Reuse'!D63+Residual!$D$9*'Residual Comp'!R24 -> 
B63: =Lists!B18 -> Garden Waste | D63: ='Recycling and Reuse'!D64+Residual!$D$9*'Residual Comp'!R25 -> 
B64: =Lists!B19 -> Mixed Food and Garden Waste | D64: ='Recycling and Reuse'!D65+Residual!$D$9*'Residual Comp'!R26 -> 
B65: =Lists!B20 -> Material Recycled not classified (mineral oil etc.) | D65: ='Recycling and Reuse'!D66+Residual!$D$9*'Residual Comp'!R27 -> 
B66: Soil, Rubble, Plasterboard | D66: ='Recycling and Reuse'!D67+Residual!$D$9*'Residual Comp'!R28 -> 
B67: =Lists!B22 -> Other Materials | D67: ='Recycling and Reuse'!D69+Residual!$D$9*'Residual Comp'!R29 -> 
B68: Add Notes
B70: Total Wfh Arisings | D70: =SUM(D54:D67) ->  | F70: 0 | G70: 0 | H70: 0 | I70: 0 | J70: 0
B72: Organics | D72: =SUM(D62:D64) ->  | F72: 0 | G72: 0 | H72: 0 | I72: 0 | J72: 0
A74: ="@"&COUNTIF(A$1:A73,"@*")+1 -> @5 | B74: Other Waste not from Households (WnfH) (Streets, Grounds, Other) - Arisings (tonnes)
B75: Tonnage of waste arising in 'Other Waste not from Households', for instance from street sweepings and litter bin collections, grounds work etc
B76: This includes everything that is not classed as Waste from Households or as Commercial Waste.
N77: Change from Baseline, tonnes
D78: ='Explore Improvements'!D$17 -> Baseline | F78: =F$15 -> Name Scenario 1 | G78: =G$15 -> Name Scenario 2 | H78: =H$15 -> Name Scenario 3 | I78: =I$15 -> Name Scenario 4 | J78: =J$15 -> Name Scenario 5 | N78: =F78 -> Name Scenario 1 | O78: =G78 -> Name Scenario 2 | P78: =H78 -> Name Scenario 3 | Q78: =I78 -> Name Scenario 4 | R78: =J78 -> Name Scenario 5
B79: =Lists!H9 -> Paper / Card | D79: =Arisings!D31-Arisings!D54-'Commercial Waste'!D100 ->  | N79: =F79-$D79 ->  | O79: =G79-$D79 ->  | P79: =H79-$D79 ->  | Q79: =I79-$D79 ->  | R79: =J79-$D79 -> 
B80: =Lists!H10 -> Glass | D80: =Arisings!D32-Arisings!D55-'Commercial Waste'!D101 -> 
B81: =Lists!H11 -> Ferrous Metals | D81: =Arisings!D33-Arisings!D56-'Commercial Waste'!D102 -> 
B82: =Lists!H12 -> Non-Ferrous Metals | D82: =Arisings!D34-Arisings!D57-'Commercial Waste'!D103 -> 
B83: =Lists!H13 -> Plastics | D83: =Arisings!D35-Arisings!D58-'Commercial Waste'!D104 -> 
B84: =Lists!H14 -> Textiles | D84: =Arisings!D36-Arisings!D59-'Commercial Waste'!D105 -> 
B85: =Lists!H15 -> Wood | D85: =Arisings!D37-Arisings!D60-'Commercial Waste'!D106 -> 
B86: =Lists!H16 -> WEEE | D86: =Arisings!D38-Arisings!D61-'Commercial Waste'!D107 -> 
B87: =Lists!H17 -> Food waste | D87: =Arisings!D39-Arisings!D62-'Commercial Waste'!D108 -> 
B88: =Lists!H18 -> Garden Waste | D88: =Arisings!D40-Arisings!D63-'Commercial Waste'!D109 -> 
B89: =Lists!H19 -> Mixed Food and Garden Waste | D89: =Arisings!D41-Arisings!D64-'Commercial Waste'!D110 -> 
B90: =Lists!H20 -> Material Recycled not classified (mineral oil etc.) | D90: =Arisings!D42-Arisings!D65-'Commercial Waste'!D111 -> 
B91: Soil, Rubble, Plasterboard | D91: =Arisings!D43-Arisings!D66-'Commercial Waste'!D112 -> 
B92: =Lists!H22 -> Other Materials | D92: =Arisings!D44-Arisings!D67-'Commercial Waste'!D113 -> 
B94: Total Other WnfH Arisings | D94: =SUM(D79:D92) ->  | F94: =SUM(F79:F92) -> 0 | G94: =SUM(G79:G92) -> 0 | H94: =SUM(H79:H92) -> 0 | I94: =SUM(I79:I92) -> 0 | J94: =SUM(J79:J92) -> 0 | N94: =SUM(N79:N92) ->  | O94: =SUM(O79:O92) ->  | P94: =SUM(P79:P92) ->  | Q94: =SUM(Q79:Q92) ->  | R94: =SUM(R79:R92) -> 
B96: Organics | D96: =SUM(D87:D89) ->  | F96: =SUM(F87:F89) -> 0 | G96: =SUM(G87:G89) -> 0 | H96: =SUM(H87:H89) -> 0 | I96: =SUM(I87:I89) -> 0 | J96: =SUM(J87:J89) -> 0 | N96: =SUM(N87:N89) ->  | O96: =SUM(O87:O89) ->  | P96: =SUM(P87:P89) ->  | Q96: =SUM(Q87:Q89) ->  | R96: =SUM(R87:R89) -> 
A110: ="@"&COUNTIF(A$1:A109,"@*")+1 -> @6
A133: ="@"&COUNTIF(A$1:A132,"@*")+1 -> @7
A156: ="@"&COUNTIF(A$1:A155,"@*")+1 -> @8
A179: ="@"&COUNTIF(A$1:A178,"@*")+1 -> @9

Sheet Reuse
H3: =HYPERLINK("#'Explore Improvements'!B12","-> Return to Overview") -> -> Return to Overview
A11: ="@"&COUNTIF(A$1:A10,"@*")+1 -> @1 | B11: Tonnages Sent for Reuse
B12: Information only: Summed up from below tables | P12: Supporting Notes or Calculations
D13: ='Explore Improvements'!D$17 -> Baseline | F13: ='Explore Improvements'!E$18 -> Name Scenario 1 | G13: ='Explore Improvements'!F$18 -> Name Scenario 2 | H13: ='Explore Improvements'!G$18 -> Name Scenario 3 | I13: ='Explore Improvements'!H$18 -> Name Scenario 4 | J13: ='Explore Improvements'!I$18 -> Name Scenario 5
B14: LACW | D14: ='Final Recycled'!$D$21 -> 0 | F14: =F27 -> 0 | G14: =G27 -> 0 | H14: =H27 -> 0 | I14: =I27 -> 0 | J14: =J27 -> 0
B15: WfH | D15: =D14-SUM(D16:D17) -> 0 | F15: =F37 -> 0 | G15: =G37 -> 0 | H15: =H37 -> 0 | I15: =I37 -> 0 | J15: =J37 -> 0
B16: C&I | D16: ='Final Recycled'!$E$21 -> 0 | F16: =F47 -> 0 | G16: =G47 -> 0 | H16: =H47 -> 0 | I16: =I47 -> 0 | J16: =J47 -> 0
B17: Other | D17: ='Final Recycled'!$F$21 -> 0 | F17: =F57 -> 0 | G17: =G57 -> 0 | H17: =H57 -> 0 | I17: =I57 -> 0 | J17: =J57 -> 0
A19: ="@"&COUNTIF(A$1:A18,"@*")+1 -> @2 | B19: LACW Sent for Reuse
B20: Information only: Summed up from below tables
D21: ='Explore Improvements'!D$17 -> Baseline | F21: ='Explore Improvements'!E$18 -> Name Scenario 1 | G21: ='Explore Improvements'!F$18 -> Name Scenario 2 | H21: ='Explore Improvements'!G$18 -> Name Scenario 3 | I21: ='Explore Improvements'!H$18 -> Name Scenario 4 | J21: ='Explore Improvements'!I$18 -> Name Scenario 5
B22: =Lists!D9 -> Textiles | D22: ='Final Recycled'!$D13 -> 0 | F22: =F32+F42+F52 -> 0 | G22: 0 | H22: 0 | I22: 0 | J22: 0
B23: =Lists!D10 -> Furniture | D23: ='Final Recycled'!$D14 -> 0 | F23: 0 | G23: 0 | H23: 0 | I23: 0 | J23: 0
B24: =Lists!D11 -> WEEE | D24: ='Final Recycled'!$D15 -> 0 | F24: 0 | G24: 0 | H24: 0 | I24: 0 | J24: 0
B25: =Lists!D12 -> Rubble, Soil, Plasterboard | D25: ='Final Recycled'!$D16 -> 0 | F25: 0 | G25: 0 | H25: 0 | I25: 0 | J25: 0
B26: =Lists!D13 -> Other | D26: ='Final Recycled'!$D17 -> 0 | F26: 0 | G26: 0 | H26: 0 | I26: 0 | J26: 0
B27: Total | D27: =SUM(D22:D26) -> 0 | F27: =SUM(F22:F26) -> 0 | G27: =SUM(G22:G26) -> 0 | H27: =SUM(H22:H26) -> 0 | I27: =SUM(I22:I26) -> 0 | J27: =SUM(J22:J26) -> 0
A29: ="@"&COUNTIF(A$1:A28,"@*")+1 -> @3 | B29: WfH Collected for Reuse
B30: Tonnages of waste from households collected for reuse, including through kerbside schemes, at bring sites or HWRCs
D31: ='Explore Improvements'!D$17 -> Baseline | F31: ='Explore Improvements'!E$18 -> Name Scenario 1 | G31: ='Explore Improvements'!F$18 -> Name Scenario 2 | H31: ='Explore Improvements'!G$18 -> Name Scenario 3 | I31: ='Explore Improvements'!H$18 -> Name Scenario 4 | J31: ='Explore Improvements'!I$18 -> Name Scenario 5
B32: =Lists!D9 -> Textiles | D32: =D22-D42-D52 -> 0 | F32: 0 | G32: 0 | H32: 0 | I32: 0 | J32: 0
B33: =Lists!D10 -> Furniture | D33: =D23-D43-D53 -> 0 | F33: 0 | G33: 0 | H33: 0 | I33: 0 | J33: 0
B34: =Lists!D11 -> WEEE | D34: =D24-D44-D54 -> 0 | F34: 0 | G34: 0 | H34: 0 | I34: 0 | J34: 0
B35: =Lists!D12 -> Rubble, Soil, Plasterboard | D35: =D25-D45-D55 -> 0
B36: =Lists!D13 -> Other | D36: =D26-D46-D56 -> 0 | F36: 0 | G36: 0 | H36: 0 | I36: 0 | J36: 0
B37: Total | D37: =SUM(D32:D36) -> 0 | F37: =SUM(F32:F36) -> 0 | G37: =SUM(G32:G36) -> 0 | H37: =SUM(H32:H36) -> 0 | I37: =SUM(I32:I36) -> 0 | J37: =SUM(J32:J36) -> 0
A39: ="@"&COUNTIF(A$1:A38,"@*")+1 -> @4 | B39: C&I Collected for Reuse
B40: Tonnages of commercial waste collected for reuse
D41: ='Explore Improvements'!D$17 -> Baseline | F41: ='Explore Improvements'!E$18 -> Name Scenario 1 | G41: ='Explore Improvements'!F$18 -> Name Scenario 2 | H41: ='Explore Improvements'!G$18 -> Name Scenario 3 | I41: ='Explore Improvements'!H$18 -> Name Scenario 4 | J41: ='Explore Improvements'!I$18 -> Name Scenario 5
B42: =Lists!D9 -> Textiles | D42: ='Final Recycled'!$E13 -> 0 | F42: 0 | G42: 0 | H42: 0 | I42: 0 | J42: 0
B43: =Lists!D10 -> Furniture | D43: ='Final Recycled'!$E14 -> 0 | F43: 0 | G43: 0 | H43: 0 | I43: 0 | J43: 0
B44: =Lists!D11 -> WEEE | D44: ='Final Recycled'!$E15 -> 0 | F44: 0 | G44: 0 | H44: 0 | I44: 0 | J44: 0
B45: =Lists!D12 -> Rubble, Soil, Plasterboard | D45: ='Final Recycled'!$E16 -> 0 | F45: 0 | G45: 0 | H45: 0 | I45: 0 | J45: 0
B46: =Lists!D13 -> Other | D46: ='Final Recycled'!$E17 -> 0 | F46: 0 | G46: 0 | H46: 0 | I46: 0 | J46: 0
B47: Total | D47: =SUM(D42:D46) -> 0 | F47: =SUM(F42:F46) -> 0 | G47: =SUM(G42:G46) -> 0 | H47: =SUM(H42:H46) -> 0 | I47: =SUM(I42:I46) -> 0 | J47: =SUM(J42:J46) -> 0
A49: ="@"&COUNTIF(A$1:A48,"@*")+1 -> @5 | B49: Other non WfH Sent for Reuse
B50: Set tonnages of other waste collected for reuse, for instance reuse of rubble and soil collected at HWRCs
D51: ='Explore Improvements'!D$17 -> Baseline | F51: ='Explore Improvements'!E$18 -> Name Scenario 1 | G51: ='Explore Improvements'!F$18 -> Name Scenario 2 | H51: ='Explore Improvements'!G$18 -> Name Scenario 3 | I51: ='Explore Improvements'!H$18 -> Name Scenario 4 | J51: ='Explore Improvements'!I$18 -> Name Scenario 5
B52: =Lists!D9 -> Textiles | D52: ='Final Recycled'!$F13 -> 0
B53: =Lists!D10 -> Furniture | D53: ='Final Recycled'!$F14 -> 0
B54: =Lists!D11 -> WEEE | D54: ='Final Recycled'!$F15 -> 0
B55: =Lists!D12 -> Rubble, Soil, Plasterboard | D55: ='Final Recycled'!$F16 -> 0 | F55: 0 | G55: 0 | H55: 0 | I55: 0 | J55: 0
B56: =Lists!D13 -> Other | D56: ='Final Recycled'!$F17 -> 0 | F56: 0 | G56: 0 | H56: 0 | I56: 0 | J56: 0
B57: Total | D57: =SUM(D52:D56) -> 0 | F57: =SUM(F52:F56) -> 0 | G57: =SUM(G52:G56) -> 0 | H57: =SUM(H52:H56) -> 0 | I57: =SUM(I52:I56) -> 0 | J57: =SUM(J52:J56) -> 0
A60: ="@"&COUNTIF(A$1:A59,"@*")+1 -> @6 | B60: For Reference Only - Residual Composition
B61: Splits out reuse into standard EPS material categories
A64: ="@"&COUNTIF(A$1:A58,"@*")+1 -> @6 | B64: LAC Collected Reuse - For Residual Composition
B65: Reorganised into standard composition categories
D66: ='Explore Improvements'!D$17 -> Baseline | F66: ='Explore Improvements'!E$18 -> Name Scenario 1 | G66: ='Explore Improvements'!F$18 -> Name Scenario 2 | H66: ='Explore Improvements'!G$18 -> Name Scenario 3 | I66: ='Explore Improvements'!H$18 -> Name Scenario 4 | J66: ='Explore Improvements'!I$18 -> Name Scenario 5
B67: =Lists!B9 -> Paper / Card | D67: ='Final Recycled'!$D26 -> 0 | F67: =D67 -> 0 | G67: =F67 -> 0 | H67: =G67 -> 0 | I67: =H67 -> 0 | J67: =I67 -> 0
B68: =Lists!B10 -> Glass | D68: ='Final Recycled'!$D27 -> 0 | F68: =D68 -> 0 | G68: =F68 -> 0 | H68: 0 | I68: 0 | J68: =I68 -> 0
B69: =Lists!B11 -> Ferrous Metals | D69: ='Final Recycled'!$D28 -> 0 | F69: =D69 -> 0 | G69: 0 | H69: 0 | I69: 0 | J69: =I69 -> 0
B70: =Lists!B12 -> Non-Ferrous Metals | D70: ='Final Recycled'!$D29 -> 0 | F70: =D70 -> 0 | G70: 0 | H70: 0 | I70: 0 | J70: =I70 -> 0
B71: =Lists!B13 -> Plastics | D71: ='Final Recycled'!$D30 -> 0 | F71: =D71 -> 0 | G71: 0 | H71: 0 | I71: 0 | J71: =I71 -> 0
B72: =Lists!B14 -> Textiles | D72: ='Final Recycled'!$D31 -> 0 | F72: =$D72+F22-$D22 -> 0 | G72: =$D72+G22-$D22 -> 0 | H72: =$D72+H22-$D22 -> 0 | I72: =$D72+I22-$D22 -> 0 | J72: =$D72+J22-$D22 -> 0
B73: =Lists!B15 -> Wood | D73: ='Final Recycled'!$D32 -> 0 | F73: =D73 -> 0 | G73: =F73 -> 0 | H73: =G73 -> 0 | I73: =H73 -> 0 | J73: =I73 -> 0
B74: =Lists!B16 -> WEEE | D74: ='Final Recycled'!$D33 -> 0 | F74: =$D74+F24-$D24 -> 0 | G74: =$D74+G24-$D24 -> 0 | H74: =$D74+H24-$D24 -> 0 | I74: =$D74+I24-$D24 -> 0 | J74: =$D74+J24-$D24 -> 0
B75: =Lists!B17 -> Food waste | D75: ='Final Recycled'!$D34 -> 0 | F75: =D75 -> 0 | G75: =F75 -> 0 | H75: 0 | I75: 0 | J75: 0
B76: =Lists!B18 -> Garden Waste | D76: ='Final Recycled'!$D35 -> 0 | F76: =D76 -> 0 | G76: 0 | H76: 0 | I76: 0 | J76: 0
B77: =Lists!B19 -> Mixed Food and Garden Waste | D77: ='Final Recycled'!$D36 -> 0 | F77: =D77 -> 0 | G77: 0 | H77: 0 | I77: 0 | J77: 0
B78: =Lists!B20 -> Material Recycled not classified (mineral oil etc.) | D78: ='Final Recycled'!$D37 -> 0 | F78: =$D78+F23+F26-$D23-$D26 -> 0 | G78: =$D78+G23+G26-$D23-$D26 -> 0 | H78: =$D78+H23+H26-$D23-$D26 -> 0 | I78: =$D78+I23+I26-$D23-$D26 -> 0 | J78: =$D78+J23+J26-$D23-$D26 -> 0
B79: =Lists!B21 -> Rubble, Soil, Plasterboard | D79: ='Final Recycled'!$D38 -> 0 | F79: =$D79+F25-$D25 -> 0 | G79: =$D79+G25-$D25 -> 0 | H79: =$D79+H25-$D25 -> 0 | I79: =$D79+I25-$D25 -> 0 | J79: =$D79+J25-$D25 -> 0
B81: Rejected Material
B83: Total | D83: =SUM(D67:D79) -> 0 | F83: =SUM(F67:F79) -> 0 | G83: =SUM(G67:G79) -> 0 | H83: =SUM(H67:H79) -> 0 | I83: =SUM(I67:I79) -> 0 | J83: =SUM(J67:J79) -> 0
A85: ="@"&COUNTIF(A$1:A84,"@*")+1 -> @8 | B85: WfH Collected Reuse - For Residual Composition
D87: ='Explore Improvements'!D$17 -> Baseline | F87: ='Explore Improvements'!E$18 -> Name Scenario 1 | G87: ='Explore Improvements'!F$18 -> Name Scenario 2 | H87: ='Explore Improvements'!G$18 -> Name Scenario 3 | I87: ='Explore Improvements'!H$18 -> Name Scenario 4 | J87: ='Explore Improvements'!I$18 -> Name Scenario 5
B88: =Lists!B9 -> Paper / Card | D88: =D67-SUM(D109,D130) -> 0 | F88: =D88 -> 0 | G88: =F88 -> 0 | H88: 0 | I88: 0 | J88: 0
B89: =Lists!B10 -> Glass | D89: 0 | F89: =D89 -> 0 | G89: 0 | H89: 0 | I89: 0 | J89: 0
B90: =Lists!B11 -> Ferrous Metals | D90: 0 | F90: =D90 -> 0 | G90: 0 | H90: 0 | I90: 0 | J90: 0
B91: =Lists!B12 -> Non-Ferrous Metals | D91: 0 | F91: =D91 -> 0 | G91: 0 | H91: 0 | I91: 0 | J91: 0
B92: =Lists!B13 -> Plastics | D92: 0 | F92: =D92 -> 0 | G92: 0 | H92: 0 | I92: 0 | J92: 0
B93: =Lists!B14 -> Textiles | D93: 0 | F93: =$D93+F32-$D32 -> 0 | G93: =$D93+G32-$D32 -> 0 | H93: =$D93+H32-$D32 -> 0 | I93: =$D93+I32-$D32 -> 0 | J93: =$D93+J32-$D32 -> 0
B94: =Lists!B15 -> Wood | D94: 0 | F94: =D94 -> 0 | G94: =F94 -> 0 | H94: =G94 -> 0 | I94: =H94 -> 0 | J94: =I94 -> 0
B95: =Lists!B16 -> WEEE | D95: 0 | F95: =$D95+F34-$D34 -> 0 | G95: =$D95+G34-$D34 -> 0 | H95: =$D95+H34-$D34 -> 0 | I95: =$D95+I34-$D34 -> 0 | J95: =$D95+J34-$D34 -> 0
B96: =Lists!B17 -> Food waste | D96: 0 | F96: =D96 -> 0 | G96: =F96 -> 0 | H96: 0 | I96: 0 | J96: 0
B97: =Lists!B18 -> Garden Waste | D97: 0 | F97: =D97 -> 0 | G97: 0 | H97: 0 | I97: 0 | J97: 0
B98: =Lists!B19 -> Mixed Food and Garden Waste | D98: 0 | F98: =D98 -> 0 | G98: 0 | H98: 0 | I98: 0 | J98: 0
B99: =Lists!B20 -> Material Recycled not classified (mineral oil etc.) | D99: 0 | F99: =$D99+F33+F35+F36-$D33-$D35-$D36 -> 0 | G99: =$D99+G33+G35+G36-$D33-$D35-$D36 -> 0 | H99: =$D99+H33+H35+H36-$D33-$D35-$D36 -> 0 | I99: =$D99+I33+I35+I36-$D33-$D35-$D36 -> 0 | J99: =$D99+J33+J35+J36-$D33-$D35-$D36 -> 0
B100: =Lists!B21 -> Rubble, Soil, Plasterboard | D100: 0 | F100: =$D100+F35-$D35 -> 0 | G100: =$D100+G35-$D35 -> 0 | H100: =$D100+H35-$D35 -> 0 | I100: =$D100+I35-$D35 -> 0 | J100: =$D100+J35-$D35 -> 0
B102: Rejected Material
B104: Total | D104: =SUM(D88:D101) -> 0 | F104: =SUM(F88:F101) -> 0 | G104: =SUM(G88:G101) -> 0 | H104: =SUM(H88:H101) -> 0 | I104: =SUM(I88:I101) -> 0 | J104: =SUM(J88:J101) -> 0
A106: ="@"&COUNTIF(A$1:A105,"@*")+1 -> @9 | B106: C&I Collected Reuse - For Residual Composition
D108: ='Explore Improvements'!D$17 -> Baseline | F108: ='Explore Improvements'!E$18 -> Name Scenario 1 | G108: ='Explore Improvements'!F$18 -> Name Scenario 2 | H108: ='Explore Improvements'!G$18 -> Name Scenario 3 | I108: ='Explore Improvements'!H$18 -> Name Scenario 4 | J108: ='Explore Improvements'!I$18 -> Name Scenario 5
B109: =Lists!B9 -> Paper / Card | D109: ='Final Recycled'!$E26 -> 0 | F109: =D109 -> 0 | G109: =F109 -> 0 | H109: 0 | I109: 0 | J109: 0
B110: =Lists!B10 -> Glass | D110: ='Final Recycled'!$E27 -> 0 | F110: =D110 -> 0 | G110: 0 | H110: 0 | I110: 0 | J110: 0
B111: =Lists!B11 -> Ferrous Metals | D111: ='Final Recycled'!$E28 -> 0 | F111: =D111 -> 0 | G111: 0 | H111: 0 | I111: 0 | J111: 0
B112: =Lists!B12 -> Non-Ferrous Metals | D112: ='Final Recycled'!$E29 -> 0 | F112: =D112 -> 0 | G112: 0 | H112: 0 | I112: 0 | J112: 0
B113: =Lists!B13 -> Plastics | D113: ='Final Recycled'!$E30 -> 0 | F113: =D113 -> 0 | G113: 0 | H113: 0 | I113: 0 | J113: 0
B114: =Lists!B14 -> Textiles | D114: ='Final Recycled'!$E31 -> 0 | F114: =$D114+F42-$D42 -> 0 | G114: =$D114+G42-$D42 -> 0 | H114: =$D114+H42-$D42 -> 0 | I114: =$D114+I42-$D42 -> 0 | J114: =$D114+J42-$D42 -> 0
B115: =Lists!B15 -> Wood | D115: ='Final Recycled'!$E32 -> 0 | F115: =D115 -> 0 | G115: =F115 -> 0 | H115: =G115 -> 0 | I115: =H115 -> 0 | J115: =I115 -> 0
B116: =Lists!B16 -> WEEE | D116: ='Final Recycled'!$E33 -> 0 | F116: =$D116+F44-$D44 -> 0 | G116: =$D116+G44-$D44 -> 0 | H116: =$D116+H44-$D44 -> 0 | I116: =$D116+I44-$D44 -> 0 | J116: =$D116+J44-$D44 -> 0
B117: =Lists!B17 -> Food waste | D117: ='Final Recycled'!$E34 -> 0 | F117: =D117 -> 0 | G117: =F117 -> 0 | H117: 0 | I117: 0 | J117: 0
B118: =Lists!B18 -> Garden Waste | D118: ='Final Recycled'!$E35 -> 0 | F118: =D118 -> 0 | G118: 0 | H118: 0 | I118: 0 | J118: 0
B119: =Lists!B19 -> Mixed Food and Garden Waste | D119: ='Final Recycled'!$E36 -> 0 | F119: =D119 -> 0 | G119: 0 | H119: 0 | I119: 0 | J119: 0
B120: =Lists!B20 -> Material Recycled not classified (mineral oil etc.) | D120: ='Final Recycled'!$E37 -> 0 | F120: =$D120+F43+F45+F46-$D43-$D45-$D46 -> 0 | G120: =$D120+G43+G45+G46-$D43-$D45-$D46 -> 0 | H120: =$D120+H43+H45+H46-$D43-$D45-$D46 -> 0 | I120: =$D120+I43+I45+I46-$D43-$D45-$D46 -> 0 | J120: =$D120+J43+J45+J46-$D43-$D45-$D46 -> 0
B121: =Lists!B21 -> Rubble, Soil, Plasterboard | D121: ='Final Recycled'!$E38 -> 0 | F121: =$D121+F45-$D45 -> 0 | G121: =$D121+G45-$D45 -> 0 | H121: =$D121+H45-$D45 -> 0 | I121: =$D121+I45-$D45 -> 0 | J121: =$D121+J45-$D45 -> 0
B123: Rejected Material
B125: Total | D125: =SUM(D109:D122) -> 0 | F125: =SUM(F109:F122) -> 0 | G125: =SUM(G109:G122) -> 0 | H125: =SUM(H109:H122) -> 0 | I125: =SUM(I109:I122) -> 0 | J125: =SUM(J109:J122) -> 0
A127: ="@"&COUNTIF(A$1:A126,"@*")+1 -> @10 | B127: Other non-WfH Collected Reuse - For Residual Composition
D129: ='Explore Improvements'!D$17 -> Baseline | F129: ='Explore Improvements'!E$18 -> Name Scenario 1 | G129: ='Explore Improvements'!F$18 -> Name Scenario 2 | H129: ='Explore Improvements'!G$18 -> Name Scenario 3 | I129: ='Explore Improvements'!H$18 -> Name Scenario 4 | J129: ='Explore Improvements'!I$18 -> Name Scenario 5
B130: =Lists!B9 -> Paper / Card | D130: ='Final Recycled'!$F26 -> 0 | F130: =F67-F88-F109 -> 0 | G130: 0 | H130: 0 | I130: 0 | J130: 0
B131: =Lists!B10 -> Glass | D131: ='Final Recycled'!$F27 -> 0 | F131: 0 | G131: 0 | H131: 0 | I131: 0 | J131: 0
B132: =Lists!B11 -> Ferrous Metals | D132: ='Final Recycled'!$F28 -> 0 | F132: 0 | G132: 0 | H132: 0 | I132: 0 | J132: 0
B133: =Lists!B12 -> Non-Ferrous Metals | D133: ='Final Recycled'!$F29 -> 0 | F133: 0 | G133: 0 | H133: 0 | I133: 0 | J133: 0
B134: =Lists!B13 -> Plastics | D134: ='Final Recycled'!$F30 -> 0 | F134: 0 | G134: 0 | H134: 0 | I134: 0 | J134: 0
B135: =Lists!B14 -> Textiles | D135: ='Final Recycled'!$F31 -> 0 | F135: 0 | G135: 0 | H135: 0 | I135: 0 | J135: 0
B136: =Lists!B15 -> Wood | D136: ='Final Recycled'!$F32 -> 0 | F136: 0 | G136: 0 | H136: 0 | I136: 0 | J136: 0
B137: =Lists!B16 -> WEEE | D137: ='Final Recycled'!$F33 -> 0 | F137: 0 | G137: 0 | H137: 0 | I137: 0 | J137: 0
B138: =Lists!B17 -> Food waste | D138: ='Final Recycled'!$F34 -> 0 | F138: 0 | G138: 0 | H138: 0 | I138: 0 | J138: 0
B139: =Lists!B18 -> Garden Waste | D139: ='Final Recycled'!$F35 -> 0 | F139: 0 | G139: 0 | H139: 0 | I139: 0 | J139: 0
B140: =Lists!B19 -> Mixed Food and Garden Waste | D140: ='Final Recycled'!$F36 -> 0 | F140: 0 | G140: 0 | H140: 0 | I140: 0 | J140: 0
B141: =Lists!B20 -> Material Recycled not classified (mineral oil etc.) | D141: ='Final Recycled'!$F37 -> 0 | F141: 0 | G141: 0 | H141: 0 | I141: 0 | J141: 0
B142: =Lists!B21 -> Rubble, Soil, Plasterboard | D142: ='Final Recycled'!$F38 -> 0 | F142: 0 | G142: 0 | H142: 0 | I142: 0 | J142: 0
B144: Rejected Material
B146: Total | D146: =SUM(D130:D143) -> 0 | F146: =SUM(F130:F143) -> 0 | G146: =SUM(G130:G143) -> 0 | H146: =SUM(H130:H143) -> 0 | I146: =SUM(I130:I143) -> 0 | J146: =SUM(J130:J143) -> 0

Sheet Household Recycling
J3: =HYPERLINK("#'Explore Improvements'!B12","-> Return to Overview") -> -> Return to Overview
A11: ="@"&COUNTIF(A$1:A10,"@*")+1 -> @1 | B11: WfH Recycling | N11: WfH Capture Rates
B12: Target year tonnages for recycled material (reuse is additional) | AA12: Supporting Notes or Calculations
F15: Modelled Increase in Tonnage (Summed from Below Tables) | N15: Modelled Capture Rate
D16: ='Explore Improvements'!D$17 -> Baseline | F16: ='Explore Improvements'!E$18 -> Name Scenario 1 | G16: ='Explore Improvements'!F$18 -> Name Scenario 2 | H16: ='Explore Improvements'!G$18 -> Name Scenario 3 | I16: ='Explore Improvements'!H$18 -> Name Scenario 4 | J16: ='Explore Improvements'!I$18 -> Name Scenario 5 | N16: ='Explore Improvements'!E$18 -> Name Scenario 1 | O16: ='Explore Improvements'!F$18 -> Name Scenario 2 | P16: ='Explore Improvements'!G$18 -> Name Scenario 3 | Q16: ='Explore Improvements'!H$18 -> Name Scenario 4 | R16: ='Explore Improvements'!I$18 -> Name Scenario 5
B17: =Lists!B9 -> Paper / Card | D17: =Recycling!D43 -> 0 | F17: =SUM(N46, N76, N106, N136, N166) -> 0 | G17: =SUM(O46, O76, O106, O136, O166) -> 0 | H17: =SUM(P46, P76, P106, P136, P166) -> 0 | I17: =SUM(Q46, Q76, Q106, Q136, Q166) -> 0 | J17: =SUM(R46, R76, R106, R136, R166) -> 0 | N17: =IF(Arisings!F54>0,($D17+F17)/Arisings!F54,0) -> 0 | O17: =IF(Arisings!G54>0,($D17+G17)/Arisings!G54,0) -> 0 | P17: =IF(Arisings!H54>0,($D17+H17)/Arisings!H54,0) -> 0 | Q17: =IF(Arisings!I54>0,($D17+I17)/Arisings!I54,0) -> 0 | R17: =IF(Arisings!J54>0,($D17+J17)/Arisings!J54,0) -> 0
B18: =Lists!B10 -> Glass | D18: =Recycling!D44 -> 0 | F18: 0 | G18: 0 | H18: 0 | I18: 0 | J18: 0 | N18: =IF(Arisings!F55>0,($D18+F18)/Arisings!F55,0) -> 0 | O18: =IF(Arisings!G55>0,($D18+G18)/Arisings!G55,0) -> 0 | P18: =IF(Arisings!H55>0,($D18+H18)/Arisings!H55,0) -> 0 | Q18: =IF(Arisings!I55>0,($D18+I18)/Arisings!I55,0) -> 0 | R18: =IF(Arisings!J55>0,($D18+J18)/Arisings!J55,0) -> 0
B19: =Lists!B11 -> Ferrous Metals | D19: =Recycling!D45 -> 0 | F19: 0 | G19: 0 | H19: 0 | I19: 0 | J19: 0 | N19: =IF(Arisings!F56>0,($D19+F19)/Arisings!F56,0) -> 0 | O19: =IF(Arisings!G56>0,($D19+G19)/Arisings!G56,0) -> 0 | P19: =IF(Arisings!H56>0,($D19+H19)/Arisings!H56,0) -> 0 | Q19: =IF(Arisings!I56>0,($D19+I19)/Arisings!I56,0) -> 0 | R19: =IF(Arisings!J56>0,($D19+J19)/Arisings!J56,0) -> 0
B20: =Lists!B12 -> Non-Ferrous Metals | D20: =Recycling!D46 -> 0 | F20: 0 | G20: 0 | H20: 0 | I20: 0 | J20: 0 | N20: =IF(Arisings!F57>0,($D20+F20)/Arisings!F57,0) -> 0 | O20: =IF(Arisings!G57>0,($D20+G20)/Arisings!G57,0) -> 0 | P20: =IF(Arisings!H57>0,($D20+H20)/Arisings!H57,0) -> 0 | Q20: =IF(Arisings!I57>0,($D20+I20)/Arisings!I57,0) -> 0 | R20: =IF(Arisings!J57>0,($D20+J20)/Arisings!J57,0) -> 0
B21: =Lists!B13 -> Plastics | D21: =Recycling!D47 -> 0 | F21: 0 | G21: 0 | H21: 0 | I21: 0 | J21: 0 | N21: =IF(Arisings!F58>0,($D21+F21)/Arisings!F58,0) -> 0 | O21: =IF(Arisings!G58>0,($D21+G21)/Arisings!G58,0) -> 0 | P21: =IF(Arisings!H58>0,($D21+H21)/Arisings!H58,0) -> 0 | Q21: =IF(Arisings!I58>0,($D21+I21)/Arisings!I58,0) -> 0 | R21: =IF(Arisings!J58>0,($D21+J21)/Arisings!J58,0) -> 0
B22: =Lists!B14 -> Textiles | D22: =Recycling!D48 -> 0 | F22: 0 | G22: 0 | H22: 0 | I22: 0 | J22: 0 | N22: =IF(Arisings!F59>0,($D22+F22)/Arisings!F59,0) -> 0 | O22: =IF(Arisings!G59>0,($D22+G22)/Arisings!G59,0) -> 0 | P22: =IF(Arisings!H59>0,($D22+H22)/Arisings!H59,0) -> 0 | Q22: =IF(Arisings!I59>0,($D22+I22)/Arisings!I59,0) -> 0 | R22: =IF(Arisings!J59>0,($D22+J22)/Arisings!J59,0) -> 0
B23: =Lists!B15 -> Wood | D23: =Recycling!D49 -> 0 | F23: 0 | G23: 0 | H23: 0 | I23: 0 | J23: 0 | N23: =IF(Arisings!F60>0,($D23+F23)/Arisings!F60,0) -> 0 | O23: =IF(Arisings!G60>0,($D23+G23)/Arisings!G60,0) -> 0 | P23: =IF(Arisings!H60>0,($D23+H23)/Arisings!H60,0) -> 0 | Q23: =IF(Arisings!I60>0,($D23+I23)/Arisings!I60,0) -> 0 | R23: =IF(Arisings!J60>0,($D23+J23)/Arisings!J60,0) -> 0
B24: =Lists!B16 -> WEEE | D24: =Recycling!D50 -> 0 | F24: 0 | G24: 0 | H24: 0 | I24: 0 | J24: 0 | N24: =IF(Arisings!F61>0,($D24+F24)/Arisings!F61,0) -> 0 | O24: =IF(Arisings!G61>0,($D24+G24)/Arisings!G61,0) -> 0 | P24: =IF(Arisings!H61>0,($D24+H24)/Arisings!H61,0) -> 0 | Q24: =IF(Arisings!I61>0,($D24+I24)/Arisings!I61,0) -> 0 | R24: =IF(Arisings!J61>0,($D24+J24)/Arisings!J61,0) -> 0
B25: =Lists!B17 -> Food waste | D25: =Recycling!D51 -> 0 | F25: 0 | G25: 0 | H25: 0 | I25: 0 | J25: 0 | N25: =IF(Arisings!F62>0,($D25+F25)/Arisings!F62,0) -> 0 | O25: =IF(Arisings!G62>0,($D25+G25)/Arisings!G62,0) -> 0 | P25: =IF(Arisings!H62>0,($D25+H25)/Arisings!H62,0) -> 0 | Q25: =IF(Arisings!I62>0,($D25+I25)/Arisings!I62,0) -> 0 | R25: =IF(Arisings!J62>0,($D25+J25)/Arisings!J62,0) -> 0
B26: =Lists!B18 -> Garden Waste | D26: =Recycling!D52 -> 0 | F26: 0 | G26: 0 | H26: 0 | I26: 0 | J26: 0 | N26: =IF(Arisings!F63>0,($D26+F26)/Arisings!F63,0) -> 0 | O26: =IF(Arisings!G63>0,($D26+G26)/Arisings!G63,0) -> 0 | P26: =IF(Arisings!H63>0,($D26+H26)/Arisings!H63,0) -> 0 | Q26: =IF(Arisings!I63>0,($D26+I26)/Arisings!I63,0) -> 0 | R26: =IF(Arisings!J63>0,($D26+J26)/Arisings!J63,0) -> 0
B27: =Lists!B19 -> Mixed Food and Garden Waste | D27: =Recycling!D53 -> 0 | F27: 0 | G27: 0 | H27: 0 | I27: 0 | J27: 0 | N27: =IF(Arisings!F64>0,($D27+F27)/Arisings!F64,0) -> 0 | O27: =IF(Arisings!G64>0,($D27+G27)/Arisings!G64,0) -> 0 | P27: =IF(Arisings!H64>0,($D27+H27)/Arisings!H64,0) -> 0 | Q27: =IF(Arisings!I64>0,($D27+I27)/Arisings!I64,0) -> 0 | R27: =IF(Arisings!J64>0,($D27+J27)/Arisings!J64,0) -> 0
B28: =Lists!B20 -> Material Recycled not classified (mineral oil etc.) | D28: =Recycling!D54 -> 0 | F28: 0 | G28: 0 | H28: 0 | I28: 0 | J28: 0 | N28: =IF(Arisings!F65>0,($D28+F28)/Arisings!F65,0) -> 0 | O28: =IF(Arisings!G65>0,($D28+G28)/Arisings!G65,0) -> 0 | P28: =IF(Arisings!H65>0,($D28+H28)/Arisings!H65,0) -> 0 | Q28: =IF(Arisings!I65>0,($D28+I28)/Arisings!I65,0) -> 0 | R28: =IF(Arisings!J65>0,($D28+J28)/Arisings!J65,0) -> 0
B29: =Lists!B21 -> Rubble, Soil, Plasterboard | D29: =Recycling!D55 -> 0 | F29: 0 | G29: 0 | H29: 0 | I29: 0 | J29: 0 | N29: =IF(Arisings!F66>0,($D29+F29)/Arisings!F66,0) -> 0 | O29: =IF(Arisings!G66>0,($D29+G29)/Arisings!G66,0) -> 0 | P29: =IF(Arisings!H66>0,($D29+H29)/Arisings!H66,0) -> 0 | Q29: =IF(Arisings!I66>0,($D29+I29)/Arisings!I66,0) -> 0 | R29: =IF(Arisings!J66>0,($D29+J29)/Arisings!J66,0) -> 0
B30: =Lists!B22 -> Other Materials
B32: All Food/Garden | D32: =Recycling!D65 -> 0 | F32: =SUM(F25:F27) -> 0 | G32: =SUM(G25:G27) -> 0 | H32: =SUM(H25:H27) -> 0 | I32: =SUM(I25:I27) -> 0 | J32: =SUM(J25:J27) -> 0
B34: WfH Recycling | D34: =SUM(Recycling!D43:D55) -> 0 | F34: =SUM(F17:F30) -> 0 | G34: =SUM(G17:G30) -> 0 | H34: =SUM(H17:H30) -> 0 | I34: =SUM(I17:I30) -> 0 | J34: =SUM(J17:J30) -> 0
B36: WfH Recycling Rate | D36: =SUM(Recycling!D43:D55)/Arisings!D23 ->  | F36: =SUM(Recycling!F43:F55)/Arisings!F23 ->  | G36: =SUM(Recycling!G43:G55)/Arisings!G23 ->  | H36: =SUM(Recycling!H43:H55)/Arisings!H23 ->  | I36: =SUM(Recycling!I43:I55)/Arisings!I23 ->  | J36: =SUM(Recycling!J43:J55)/Arisings!J23 -> 
B38: Service Changes Modelled to Calculate Increase in Recycling Tonnages
A40: ="@"&COUNTIF(A$1:A39,"@*")+1 -> @2 | B40: Increase in Yields from Service Change 1 | N40: Change in Tonnage
B42: Change in: | C42: kg/hh/yr
B43: If Change in kg/hh/yr, Percentage of Households Change Applies to | C43: 1
F44: ="Change from Baseline, " & C42 -> Change from Baseline, kg/hh/yr | N44: Change from Baseline, tonnes | T44: Change from Baseline, tonnes
D45: ='Explore Improvements'!D$17 & IF($C$42=Lists!$K$48, " Average", "") -> Baseline Average | F45: ='Explore Improvements'!E$18 -> Name Scenario 1 | G45: ='Explore Improvements'!F$18 -> Name Scenario 2 | H45: ='Explore Improvements'!G$18 -> Name Scenario 3 | I45: ='Explore Improvements'!H$18 -> Name Scenario 4 | J45: ='Explore Improvements'!I$18 -> Name Scenario 5 | N45: ='Explore Improvements'!E$18 -> Name Scenario 1 | O45: ='Explore Improvements'!F$18 -> Name Scenario 2 | P45: ='Explore Improvements'!G$18 -> Name Scenario 3 | Q45: ='Explore Improvements'!H$18 -> Name Scenario 4 | R45: ='Explore Improvements'!I$18 -> Name Scenario 5 | T45: =F45 -> Name Scenario 1 | U45: =G45 -> Name Scenario 2 | V45: =H45 -> Name Scenario 3 | W45: =I45 -> Name Scenario 4 | X45: =J45 -> Name Scenario 5
B46: =Lists!B9 -> Paper / Card | D46: =IF($C$42=Lists!$K$48,D17 * 1000/'Start Here'!$C$34, D17) ->  | N46: =IF($C$42=Lists!$K$48, F46* $C$43 * Arisings!F$16 / 1000, F46) -> 0 | O46: =IF($C$42=Lists!$K$48, G46* $C$43 * Arisings!G$16 / 1000, G46) -> 0 | P46: =IF($C$42=Lists!$K$48, H46* $C$43 * Arisings!H$16 / 1000, H46) -> 0 | Q46: =IF($C$42=Lists!$K$48, I46* $C$43 * Arisings!I$16 / 1000, I46) -> 0 | R46: =IF($C$42=Lists!$K$48, J46* $C$43 * Arisings!J$16 / 1000, J46) -> 0 | T46: =F61*'Co-mingled Comp'!$Q$17 -> 0 | U46: =G61*'Co-mingled Comp'!$Q$17 -> 0 | V46: =H61*'Co-mingled Comp'!$Q$17 -> 0 | W46: =I61*'Co-mingled Comp'!$Q$17 -> 0 | X46: =J61*'Co-mingled Comp'!$Q$17 -> 0
B47: =Lists!B10 -> Glass | D47: =IF($C$42=Lists!$K$48,D18 * 1000/'Start Here'!$C$34, D18) ->  | N47: =IF($C$42=Lists!$K$48, F47* $C$43 * Arisings!F$16 / 1000, F47) -> 0 | O47: =IF($C$42=Lists!$K$48, G47* $C$43 * Arisings!G$16 / 1000, G47) -> 0 | P47: =IF($C$42=Lists!$K$48, H47* $C$43 * Arisings!H$16 / 1000, H47) -> 0 | Q47: =IF($C$42=Lists!$K$48, I47* $C$43 * Arisings!I$16 / 1000, I47) -> 0 | R47: =IF($C$42=Lists!$K$48, J47* $C$43 * Arisings!J$16 / 1000, J47) -> 0 | T47: =F61*'Co-mingled Comp'!$Q$18 -> 0 | U47: =G61*'Co-mingled Comp'!$Q$18 -> 0 | V47: =H61*'Co-mingled Comp'!$Q$18 -> 0 | W47: =I61*'Co-mingled Comp'!$Q$18 -> 0 | X47: =J61*'Co-mingled Comp'!$Q$18 -> 0
B48: =Lists!B11 -> Ferrous Metals | D48: =IF($C$42=Lists!$K$48,D19 * 1000/'Start Here'!$C$34, D19) ->  | N48: =IF($C$42=Lists!$K$48, F48* $C$43 * Arisings!F$16 / 1000, F48) -> 0 | O48: =IF($C$42=Lists!$K$48, G48* $C$43 * Arisings!G$16 / 1000, G48) -> 0 | P48: =IF($C$42=Lists!$K$48, H48* $C$43 * Arisings!H$16 / 1000, H48) -> 0 | Q48: =IF($C$42=Lists!$K$48, I48* $C$43 * Arisings!I$16 / 1000, I48) -> 0 | R48: =IF($C$42=Lists!$K$48, J48* $C$43 * Arisings!J$16 / 1000, J48) -> 0 | T48: =F61*'Co-mingled Comp'!$Q$19 -> 0 | U48: =G61*'Co-mingled Comp'!$Q$19 -> 0 | V48: =H61*'Co-mingled Comp'!$Q$19 -> 0 | W48: =I61*'Co-mingled Comp'!$Q$19 -> 0 | X48: =J61*'Co-mingled Comp'!$Q$19 -> 0
B49: =Lists!B12 -> Non-Ferrous Metals | D49: =IF($C$42=Lists!$K$48,D20 * 1000/'Start Here'!$C$34, D20) ->  | N49: =IF($C$42=Lists!$K$48, F49* $C$43 * Arisings!F$16 / 1000, F49) -> 0 | O49: =IF($C$42=Lists!$K$48, G49* $C$43 * Arisings!G$16 / 1000, G49) -> 0 | P49: =IF($C$42=Lists!$K$48, H49* $C$43 * Arisings!H$16 / 1000, H49) -> 0 | Q49: =IF($C$42=Lists!$K$48, I49* $C$43 * Arisings!I$16 / 1000, I49) -> 0 | R49: =IF($C$42=Lists!$K$48, J49* $C$43 * Arisings!J$16 / 1000, J49) -> 0 | T49: =F61*'Co-mingled Comp'!$Q$20 -> 0 | U49: =G61*'Co-mingled Comp'!$Q$20 -> 0 | V49: =H61*'Co-mingled Comp'!$Q$20 -> 0 | W49: =I61*'Co-mingled Comp'!$Q$20 -> 0 | X49: =J61*'Co-mingled Comp'!$Q$20 -> 0
B50: =Lists!B13 -> Plastics | D50: =IF($C$42=Lists!$K$48,D21 * 1000/'Start Here'!$C$34, D21) ->  | N50: =IF($C$42=Lists!$K$48, F50* $C$43 * Arisings!F$16 / 1000, F50) -> 0 | O50: =IF($C$42=Lists!$K$48, G50* $C$43 * Arisings!G$16 / 1000, G50) -> 0 | P50: =IF($C$42=Lists!$K$48, H50* $C$43 * Arisings!H$16 / 1000, H50) -> 0 | Q50: =IF($C$42=Lists!$K$48, I50* $C$43 * Arisings!I$16 / 1000, I50) -> 0 | R50: =IF($C$42=Lists!$K$48, J50* $C$43 * Arisings!J$16 / 1000, J50) -> 0 | T50: =F61*'Co-mingled Comp'!$Q$21 -> 0 | U50: =G61*'Co-mingled Comp'!$Q$21 -> 0 | V50: =H61*'Co-mingled Comp'!$Q$21 -> 0 | W50: =I61*'Co-mingled Comp'!$Q$21 -> 0 | X50: =J61*'Co-mingled Comp'!$Q$21 -> 0
B51: =Lists!B14 -> Textiles | D51: =IF($C$42=Lists!$K$48,D22 * 1000/'Start Here'!$C$34, D22) ->  | N51: =IF($C$42=Lists!$K$48, F51* $C$43 * Arisings!F$16 / 1000, F51) -> 0 | O51: =IF($C$42=Lists!$K$48, G51* $C$43 * Arisings!G$16 / 1000, G51) -> 0 | P51: =IF($C$42=Lists!$K$48, H51* $C$43 * Arisings!H$16 / 1000, H51) -> 0 | Q51: =IF($C$42=Lists!$K$48, I51* $C$43 * Arisings!I$16 / 1000, I51) -> 0 | R51: =IF($C$42=Lists!$K$48, J51* $C$43 * Arisings!J$16 / 1000, J51) -> 0
B52: =Lists!B15 -> Wood | D52: =IF($C$42=Lists!$K$48,D23 * 1000/'Start Here'!$C$34, D23) ->  | N52: =IF($C$42=Lists!$K$48, F52* $C$43 * Arisings!F$16 / 1000, F52) -> 0 | O52: =IF($C$42=Lists!$K$48, G52* $C$43 * Arisings!G$16 / 1000, G52) -> 0 | P52: =IF($C$42=Lists!$K$48, H52* $C$43 * Arisings!H$16 / 1000, H52) -> 0 | Q52: =IF($C$42=Lists!$K$48, I52* $C$43 * Arisings!I$16 / 1000, I52) -> 0 | R52: =IF($C$42=Lists!$K$48, J52* $C$43 * Arisings!J$16 / 1000, J52) -> 0
B53: =Lists!B16 -> WEEE | D53: =IF($C$42=Lists!$K$48,D24 * 1000/'Start Here'!$C$34, D24) ->  | N53: =IF($C$42=Lists!$K$48, F53* $C$43 * Arisings!F$16 / 1000, F53) -> 0 | O53: =IF($C$42=Lists!$K$48, G53* $C$43 * Arisings!G$16 / 1000, G53) -> 0 | P53: =IF($C$42=Lists!$K$48, H53* $C$43 * Arisings!H$16 / 1000, H53) -> 0 | Q53: =IF($C$42=Lists!$K$48, I53* $C$43 * Arisings!I$16 / 1000, I53) -> 0 | R53: =IF($C$42=Lists!$K$48, J53* $C$43 * Arisings!J$16 / 1000, J53) -> 0
B54: =Lists!B17 -> Food waste | D54: =IF($C$42=Lists!$K$48,D25 * 1000/'Start Here'!$C$34, D25) ->  | N54: =IF($C$42=Lists!$K$48, F54* $C$43 * Arisings!F$16 / 1000, F54) -> 0 | O54: =IF($C$42=Lists!$K$48, G54* $C$43 * Arisings!G$16 / 1000, G54) -> 0 | P54: =IF($C$42=Lists!$K$48, H54* $C$43 * Arisings!H$16 / 1000, H54) -> 0 | Q54: =IF($C$42=Lists!$K$48, I54* $C$43 * Arisings!I$16 / 1000, I54) -> 0 | R54: =IF($C$42=Lists!$K$48, J54* $C$43 * Arisings!J$16 / 1000, J54) -> 0
B55: =Lists!B18 -> Garden Waste | D55: =IF($C$42=Lists!$K$48,D26 * 1000/'Start Here'!$C$34, D26) ->  | N55: =IF($C$42=Lists!$K$48, F55* $C$43 * Arisings!F$16 / 1000, F55) -> 0 | O55: =IF($C$42=Lists!$K$48, G55* $C$43 * Arisings!G$16 / 1000, G55) -> 0 | P55: =IF($C$42=Lists!$K$48, H55* $C$43 * Arisings!H$16 / 1000, H55) -> 0 | Q55: =IF($C$42=Lists!$K$48, I55* $C$43 * Arisings!I$16 / 1000, I55) -> 0 | R55: =IF($C$42=Lists!$K$48, J55* $C$43 * Arisings!J$16 / 1000, J55) -> 0
B56: =Lists!B19 -> Mixed Food and Garden Waste | D56: =IF($C$42=Lists!$K$48,D27 * 1000/'Start Here'!$C$34, D27) ->  | N56: =IF($C$42=Lists!$K$48, F56* $C$43 * Arisings!F$16 / 1000, F56) -> 0 | O56: =IF($C$42=Lists!$K$48, G56* $C$43 * Arisings!G$16 / 1000, G56) -> 0 | P56: =IF($C$42=Lists!$K$48, H56* $C$43 * Arisings!H$16 / 1000, H56) -> 0 | Q56: =IF($C$42=Lists!$K$48, I56* $C$43 * Arisings!I$16 / 1000, I56) -> 0 | R56: =IF($C$42=Lists!$K$48, J56* $C$43 * Arisings!J$16 / 1000, J56) -> 0
B57: =Lists!B20 -> Material Recycled not classified (mineral oil etc.) | D57: =IF($C$42=Lists!$K$48,D28 * 1000/'Start Here'!$C$34, D28) ->  | N57: =IF($C$42=Lists!$K$48, F57* $C$43 * Arisings!F$16 / 1000, F57) -> 0 | O57: =IF($C$42=Lists!$K$48, G57* $C$43 * Arisings!G$16 / 1000, G57) -> 0 | P57: =IF($C$42=Lists!$K$48, H57* $C$43 * Arisings!H$16 / 1000, H57) -> 0 | Q57: =IF($C$42=Lists!$K$48, I57* $C$43 * Arisings!I$16 / 1000, I57) -> 0 | R57: =IF($C$42=Lists!$K$48, J57* $C$43 * Arisings!J$16 / 1000, J57) -> 0
B58: =Lists!B21 -> Rubble, Soil, Plasterboard | D58: =IF($C$42=Lists!$K$48,D29 * 1000/'Start Here'!$C$34, D29) ->  | N58: =IF($C$42=Lists!$K$48, F58* $C$43 * Arisings!F$16 / 1000, F58) -> 0 | O58: =IF($C$42=Lists!$K$48, G58* $C$43 * Arisings!G$16 / 1000, G58) -> 0 | P58: =IF($C$42=Lists!$K$48, H58* $C$43 * Arisings!H$16 / 1000, H58) -> 0 | Q58: =IF($C$42=Lists!$K$48, I58* $C$43 * Arisings!I$16 / 1000, I58) -> 0 | R58: =IF($C$42=Lists!$K$48, J58* $C$43 * Arisings!J$16 / 1000, J58) -> 0
B59: Add Notes
B61: Comingled Dry Recycling | D61: =IF($C$42=Lists!$K$48, SUM(Collections!$V$65:$X$65) * 1000/'Start Here'!$C$34, SUM(Collections!$V$65:$X$65) ) -> 
B65: All Food/Garden | D65: =IF($C$42=Lists!$K$48,D32 * 1000/'Start Here'!$C$34, D32) ->  | F65: =SUM(F54:F56) -> 0 | G65: =SUM(G54:G56) -> 0 | H65: =SUM(H54:H56) -> 0 | I65: =SUM(I54:I56) -> 0 | J65: =SUM(J54:J56) -> 0 | N65: =SUM(N54:N56) -> 0 | O65: =SUM(O54:O56) -> 0 | P65: =SUM(P54:P56) -> 0 | Q65: =SUM(Q54:Q56) -> 0 | R65: =SUM(R54:R56) -> 0
B67: WfH Recycling | D67: =SUM(D46:D58) ->  | F67: =SUM(F46:F58) -> 0 | G67: =SUM(G46:G58) -> 0 | H67: =SUM(H46:H58) -> 0 | I67: =SUM(I46:I58) -> 0 | J67: =SUM(J46:J58) -> 0 | N67: =SUM(N46:N59) -> 0 | O67: =SUM(O46:O59) -> 0 | P67: =SUM(P46:P59) -> 0 | Q67: =SUM(Q46:Q59) -> 0 | R67: =SUM(R46:R59) -> 0
A70: ="@"&COUNTIF(A$1:A69,"@*")+1 -> @3 | B70: Increase in Yields from Service Change 2 | N70: Change in Tonnage
B72: Change in: | C72: Tonnage
B73: If Change in kg/hh/yr, Percentage of Households Change Applies to | C73: 0
F74: ="Change from Baseline, " & C72 -> Change from Baseline, Tonnage | N74: Change from Baseline, tonnes | T74: Change from Baseline, tonnes
D75: ='Explore Improvements'!D$17 & IF($C$42=Lists!$K$48, " Average", "") -> Baseline Average | F75: ='Explore Improvements'!E$18 -> Name Scenario 1 | G75: ='Explore Improvements'!F$18 -> Name Scenario 2 | H75: ='Explore Improvements'!G$18 -> Name Scenario 3 | I75: ='Explore Improvements'!H$18 -> Name Scenario 4 | J75: ='Explore Improvements'!I$18 -> Name Scenario 5 | N75: ='Explore Improvements'!E$18 -> Name Scenario 1 | O75: ='Explore Improvements'!F$18 -> Name Scenario 2 | P75: ='Explore Improvements'!G$18 -> Name Scenario 3 | Q75: ='Explore Improvements'!H$18 -> Name Scenario 4 | R75: ='Explore Improvements'!I$18 -> Name Scenario 5 | T75: =F75 -> Name Scenario 1 | U75: =G75 -> Name Scenario 2 | V75: =H75 -> Name Scenario 3 | W75: =I75 -> Name Scenario 4 | X75: =J75 -> Name Scenario 5
B76: =Lists!B9 -> Paper / Card | D76: =IF($C$72=Lists!$K$48,D17 * 1000/'Start Here'!$C$34, D17) -> 0 | N76: =IF($C$72=Lists!$K$48, F76* $C$73 * Arisings!F$16 / 1000, F76) -> 0 | O76: =IF($C$72=Lists!$K$48, G76* $C$73 * Arisings!G$16 / 1000, G76) -> 0 | P76: =IF($C$72=Lists!$K$48, H76* $C$73 * Arisings!H$16 / 1000, H76) -> 0 | Q76: =IF($C$72=Lists!$K$48, I76* $C$73 * Arisings!I$16 / 1000, I76) -> 0 | R76: =IF($C$72=Lists!$K$48, J76* $C$73 * Arisings!J$16 / 1000, J76) -> 0 | T76: =F91*'Co-mingled Comp'!$Q$17 -> 0 | U76: =G91*'Co-mingled Comp'!$Q$17 -> 0 | V76: =H91*'Co-mingled Comp'!$Q$17 -> 0 | W76: =I91*'Co-mingled Comp'!$Q$17 -> 0 | X76: =J91*'Co-mingled Comp'!$Q$17 -> 0
B77: =Lists!B10 -> Glass | D77: =IF($C$72=Lists!$K$48,D18 * 1000/'Start Here'!$C$34, D18) -> 0 | N77: =IF($C$72=Lists!$K$48, F77* $C$73 * Arisings!F$16 / 1000, F77) -> 0 | O77: =IF($C$72=Lists!$K$48, G77* $C$73 * Arisings!G$16 / 1000, G77) -> 0 | P77: =IF($C$72=Lists!$K$48, H77* $C$73 * Arisings!H$16 / 1000, H77) -> 0 | Q77: =IF($C$72=Lists!$K$48, I77* $C$73 * Arisings!I$16 / 1000, I77) -> 0 | R77: =IF($C$72=Lists!$K$48, J77* $C$73 * Arisings!J$16 / 1000, J77) -> 0 | T77: =F91*'Co-mingled Comp'!$Q$18 -> 0 | U77: =G91*'Co-mingled Comp'!$Q$18 -> 0 | V77: =H91*'Co-mingled Comp'!$Q$18 -> 0 | W77: =I91*'Co-mingled Comp'!$Q$18 -> 0 | X77: =J91*'Co-mingled Comp'!$Q$18 -> 0
B78: =Lists!B11 -> Ferrous Metals | D78: =IF($C$72=Lists!$K$48,D19 * 1000/'Start Here'!$C$34, D19) -> 0 | N78: =IF($C$72=Lists!$K$48, F78* $C$73 * Arisings!F$16 / 1000, F78) -> 0 | O78: =IF($C$72=Lists!$K$48, G78* $C$73 * Arisings!G$16 / 1000, G78) -> 0 | P78: =IF($C$72=Lists!$K$48, H78* $C$73 * Arisings!H$16 / 1000, H78) -> 0 | Q78: =IF($C$72=Lists!$K$48, I78* $C$73 * Arisings!I$16 / 1000, I78) -> 0 | R78: =IF($C$72=Lists!$K$48, J78* $C$73 * Arisings!J$16 / 1000, J78) -> 0 | T78: =F91*'Co-mingled Comp'!$Q$19 -> 0 | U78: =G91*'Co-mingled Comp'!$Q$19 -> 0 | V78: =H91*'Co-mingled Comp'!$Q$19 -> 0 | W78: =I91*'Co-mingled Comp'!$Q$19 -> 0 | X78: =J91*'Co-mingled Comp'!$Q$19 -> 0
B79: =Lists!B12 -> Non-Ferrous Metals | D79: =IF($C$72=Lists!$K$48,D20 * 1000/'Start Here'!$C$34, D20) -> 0 | N79: =IF($C$72=Lists!$K$48, F79* $C$73 * Arisings!F$16 / 1000, F79) -> 0 | O79: =IF($C$72=Lists!$K$48, G79* $C$73 * Arisings!G$16 / 1000, G79) -> 0 | P79: =IF($C$72=Lists!$K$48, H79* $C$73 * Arisings!H$16 / 1000, H79) -> 0 | Q79: =IF($C$72=Lists!$K$48, I79* $C$73 * Arisings!I$16 / 1000, I79) -> 0 | R79: =IF($C$72=Lists!$K$48, J79* $C$73 * Arisings!J$16 / 1000, J79) -> 0 | T79: =F91*'Co-mingled Comp'!$Q$20 -> 0 | U79: =G91*'Co-mingled Comp'!$Q$20 -> 0 | V79: =H91*'Co-mingled Comp'!$Q$20 -> 0 | W79: =I91*'Co-mingled Comp'!$Q$20 -> 0 | X79: =J91*'Co-mingled Comp'!$Q$20 -> 0
B80: =Lists!B13 -> Plastics | D80: =IF($C$72=Lists!$K$48,D21 * 1000/'Start Here'!$C$34, D21) -> 0 | N80: =IF($C$72=Lists!$K$48, F80* $C$73 * Arisings!F$16 / 1000, F80) -> 0 | O80: =IF($C$72=Lists!$K$48, G80* $C$73 * Arisings!G$16 / 1000, G80) -> 0 | P80: =IF($C$72=Lists!$K$48, H80* $C$73 * Arisings!H$16 / 1000, H80) -> 0 | Q80: =IF($C$72=Lists!$K$48, I80* $C$73 * Arisings!I$16 / 1000, I80) -> 0 | R80: =IF($C$72=Lists!$K$48, J80* $C$73 * Arisings!J$16 / 1000, J80) -> 0 | T80: =F91*'Co-mingled Comp'!$Q$21 -> 0 | U80: =G91*'Co-mingled Comp'!$Q$21 -> 0 | V80: =H91*'Co-mingled Comp'!$Q$21 -> 0 | W80: =I91*'Co-mingled Comp'!$Q$21 -> 0 | X80: =J91*'Co-mingled Comp'!$Q$21 -> 0
B81: =Lists!B14 -> Textiles | D81: =IF($C$72=Lists!$K$48,D22 * 1000/'Start Here'!$C$34, D22) -> 0 | N81: =IF($C$72=Lists!$K$48, F81* $C$73 * Arisings!F$16 / 1000, F81) -> 0 | O81: =IF($C$72=Lists!$K$48, G81* $C$73 * Arisings!G$16 / 1000, G81) -> 0 | P81: =IF($C$72=Lists!$K$48, H81* $C$73 * Arisings!H$16 / 1000, H81) -> 0 | Q81: =IF($C$72=Lists!$K$48, I81* $C$73 * Arisings!I$16 / 1000, I81) -> 0 | R81: =IF($C$72=Lists!$K$48, J81* $C$73 * Arisings!J$16 / 1000, J81) -> 0
B82: =Lists!B15 -> Wood | D82: =IF($C$72=Lists!$K$48,D23 * 1000/'Start Here'!$C$34, D23) -> 0 | N82: =IF($C$72=Lists!$K$48, F82* $C$73 * Arisings!F$16 / 1000, F82) -> 0 | O82: =IF($C$72=Lists!$K$48, G82* $C$73 * Arisings!G$16 / 1000, G82) -> 0 | P82: =IF($C$72=Lists!$K$48, H82* $C$73 * Arisings!H$16 / 1000, H82) -> 0 | Q82: =IF($C$72=Lists!$K$48, I82* $C$73 * Arisings!I$16 / 1000, I82) -> 0 | R82: =IF($C$72=Lists!$K$48, J82* $C$73 * Arisings!J$16 / 1000, J82) -> 0
B83: =Lists!B16 -> WEEE | D83: =IF($C$72=Lists!$K$48,D24 * 1000/'Start Here'!$C$34, D24) -> 0 | N83: =IF($C$72=Lists!$K$48, F83* $C$73 * Arisings!F$16 / 1000, F83) -> 0 | O83: =IF($C$72=Lists!$K$48, G83* $C$73 * Arisings!G$16 / 1000, G83) -> 0 | P83: =IF($C$72=Lists!$K$48, H83* $C$73 * Arisings!H$16 / 1000, H83) -> 0 | Q83: =IF($C$72=Lists!$K$48, I83* $C$73 * Arisings!I$16 / 1000, I83) -> 0 | R83: =IF($C$72=Lists!$K$48, J83* $C$73 * Arisings!J$16 / 1000, J83) -> 0
B84: =Lists!B17 -> Food waste | D84: =IF($C$72=Lists!$K$48,D25 * 1000/'Start Here'!$C$34, D25) -> 0 | N84: =IF($C$72=Lists!$K$48, F84* $C$73 * Arisings!F$16 / 1000, F84) -> 0 | O84: =IF($C$72=Lists!$K$48, G84* $C$73 * Arisings!G$16 / 1000, G84) -> 0 | P84: =IF($C$72=Lists!$K$48, H84* $C$73 * Arisings!H$16 / 1000, H84) -> 0 | Q84: =IF($C$72=Lists!$K$48, I84* $C$73 * Arisings!I$16 / 1000, I84) -> 0 | R84: =IF($C$72=Lists!$K$48, J84* $C$73 * Arisings!J$16 / 1000, J84) -> 0
B85: =Lists!B18 -> Garden Waste | D85: =IF($C$72=Lists!$K$48,D26 * 1000/'Start Here'!$C$34, D26) -> 0 | N85: =IF($C$72=Lists!$K$48, F85* $C$73 * Arisings!F$16 / 1000, F85) -> 0 | O85: =IF($C$72=Lists!$K$48, G85* $C$73 * Arisings!G$16 / 1000, G85) -> 0 | P85: =IF($C$72=Lists!$K$48, H85* $C$73 * Arisings!H$16 / 1000, H85) -> 0 | Q85: =IF($C$72=Lists!$K$48, I85* $C$73 * Arisings!I$16 / 1000, I85) -> 0 | R85: =IF($C$72=Lists!$K$48, J85* $C$73 * Arisings!J$16 / 1000, J85) -> 0
B86: =Lists!B19 -> Mixed Food and Garden Waste | D86: =IF($C$72=Lists!$K$48,D27 * 1000/'Start Here'!$C$34, D27) -> 0 | N86: =IF($C$72=Lists!$K$48, F86* $C$73 * Arisings!F$16 / 1000, F86) -> 0 | O86: =IF($C$72=Lists!$K$48, G86* $C$73 * Arisings!G$16 / 1000, G86) -> 0 | P86: =IF($C$72=Lists!$K$48, H86* $C$73 * Arisings!H$16 / 1000, H86) -> 0 | Q86: =IF($C$72=Lists!$K$48, I86* $C$73 * Arisings!I$16 / 1000, I86) -> 0 | R86: =IF($C$72=Lists!$K$48, J86* $C$73 * Arisings!J$16 / 1000, J86) -> 0
B87: =Lists!B20 -> Material Recycled not classified (mineral oil etc.) | D87: =IF($C$72=Lists!$K$48,D28 * 1000/'Start Here'!$C$34, D28) -> 0 | N87: =IF($C$72=Lists!$K$48, F87* $C$73 * Arisings!F$16 / 1000, F87) -> 0 | O87: =IF($C$72=Lists!$K$48, G87* $C$73 * Arisings!G$16 / 1000, G87) -> 0 | P87: =IF($C$72=Lists!$K$48, H87* $C$73 * Arisings!H$16 / 1000, H87) -> 0 | Q87: =IF($C$72=Lists!$K$48, I87* $C$73 * Arisings!I$16 / 1000, I87) -> 0 | R87: =IF($C$72=Lists!$K$48, J87* $C$73 * Arisings!J$16 / 1000, J87) -> 0
B88: =Lists!B21 -> Rubble, Soil, Plasterboard | D88: =IF($C$72=Lists!$K$48,D29 * 1000/'Start Here'!$C$34, D29) -> 0 | N88: =IF($C$72=Lists!$K$48, F88* $C$73 * Arisings!F$16 / 1000, F88) -> 0 | O88: =IF($C$72=Lists!$K$48, G88* $C$73 * Arisings!G$16 / 1000, G88) -> 0 | P88: =IF($C$72=Lists!$K$48, H88* $C$73 * Arisings!H$16 / 1000, H88) -> 0 | Q88: =IF($C$72=Lists!$K$48, I88* $C$73 * Arisings!I$16 / 1000, I88) -> 0 | R88: =IF($C$72=Lists!$K$48, J88* $C$73 * Arisings!J$16 / 1000, J88) -> 0
B89: Add notes:
B91: Comingled Dry Recycling | D91: =IF($C$72=Lists!$K$48, SUM(Collections!$V$65:$X$65) * 1000/'Start Here'!$C$34, SUM(Collections!$V$65:$X$65) ) -> 0
B95: All Food/Garden | D95: =IF($C$72=Lists!$K$48,D32 * 1000/'Start Here'!$C$34, D32) -> 0 | F95: =SUM(F84:F86) -> 0 | G95: =SUM(G84:G86) -> 0 | H95: =SUM(H84:H86) -> 0 | I95: =SUM(I84:I86) -> 0 | J95: =SUM(J84:J86) -> 0 | N95: =SUM(N84:N86) -> 0 | O95: =SUM(O84:O86) -> 0 | P95: =SUM(P84:P86) -> 0 | Q95: =SUM(Q84:Q86) -> 0 | R95: =SUM(R84:R86) -> 0
B97: WfH Recycling | D97: =SUM(D76:D88) -> 0 | F97: =SUM(F76:F88) -> 0 | G97: =SUM(G76:G88) -> 0 | H97: =SUM(H76:H88) -> 0 | I97: =SUM(I76:I88) -> 0 | J97: =SUM(J76:J88) -> 0 | N97: =SUM(N76:N89) -> 0 | O97: =SUM(O76:O89) -> 0 | P97: =SUM(P76:P89) -> 0 | Q97: =SUM(Q76:Q89) -> 0 | R97: =SUM(R76:R89) -> 0
A100: ="@"&COUNTIF(A$1:A99,"@*")+1 -> @4 | B100: Increase in Yields from Service Change 3 | N100: Change in Tonnage
B102: Change in: | C102: kg/hh/yr
B103: If Change in kg/hh/yr, Percentage of Households Change Applies to | C103: 0.8
F104: ="Change from Baseline, " & C102 -> Change from Baseline, kg/hh/yr | N104: Change from Baseline, tonnes | T104: Change from Baseline, tonnes
D105: ='Explore Improvements'!D$17 & IF($C$42=Lists!$K$48, " Average", "") -> Baseline Average | F105: ='Explore Improvements'!E$18 -> Name Scenario 1 | G105: ='Explore Improvements'!F$18 -> Name Scenario 2 | H105: ='Explore Improvements'!G$18 -> Name Scenario 3 | I105: ='Explore Improvements'!H$18 -> Name Scenario 4 | J105: ='Explore Improvements'!I$18 -> Name Scenario 5 | N105: ='Explore Improvements'!E$18 -> Name Scenario 1 | O105: ='Explore Improvements'!F$18 -> Name Scenario 2 | P105: ='Explore Improvements'!G$18 -> Name Scenario 3 | Q105: ='Explore Improvements'!H$18 -> Name Scenario 4 | R105: ='Explore Improvements'!I$18 -> Name Scenario 5 | T105: =F105 -> Name Scenario 1 | U105: =G105 -> Name Scenario 2 | V105: =H105 -> Name Scenario 3 | W105: =I105 -> Name Scenario 4 | X105: =J105 -> Name Scenario 5
B106: =Lists!B9 -> Paper / Card | D106: =IF($C$102=Lists!$K$48,D17 * 1000/'Start Here'!$C$34, D17) ->  | N106: =IF($C$102=Lists!$K$48, F106* $C$103 * Arisings!F$16 / 1000, F106) -> 0 | O106: =IF($C$102=Lists!$K$48, G106* $C$103 * Arisings!G$16 / 1000, G106) -> 0 | P106: =IF($C$102=Lists!$K$48, H106* $C$103 * Arisings!H$16 / 1000, H106) -> 0 | Q106: =IF($C$102=Lists!$K$48, I106* $C$103 * Arisings!I$16 / 1000, I106) -> 0 | R106: =IF($C$102=Lists!$K$48, J106* $C$103 * Arisings!J$16 / 1000, J106) -> 0 | T106: =F121*'Co-mingled Comp'!$Q$17 -> 0 | U106: =G121*'Co-mingled Comp'!$Q$17 -> 0 | V106: =H121*'Co-mingled Comp'!$Q$17 -> 0 | W106: =I121*'Co-mingled Comp'!$Q$17 -> 0 | X106: =J121*'Co-mingled Comp'!$Q$17 -> 0
B107: =Lists!B10 -> Glass | D107: =IF($C$102=Lists!$K$48,D18 * 1000/'Start Here'!$C$34, D18) ->  | N107: =IF($C$102=Lists!$K$48, F107* $C$103 * Arisings!F$16 / 1000, F107) -> 0 | O107: =IF($C$102=Lists!$K$48, G107* $C$103 * Arisings!G$16 / 1000, G107) -> 0 | P107: =IF($C$102=Lists!$K$48, H107* $C$103 * Arisings!H$16 / 1000, H107) -> 0 | Q107: =IF($C$102=Lists!$K$48, I107* $C$103 * Arisings!I$16 / 1000, I107) -> 0 | R107: =IF($C$102=Lists!$K$48, J107* $C$103 * Arisings!J$16 / 1000, J107) -> 0 | T107: =F121*'Co-mingled Comp'!$Q$18 -> 0 | U107: =G121*'Co-mingled Comp'!$Q$18 -> 0 | V107: =H121*'Co-mingled Comp'!$Q$18 -> 0 | W107: =I121*'Co-mingled Comp'!$Q$18 -> 0 | X107: =J121*'Co-mingled Comp'!$Q$18 -> 0
B108: =Lists!B11 -> Ferrous Metals | D108: =IF($C$102=Lists!$K$48,D19 * 1000/'Start Here'!$C$34, D19) ->  | N108: =IF($C$102=Lists!$K$48, F108* $C$103 * Arisings!F$16 / 1000, F108) -> 0 | O108: =IF($C$102=Lists!$K$48, G108* $C$103 * Arisings!G$16 / 1000, G108) -> 0 | P108: =IF($C$102=Lists!$K$48, H108* $C$103 * Arisings!H$16 / 1000, H108) -> 0 | Q108: =IF($C$102=Lists!$K$48, I108* $C$103 * Arisings!I$16 / 1000, I108) -> 0 | R108: =IF($C$102=Lists!$K$48, J108* $C$103 * Arisings!J$16 / 1000, J108) -> 0 | T108: =F121*'Co-mingled Comp'!$Q$19 -> 0 | U108: =G121*'Co-mingled Comp'!$Q$19 -> 0 | V108: =H121*'Co-mingled Comp'!$Q$19 -> 0 | W108: =I121*'Co-mingled Comp'!$Q$19 -> 0 | X108: =J121*'Co-mingled Comp'!$Q$19 -> 0
B109: =Lists!B12 -> Non-Ferrous Metals | D109: =IF($C$102=Lists!$K$48,D20 * 1000/'Start Here'!$C$34, D20) ->  | N109: =IF($C$102=Lists!$K$48, F109* $C$103 * Arisings!F$16 / 1000, F109) -> 0 | O109: =IF($C$102=Lists!$K$48, G109* $C$103 * Arisings!G$16 / 1000, G109) -> 0 | P109: =IF($C$102=Lists!$K$48, H109* $C$103 * Arisings!H$16 / 1000, H109) -> 0 | Q109: =IF($C$102=Lists!$K$48, I109* $C$103 * Arisings!I$16 / 1000, I109) -> 0 | R109: =IF($C$102=Lists!$K$48, J109* $C$103 * Arisings!J$16 / 1000, J109) -> 0 | T109: =F121*'Co-mingled Comp'!$Q$20 -> 0 | U109: =G121*'Co-mingled Comp'!$Q$20 -> 0 | V109: =H121*'Co-mingled Comp'!$Q$20 -> 0 | W109: =I121*'Co-mingled Comp'!$Q$20 -> 0 | X109: =J121*'Co-mingled Comp'!$Q$20 -> 0
B110: =Lists!B13 -> Plastics | D110: =IF($C$102=Lists!$K$48,D21 * 1000/'Start Here'!$C$34, D21) ->  | N110: =IF($C$102=Lists!$K$48, F110* $C$103 * Arisings!F$16 / 1000, F110) -> 0 | O110: =IF($C$102=Lists!$K$48, G110* $C$103 * Arisings!G$16 / 1000, G110) -> 0 | P110: =IF($C$102=Lists!$K$48, H110* $C$103 * Arisings!H$16 / 1000, H110) -> 0 | Q110: =IF($C$102=Lists!$K$48, I110* $C$103 * Arisings!I$16 / 1000, I110) -> 0 | R110: =IF($C$102=Lists!$K$48, J110* $C$103 * Arisings!J$16 / 1000, J110) -> 0 | T110: =F121*'Co-mingled Comp'!$Q$21 -> 0 | U110: =G121*'Co-mingled Comp'!$Q$21 -> 0 | V110: =H121*'Co-mingled Comp'!$Q$21 -> 0 | W110: =I121*'Co-mingled Comp'!$Q$21 -> 0 | X110: =J121*'Co-mingled Comp'!$Q$21 -> 0
B111: =Lists!B14 -> Textiles | D111: =IF($C$102=Lists!$K$48,D22 * 1000/'Start Here'!$C$34, D22) ->  | N111: =IF($C$102=Lists!$K$48, F111* $C$103 * Arisings!F$16 / 1000, F111) -> 0 | O111: =IF($C$102=Lists!$K$48, G111* $C$103 * Arisings!G$16 / 1000, G111) -> 0 | P111: =IF($C$102=Lists!$K$48, H111* $C$103 * Arisings!H$16 / 1000, H111) -> 0 | Q111: =IF($C$102=Lists!$K$48, I111* $C$103 * Arisings!I$16 / 1000, I111) -> 0 | R111: =IF($C$102=Lists!$K$48, J111* $C$103 * Arisings!J$16 / 1000, J111) -> 0
B112: =Lists!B15 -> Wood | D112: =IF($C$102=Lists!$K$48,D23 * 1000/'Start Here'!$C$34, D23) ->  | N112: =IF($C$102=Lists!$K$48, F112* $C$103 * Arisings!F$16 / 1000, F112) -> 0 | O112: =IF($C$102=Lists!$K$48, G112* $C$103 * Arisings!G$16 / 1000, G112) -> 0 | P112: =IF($C$102=Lists!$K$48, H112* $C$103 * Arisings!H$16 / 1000, H112) -> 0 | Q112: =IF($C$102=Lists!$K$48, I112* $C$103 * Arisings!I$16 / 1000, I112) -> 0 | R112: =IF($C$102=Lists!$K$48, J112* $C$103 * Arisings!J$16 / 1000, J112) -> 0
B113: =Lists!B16 -> WEEE | D113: =IF($C$102=Lists!$K$48,D24 * 1000/'Start Here'!$C$34, D24) ->  | N113: =IF($C$102=Lists!$K$48, F113* $C$103 * Arisings!F$16 / 1000, F113) -> 0 | O113: =IF($C$102=Lists!$K$48, G113* $C$103 * Arisings!G$16 / 1000, G113) -> 0 | P113: =IF($C$102=Lists!$K$48, H113* $C$103 * Arisings!H$16 / 1000, H113) -> 0 | Q113: =IF($C$102=Lists!$K$48, I113* $C$103 * Arisings!I$16 / 1000, I113) -> 0 | R113: =IF($C$102=Lists!$K$48, J113* $C$103 * Arisings!J$16 / 1000, J113) -> 0
B114: =Lists!B17 -> Food waste | D114: =IF($C$102=Lists!$K$48,D25 * 1000/'Start Here'!$C$34, D25) ->  | N114: =IF($C$102=Lists!$K$48, F114* $C$103 * Arisings!F$16 / 1000, F114) -> 0 | O114: =IF($C$102=Lists!$K$48, G114* $C$103 * Arisings!G$16 / 1000, G114) -> 0 | P114: =IF($C$102=Lists!$K$48, H114* $C$103 * Arisings!H$16 / 1000, H114) -> 0 | Q114: =IF($C$102=Lists!$K$48, I114* $C$103 * Arisings!I$16 / 1000, I114) -> 0 | R114: =IF($C$102=Lists!$K$48, J114* $C$103 * Arisings!J$16 / 1000, J114) -> 0
B115: =Lists!B18 -> Garden Waste | D115: =IF($C$102=Lists!$K$48,D26 * 1000/'Start Here'!$C$34, D26) ->  | N115: =IF($C$102=Lists!$K$48, F115* $C$103 * Arisings!F$16 / 1000, F115) -> 0 | O115: =IF($C$102=Lists!$K$48, G115* $C$103 * Arisings!G$16 / 1000, G115) -> 0 | P115: =IF($C$102=Lists!$K$48, H115* $C$103 * Arisings!H$16 / 1000, H115) -> 0 | Q115: =IF($C$102=Lists!$K$48, I115* $C$103 * Arisings!I$16 / 1000, I115) -> 0 | R115: =IF($C$102=Lists!$K$48, J115* $C$103 * Arisings!J$16 / 1000, J115) -> 0
B116: =Lists!B19 -> Mixed Food and Garden Waste | D116: =IF($C$102=Lists!$K$48,D27 * 1000/'Start Here'!$C$34, D27) ->  | N116: =IF($C$102=Lists!$K$48, F116* $C$103 * Arisings!F$16 / 1000, F116) -> 0 | O116: =IF($C$102=Lists!$K$48, G116* $C$103 * Arisings!G$16 / 1000, G116) -> 0 | P116: =IF($C$102=Lists!$K$48, H116* $C$103 * Arisings!H$16 / 1000, H116) -> 0 | Q116: =IF($C$102=Lists!$K$48, I116* $C$103 * Arisings!I$16 / 1000, I116) -> 0 | R116: =IF($C$102=Lists!$K$48, J116* $C$103 * Arisings!J$16 / 1000, J116) -> 0
B117: =Lists!B20 -> Material Recycled not classified (mineral oil etc.) | D117: =IF($C$102=Lists!$K$48,D28 * 1000/'Start Here'!$C$34, D28) ->  | N117: =IF($C$102=Lists!$K$48, F117* $C$103 * Arisings!F$16 / 1000, F117) -> 0 | O117: =IF($C$102=Lists!$K$48, G117* $C$103 * Arisings!G$16 / 1000, G117) -> 0 | P117: =IF($C$102=Lists!$K$48, H117* $C$103 * Arisings!H$16 / 1000, H117) -> 0 | Q117: =IF($C$102=Lists!$K$48, I117* $C$103 * Arisings!I$16 / 1000, I117) -> 0 | R117: =IF($C$102=Lists!$K$48, J117* $C$103 * Arisings!J$16 / 1000, J117) -> 0
B118: =Lists!B21 -> Rubble, Soil, Plasterboard | D118: =IF($C$102=Lists!$K$48,D29 * 1000/'Start Here'!$C$34, D29) ->  | N118: =IF($C$102=Lists!$K$48, F118* $C$103 * Arisings!F$16 / 1000, F118) -> 0 | O118: =IF($C$102=Lists!$K$48, G118* $C$103 * Arisings!G$16 / 1000, G118) -> 0 | P118: =IF($C$102=Lists!$K$48, H118* $C$103 * Arisings!H$16 / 1000, H118) -> 0 | Q118: =IF($C$102=Lists!$K$48, I118* $C$103 * Arisings!I$16 / 1000, I118) -> 0 | R118: =IF($C$102=Lists!$K$48, J118* $C$103 * Arisings!J$16 / 1000, J118) -> 0
B119: Add notes:
B121: Comingled Dry Recycling | D121: =IF($C$102=Lists!$K$48, SUM(Collections!$V$65:$X$65) * 1000/'Start Here'!$C$34, SUM(Collections!$V$65:$X$65) ) -> 
B125: All Food/Garden | D125: =IF($C$102=Lists!$K$48,D32 * 1000/'Start Here'!$C$34, D32) ->  | F125: =SUM(F114:F116) -> 0 | G125: =SUM(G114:G116) -> 0 | H125: =SUM(H114:H116) -> 0 | I125: =SUM(I114:I116) -> 0 | J125: =SUM(J114:J116) -> 0 | N125: =SUM(N114:N116) -> 0 | O125: =SUM(O114:O116) -> 0 | P125: =SUM(P114:P116) -> 0 | Q125: =SUM(Q114:Q116) -> 0 | R125: =SUM(R114:R116) -> 0
B127: WfH Recycling | D127: =SUM(D106:D118) ->  | F127: =SUM(F106:F118) -> 0 | G127: =SUM(G106:G118) -> 0 | H127: =SUM(H106:H118) -> 0 | I127: =SUM(I106:I118) -> 0 | J127: =SUM(J106:J118) -> 0 | N127: =SUM(N106:N119) -> 0 | O127: =SUM(O106:O119) -> 0 | P127: =SUM(P106:P119) -> 0 | Q127: =SUM(Q106:Q119) -> 0 | R127: =SUM(R106:R119) -> 0
A130: ="@"&COUNTIF(A$1:A129,"@*")+1 -> @5 | B130: Increase in Yields from Service Change 4 | N130: Change in Tonnage
B132: Change in: | C132: kg/hh/yr
B133: If Change in kg/hh/yr, Percentage of Households Change Applies to | C133: 0.8
F134: ="Change from Baseline, " & C132 -> Change from Baseline, kg/hh/yr | N134: Change from Baseline, tonnes | T134: Change from Baseline, tonnes
D135: ='Explore Improvements'!D$17 & IF($C$42=Lists!$K$48, " Average", "") -> Baseline Average | F135: ='Explore Improvements'!E$18 -> Name Scenario 1 | G135: ='Explore Improvements'!F$18 -> Name Scenario 2 | H135: ='Explore Improvements'!G$18 -> Name Scenario 3 | I135: ='Explore Improvements'!H$18 -> Name Scenario 4 | J135: ='Explore Improvements'!I$18 -> Name Scenario 5 | N135: ='Explore Improvements'!E$18 -> Name Scenario 1 | O135: ='Explore Improvements'!F$18 -> Name Scenario 2 | P135: ='Explore Improvements'!G$18 -> Name Scenario 3 | Q135: ='Explore Improvements'!H$18 -> Name Scenario 4 | R135: ='Explore Improvements'!I$18 -> Name Scenario 5 | T135: =F135 -> Name Scenario 1 | U135: =G135 -> Name Scenario 2 | V135: =H135 -> Name Scenario 3 | W135: =I135 -> Name Scenario 4 | X135: =J135 -> Name Scenario 5
B136: =Lists!B9 -> Paper / Card | D136: =IF($C$132=Lists!$K$48,D17 * 1000/'Start Here'!$C$34, D17) ->  | N136: =IF($C$132=Lists!$K$48, F136* $C$133 * Arisings!F$16 / 1000, F136) -> 0 | O136: =IF($C$132=Lists!$K$48, G136* $C$133 * Arisings!G$16 / 1000, G136) -> 0 | P136: =IF($C$132=Lists!$K$48, H136* $C$133 * Arisings!H$16 / 1000, H136) -> 0 | Q136: =IF($C$132=Lists!$K$48, I136* $C$133 * Arisings!I$16 / 1000, I136) -> 0 | R136: =IF($C$132=Lists!$K$48, J136* $C$133 * Arisings!J$16 / 1000, J136) -> 0 | T136: =F151*'Co-mingled Comp'!$Q$17 -> 0 | U136: =G151*'Co-mingled Comp'!$Q$17 -> 0 | V136: =H151*'Co-mingled Comp'!$Q$17 -> 0 | W136: =I151*'Co-mingled Comp'!$Q$17 -> 0 | X136: =J151*'Co-mingled Comp'!$Q$17 -> 0
B137: =Lists!B10 -> Glass | D137: =IF($C$132=Lists!$K$48,D18 * 1000/'Start Here'!$C$34, D18) ->  | N137: =IF($C$132=Lists!$K$48, F137* $C$133 * Arisings!F$16 / 1000, F137) -> 0 | O137: =IF($C$132=Lists!$K$48, G137* $C$133 * Arisings!G$16 / 1000, G137) -> 0 | P137: =IF($C$132=Lists!$K$48, H137* $C$133 * Arisings!H$16 / 1000, H137) -> 0 | Q137: =IF($C$132=Lists!$K$48, I137* $C$133 * Arisings!I$16 / 1000, I137) -> 0 | R137: =IF($C$132=Lists!$K$48, J137* $C$133 * Arisings!J$16 / 1000, J137) -> 0 | T137: =F151*'Co-mingled Comp'!$Q$18 -> 0 | U137: =G151*'Co-mingled Comp'!$Q$18 -> 0 | V137: =H151*'Co-mingled Comp'!$Q$18 -> 0 | W137: =I151*'Co-mingled Comp'!$Q$18 -> 0 | X137: =J151*'Co-mingled Comp'!$Q$18 -> 0
B138: =Lists!B11 -> Ferrous Metals | D138: =IF($C$132=Lists!$K$48,D19 * 1000/'Start Here'!$C$34, D19) ->  | N138: =IF($C$132=Lists!$K$48, F138* $C$133 * Arisings!F$16 / 1000, F138) -> 0 | O138: =IF($C$132=Lists!$K$48, G138* $C$133 * Arisings!G$16 / 1000, G138) -> 0 | P138: =IF($C$132=Lists!$K$48, H138* $C$133 * Arisings!H$16 / 1000, H138) -> 0 | Q138: =IF($C$132=Lists!$K$48, I138* $C$133 * Arisings!I$16 / 1000, I138) -> 0 | R138: =IF($C$132=Lists!$K$48, J138* $C$133 * Arisings!J$16 / 1000, J138) -> 0 | T138: =F151*'Co-mingled Comp'!$Q$19 -> 0 | U138: =G151*'Co-mingled Comp'!$Q$19 -> 0 | V138: =H151*'Co-mingled Comp'!$Q$19 -> 0 | W138: =I151*'Co-mingled Comp'!$Q$19 -> 0 | X138: =J151*'Co-mingled Comp'!$Q$19 -> 0
B139: =Lists!B12 -> Non-Ferrous Metals | D139: =IF($C$132=Lists!$K$48,D20 * 1000/'Start Here'!$C$34, D20) ->  | N139: =IF($C$132=Lists!$K$48, F139* $C$133 * Arisings!F$16 / 1000, F139) -> 0 | O139: =IF($C$132=Lists!$K$48, G139* $C$133 * Arisings!G$16 / 1000, G139) -> 0 | P139: =IF($C$132=Lists!$K$48, H139* $C$133 * Arisings!H$16 / 1000, H139) -> 0 | Q139: =IF($C$132=Lists!$K$48, I139* $C$133 * Arisings!I$16 / 1000, I139) -> 0 | R139: =IF($C$132=Lists!$K$48, J139* $C$133 * Arisings!J$16 / 1000, J139) -> 0 | T139: =F151*'Co-mingled Comp'!$Q$20 -> 0 | U139: =G151*'Co-mingled Comp'!$Q$20 -> 0 | V139: =H151*'Co-mingled Comp'!$Q$20 -> 0 | W139: =I151*'Co-mingled Comp'!$Q$20 -> 0 | X139: =J151*'Co-mingled Comp'!$Q$20 -> 0
B140: =Lists!B13 -> Plastics | D140: =IF($C$132=Lists!$K$48,D21 * 1000/'Start Here'!$C$34, D21) ->  | N140: =IF($C$132=Lists!$K$48, F140* $C$133 * Arisings!F$16 / 1000, F140) -> 0 | O140: =IF($C$132=Lists!$K$48, G140* $C$133 * Arisings!G$16 / 1000, G140) -> 0 | P140: =IF($C$132=Lists!$K$48, H140* $C$133 * Arisings!H$16 / 1000, H140) -> 0 | Q140: =IF($C$132=Lists!$K$48, I140* $C$133 * Arisings!I$16 / 1000, I140) -> 0 | R140: =IF($C$132=Lists!$K$48, J140* $C$133 * Arisings!J$16 / 1000, J140) -> 0 | T140: =F151*'Co-mingled Comp'!$Q$21 -> 0 | U140: =G151*'Co-mingled Comp'!$Q$21 -> 0 | V140: =H151*'Co-mingled Comp'!$Q$21 -> 0 | W140: =I151*'Co-mingled Comp'!$Q$21 -> 0 | X140: =J151*'Co-mingled Comp'!$Q$21 -> 0
B141: =Lists!B14 -> Textiles | D141: =IF($C$132=Lists!$K$48,D22 * 1000/'Start Here'!$C$34, D22) ->  | N141: =IF($C$132=Lists!$K$48, F141* $C$133 * Arisings!F$16 / 1000, F141) -> 0 | O141: =IF($C$132=Lists!$K$48, G141* $C$133 * Arisings!G$16 / 1000, G141) -> 0 | P141: =IF($C$132=Lists!$K$48, H141* $C$133 * Arisings!H$16 / 1000, H141) -> 0 | Q141: =IF($C$132=Lists!$K$48, I141* $C$133 * Arisings!I$16 / 1000, I141) -> 0 | R141: =IF($C$132=Lists!$K$48, J141* $C$133 * Arisings!J$16 / 1000, J141) -> 0
B142: =Lists!B15 -> Wood | D142: =IF($C$132=Lists!$K$48,D23 * 1000/'Start Here'!$C$34, D23) ->  | N142: =IF($C$132=Lists!$K$48, F142* $C$133 * Arisings!F$16 / 1000, F142) -> 0 | O142: =IF($C$132=Lists!$K$48, G142* $C$133 * Arisings!G$16 / 1000, G142) -> 0 | P142: =IF($C$132=Lists!$K$48, H142* $C$133 * Arisings!H$16 / 1000, H142) -> 0 | Q142: =IF($C$132=Lists!$K$48, I142* $C$133 * Arisings!I$16 / 1000, I142) -> 0 | R142: =IF($C$132=Lists!$K$48, J142* $C$133 * Arisings!J$16 / 1000, J142) -> 0
B143: =Lists!B16 -> WEEE | D143: =IF($C$132=Lists!$K$48,D24 * 1000/'Start Here'!$C$34, D24) ->  | N143: =IF($C$132=Lists!$K$48, F143* $C$133 * Arisings!F$16 / 1000, F143) -> 0 | O143: =IF($C$132=Lists!$K$48, G143* $C$133 * Arisings!G$16 / 1000, G143) -> 0 | P143: =IF($C$132=Lists!$K$48, H143* $C$133 * Arisings!H$16 / 1000, H143) -> 0 | Q143: =IF($C$132=Lists!$K$48, I143* $C$133 * Arisings!I$16 / 1000, I143) -> 0 | R143: =IF($C$132=Lists!$K$48, J143* $C$133 * Arisings!J$16 / 1000, J143) -> 0
B144: =Lists!B17 -> Food waste | D144: =IF($C$132=Lists!$K$48,D25 * 1000/'Start Here'!$C$34, D25) ->  | N144: =IF($C$132=Lists!$K$48, F144* $C$133 * Arisings!F$16 / 1000, F144) -> 0 | O144: =IF($C$132=Lists!$K$48, G144* $C$133 * Arisings!G$16 / 1000, G144) -> 0 | P144: =IF($C$132=Lists!$K$48, H144* $C$133 * Arisings!H$16 / 1000, H144) -> 0 | Q144: =IF($C$132=Lists!$K$48, I144* $C$133 * Arisings!I$16 / 1000, I144) -> 0 | R144: =IF($C$132=Lists!$K$48, J144* $C$133 * Arisings!J$16 / 1000, J144) -> 0
B145: =Lists!B18 -> Garden Waste | D145: =IF($C$132=Lists!$K$48,D26 * 1000/'Start Here'!$C$34, D26) ->  | N145: =IF($C$132=Lists!$K$48, F145* $C$133 * Arisings!F$16 / 1000, F145) -> 0 | O145: =IF($C$132=Lists!$K$48, G145* $C$133 * Arisings!G$16 / 1000, G145) -> 0 | P145: =IF($C$132=Lists!$K$48, H145* $C$133 * Arisings!H$16 / 1000, H145) -> 0 | Q145: =IF($C$132=Lists!$K$48, I145* $C$133 * Arisings!I$16 / 1000, I145) -> 0 | R145: =IF($C$132=Lists!$K$48, J145* $C$133 * Arisings!J$16 / 1000, J145) -> 0
B146: =Lists!B19 -> Mixed Food and Garden Waste | D146: =IF($C$132=Lists!$K$48,D27 * 1000/'Start Here'!$C$34, D27) ->  | N146: =IF($C$132=Lists!$K$48, F146* $C$133 * Arisings!F$16 / 1000, F146) -> 0 | O146: =IF($C$132=Lists!$K$48, G146* $C$133 * Arisings!G$16 / 1000, G146) -> 0 | P146: =IF($C$132=Lists!$K$48, H146* $C$133 * Arisings!H$16 / 1000, H146) -> 0 | Q146: =IF($C$132=Lists!$K$48, I146* $C$133 * Arisings!I$16 / 1000, I146) -> 0 | R146: =IF($C$132=Lists!$K$48, J146* $C$133 * Arisings!J$16 / 1000, J146) -> 0
B147: =Lists!B20 -> Material Recycled not classified (mineral oil etc.) | D147: =IF($C$132=Lists!$K$48,D28 * 1000/'Start Here'!$C$34, D28) ->  | N147: =IF($C$132=Lists!$K$48, F147* $C$133 * Arisings!F$16 / 1000, F147) -> 0 | O147: =IF($C$132=Lists!$K$48, G147* $C$133 * Arisings!G$16 / 1000, G147) -> 0 | P147: =IF($C$132=Lists!$K$48, H147* $C$133 * Arisings!H$16 / 1000, H147) -> 0 | Q147: =IF($C$132=Lists!$K$48, I147* $C$133 * Arisings!I$16 / 1000, I147) -> 0 | R147: =IF($C$132=Lists!$K$48, J147* $C$133 * Arisings!J$16 / 1000, J147) -> 0
B148: =Lists!B21 -> Rubble, Soil, Plasterboard | D148: =IF($C$132=Lists!$K$48,D29 * 1000/'Start Here'!$C$34, D29) ->  | N148: =IF($C$132=Lists!$K$48, F148* $C$133 * Arisings!F$16 / 1000, F148) -> 0 | O148: =IF($C$132=Lists!$K$48, G148* $C$133 * Arisings!G$16 / 1000, G148) -> 0 | P148: =IF($C$132=Lists!$K$48, H148* $C$133 * Arisings!H$16 / 1000, H148) -> 0 | Q148: =IF($C$132=Lists!$K$48, I148* $C$133 * Arisings!I$16 / 1000, I148) -> 0 | R148: =IF($C$132=Lists!$K$48, J148* $C$133 * Arisings!J$16 / 1000, J148) -> 0
B149: Add notes:
B151: Comingled Dry Recycling | D151: =IF($C$132=Lists!$K$48, SUM(Collections!$V$65:$X$65) * 1000/'Start Here'!$C$34, SUM(Collections!$V$65:$X$65) ) -> 
B155: All Food/Garden | D155: =IF($C$132=Lists!$K$48,D32 * 1000/'Start Here'!$C$34, D32) ->  | F155: =SUM(F144:F146) -> 0 | G155: =SUM(G144:G146) -> 0 | H155: =SUM(H144:H146) -> 0 | I155: =SUM(I144:I146) -> 0 | J155: =SUM(J144:J146) -> 0 | N155: =SUM(N144:N146) -> 0 | O155: =SUM(O144:O146) -> 0 | P155: =SUM(P144:P146) -> 0 | Q155: =SUM(Q144:Q146) -> 0 | R155: =SUM(R144:R146) -> 0
B157: WfH Recycling | D157: =SUM(D136:D148) ->  | F157: =SUM(F136:F148) -> 0 | G157: =SUM(G136:G148) -> 0 | H157: =SUM(H136:H148) -> 0 | I157: =SUM(I136:I148) -> 0 | J157: =SUM(J136:J148) -> 0 | N157: =SUM(N136:N149) -> 0 | O157: =SUM(O136:O149) -> 0 | P157: =SUM(P136:P149) -> 0 | Q157: =SUM(Q136:Q149) -> 0 | R157: =SUM(R136:R149) -> 0
A160: ="@"&COUNTIF(A$1:A159,"@*")+1 -> @6 | B160: Increase in Yields from Service Change 5 | N160: Change in Tonnage
B162: Change in: | C162: kg/hh/yr
B163: If Change in kg/hh/yr, Percentage of Households Change Applies to | C163: 1
F164: ="Change from Baseline, " & C162 -> Change from Baseline, kg/hh/yr | N164: Change from Baseline, tonnes | T164: Change from Baseline, tonnes
D165: ='Explore Improvements'!D$17 & IF($C$42=Lists!$K$48, " Average", "") -> Baseline Average | F165: ='Explore Improvements'!E$18 -> Name Scenario 1 | G165: ='Explore Improvements'!F$18 -> Name Scenario 2 | H165: ='Explore Improvements'!G$18 -> Name Scenario 3 | I165: ='Explore Improvements'!H$18 -> Name Scenario 4 | J165: ='Explore Improvements'!I$18 -> Name Scenario 5 | N165: ='Explore Improvements'!E$18 -> Name Scenario 1 | O165: ='Explore Improvements'!F$18 -> Name Scenario 2 | P165: ='Explore Improvements'!G$18 -> Name Scenario 3 | Q165: ='Explore Improvements'!H$18 -> Name Scenario 4 | R165: ='Explore Improvements'!I$18 -> Name Scenario 5 | T165: =F165 -> Name Scenario 1 | U165: =G165 -> Name Scenario 2 | V165: =H165 -> Name Scenario 3 | W165: =I165 -> Name Scenario 4 | X165: =J165 -> Name Scenario 5
B166: =Lists!B9 -> Paper / Card | D166: =IF($C$162=Lists!$K$48,D17 * 1000/'Start Here'!$C$34, D17) ->  | N166: =IF($C$162=Lists!$K$48, F166* $C$163 * Arisings!F$16 / 1000, F166) -> 0 | O166: =IF($C$162=Lists!$K$48, G166* $C$163 * Arisings!G$16 / 1000, G166) -> 0 | P166: =IF($C$162=Lists!$K$48, H166* $C$163 * Arisings!H$16 / 1000, H166) -> 0 | Q166: =IF($C$162=Lists!$K$48, I166* $C$163 * Arisings!I$16 / 1000, I166) -> 0 | R166: =IF($C$162=Lists!$K$48, J166* $C$163 * Arisings!J$16 / 1000, J166) -> 0 | T166: =F181*'Co-mingled Comp'!$Q$17 -> 0 | U166: =G181*'Co-mingled Comp'!$Q$17 -> 0 | V166: =H181*'Co-mingled Comp'!$Q$17 -> 0 | W166: =I181*'Co-mingled Comp'!$Q$17 -> 0 | X166: =J181*'Co-mingled Comp'!$Q$17 -> 0
B167: =Lists!B10 -> Glass | D167: =IF($C$162=Lists!$K$48,D18 * 1000/'Start Here'!$C$34, D18) ->  | N167: =IF($C$162=Lists!$K$48, F167* $C$163 * Arisings!F$16 / 1000, F167) -> 0 | O167: =IF($C$162=Lists!$K$48, G167* $C$163 * Arisings!G$16 / 1000, G167) -> 0 | P167: =IF($C$162=Lists!$K$48, H167* $C$163 * Arisings!H$16 / 1000, H167) -> 0 | Q167: =IF($C$162=Lists!$K$48, I167* $C$163 * Arisings!I$16 / 1000, I167) -> 0 | R167: =IF($C$162=Lists!$K$48, J167* $C$163 * Arisings!J$16 / 1000, J167) -> 0 | T167: =F181*'Co-mingled Comp'!$Q$18 -> 0 | U167: =G181*'Co-mingled Comp'!$Q$18 -> 0 | V167: =H181*'Co-mingled Comp'!$Q$18 -> 0 | W167: =I181*'Co-mingled Comp'!$Q$18 -> 0 | X167: =J181*'Co-mingled Comp'!$Q$18 -> 0
B168: =Lists!B11 -> Ferrous Metals | D168: =IF($C$162=Lists!$K$48,D19 * 1000/'Start Here'!$C$34, D19) ->  | N168: =IF($C$162=Lists!$K$48, F168* $C$163 * Arisings!F$16 / 1000, F168) -> 0 | O168: =IF($C$162=Lists!$K$48, G168* $C$163 * Arisings!G$16 / 1000, G168) -> 0 | P168: =IF($C$162=Lists!$K$48, H168* $C$163 * Arisings!H$16 / 1000, H168) -> 0 | Q168: =IF($C$162=Lists!$K$48, I168* $C$163 * Arisings!I$16 / 1000, I168) -> 0 | R168: =IF($C$162=Lists!$K$48, J168* $C$163 * Arisings!J$16 / 1000, J168) -> 0 | T168: =F181*'Co-mingled Comp'!$Q$19 -> 0 | U168: =G181*'Co-mingled Comp'!$Q$19 -> 0 | V168: =H181*'Co-mingled Comp'!$Q$19 -> 0 | W168: =I181*'Co-mingled Comp'!$Q$19 -> 0 | X168: =J181*'Co-mingled Comp'!$Q$19 -> 0
B169: =Lists!B12 -> Non-Ferrous Metals | D169: =IF($C$162=Lists!$K$48,D20 * 1000/'Start Here'!$C$34, D20) ->  | N169: =IF($C$162=Lists!$K$48, F169* $C$163 * Arisings!F$16 / 1000, F169) -> 0 | O169: =IF($C$162=Lists!$K$48, G169* $C$163 * Arisings!G$16 / 1000, G169) -> 0 | P169: =IF($C$162=Lists!$K$48, H169* $C$163 * Arisings!H$16 / 1000, H169) -> 0 | Q169: =IF($C$162=Lists!$K$48, I169* $C$163 * Arisings!I$16 / 1000, I169) -> 0 | R169: =IF($C$162=Lists!$K$48, J169* $C$163 * Arisings!J$16 / 1000, J169) -> 0 | T169: =F181*'Co-mingled Comp'!$Q$20 -> 0 | U169: =G181*'Co-mingled Comp'!$Q$20 -> 0 | V169: =H181*'Co-mingled Comp'!$Q$20 -> 0 | W169: =I181*'Co-mingled Comp'!$Q$20 -> 0 | X169: =J181*'Co-mingled Comp'!$Q$20 -> 0
B170: =Lists!B13 -> Plastics | D170: =IF($C$162=Lists!$K$48,D21 * 1000/'Start Here'!$C$34, D21) ->  | N170: =IF($C$162=Lists!$K$48, F170* $C$163 * Arisings!F$16 / 1000, F170) -> 0 | O170: =IF($C$162=Lists!$K$48, G170* $C$163 * Arisings!G$16 / 1000, G170) -> 0 | P170: =IF($C$162=Lists!$K$48, H170* $C$163 * Arisings!H$16 / 1000, H170) -> 0 | Q170: =IF($C$162=Lists!$K$48, I170* $C$163 * Arisings!I$16 / 1000, I170) -> 0 | R170: =IF($C$162=Lists!$K$48, J170* $C$163 * Arisings!J$16 / 1000, J170) -> 0 | T170: =F181*'Co-mingled Comp'!$Q$21 -> 0 | U170: =G181*'Co-mingled Comp'!$Q$21 -> 0 | V170: =H181*'Co-mingled Comp'!$Q$21 -> 0 | W170: =I181*'Co-mingled Comp'!$Q$21 -> 0 | X170: =J181*'Co-mingled Comp'!$Q$21 -> 0
B171: =Lists!B14 -> Textiles | D171: =IF($C$162=Lists!$K$48,D22 * 1000/'Start Here'!$C$34, D22) ->  | N171: =IF($C$162=Lists!$K$48, F171* $C$163 * Arisings!F$16 / 1000, F171) -> 0 | O171: =IF($C$162=Lists!$K$48, G171* $C$163 * Arisings!G$16 / 1000, G171) -> 0 | P171: =IF($C$162=Lists!$K$48, H171* $C$163 * Arisings!H$16 / 1000, H171) -> 0 | Q171: =IF($C$162=Lists!$K$48, I171* $C$163 * Arisings!I$16 / 1000, I171) -> 0 | R171: =IF($C$162=Lists!$K$48, J171* $C$163 * Arisings!J$16 / 1000, J171) -> 0
B172: =Lists!B15 -> Wood | D172: =IF($C$162=Lists!$K$48,D23 * 1000/'Start Here'!$C$34, D23) ->  | N172: =IF($C$162=Lists!$K$48, F172* $C$163 * Arisings!F$16 / 1000, F172) -> 0 | O172: =IF($C$162=Lists!$K$48, G172* $C$163 * Arisings!G$16 / 1000, G172) -> 0 | P172: =IF($C$162=Lists!$K$48, H172* $C$163 * Arisings!H$16 / 1000, H172) -> 0 | Q172: =IF($C$162=Lists!$K$48, I172* $C$163 * Arisings!I$16 / 1000, I172) -> 0 | R172: =IF($C$162=Lists!$K$48, J172* $C$163 * Arisings!J$16 / 1000, J172) -> 0
B173: =Lists!B16 -> WEEE | D173: =IF($C$162=Lists!$K$48,D24 * 1000/'Start Here'!$C$34, D24) ->  | N173: =IF($C$162=Lists!$K$48, F173* $C$163 * Arisings!F$16 / 1000, F173) -> 0 | O173: =IF($C$162=Lists!$K$48, G173* $C$163 * Arisings!G$16 / 1000, G173) -> 0 | P173: =IF($C$162=Lists!$K$48, H173* $C$163 * Arisings!H$16 / 1000, H173) -> 0 | Q173: =IF($C$162=Lists!$K$48, I173* $C$163 * Arisings!I$16 / 1000, I173) -> 0 | R173: =IF($C$162=Lists!$K$48, J173* $C$163 * Arisings!J$16 / 1000, J173) -> 0
B174: =Lists!B17 -> Food waste | D174: =IF($C$162=Lists!$K$48,D25 * 1000/'Start Here'!$C$34, D25) ->  | N174: =IF($C$162=Lists!$K$48, F174* $C$163 * Arisings!F$16 / 1000, F174) -> 0 | O174: =IF($C$162=Lists!$K$48, G174* $C$163 * Arisings!G$16 / 1000, G174) -> 0 | P174: =IF($C$162=Lists!$K$48, H174* $C$163 * Arisings!H$16 / 1000, H174) -> 0 | Q174: =IF($C$162=Lists!$K$48, I174* $C$163 * Arisings!I$16 / 1000, I174) -> 0 | R174: =IF($C$162=Lists!$K$48, J174* $C$163 * Arisings!J$16 / 1000, J174) -> 0
B175: =Lists!B18 -> Garden Waste | D175: =IF($C$162=Lists!$K$48,D26 * 1000/'Start Here'!$C$34, D26) ->  | N175: =IF($C$162=Lists!$K$48, F175* $C$163 * Arisings!F$16 / 1000, F175) -> 0 | O175: =IF($C$162=Lists!$K$48, G175* $C$163 * Arisings!G$16 / 1000, G175) -> 0 | P175: =IF($C$162=Lists!$K$48, H175* $C$163 * Arisings!H$16 / 1000, H175) -> 0 | Q175: =IF($C$162=Lists!$K$48, I175* $C$163 * Arisings!I$16 / 1000, I175) -> 0 | R175: =IF($C$162=Lists!$K$48, J175* $C$163 * Arisings!J$16 / 1000, J175) -> 0
B176: =Lists!B19 -> Mixed Food and Garden Waste | D176: =IF($C$162=Lists!$K$48,D27 * 1000/'Start Here'!$C$34, D27) ->  | N176: =IF($C$162=Lists!$K$48, F176* $C$163 * Arisings!F$16 / 1000, F176) -> 0 | O176: =IF($C$162=Lists!$K$48, G176* $C$163 * Arisings!G$16 / 1000, G176) -> 0 | P176: =IF($C$162=Lists!$K$48, H176* $C$163 * Arisings!H$16 / 1000, H176) -> 0 | Q176: =IF($C$162=Lists!$K$48, I176* $C$163 * Arisings!I$16 / 1000, I176) -> 0 | R176: =IF($C$162=Lists!$K$48, J176* $C$163 * Arisings!J$16 / 1000, J176) -> 0
B177: =Lists!B20 -> Material Recycled not classified (mineral oil etc.) | D177: =IF($C$162=Lists!$K$48,D28 * 1000/'Start Here'!$C$34, D28) ->  | N177: =IF($C$162=Lists!$K$48, F177* $C$163 * Arisings!F$16 / 1000, F177) -> 0 | O177: =IF($C$162=Lists!$K$48, G177* $C$163 * Arisings!G$16 / 1000, G177) -> 0 | P177: =IF($C$162=Lists!$K$48, H177* $C$163 * Arisings!H$16 / 1000, H177) -> 0 | Q177: =IF($C$162=Lists!$K$48, I177* $C$163 * Arisings!I$16 / 1000, I177) -> 0 | R177: =IF($C$162=Lists!$K$48, J177* $C$163 * Arisings!J$16 / 1000, J177) -> 0
B178: =Lists!B21 -> Rubble, Soil, Plasterboard | D178: =IF($C$162=Lists!$K$48,D29 * 1000/'Start Here'!$C$34, D29) ->  | N178: =IF($C$162=Lists!$K$48, F178* $C$163 * Arisings!F$16 / 1000, F178) -> 0 | O178: =IF($C$162=Lists!$K$48, G178* $C$163 * Arisings!G$16 / 1000, G178) -> 0 | P178: =IF($C$162=Lists!$K$48, H178* $C$163 * Arisings!H$16 / 1000, H178) -> 0 | Q178: =IF($C$162=Lists!$K$48, I178* $C$163 * Arisings!I$16 / 1000, I178) -> 0 | R178: =IF($C$162=Lists!$K$48, J178* $C$163 * Arisings!J$16 / 1000, J178) -> 0
B179: Add notes:
B181: Comingled Dry Recycling | D181: =IF($C$132=Lists!$K$48, SUM(Collections!$V$65:$X$65) * 1000/'Start Here'!$C$34, SUM(Collections!$V$65:$X$65) ) -> 
B185: All Food/Garden | D185: =IF($C$162=Lists!$K$48,D32 * 1000/'Start Here'!$C$34, D32) ->  | F185: =SUM(F174:F176) -> 0 | G185: =SUM(G174:G176) -> 0 | H185: =SUM(H174:H176) -> 0 | I185: =SUM(I174:I176) -> 0 | J185: =SUM(J174:J176) -> 0 | N185: =SUM(N174:N176) -> 0 | O185: =SUM(O174:O176) -> 0 | P185: =SUM(P174:P176) -> 0 | Q185: =SUM(Q174:Q176) -> 0 | R185: =SUM(R174:R176) -> 0
B187: WfH Recycling | D187: =SUM(D166:D178) ->  | F187: =SUM(F166:F178) -> 0 | G187: =SUM(G166:G178) -> 0 | H187: =SUM(H166:H178) -> 0 | I187: =SUM(I166:I178) -> 0 | J187: =SUM(J166:J178) -> 0 | N187: =SUM(N166:N179) -> 0 | O187: =SUM(O166:O179) -> 0 | P187: =SUM(P166:P179) -> 0 | Q187: =SUM(Q166:Q179) -> 0 | R187: =SUM(R166:R179) -> 0

Sheet Commercial Waste
H3: =HYPERLINK("#'Explore Improvements'!B12","-> Return to Overview") -> -> Return to Overview
B11: Recap of Relevant Suggestions
U12: Supporting Notes or Calculations
B13: ='Current Performance'!G22 -> Commercial waste recycling | F13: ='Current Performance'!K22 -> N/A
A15: ="@"&COUNTIF(A$1:A14,"@*")+1 -> @1 | B15: Commercial Waste Arisings (tonnes)
B16: Optional, guide inputs: Arisings and LA market share of commercial and industrial waste arisings. Arisings estimates are taken from the draft london plan values for 2021.
B17: These can be used to guide projections for commercial waste collected, entered in table 2 below
N18: Change from Baseline
D19: BL | F19: ='Explore Improvements'!E$18 -> Name Scenario 1 | G19: ='Explore Improvements'!F$18 -> Name Scenario 2 | H19: ='Explore Improvements'!G$18 -> Name Scenario 3 | I19: ='Explore Improvements'!H$18 -> Name Scenario 4 | J19: ='Explore Improvements'!I$18 -> Name Scenario 5 | N19: =F19 -> Name Scenario 1 | O19: =G19 -> Name Scenario 2 | P19: =H19 -> Name Scenario 3 | Q19: =I19 -> Name Scenario 4 | R19: =J19 -> Name Scenario 5
B20: Est. of Commercial Waste Arisings | D20: =IFERROR(INDEX('C&I Arisings - London Plan'!$C$9:$C$42,MATCH('Start Here'!$N$24,'C&I Arisings - London Plan'!$B$9:$B$42,0))*1000,"n/a") -> n/a | N20: =SUM(F20,-$D20) ->  | R20: =SUM(J20,-$D20) -> 
B21: Est. LA Market Share | D21: =Arisings!D24/D20 ->  | R21: =SUM(J21,-$D21) -> 
B22: Resulting Arisings Estimate | D22: =PRODUCT(D20,D21) ->  | F22: =PRODUCT(F20,F21) -> 0 | G22: =PRODUCT(G20,G21) -> 0 | H22: =PRODUCT(H20,H21) -> 0 | I22: =PRODUCT(I20,I21) -> 0 | J22: =PRODUCT(J20,J21) -> 0 | N22: =F22-$D22 ->  | O22: =G22-$D22 ->  | P22: =H22-$D22 ->  | Q22: =I22-$D22 ->  | R22: =J22-$D22 -> 
A24: ="@"&COUNTIF(A$1:A23,"@*")+1 -> @2 | B24: Changes in Commercial Waste Collected Tonnages
B25: Inputs for tonnage changes in separately collected streams of commercial waste (enter co-mingled tonnages below the main table)
F27: Change from Baseline, tonnes
D28: ='Explore Improvements'!D$17 -> Baseline | F28: ='Explore Improvements'!E$18 -> Name Scenario 1 | G28: ='Explore Improvements'!F$18 -> Name Scenario 2 | H28: ='Explore Improvements'!G$18 -> Name Scenario 3 | I28: ='Explore Improvements'!H$18 -> Name Scenario 4 | J28: ='Explore Improvements'!I$18 -> Name Scenario 5
B29: =Lists!H9 -> Paper / Card | D29: =Collections!Z49 -> 0
B30: =Lists!H10 -> Glass | D30: =Collections!Z50 -> 0
B31: =Lists!H11 -> Ferrous Metals | D31: =Collections!Z51 -> 0
B32: =Lists!H12 -> Non-Ferrous Metals | D32: =Collections!Z52 -> 0
B33: =Lists!H13 -> Plastics | D33: =Collections!Z53 -> 0
B34: =Lists!H14 -> Textiles | D34: =Collections!Z54 -> 0
B35: =Lists!H15 -> Wood | D35: =Collections!Z55 -> 0
B36: =Lists!H16 -> WEEE | D36: =Collections!Z56 -> 0
B37: =Lists!H17 -> Food waste | D37: =Collections!Z57 -> 0
B38: =Lists!H18 -> Garden Waste | D38: =Collections!Z58 -> 0
B39: =Lists!H19 -> Mixed Food and Garden Waste | D39: =Collections!Z59 -> 0
B40: =Lists!H20 -> Material Recycled not classified (mineral oil etc.) | D40: =Collections!Z60 -> 0
B41: =Lists!H21 -> Rubble, Soil, Plasterboard | D41: =Collections!Z61 -> 0
B43: Co-mingled Tonnage | D43: =Collections!Z65 -> 0
B44: LA Collected Commercial Residual Arisings | D44: =Residual!$D$10 -> 0 | N44: =F44-$D44 -> 0 | O44: =G44-$D44 -> 0 | P44: =H44-$D44 -> 0 | Q44: =I44-$D44 -> 0 | R44: =J44-$D44 -> 0
B46: Total C&I Collected for Recycling | D46: =SUM(D29:D43) -> 0 | F46: =SUM(F29:F43) -> 0 | G46: =SUM(G29:G43) -> 0 | H46: =SUM(H29:H43) -> 0 | I46: =SUM(I29:I43) -> 0 | J46: =SUM(J29:J43) -> 0
B47: Total C&I Waste Collected | D47: =SUM(D29:D44) -> 0 | F47: =SUM(F29:F44) -> 0 | G47: =SUM(G29:G44) -> 0 | H47: =SUM(H29:H44) -> 0 | I47: =SUM(I29:I44) -> 0 | J47: =SUM(J29:J44) -> 0
A50: ="@"&COUNTIF(A$1:A49,"@*")+1 -> @3 | B50: Commercial Waste Recycling Arisings Breakdown (information only)
B51: Information only: material breakdown of commercial waste
D53: ='Explore Improvements'!D$17 -> Baseline | F53: ='Explore Improvements'!E$18 -> Name Scenario 1 | G53: ='Explore Improvements'!F$18 -> Name Scenario 2 | H53: ='Explore Improvements'!G$18 -> Name Scenario 3 | I53: ='Explore Improvements'!H$18 -> Name Scenario 4 | J53: ='Explore Improvements'!I$18 -> Name Scenario 5
B54: =Lists!H9 -> Paper / Card | D54: =Collections!Z49*(1-'Rejects (SS)'!$M53)+'Co-mingled Comp'!M17 -> 0 | F54: =SUM($D54, F29*(1-'Rejects (SS)'!$M53), F$43*'Co-mingled Comp'!$J17) -> 0 | G54: =SUM($D54, G29*(1-'Rejects (SS)'!$M53), G$43*'Co-mingled Comp'!$J17) -> 0 | H54: =SUM($D54, H29*(1-'Rejects (SS)'!$M53), H$43*'Co-mingled Comp'!$J17) -> 0 | I54: =SUM($D54, I29*(1-'Rejects (SS)'!$M53), I$43*'Co-mingled Comp'!$J17) -> 0 | J54: =SUM($D54, J29*(1-'Rejects (SS)'!$M53), J$43*'Co-mingled Comp'!$J17) -> 0
B55: =Lists!H10 -> Glass | D55: =Collections!Z50*(1-'Rejects (SS)'!$M54)+'Co-mingled Comp'!M18 -> 0 | F55: =SUM($D55, F30*(1-'Rejects (SS)'!$M54), F$43*'Co-mingled Comp'!$J18) -> 0 | G55: =SUM($D55, G30*(1-'Rejects (SS)'!$M54), G$43*'Co-mingled Comp'!$J18) -> 0 | H55: =SUM($D55, H30*(1-'Rejects (SS)'!$M54), H$43*'Co-mingled Comp'!$J18) -> 0 | I55: =SUM($D55, I30*(1-'Rejects (SS)'!$M54), I$43*'Co-mingled Comp'!$J18) -> 0 | J55: =SUM($D55, J30*(1-'Rejects (SS)'!$M54), J$43*'Co-mingled Comp'!$J18) -> 0
B56: =Lists!H11 -> Ferrous Metals | D56: =Collections!Z51*(1-'Rejects (SS)'!$M55)+'Co-mingled Comp'!M19 -> 0 | F56: =SUM($D56, F31*(1-'Rejects (SS)'!$M55), F$43*'Co-mingled Comp'!$J19) -> 0 | G56: =SUM($D56, G31*(1-'Rejects (SS)'!$M55), G$43*'Co-mingled Comp'!$J19) -> 0 | H56: =SUM($D56, H31*(1-'Rejects (SS)'!$M55), H$43*'Co-mingled Comp'!$J19) -> 0 | I56: =SUM($D56, I31*(1-'Rejects (SS)'!$M55), I$43*'Co-mingled Comp'!$J19) -> 0 | J56: =SUM($D56, J31*(1-'Rejects (SS)'!$M55), J$43*'Co-mingled Comp'!$J19) -> 0
B57: =Lists!H12 -> Non-Ferrous Metals | D57: =Collections!Z52*(1-'Rejects (SS)'!$M56)+'Co-mingled Comp'!M20 -> 0 | F57: =SUM($D57, F32*(1-'Rejects (SS)'!$M56), F$43*'Co-mingled Comp'!$J20) -> 0 | G57: =SUM($D57, G32*(1-'Rejects (SS)'!$M56), G$43*'Co-mingled Comp'!$J20) -> 0 | H57: =SUM($D57, H32*(1-'Rejects (SS)'!$M56), H$43*'Co-mingled Comp'!$J20) -> 0 | I57: =SUM($D57, I32*(1-'Rejects (SS)'!$M56), I$43*'Co-mingled Comp'!$J20) -> 0 | J57: =SUM($D57, J32*(1-'Rejects (SS)'!$M56), J$43*'Co-mingled Comp'!$J20) -> 0
B58: =Lists!H13 -> Plastics | D58: =Collections!Z53*(1-'Rejects (SS)'!$M57)+'Co-mingled Comp'!M21 -> 0 | F58: =SUM($D58, F33*(1-'Rejects (SS)'!$M57), F$43*'Co-mingled Comp'!$J21) -> 0 | G58: =SUM($D58, G33*(1-'Rejects (SS)'!$M57), G$43*'Co-mingled Comp'!$J21) -> 0 | H58: =SUM($D58, H33*(1-'Rejects (SS)'!$M57), H$43*'Co-mingled Comp'!$J21) -> 0 | I58: =SUM($D58, I33*(1-'Rejects (SS)'!$M57), I$43*'Co-mingled Comp'!$J21) -> 0 | J58: =SUM($D58, J33*(1-'Rejects (SS)'!$M57), J$43*'Co-mingled Comp'!$J21) -> 0
B59: =Lists!H14 -> Textiles | D59: =Collections!Z54*(1-'Rejects (SS)'!$M58)+'Co-mingled Comp'!M22 -> 0 | F59: =SUM($D59, F34*(1-'Rejects (SS)'!$M58), F$43*'Co-mingled Comp'!$J22) -> 0 | G59: =SUM($D59, G34*(1-'Rejects (SS)'!$M58), G$43*'Co-mingled Comp'!$J22) -> 0 | H59: =SUM($D59, H34*(1-'Rejects (SS)'!$M58), H$43*'Co-mingled Comp'!$J22) -> 0 | I59: =SUM($D59, I34*(1-'Rejects (SS)'!$M58), I$43*'Co-mingled Comp'!$J22) -> 0 | J59: =SUM($D59, J34*(1-'Rejects (SS)'!$M58), J$43*'Co-mingled Comp'!$J22) -> 0
B60: =Lists!H15 -> Wood | D60: =Collections!Z55*(1-'Rejects (SS)'!$M59)+'Co-mingled Comp'!M23 -> 0 | F60: =SUM($D60, F35*(1-'Rejects (SS)'!$M59), F$43*'Co-mingled Comp'!$J23) -> 0 | G60: =SUM($D60, G35*(1-'Rejects (SS)'!$M59), G$43*'Co-mingled Comp'!$J23) -> 0 | H60: =SUM($D60, H35*(1-'Rejects (SS)'!$M59), H$43*'Co-mingled Comp'!$J23) -> 0 | I60: =SUM($D60, I35*(1-'Rejects (SS)'!$M59), I$43*'Co-mingled Comp'!$J23) -> 0 | J60: =SUM($D60, J35*(1-'Rejects (SS)'!$M59), J$43*'Co-mingled Comp'!$J23) -> 0
B61: =Lists!H16 -> WEEE | D61: =Collections!Z56*(1-'Rejects (SS)'!$M60)+'Co-mingled Comp'!M24 -> 0 | F61: =SUM($D61, F36*(1-'Rejects (SS)'!$M60), F$43*'Co-mingled Comp'!$J24) -> 0 | G61: =SUM($D61, G36*(1-'Rejects (SS)'!$M60), G$43*'Co-mingled Comp'!$J24) -> 0 | H61: =SUM($D61, H36*(1-'Rejects (SS)'!$M60), H$43*'Co-mingled Comp'!$J24) -> 0 | I61: =SUM($D61, I36*(1-'Rejects (SS)'!$M60), I$43*'Co-mingled Comp'!$J24) -> 0 | J61: =SUM($D61, J36*(1-'Rejects (SS)'!$M60), J$43*'Co-mingled Comp'!$J24) -> 0
B62: =Lists!H17 -> Food waste | D62: =Collections!Z57*(1-'Rejects (SS)'!$M61)+'Co-mingled Comp'!M25 -> 0 | F62: =SUM($D62, F37*(1-'Rejects (SS)'!$M61), F$43*'Co-mingled Comp'!$J25) -> 0 | G62: =SUM($D62, G37*(1-'Rejects (SS)'!$M61), G$43*'Co-mingled Comp'!$J25) -> 0 | H62: =SUM($D62, H37*(1-'Rejects (SS)'!$M61), H$43*'Co-mingled Comp'!$J25) -> 0 | I62: =SUM($D62, I37*(1-'Rejects (SS)'!$M61), I$43*'Co-mingled Comp'!$J25) -> 0 | J62: =SUM($D62, J37*(1-'Rejects (SS)'!$M61), J$43*'Co-mingled Comp'!$J25) -> 0
B63: =Lists!H18 -> Garden Waste | D63: =Collections!Z58*(1-'Rejects (SS)'!$M62)+'Co-mingled Comp'!M26 -> 0 | F63: =SUM($D63, F38*(1-'Rejects (SS)'!$M62), F$43*'Co-mingled Comp'!$J26) -> 0 | G63: =SUM($D63, G38*(1-'Rejects (SS)'!$M62), G$43*'Co-mingled Comp'!$J26) -> 0 | H63: =SUM($D63, H38*(1-'Rejects (SS)'!$M62), H$43*'Co-mingled Comp'!$J26) -> 0 | I63: =SUM($D63, I38*(1-'Rejects (SS)'!$M62), I$43*'Co-mingled Comp'!$J26) -> 0 | J63: =SUM($D63, J38*(1-'Rejects (SS)'!$M62), J$43*'Co-mingled Comp'!$J26) -> 0
B64: =Lists!H19 -> Mixed Food and Garden Waste | D64: =Collections!Z59*(1-'Rejects (SS)'!$M63)+'Co-mingled Comp'!M27 -> 0 | F64: =SUM($D64, F39*(1-'Rejects (SS)'!$M63), F$43*'Co-mingled Comp'!$J27) -> 0 | G64: =SUM($D64, G39*(1-'Rejects (SS)'!$M63), G$43*'Co-mingled Comp'!$J27) -> 0 | H64: =SUM($D64, H39*(1-'Rejects (SS)'!$M63), H$43*'Co-mingled Comp'!$J27) -> 0 | I64: =SUM($D64, I39*(1-'Rejects (SS)'!$M63), I$43*'Co-mingled Comp'!$J27) -> 0 | J64: =SUM($D64, J39*(1-'Rejects (SS)'!$M63), J$43*'Co-mingled Comp'!$J27) -> 0
B65: =Lists!H20 -> Material Recycled not classified (mineral oil etc.) | D65: =Collections!Z60*(1-'Rejects (SS)'!$M64)+'Co-mingled Comp'!M28 -> 0 | F65: =SUM($D65, F40*(1-'Rejects (SS)'!$M64), F$43*'Co-mingled Comp'!$J28) -> 0 | G65: =SUM($D65, G40*(1-'Rejects (SS)'!$M64), G$43*'Co-mingled Comp'!$J28) -> 0 | H65: =SUM($D65, H40*(1-'Rejects (SS)'!$M64), H$43*'Co-mingled Comp'!$J28) -> 0 | I65: =SUM($D65, I40*(1-'Rejects (SS)'!$M64), I$43*'Co-mingled Comp'!$J28) -> 0 | J65: =SUM($D65, J40*(1-'Rejects (SS)'!$M64), J$43*'Co-mingled Comp'!$J28) -> 0
B66: =Lists!H21 -> Rubble, Soil, Plasterboard | D66: =Collections!Z61*(1-'Rejects (SS)'!$M65)+'Co-mingled Comp'!M29 -> 0 | F66: =SUM($D66, F41*(1-'Rejects (SS)'!$M65), F$43*'Co-mingled Comp'!$J29) -> 0 | G66: =SUM($D66, G41*(1-'Rejects (SS)'!$M65), G$43*'Co-mingled Comp'!$J29) -> 0 | H66: =SUM($D66, H41*(1-'Rejects (SS)'!$M65), H$43*'Co-mingled Comp'!$J29) -> 0 | I66: =SUM($D66, I41*(1-'Rejects (SS)'!$M65), I$43*'Co-mingled Comp'!$J29) -> 0 | J66: =SUM($D66, J41*(1-'Rejects (SS)'!$M65), J$43*'Co-mingled Comp'!$J29) -> 0
B67: =Lists!H22 -> Other Materials | D67: =SUMPRODUCT(Collections!Z49:Z61,'Rejects (SS)'!$M53:$M65) +'Co-mingled Comp'!M30 -> 0 | F67: =SUM($D67, SUMPRODUCT(F$29:F$41,'Rejects (SS)'!$M$53:$M$65), F$43*'Co-mingled Comp'!$J30) -> 0 | G67: =SUM($D67, SUMPRODUCT(G$29:G$41,'Rejects (SS)'!$M$53:$M$65), G$43*'Co-mingled Comp'!$J30) -> 0 | H67: =SUM($D67, SUMPRODUCT(H$29:H$41,'Rejects (SS)'!$M$53:$M$65), H$43*'Co-mingled Comp'!$J30) -> 0 | I67: =SUM($D67, SUMPRODUCT(I$29:I$41,'Rejects (SS)'!$M$53:$M$65), I$43*'Co-mingled Comp'!$J30) -> 0 | J67: =SUM($D67, SUMPRODUCT(J$29:J$41,'Rejects (SS)'!$M$53:$M$65), J$43*'Co-mingled Comp'!$J30) -> 0
B69: Total C&I Recycling | D69: =SUM(D54:D67) -> 0 | F69: =SUM(F54:F67) -> 0 | G69: =SUM(G54:G67) -> 0 | H69: =SUM(H54:H67) -> 0 | I69: =SUM(I54:I67) -> 0 | J69: =SUM(J54:J67) -> 0
B71: Organics | D71: =SUM(D62:D64) -> 0 | F71: =SUM(F62:F64) -> 0 | G71: =SUM(G62:G64) -> 0 | H71: =SUM(H62:H64) -> 0 | I71: =SUM(I62:I64) -> 0 | J71: =SUM(J62:J64) -> 0
A73: ="@"&COUNTIF(A$1:A72,"@*")+1 -> @4 | B73: Commercial Waste Residual Arisings (breakdown - information only)
B74: Information only: material breakdown of commercial waste
D76: ='Explore Improvements'!D$17 -> Baseline | F76: ='Explore Improvements'!E$18 -> Name Scenario 1 | G76: ='Explore Improvements'!F$18 -> Name Scenario 2 | H76: ='Explore Improvements'!G$18 -> Name Scenario 3 | I76: ='Explore Improvements'!H$18 -> Name Scenario 4 | J76: ='Explore Improvements'!I$18 -> Name Scenario 5
B77: =Lists!H9 -> Paper / Card | D77: =Residual!$D$10*'Residual Comp'!S16 -> 0 | F77: =($D$44+F$44)*'Residual Comp'!$S16 -> 0 | G77: =($D$44+G$44)*'Residual Comp'!$S16 -> 0 | H77: =($D$44+H$44)*'Residual Comp'!$S16 -> 0 | I77: =($D$44+I$44)*'Residual Comp'!$S16 -> 0 | J77: =($D$44+J$44)*'Residual Comp'!$S16 -> 0
B78: =Lists!H10 -> Glass | D78: =Residual!$D$10*'Residual Comp'!S17 -> 0 | F78: =($D$44+F$44)*'Residual Comp'!$S17 -> 0 | G78: =($D$44+G$44)*'Residual Comp'!$S17 -> 0 | H78: =($D$44+H$44)*'Residual Comp'!$S17 -> 0 | I78: =($D$44+I$44)*'Residual Comp'!$S17 -> 0 | J78: =($D$44+J$44)*'Residual Comp'!$S17 -> 0
B79: =Lists!H11 -> Ferrous Metals | D79: =Residual!$D$10*'Residual Comp'!S18 -> 0 | F79: =($D$44+F$44)*'Residual Comp'!$S18 -> 0 | G79: =($D$44+G$44)*'Residual Comp'!$S18 -> 0 | H79: =($D$44+H$44)*'Residual Comp'!$S18 -> 0 | I79: =($D$44+I$44)*'Residual Comp'!$S18 -> 0 | J79: =($D$44+J$44)*'Residual Comp'!$S18 -> 0
B80: =Lists!H12 -> Non-Ferrous Metals | D80: =Residual!$D$10*'Residual Comp'!S19 -> 0 | F80: =($D$44+F$44)*'Residual Comp'!$S19 -> 0 | G80: =($D$44+G$44)*'Residual Comp'!$S19 -> 0 | H80: =($D$44+H$44)*'Residual Comp'!$S19 -> 0 | I80: =($D$44+I$44)*'Residual Comp'!$S19 -> 0 | J80: =($D$44+J$44)*'Residual Comp'!$S19 -> 0
B81: =Lists!H13 -> Plastics | D81: =Residual!$D$10*'Residual Comp'!S20 -> 0 | F81: =($D$44+F$44)*'Residual Comp'!$S20 -> 0 | G81: =($D$44+G$44)*'Residual Comp'!$S20 -> 0 | H81: =($D$44+H$44)*'Residual Comp'!$S20 -> 0 | I81: =($D$44+I$44)*'Residual Comp'!$S20 -> 0 | J81: =($D$44+J$44)*'Residual Comp'!$S20 -> 0
B82: =Lists!H14 -> Textiles | D82: =Residual!$D$10*'Residual Comp'!S21 -> 0 | F82: =($D$44+F$44)*'Residual Comp'!$S21 -> 0 | G82: =($D$44+G$44)*'Residual Comp'!$S21 -> 0 | H82: =($D$44+H$44)*'Residual Comp'!$S21 -> 0 | I82: =($D$44+I$44)*'Residual Comp'!$S21 -> 0 | J82: =($D$44+J$44)*'Residual Comp'!$S21 -> 0
B83: =Lists!H15 -> Wood | D83: =Residual!$D$10*'Residual Comp'!S22 -> 0 | F83: =($D$44+F$44)*'Residual Comp'!$S22 -> 0 | G83: =($D$44+G$44)*'Residual Comp'!$S22 -> 0 | H83: =($D$44+H$44)*'Residual Comp'!$S22 -> 0 | I83: =($D$44+I$44)*'Residual Comp'!$S22 -> 0 | J83: =($D$44+J$44)*'Residual Comp'!$S22 -> 0
B84: =Lists!H16 -> WEEE | D84: =Residual!$D$10*'Residual Comp'!S23 -> 0 | F84: =($D$44+F$44)*'Residual Comp'!$S23 -> 0 | G84: =($D$44+G$44)*'Residual Comp'!$S23 -> 0 | H84: =($D$44+H$44)*'Residual Comp'!$S23 -> 0 | I84: =($D$44+I$44)*'Residual Comp'!$S23 -> 0 | J84: =($D$44+J$44)*'Residual Comp'!$S23 -> 0
B85: =Lists!H17 -> Food waste | D85: =Residual!$D$10*'Residual Comp'!S24 -> 0 | F85: =($D$44+F$44)*'Residual Comp'!$S24 -> 0 | G85: =($D$44+G$44)*'Residual Comp'!$S24 -> 0 | H85: =($D$44+H$44)*'Residual Comp'!$S24 -> 0 | I85: =($D$44+I$44)*'Residual Comp'!$S24 -> 0 | J85: =($D$44+J$44)*'Residual Comp'!$S24 -> 0
B86: =Lists!H18 -> Garden Waste | D86: =Residual!$D$10*'Residual Comp'!S25 -> 0 | F86: =($D$44+F$44)*'Residual Comp'!$S25 -> 0 | G86: =($D$44+G$44)*'Residual Comp'!$S25 -> 0 | H86: =($D$44+H$44)*'Residual Comp'!$S25 -> 0 | I86: =($D$44+I$44)*'Residual Comp'!$S25 -> 0 | J86: =($D$44+J$44)*'Residual Comp'!$S25 -> 0
B87: =Lists!H19 -> Mixed Food and Garden Waste | D87: =Residual!$D$10*'Residual Comp'!S26 -> 0 | F87: =($D$44+F$44)*'Residual Comp'!$S26 -> 0 | G87: =($D$44+G$44)*'Residual Comp'!$S26 -> 0 | H87: =($D$44+H$44)*'Residual Comp'!$S26 -> 0 | I87: =($D$44+I$44)*'Residual Comp'!$S26 -> 0 | J87: =($D$44+J$44)*'Residual Comp'!$S26 -> 0
B88: =Lists!H20 -> Material Recycled not classified (mineral oil etc.) | D88: =Residual!$D$10*'Residual Comp'!S27 -> 0 | F88: =($D$44+F$44)*'Residual Comp'!$S27 -> 0 | G88: =($D$44+G$44)*'Residual Comp'!$S27 -> 0 | H88: =($D$44+H$44)*'Residual Comp'!$S27 -> 0 | I88: =($D$44+I$44)*'Residual Comp'!$S27 -> 0 | J88: =($D$44+J$44)*'Residual Comp'!$S27 -> 0
B89: =Lists!H21 -> Rubble, Soil, Plasterboard | D89: =Residual!$D$10*'Residual Comp'!S28 -> 0 | F89: =($D$44+F$44)*'Residual Comp'!$S28 -> 0 | G89: =($D$44+G$44)*'Residual Comp'!$S28 -> 0 | H89: =($D$44+H$44)*'Residual Comp'!$S28 -> 0 | I89: =($D$44+I$44)*'Residual Comp'!$S28 -> 0 | J89: =($D$44+J$44)*'Residual Comp'!$S28 -> 0
B90: =Lists!H22 -> Other Materials | D90: =Residual!$D$10*'Residual Comp'!S29 -> 0 | F90: =($D$44+F$44)*'Residual Comp'!$S29 -> 0 | G90: =($D$44+G$44)*'Residual Comp'!$S29 -> 0 | H90: =($D$44+H$44)*'Residual Comp'!$S29 -> 0 | I90: =($D$44+I$44)*'Residual Comp'!$S29 -> 0 | J90: =($D$44+J$44)*'Residual Comp'!$S29 -> 0
B92: Total C&I Residual | D92: =SUM(D77:D90) -> 0 | F92: =SUM(F77:F90) -> 0 | G92: =SUM(G77:G90) -> 0 | H92: =SUM(H77:H90) -> 0 | I92: =SUM(I77:I90) -> 0 | J92: =SUM(J77:J90) -> 0
B94: Organics | D94: =SUM(D85:D87) -> 0 | F94: =SUM(F85:F87) -> 0 | G94: =SUM(G85:G87) -> 0 | H94: =SUM(H85:H87) -> 0 | I94: =SUM(I85:I87) -> 0 | J94: =SUM(J85:J87) -> 0
A96: ="@"&COUNTIF(A$1:A95,"@*")+1 -> @5 | B96: Commercial Waste Total Arisings (breakdown - information only)
B97: Information only: material breakdown of commercial waste
D99: ='Explore Improvements'!D$17 -> Baseline | F99: ='Explore Improvements'!E$18 -> Name Scenario 1 | G99: ='Explore Improvements'!F$18 -> Name Scenario 2 | H99: ='Explore Improvements'!G$18 -> Name Scenario 3 | I99: ='Explore Improvements'!H$18 -> Name Scenario 4 | J99: ='Explore Improvements'!I$18 -> Name Scenario 5
B100: =Lists!H9 -> Paper / Card | D100: =D77 + D54 -> 0 | F100: =F77 + F54 -> 0 | G100: 0 | H100: 0 | I100: 0 | J100: 0
B101: =Lists!H10 -> Glass | D101: 0 | F101: 0 | G101: 0 | H101: 0 | I101: 0 | J101: 0
B102: =Lists!H11 -> Ferrous Metals | D102: 0 | F102: 0 | G102: 0 | H102: 0 | I102: 0 | J102: 0
B103: =Lists!H12 -> Non-Ferrous Metals | D103: 0 | F103: 0 | G103: 0 | H103: 0 | I103: 0 | J103: 0
B104: =Lists!H13 -> Plastics | D104: 0 | F104: 0 | G104: 0 | H104: 0 | I104: 0 | J104: 0
B105: =Lists!H14 -> Textiles | D105: 0 | F105: 0 | G105: 0 | H105: 0 | I105: 0 | J105: 0
B106: =Lists!H15 -> Wood | D106: 0 | F106: 0 | G106: 0 | H106: 0 | I106: 0 | J106: 0
B107: =Lists!H16 -> WEEE | D107: 0 | F107: 0 | G107: 0 | H107: 0 | I107: 0 | J107: 0
B108: =Lists!H17 -> Food waste | D108: 0 | F108: 0 | G108: 0 | H108: 0 | I108: 0 | J108: 0
B109: =Lists!H18 -> Garden Waste | D109: 0 | F109: 0 | G109: 0 | H109: 0 | I109: 0 | J109: 0
B110: =Lists!H19 -> Mixed Food and Garden Waste | D110: 0 | F110: 0 | G110: 0 | H110: 0 | I110: 0 | J110: 0
B111: =Lists!H20 -> Material Recycled not classified (mineral oil etc.) | D111: 0 | F111: 0 | G111: 0 | H111: 0 | I111: 0 | J111: 0
B112: Soil, Rubble, Plasterboard | D112: 0 | F112: 0 | G112: 0 | H112: 0 | I112: 0 | J112: 0
B113: =Lists!H22 -> Other Materials | D113: 0 | F113: 0 | G113: 0 | H113: 0 | I113: 0 | J113: 0
B115: Total C&I Arisings | D115: =SUM(D100:D113) -> 0 | F115: =SUM(F100:F113) -> 0 | G115: =SUM(G100:G113) -> 0 | H115: =SUM(H100:H113) -> 0 | I115: =SUM(I100:I113) -> 0 | J115: =SUM(J100:J113) -> 0
B117: Organics | D117: =SUM(D108:D110) -> 0 | F117: =SUM(F108:F110) -> 0 | G117: =SUM(G108:G110) -> 0 | H117: =SUM(H108:H110) -> 0 | I117: =SUM(I108:I110) -> 0 | J117: =SUM(J108:J110) -> 0
A119: ="@"&COUNTIF(A$1:A118,"@*")+1 -> @6

Sheet Other Recycling
H3: =HYPERLINK("#'Explore Improvements'!B12","-> Return to Overview") -> -> Return to Overview
A11: ="@"&COUNTIF(A$1:A10,"@*")+1 -> @1 | B11: Other Waste not from Households (WnfH) Recycling
A13: ="@"&COUNTIF(A$1:A12,"@*")+1 -> @2 | B13: Other WnfH Captured for Recycling | U13: Supporting Notes or Calculations
B14: Enter additional recycling tonnages for other waste not from households
F16: Change from Baseline (tonnes) | N16: Generated Capture Rate
D17: ='Explore Improvements'!D$17 -> Baseline | F17: ='Explore Improvements'!E$18 -> Name Scenario 1 | G17: ='Explore Improvements'!F$18 -> Name Scenario 2 | H17: ='Explore Improvements'!G$18 -> Name Scenario 3 | I17: ='Explore Improvements'!H$18 -> Name Scenario 4 | J17: ='Explore Improvements'!I$18 -> Name Scenario 5 | N17: =F17 -> Name Scenario 1 | O17: =G17 -> Name Scenario 2 | P17: =H17 -> Name Scenario 3 | Q17: =I17 -> Name Scenario 4 | R17: =J17 -> Name Scenario 5
B18: =Lists!H9 -> Paper / Card | D18: =Recycling!D97 -> 0 | N18: =IF(Arisings!F79>0,($D18+F18)/Arisings!F79,0) -> 0 | O18: =IF(Arisings!G79>0,($D18+G18)/Arisings!G79,0) -> 0 | P18: =IF(Arisings!H79>0,($D18+H18)/Arisings!H79,0) -> 0 | Q18: =IF(Arisings!I79>0,($D18+I18)/Arisings!I79,0) -> 0 | R18: =IF(Arisings!J79>0,($D18+J18)/Arisings!J79,0) -> 0
B19: =Lists!H10 -> Glass | D19: =Recycling!D98 -> 0 | N19: =IF(Arisings!F80>0,($D19+F19)/Arisings!F80,0) -> 0 | O19: =IF(Arisings!G80>0,($D19+G19)/Arisings!G80,0) -> 0 | P19: =IF(Arisings!H80>0,($D19+H19)/Arisings!H80,0) -> 0 | Q19: =IF(Arisings!I80>0,($D19+I19)/Arisings!I80,0) -> 0 | R19: =IF(Arisings!J80>0,($D19+J19)/Arisings!J80,0) -> 0
B20: =Lists!H11 -> Ferrous Metals | D20: =Recycling!D99 -> 0 | N20: =IF(Arisings!F81>0,($D20+F20)/Arisings!F81,0) -> 0 | O20: =IF(Arisings!G81>0,($D20+G20)/Arisings!G81,0) -> 0 | P20: =IF(Arisings!H81>0,($D20+H20)/Arisings!H81,0) -> 0 | Q20: =IF(Arisings!I81>0,($D20+I20)/Arisings!I81,0) -> 0 | R20: =IF(Arisings!J81>0,($D20+J20)/Arisings!J81,0) -> 0
B21: =Lists!H12 -> Non-Ferrous Metals | D21: =Recycling!D100 -> 0 | N21: =IF(Arisings!F82>0,($D21+F21)/Arisings!F82,0) -> 0 | O21: =IF(Arisings!G82>0,($D21+G21)/Arisings!G82,0) -> 0 | P21: =IF(Arisings!H82>0,($D21+H21)/Arisings!H82,0) -> 0 | Q21: =IF(Arisings!I82>0,($D21+I21)/Arisings!I82,0) -> 0 | R21: =IF(Arisings!J82>0,($D21+J21)/Arisings!J82,0) -> 0
B22: =Lists!H13 -> Plastics | D22: =Recycling!D101 -> 0 | N22: =IF(Arisings!F83>0,($D22+F22)/Arisings!F83,0) -> 0 | O22: =IF(Arisings!G83>0,($D22+G22)/Arisings!G83,0) -> 0 | P22: =IF(Arisings!H83>0,($D22+H22)/Arisings!H83,0) -> 0 | Q22: =IF(Arisings!I83>0,($D22+I22)/Arisings!I83,0) -> 0 | R22: =IF(Arisings!J83>0,($D22+J22)/Arisings!J83,0) -> 0
B23: =Lists!H14 -> Textiles | D23: =Recycling!D102 -> 0 | N23: =IF(Arisings!F84>0,($D23+F23)/Arisings!F84,0) -> 0 | O23: =IF(Arisings!G84>0,($D23+G23)/Arisings!G84,0) -> 0 | P23: =IF(Arisings!H84>0,($D23+H23)/Arisings!H84,0) -> 0 | Q23: =IF(Arisings!I84>0,($D23+I23)/Arisings!I84,0) -> 0 | R23: =IF(Arisings!J84>0,($D23+J23)/Arisings!J84,0) -> 0
B24: =Lists!H15 -> Wood | D24: =Recycling!D103 -> 0 | N24: =IF(Arisings!F85>0,($D24+F24)/Arisings!F85,0) -> 0 | O24: =IF(Arisings!G85>0,($D24+G24)/Arisings!G85,0) -> 0 | P24: =IF(Arisings!H85>0,($D24+H24)/Arisings!H85,0) -> 0 | Q24: =IF(Arisings!I85>0,($D24+I24)/Arisings!I85,0) -> 0 | R24: =IF(Arisings!J85>0,($D24+J24)/Arisings!J85,0) -> 0
B25: =Lists!H16 -> WEEE | D25: =Recycling!D104 -> 0 | N25: =IF(Arisings!F86>0,($D25+F25)/Arisings!F86,0) -> 0 | O25: =IF(Arisings!G86>0,($D25+G25)/Arisings!G86,0) -> 0 | P25: =IF(Arisings!H86>0,($D25+H25)/Arisings!H86,0) -> 0 | Q25: =IF(Arisings!I86>0,($D25+I25)/Arisings!I86,0) -> 0 | R25: =IF(Arisings!J86>0,($D25+J25)/Arisings!J86,0) -> 0
B26: =Lists!H17 -> Food waste | D26: =Recycling!D105 -> 0 | N26: =IF(Arisings!F87>0,($D26+F26)/Arisings!F87,0) -> 0 | O26: =IF(Arisings!G87>0,($D26+G26)/Arisings!G87,0) -> 0 | P26: =IF(Arisings!H87>0,($D26+H26)/Arisings!H87,0) -> 0 | Q26: =IF(Arisings!I87>0,($D26+I26)/Arisings!I87,0) -> 0 | R26: =IF(Arisings!J87>0,($D26+J26)/Arisings!J87,0) -> 0
B27: =Lists!H18 -> Garden Waste | D27: =Recycling!D106 -> 0 | N27: =IF(Arisings!F88>0,($D27+F27)/Arisings!F88,0) -> 0 | O27: =IF(Arisings!G88>0,($D27+G27)/Arisings!G88,0) -> 0 | P27: =IF(Arisings!H88>0,($D27+H27)/Arisings!H88,0) -> 0 | Q27: =IF(Arisings!I88>0,($D27+I27)/Arisings!I88,0) -> 0 | R27: =IF(Arisings!J88>0,($D27+J27)/Arisings!J88,0) -> 0
B28: =Lists!H19 -> Mixed Food and Garden Waste | D28: =Recycling!D107 -> 0 | N28: =IF(Arisings!F89>0,($D28+F28)/Arisings!F89,0) -> 0 | O28: =IF(Arisings!G89>0,($D28+G28)/Arisings!G89,0) -> 0 | P28: =IF(Arisings!H89>0,($D28+H28)/Arisings!H89,0) -> 0 | Q28: =IF(Arisings!I89>0,($D28+I28)/Arisings!I89,0) -> 0 | R28: =IF(Arisings!J89>0,($D28+J28)/Arisings!J89,0) -> 0
B29: =Lists!H20 -> Material Recycled not classified (mineral oil etc.) | D29: =Recycling!D108 -> 0 | N29: =IF(Arisings!F90>0,($D29+F29)/Arisings!F90,0) -> 0 | O29: =IF(Arisings!G90>0,($D29+G29)/Arisings!G90,0) -> 0 | P29: =IF(Arisings!H90>0,($D29+H29)/Arisings!H90,0) -> 0 | Q29: =IF(Arisings!I90>0,($D29+I29)/Arisings!I90,0) -> 0 | R29: =IF(Arisings!J90>0,($D29+J29)/Arisings!J90,0) -> 0
B30: =Lists!H21 -> Rubble, Soil, Plasterboard | D30: =Recycling!D109 -> 0 | N30: =IF(Arisings!F91>0,($D30+F30)/Arisings!F91,0) -> 0 | O30: =IF(Arisings!G91>0,($D30+G30)/Arisings!G91,0) -> 0 | P30: =IF(Arisings!H91>0,($D30+H30)/Arisings!H91,0) -> 0 | Q30: =IF(Arisings!I91>0,($D30+I30)/Arisings!I91,0) -> 0 | R30: =IF(Arisings!J91>0,($D30+J30)/Arisings!J91,0) -> 0
B31: Add Notes

Sheet Capture Rate Review
H3: =HYPERLINK("#'Explore Improvements'!B12","-> Return to Overview") -> -> Return to Overview
A11: ="@"&COUNTIF(A$1:A10,"@*")+1 -> @1 | B11: LACW Capture Rates
B12: Information only: Calculation of (Recycling + Reuse)/Arisings
D14: ='Explore Improvements'!D$17 -> Baseline | F14: ='Explore Improvements'!E$18 -> Name Scenario 1 | G14: ='Explore Improvements'!F$18 -> Name Scenario 2 | H14: ='Explore Improvements'!G$18 -> Name Scenario 3 | I14: ='Explore Improvements'!H$18 -> Name Scenario 4 | J14: ='Explore Improvements'!I$18 -> Name Scenario 5
B15: =Lists!B9 -> Paper / Card | D15: =IF(Arisings!D31>0,(Recycling!D17+Reuse!D67)/Arisings!D31,0) ->  | F15: =IF(Arisings!F31>0,(Recycling!F17+Reuse!F67)/Arisings!F31,0) -> 0 | G15: =IF(Arisings!G31>0,(Recycling!G17+Reuse!G67)/Arisings!G31,0) -> 0 | H15: =IF(Arisings!H31>0,(Recycling!H17+Reuse!H67)/Arisings!H31,0) -> 0 | I15: =IF(Arisings!I31>0,(Recycling!I17+Reuse!I67)/Arisings!I31,0) -> 0 | J15: =IF(Arisings!J31>0,(Recycling!J17+Reuse!J67)/Arisings!J31,0) -> 0
B16: =Lists!B10 -> Glass | D16: =IF(Arisings!D32>0,(Recycling!D18+Reuse!D68)/Arisings!D32,0) ->  | F16: =IF(Arisings!F32>0,(Recycling!F18+Reuse!F68)/Arisings!F32,0) -> 0 | G16: =IF(Arisings!G32>0,(Recycling!G18+Reuse!G68)/Arisings!G32,0) -> 0 | H16: =IF(Arisings!H32>0,(Recycling!H18+Reuse!H68)/Arisings!H32,0) -> 0 | I16: =IF(Arisings!I32>0,(Recycling!I18+Reuse!I68)/Arisings!I32,0) -> 0 | J16: =IF(Arisings!J32>0,(Recycling!J18+Reuse!J68)/Arisings!J32,0) -> 0
B17: =Lists!B11 -> Ferrous Metals | D17: =IF(Arisings!D33>0,(Recycling!D19+Reuse!D69)/Arisings!D33,0) ->  | F17: =IF(Arisings!F33>0,(Recycling!F19+Reuse!F69)/Arisings!F33,0) -> 0 | G17: =IF(Arisings!G33>0,(Recycling!G19+Reuse!G69)/Arisings!G33,0) -> 0 | H17: =IF(Arisings!H33>0,(Recycling!H19+Reuse!H69)/Arisings!H33,0) -> 0 | I17: =IF(Arisings!I33>0,(Recycling!I19+Reuse!I69)/Arisings!I33,0) -> 0 | J17: =IF(Arisings!J33>0,(Recycling!J19+Reuse!J69)/Arisings!J33,0) -> 0
B18: =Lists!B12 -> Non-Ferrous Metals | D18: =IF(Arisings!D34>0,(Recycling!D20+Reuse!D70)/Arisings!D34,0) ->  | F18: =IF(Arisings!F34>0,(Recycling!F20+Reuse!F70)/Arisings!F34,0) -> 0 | G18: =IF(Arisings!G34>0,(Recycling!G20+Reuse!G70)/Arisings!G34,0) -> 0 | H18: =IF(Arisings!H34>0,(Recycling!H20+Reuse!H70)/Arisings!H34,0) -> 0 | I18: =IF(Arisings!I34>0,(Recycling!I20+Reuse!I70)/Arisings!I34,0) -> 0 | J18: =IF(Arisings!J34>0,(Recycling!J20+Reuse!J70)/Arisings!J34,0) -> 0
B19: =Lists!B13 -> Plastics | D19: =IF(Arisings!D35>0,(Recycling!D21+Reuse!D71)/Arisings!D35,0) ->  | F19: =IF(Arisings!F35>0,(Recycling!F21+Reuse!F71)/Arisings!F35,0) -> 0 | G19: =IF(Arisings!G35>0,(Recycling!G21+Reuse!G71)/Arisings!G35,0) -> 0 | H19: =IF(Arisings!H35>0,(Recycling!H21+Reuse!H71)/Arisings!H35,0) -> 0 | I19: =IF(Arisings!I35>0,(Recycling!I21+Reuse!I71)/Arisings!I35,0) -> 0 | J19: =IF(Arisings!J35>0,(Recycling!J21+Reuse!J71)/Arisings!J35,0) -> 0
B20: =Lists!B14 -> Textiles | D20: =IF(Arisings!D36>0,(Recycling!D22+Reuse!D72)/Arisings!D36,0) ->  | F20: =IF(Arisings!F36>0,(Recycling!F22+Reuse!F72)/Arisings!F36,0) -> 0 | G20: =IF(Arisings!G36>0,(Recycling!G22+Reuse!G72)/Arisings!G36,0) -> 0 | H20: =IF(Arisings!H36>0,(Recycling!H22+Reuse!H72)/Arisings!H36,0) -> 0 | I20: =IF(Arisings!I36>0,(Recycling!I22+Reuse!I72)/Arisings!I36,0) -> 0 | J20: =IF(Arisings!J36>0,(Recycling!J22+Reuse!J72)/Arisings!J36,0) -> 0
B21: =Lists!B15 -> Wood | D21: =IF(Arisings!D37>0,(Recycling!D23+Reuse!D73)/Arisings!D37,0) ->  | F21: =IF(Arisings!F37>0,(Recycling!F23+Reuse!F73)/Arisings!F37,0) -> 0 | G21: =IF(Arisings!G37>0,(Recycling!G23+Reuse!G73)/Arisings!G37,0) -> 0 | H21: =IF(Arisings!H37>0,(Recycling!H23+Reuse!H73)/Arisings!H37,0) -> 0 | I21: =IF(Arisings!I37>0,(Recycling!I23+Reuse!I73)/Arisings!I37,0) -> 0 | J21: =IF(Arisings!J37>0,(Recycling!J23+Reuse!J73)/Arisings!J37,0) -> 0
B22: =Lists!B16 -> WEEE | D22: =IF(Arisings!D38>0,(Recycling!D24+Reuse!D74)/Arisings!D38,0) ->  | F22: =IF(Arisings!F38>0,(Recycling!F24+Reuse!F74)/Arisings!F38,0) -> 0 | G22: =IF(Arisings!G38>0,(Recycling!G24+Reuse!G74)/Arisings!G38,0) -> 0 | H22: =IF(Arisings!H38>0,(Recycling!H24+Reuse!H74)/Arisings!H38,0) -> 0 | I22: =IF(Arisings!I38>0,(Recycling!I24+Reuse!I74)/Arisings!I38,0) -> 0 | J22: =IF(Arisings!J38>0,(Recycling!J24+Reuse!J74)/Arisings!J38,0) -> 0
B23: =Lists!B17 -> Food waste | D23: =IF(Arisings!D39>0,(Recycling!D25+Reuse!D75)/Arisings!D39,0) ->  | F23: =IF(Arisings!F39>0,(Recycling!F25+Reuse!F75)/Arisings!F39,0) -> 0 | G23: =IF(Arisings!G39>0,(Recycling!G25+Reuse!G75)/Arisings!G39,0) -> 0 | H23: =IF(Arisings!H39>0,(Recycling!H25+Reuse!H75)/Arisings!H39,0) -> 0 | I23: =IF(Arisings!I39>0,(Recycling!I25+Reuse!I75)/Arisings!I39,0) -> 0 | J23: =IF(Arisings!J39>0,(Recycling!J25+Reuse!J75)/Arisings!J39,0) -> 0
B24: =Lists!B18 -> Garden Waste | D24: =IF(Arisings!D40>0,(Recycling!D26+Reuse!D76)/Arisings!D40,0) ->  | F24: =IF(Arisings!F40>0,(Recycling!F26+Reuse!F76)/Arisings!F40,0) -> 0 | G24: =IF(Arisings!G40>0,(Recycling!G26+Reuse!G76)/Arisings!G40,0) -> 0 | H24: =IF(Arisings!H40>0,(Recycling!H26+Reuse!H76)/Arisings!H40,0) -> 0 | I24: =IF(Arisings!I40>0,(Recycling!I26+Reuse!I76)/Arisings!I40,0) -> 0 | J24: =IF(Arisings!J40>0,(Recycling!J26+Reuse!J76)/Arisings!J40,0) -> 0
B25: =Lists!B19 -> Mixed Food and Garden Waste | D25: =IF(Arisings!D41>0,(Recycling!D27+Reuse!D77)/Arisings!D41,0) ->  | F25: =IF(Arisings!F41>0,(Recycling!F27+Reuse!F77)/Arisings!F41,0) -> 0 | G25: =IF(Arisings!G41>0,(Recycling!G27+Reuse!G77)/Arisings!G41,0) -> 0 | H25: =IF(Arisings!H41>0,(Recycling!H27+Reuse!H77)/Arisings!H41,0) -> 0 | I25: =IF(Arisings!I41>0,(Recycling!I27+Reuse!I77)/Arisings!I41,0) -> 0 | J25: =IF(Arisings!J41>0,(Recycling!J27+Reuse!J77)/Arisings!J41,0) -> 0
B26: =Lists!B20 -> Material Recycled not classified (mineral oil etc.) | D26: =IF(Arisings!D42>0,(Recycling!D28+Reuse!D78)/Arisings!D42,0) ->  | F26: =IF(Arisings!F42>0,(Recycling!F28+Reuse!F78)/Arisings!F42,0) -> 0 | G26: =IF(Arisings!G42>0,(Recycling!G28+Reuse!G78)/Arisings!G42,0) -> 0 | H26: =IF(Arisings!H42>0,(Recycling!H28+Reuse!H78)/Arisings!H42,0) -> 0 | I26: =IF(Arisings!I42>0,(Recycling!I28+Reuse!I78)/Arisings!I42,0) -> 0 | J26: =IF(Arisings!J42>0,(Recycling!J28+Reuse!J78)/Arisings!J42,0) -> 0
B27: =Lists!B21 -> Rubble, Soil, Plasterboard | D27: =IF(Arisings!D43>0,(Recycling!D29+Reuse!D79)/Arisings!D43,0) ->  | F27: =IF(Arisings!F43>0,(Recycling!F29+Reuse!F79)/Arisings!F43,0) -> 0 | G27: =IF(Arisings!G43>0,(Recycling!G29+Reuse!G79)/Arisings!G43,0) -> 0 | H27: =IF(Arisings!H43>0,(Recycling!H29+Reuse!H79)/Arisings!H43,0) -> 0 | I27: =IF(Arisings!I43>0,(Recycling!I29+Reuse!I79)/Arisings!I43,0) -> 0 | J27: =IF(Arisings!J43>0,(Recycling!J29+Reuse!J79)/Arisings!J43,0) -> 0
B28: =Lists!B22 -> Other Materials
B30: All Food/Garden | D30: =(SUM(Recycling!D25:D27)+SUM(Reuse!D75:D77))/SUM(Arisings!D39:D41) ->  | F30: =(SUM(Recycling!F25:F27)+SUM(Reuse!F75:F77))/SUM(Arisings!F39:F41) ->  | G30: =(SUM(Recycling!G25:G27)+SUM(Reuse!G75:G77))/SUM(Arisings!G39:G41) ->  | H30: =(SUM(Recycling!H25:H27)+SUM(Reuse!H75:H77))/SUM(Arisings!H39:H41) ->  | I30: =(SUM(Recycling!I25:I27)+SUM(Reuse!I75:I77))/SUM(Arisings!I39:I41) ->  | J30: =(SUM(Recycling!J25:J27)+SUM(Reuse!J75:J77))/SUM(Arisings!J39:J41) -> 
A32: ="@"&COUNTIF('Capture Rate Review'!A$1:A31,"@*")+1 -> @2 | B32: WfH Recycling Capture Rates
B33: Target year capture rate for recycled material (reuse is additional)
B34: By default these cells are linked to the inputs calculated on the 'household recycling' page
D35: ='Explore Improvements'!D$17 -> Baseline | F35: ='Explore Improvements'!E$18 -> Name Scenario 1 | G35: ='Explore Improvements'!F$18 -> Name Scenario 2 | H35: ='Explore Improvements'!G$18 -> Name Scenario 3 | I35: ='Explore Improvements'!H$18 -> Name Scenario 4 | J35: ='Explore Improvements'!I$18 -> Name Scenario 5
B36: =Lists!B9 -> Paper / Card | D36: =IF(Arisings!D54>0,(Recycling!D43)/Arisings!D54,0) ->  | F36: ='Household Recycling'!N17 -> 0 | G36: ='Household Recycling'!O17 -> 0 | H36: ='Household Recycling'!P17 -> 0 | I36: ='Household Recycling'!Q17 -> 0 | J36: ='Household Recycling'!R17 -> 0
B37: =Lists!B10 -> Glass | D37: =IF(Arisings!D55>0,(Recycling!D44)/Arisings!D55,0) ->  | F37: ='Household Recycling'!N18 -> 0 | G37: ='Household Recycling'!O18 -> 0 | H37: ='Household Recycling'!P18 -> 0 | I37: ='Household Recycling'!Q18 -> 0 | J37: ='Household Recycling'!R18 -> 0
B38: =Lists!B11 -> Ferrous Metals | D38: =IF(Arisings!D56>0,(Recycling!D45)/Arisings!D56,0) ->  | F38: ='Household Recycling'!N19 -> 0 | G38: ='Household Recycling'!O19 -> 0 | H38: ='Household Recycling'!P19 -> 0 | I38: ='Household Recycling'!Q19 -> 0 | J38: ='Household Recycling'!R19 -> 0
B39: =Lists!B12 -> Non-Ferrous Metals | D39: =IF(Arisings!D57>0,(Recycling!D46)/Arisings!D57,0) ->  | F39: ='Household Recycling'!N20 -> 0 | G39: ='Household Recycling'!O20 -> 0 | H39: ='Household Recycling'!P20 -> 0 | I39: ='Household Recycling'!Q20 -> 0 | J39: ='Household Recycling'!R20 -> 0
B40: =Lists!B13 -> Plastics | D40: =IF(Arisings!D58>0,(Recycling!D47)/Arisings!D58,0) ->  | F40: ='Household Recycling'!N21 -> 0 | G40: ='Household Recycling'!O21 -> 0 | H40: ='Household Recycling'!P21 -> 0 | I40: ='Household Recycling'!Q21 -> 0 | J40: ='Household Recycling'!R21 -> 0
B41: =Lists!B14 -> Textiles | D41: =IF(Arisings!D59>0,(Recycling!D48)/Arisings!D59,0) ->  | F41: ='Household Recycling'!N22 -> 0 | G41: ='Household Recycling'!O22 -> 0 | H41: ='Household Recycling'!P22 -> 0 | I41: ='Household Recycling'!Q22 -> 0 | J41: ='Household Recycling'!R22 -> 0
B42: =Lists!B15 -> Wood | D42: =IF(Arisings!D60>0,(Recycling!D49)/Arisings!D60,0) ->  | F42: ='Household Recycling'!N23 -> 0 | G42: ='Household Recycling'!O23 -> 0 | H42: ='Household Recycling'!P23 -> 0 | I42: ='Household Recycling'!Q23 -> 0 | J42: ='Household Recycling'!R23 -> 0
B43: =Lists!B16 -> WEEE | D43: =IF(Arisings!D61>0,(Recycling!D50)/Arisings!D61,0) ->  | F43: ='Household Recycling'!N24 -> 0 | G43: ='Household Recycling'!O24 -> 0 | H43: ='Household Recycling'!P24 -> 0 | I43: ='Household Recycling'!Q24 -> 0 | J43: ='Household Recycling'!R24 -> 0
B44: =Lists!B17 -> Food waste | D44: =IF(Arisings!D62>0,(Recycling!D51)/Arisings!D62,0) ->  | F44: ='Household Recycling'!N25 -> 0 | G44: ='Household Recycling'!O25 -> 0 | H44: ='Household Recycling'!P25 -> 0 | I44: ='Household Recycling'!Q25 -> 0 | J44: ='Household Recycling'!R25 -> 0
B45: =Lists!B18 -> Garden Waste | D45: =IF(Arisings!D63>0,(Recycling!D52)/Arisings!D63,0) ->  | F45: ='Household Recycling'!N26 -> 0 | G45: ='Household Recycling'!O26 -> 0 | H45: ='Household Recycling'!P26 -> 0 | I45: ='Household Recycling'!Q26 -> 0 | J45: ='Household Recycling'!R26 -> 0
B46: =Lists!B19 -> Mixed Food and Garden Waste | D46: =IF(Arisings!D64>0,(Recycling!D53)/Arisings!D64,0) ->  | F46: ='Household Recycling'!N27 -> 0 | G46: ='Household Recycling'!O27 -> 0 | H46: ='Household Recycling'!P27 -> 0 | I46: ='Household Recycling'!Q27 -> 0 | J46: ='Household Recycling'!R27 -> 0
B47: =Lists!B20 -> Material Recycled not classified (mineral oil etc.) | D47: =IF(Arisings!D65>0,(Recycling!D54)/Arisings!D65,0) ->  | F47: ='Household Recycling'!N28 -> 0 | G47: ='Household Recycling'!O28 -> 0 | H47: ='Household Recycling'!P28 -> 0 | I47: ='Household Recycling'!Q28 -> 0 | J47: ='Household Recycling'!R28 -> 0
B48: =Lists!B21 -> Rubble, Soil, Plasterboard | D48: =IF(Arisings!D66>0,(Recycling!D55)/Arisings!D66,0) ->  | F48: ='Household Recycling'!N29 -> 0 | G48: ='Household Recycling'!O29 -> 0 | H48: ='Household Recycling'!P29 -> 0 | I48: ='Household Recycling'!Q29 -> 0 | J48: ='Household Recycling'!R29 -> 0
B49: =Lists!B22 -> Other Materials
B51: All Food/Garden | D51: =(Recycling!D65)/Arisings!D72 ->  | F51: =(Recycling!F65)/Arisings!F72 ->  | G51: =(Recycling!G65)/Arisings!G72 ->  | H51: =(Recycling!H65)/Arisings!H72 ->  | I51: =(Recycling!I65)/Arisings!I72 ->  | J51: =(Recycling!J65)/Arisings!J72 -> 
B53: WfH Recycling Rate
W54: .
B55: kg/hh calculations for reference
D57: ='Explore Improvements'!D$17 -> Baseline | F57: ='Explore Improvements'!E$18 -> Name Scenario 1 | G57: ='Explore Improvements'!F$18 -> Name Scenario 2 | H57: ='Explore Improvements'!G$18 -> Name Scenario 3 | I57: ='Explore Improvements'!H$18 -> Name Scenario 4 | J57: ='Explore Improvements'!I$18 -> Name Scenario 5
B58: Dry kg/hh incl rejects | D58: =SUM('Recycling and Reuse'!D38,'Recycling and Reuse'!D36)*1000/'Start Here'!$C$34 ->  | F58: =SUM('Recycling and Reuse'!F38,'Recycling and Reuse'!F36)*1000/Arisings!F$16 ->  | G58: =SUM('Recycling and Reuse'!G38,'Recycling and Reuse'!G36)*1000/Arisings!G$16 ->  | H58: =SUM('Recycling and Reuse'!H38,'Recycling and Reuse'!H36)*1000/Arisings!H$16 ->  | I58: =SUM('Recycling and Reuse'!I38,'Recycling and Reuse'!I36)*1000/Arisings!I$16 ->  | J58: =SUM('Recycling and Reuse'!J38,'Recycling and Reuse'!J36)*1000/Arisings!J$16 -> 
B59: Kerbside dry kg/hh incl. rejects | D59: =Collections!V96 ->  | F59: =$D59+(F58-$D58) ->  | G59: =$D59+(G58-$D58) ->  | H59: =$D59+(H58-$D58) ->  | I59: =$D59+(I58-$D58) ->  | J59: =$D59+(J58-$D58) -> 
B60: Rejects kg/hh | D60: =SUM('Recycling and Reuse'!D36)*1000/'Start Here'!$C$34 ->  | F60: =SUM('Recycling and Reuse'!F36)*1000/Arisings!F$16 ->  | G60: =SUM('Recycling and Reuse'!G36)*1000/Arisings!G$16 ->  | H60: =SUM('Recycling and Reuse'!H36)*1000/Arisings!H$16 ->  | I60: =SUM('Recycling and Reuse'!I36)*1000/Arisings!I$16 ->  | J60: =SUM('Recycling and Reuse'!J36)*1000/Arisings!J$16 -> 
B62: Food kg/hh | D62: ='Recycling and Reuse'!D63*1000/'Start Here'!$C$34 ->  | F62: ='Recycling and Reuse'!F63*1000/Arisings!F$16 ->  | G62: ='Recycling and Reuse'!G63*1000/Arisings!G$16 ->  | H62: ='Recycling and Reuse'!H63*1000/Arisings!H$16 ->  | I62: ='Recycling and Reuse'!I63*1000/Arisings!I$16 ->  | J62: ='Recycling and Reuse'!J63*1000/Arisings!J$16 -> 
B63: Garden kg/hh | D63: ='Recycling and Reuse'!D64*1000/'Start Here'!$C$34 ->  | F63: ='Recycling and Reuse'!F64*1000/Arisings!F$16 ->  | G63: ='Recycling and Reuse'!G64*1000/Arisings!G$16 ->  | H63: ='Recycling and Reuse'!H64*1000/Arisings!H$16 ->  | I63: ='Recycling and Reuse'!I64*1000/Arisings!I$16 ->  | J63: ='Recycling and Reuse'!J64*1000/Arisings!J$16 -> 
B64: Mixed Organics kg/hh | D64: ='Recycling and Reuse'!D65*1000/'Start Here'!$C$34 ->  | F64: ='Recycling and Reuse'!F65*1000/Arisings!F$16 ->  | G64: ='Recycling and Reuse'!G65*1000/Arisings!G$16 ->  | H64: ='Recycling and Reuse'!H65*1000/Arisings!H$16 ->  | I64: ='Recycling and Reuse'!I65*1000/Arisings!I$16 ->  | J64: ='Recycling and Reuse'!J65*1000/Arisings!J$16 -> 
A67: ="@"&COUNTIF(A$1:A31,"@*")+1 -> @2 | B67: Commercial Waste Recycling Capture Rates
B68: Information only. Material-specific recycling rates (collected for recycling)
D70: ='Explore Improvements'!D$17 -> Baseline | F70: ='Explore Improvements'!E$18 -> Name Scenario 1 | G70: ='Explore Improvements'!F$18 -> Name Scenario 2 | H70: ='Explore Improvements'!G$18 -> Name Scenario 3 | I70: ='Explore Improvements'!H$18 -> Name Scenario 4 | J70: ='Explore Improvements'!I$18 -> Name Scenario 5
B71: =Lists!H9 -> Paper / Card | D71: =IF('Commercial Waste'!D100>0,Recycling!D71/'Commercial Waste'!D100,0) -> 0 | F71: =IF('Commercial Waste'!F100>0,'Commercial Waste'!F54/'Commercial Waste'!F100,0) -> 0 | G71: =IF('Commercial Waste'!G100>0,'Commercial Waste'!G54/'Commercial Waste'!G100,0) -> 0 | H71: =IF('Commercial Waste'!H100>0,'Commercial Waste'!H54/'Commercial Waste'!H100,0) -> 0 | I71: =IF('Commercial Waste'!I100>0,'Commercial Waste'!I54/'Commercial Waste'!I100,0) -> 0 | J71: =IF('Commercial Waste'!J100>0,'Commercial Waste'!J54/'Commercial Waste'!J100,0) -> 0
B72: =Lists!H10 -> Glass | D72: =IF('Commercial Waste'!D101>0,Recycling!D72/'Commercial Waste'!D101,0) -> 0 | F72: =IF('Commercial Waste'!F101>0,'Commercial Waste'!F55/'Commercial Waste'!F101,0) -> 0 | G72: =IF('Commercial Waste'!G101>0,'Commercial Waste'!G55/'Commercial Waste'!G101,0) -> 0 | H72: =IF('Commercial Waste'!H101>0,'Commercial Waste'!H55/'Commercial Waste'!H101,0) -> 0 | I72: =IF('Commercial Waste'!I101>0,'Commercial Waste'!I55/'Commercial Waste'!I101,0) -> 0 | J72: =IF('Commercial Waste'!J101>0,'Commercial Waste'!J55/'Commercial Waste'!J101,0) -> 0
B73: =Lists!H11 -> Ferrous Metals | D73: =IF('Commercial Waste'!D102>0,Recycling!D73/'Commercial Waste'!D102,0) -> 0 | F73: =IF('Commercial Waste'!F102>0,'Commercial Waste'!F56/'Commercial Waste'!F102,0) -> 0 | G73: =IF('Commercial Waste'!G102>0,'Commercial Waste'!G56/'Commercial Waste'!G102,0) -> 0 | H73: =IF('Commercial Waste'!H102>0,'Commercial Waste'!H56/'Commercial Waste'!H102,0) -> 0 | I73: =IF('Commercial Waste'!I102>0,'Commercial Waste'!I56/'Commercial Waste'!I102,0) -> 0 | J73: =IF('Commercial Waste'!J102>0,'Commercial Waste'!J56/'Commercial Waste'!J102,0) -> 0
B74: =Lists!H12 -> Non-Ferrous Metals | D74: =IF('Commercial Waste'!D103>0,Recycling!D74/'Commercial Waste'!D103,0) -> 0 | F74: =IF('Commercial Waste'!F103>0,'Commercial Waste'!F57/'Commercial Waste'!F103,0) -> 0 | G74: =IF('Commercial Waste'!G103>0,'Commercial Waste'!G57/'Commercial Waste'!G103,0) -> 0 | H74: =IF('Commercial Waste'!H103>0,'Commercial Waste'!H57/'Commercial Waste'!H103,0) -> 0 | I74: =IF('Commercial Waste'!I103>0,'Commercial Waste'!I57/'Commercial Waste'!I103,0) -> 0 | J74: =IF('Commercial Waste'!J103>0,'Commercial Waste'!J57/'Commercial Waste'!J103,0) -> 0
B75: =Lists!H13 -> Plastics | D75: =IF('Commercial Waste'!D104>0,Recycling!D75/'Commercial Waste'!D104,0) -> 0 | F75: =IF('Commercial Waste'!F104>0,'Commercial Waste'!F58/'Commercial Waste'!F104,0) -> 0 | G75: =IF('Commercial Waste'!G104>0,'Commercial Waste'!G58/'Commercial Waste'!G104,0) -> 0 | H75: =IF('Commercial Waste'!H104>0,'Commercial Waste'!H58/'Commercial Waste'!H104,0) -> 0 | I75: =IF('Commercial Waste'!I104>0,'Commercial Waste'!I58/'Commercial Waste'!I104,0) -> 0 | J75: =IF('Commercial Waste'!J104>0,'Commercial Waste'!J58/'Commercial Waste'!J104,0) -> 0
B76: =Lists!H14 -> Textiles | D76: =IF('Commercial Waste'!D105>0,Recycling!D76/'Commercial Waste'!D105,0) -> 0 | F76: =IF('Commercial Waste'!F105>0,'Commercial Waste'!F59/'Commercial Waste'!F105,0) -> 0 | G76: =IF('Commercial Waste'!G105>0,'Commercial Waste'!G59/'Commercial Waste'!G105,0) -> 0 | H76: =IF('Commercial Waste'!H105>0,'Commercial Waste'!H59/'Commercial Waste'!H105,0) -> 0 | I76: =IF('Commercial Waste'!I105>0,'Commercial Waste'!I59/'Commercial Waste'!I105,0) -> 0 | J76: =IF('Commercial Waste'!J105>0,'Commercial Waste'!J59/'Commercial Waste'!J105,0) -> 0
B77: =Lists!H15 -> Wood | D77: =IF('Commercial Waste'!D106>0,Recycling!D77/'Commercial Waste'!D106,0) -> 0 | F77: =IF('Commercial Waste'!F106>0,'Commercial Waste'!F60/'Commercial Waste'!F106,0) -> 0 | G77: =IF('Commercial Waste'!G106>0,'Commercial Waste'!G60/'Commercial Waste'!G106,0) -> 0 | H77: =IF('Commercial Waste'!H106>0,'Commercial Waste'!H60/'Commercial Waste'!H106,0) -> 0 | I77: =IF('Commercial Waste'!I106>0,'Commercial Waste'!I60/'Commercial Waste'!I106,0) -> 0 | J77: =IF('Commercial Waste'!J106>0,'Commercial Waste'!J60/'Commercial Waste'!J106,0) -> 0
B78: =Lists!H16 -> WEEE | D78: =IF('Commercial Waste'!D107>0,Recycling!D78/'Commercial Waste'!D107,0) -> 0 | F78: =IF('Commercial Waste'!F107>0,'Commercial Waste'!F61/'Commercial Waste'!F107,0) -> 0 | G78: =IF('Commercial Waste'!G107>0,'Commercial Waste'!G61/'Commercial Waste'!G107,0) -> 0 | H78: =IF('Commercial Waste'!H107>0,'Commercial Waste'!H61/'Commercial Waste'!H107,0) -> 0 | I78: =IF('Commercial Waste'!I107>0,'Commercial Waste'!I61/'Commercial Waste'!I107,0) -> 0 | J78: =IF('Commercial Waste'!J107>0,'Commercial Waste'!J61/'Commercial Waste'!J107,0) -> 0
B79: =Lists!H17 -> Food waste | D79: =IF('Commercial Waste'!D108>0,Recycling!D79/'Commercial Waste'!D108,0) -> 0 | F79: =IF('Commercial Waste'!F108>0,'Commercial Waste'!F62/'Commercial Waste'!F108,0) -> 0 | G79: =IF('Commercial Waste'!G108>0,'Commercial Waste'!G62/'Commercial Waste'!G108,0) -> 0 | H79: =IF('Commercial Waste'!H108>0,'Commercial Waste'!H62/'Commercial Waste'!H108,0) -> 0 | I79: =IF('Commercial Waste'!I108>0,'Commercial Waste'!I62/'Commercial Waste'!I108,0) -> 0 | J79: =IF('Commercial Waste'!J108>0,'Commercial Waste'!J62/'Commercial Waste'!J108,0) -> 0
B80: =Lists!H18 -> Garden Waste | D80: =IF('Commercial Waste'!D109>0,Recycling!D80/'Commercial Waste'!D109,0) -> 0 | F80: =IF('Commercial Waste'!F109>0,'Commercial Waste'!F63/'Commercial Waste'!F109,0) -> 0 | G80: =IF('Commercial Waste'!G109>0,'Commercial Waste'!G63/'Commercial Waste'!G109,0) -> 0 | H80: =IF('Commercial Waste'!H109>0,'Commercial Waste'!H63/'Commercial Waste'!H109,0) -> 0 | I80: =IF('Commercial Waste'!I109>0,'Commercial Waste'!I63/'Commercial Waste'!I109,0) -> 0 | J80: =IF('Commercial Waste'!J109>0,'Commercial Waste'!J63/'Commercial Waste'!J109,0) -> 0
B81: =Lists!H19 -> Mixed Food and Garden Waste | D81: =IF('Commercial Waste'!D110>0,Recycling!D81/'Commercial Waste'!D110,0) -> 0 | F81: =IF('Commercial Waste'!F110>0,'Commercial Waste'!F64/'Commercial Waste'!F110,0) -> 0 | G81: =IF('Commercial Waste'!G110>0,'Commercial Waste'!G64/'Commercial Waste'!G110,0) -> 0 | H81: =IF('Commercial Waste'!H110>0,'Commercial Waste'!H64/'Commercial Waste'!H110,0) -> 0 | I81: =IF('Commercial Waste'!I110>0,'Commercial Waste'!I64/'Commercial Waste'!I110,0) -> 0 | J81: =IF('Commercial Waste'!J110>0,'Commercial Waste'!J64/'Commercial Waste'!J110,0) -> 0
B82: =Lists!H20 -> Material Recycled not classified (mineral oil etc.) | D82: =IF('Commercial Waste'!D111>0,Recycling!D82/'Commercial Waste'!D111,0) -> 0 | F82: =IF('Commercial Waste'!F111>0,'Commercial Waste'!F65/'Commercial Waste'!F111,0) -> 0 | G82: =IF('Commercial Waste'!G111>0,'Commercial Waste'!G65/'Commercial Waste'!G111,0) -> 0 | H82: =IF('Commercial Waste'!H111>0,'Commercial Waste'!H65/'Commercial Waste'!H111,0) -> 0 | I82: =IF('Commercial Waste'!I111>0,'Commercial Waste'!I65/'Commercial Waste'!I111,0) -> 0 | J82: =IF('Commercial Waste'!J111>0,'Commercial Waste'!J65/'Commercial Waste'!J111,0) -> 0
B83: =Lists!H21 -> Rubble, Soil, Plasterboard | D83: =IF('Commercial Waste'!D112>0,Recycling!D83/'Commercial Waste'!D112,0) -> 0 | F83: =IF('Commercial Waste'!F112>0,'Commercial Waste'!F66/'Commercial Waste'!F112,0) -> 0 | G83: =IF('Commercial Waste'!G112>0,'Commercial Waste'!G66/'Commercial Waste'!G112,0) -> 0 | H83: =IF('Commercial Waste'!H112>0,'Commercial Waste'!H66/'Commercial Waste'!H112,0) -> 0 | I83: =IF('Commercial Waste'!I112>0,'Commercial Waste'!I66/'Commercial Waste'!I112,0) -> 0 | J83: =IF('Commercial Waste'!J112>0,'Commercial Waste'!J66/'Commercial Waste'!J112,0) -> 0
B84: =Lists!H22 -> Other Materials
B86: C&I Recycling Rate | D86: ='Recycling and Reuse'!D103 ->  | F86: ='Recycling and Reuse'!F103 ->  | G86: ='Recycling and Reuse'!G103 ->  | H86: ='Recycling and Reuse'!H103 ->  | I86: ='Recycling and Reuse'!I103 ->  | J86: ='Recycling and Reuse'!J103 -> 
A89: ="@"&COUNTIF(A$1:A88,"@*")+1 -> @4 | B89: Other WnfH Recycling Capture Rates
B90: Material-specific capture rates for other waste not from households
B91: By default these cells are linked to the inputs calculated on the 'other recycling' page
D92: ='Explore Improvements'!D$17 -> Baseline | F92: ='Explore Improvements'!E$18 -> Name Scenario 1 | G92: ='Explore Improvements'!F$18 -> Name Scenario 2 | H92: ='Explore Improvements'!G$18 -> Name Scenario 3 | I92: ='Explore Improvements'!H$18 -> Name Scenario 4 | J92: ='Explore Improvements'!I$18 -> Name Scenario 5
B93: =Lists!H9 -> Paper / Card | D93: =IF(Arisings!D79>0,(Recycling!D97)/Arisings!D79,0) ->  | F93: ='Other Recycling'!N18 -> 0 | G93: ='Other Recycling'!O18 -> 0 | H93: ='Other Recycling'!P18 -> 0 | I93: ='Other Recycling'!Q18 -> 0 | J93: ='Other Recycling'!R18 -> 0
B94: =Lists!H10 -> Glass | D94: =IF(Arisings!D80>0,(Recycling!D98)/Arisings!D80,0) ->  | F94: ='Other Recycling'!N19 -> 0 | G94: ='Other Recycling'!O19 -> 0 | H94: ='Other Recycling'!P19 -> 0 | I94: ='Other Recycling'!Q19 -> 0 | J94: ='Other Recycling'!R19 -> 0
B95: =Lists!H11 -> Ferrous Metals | D95: =IF(Arisings!D81>0,(Recycling!D99)/Arisings!D81,0) ->  | F95: ='Other Recycling'!N20 -> 0 | G95: ='Other Recycling'!O20 -> 0 | H95: ='Other Recycling'!P20 -> 0 | I95: ='Other Recycling'!Q20 -> 0 | J95: ='Other Recycling'!R20 -> 0
B96: =Lists!H12 -> Non-Ferrous Metals | D96: =IF(Arisings!D82>0,(Recycling!D100)/Arisings!D82,0) ->  | F96: ='Other Recycling'!N21 -> 0 | G96: ='Other Recycling'!O21 -> 0 | H96: ='Other Recycling'!P21 -> 0 | I96: ='Other Recycling'!Q21 -> 0 | J96: ='Other Recycling'!R21 -> 0
B97: =Lists!H13 -> Plastics | D97: =IF(Arisings!D83>0,(Recycling!D101)/Arisings!D83,0) ->  | F97: ='Other Recycling'!N22 -> 0 | G97: ='Other Recycling'!O22 -> 0 | H97: ='Other Recycling'!P22 -> 0 | I97: ='Other Recycling'!Q22 -> 0 | J97: ='Other Recycling'!R22 -> 0
B98: =Lists!H14 -> Textiles | D98: =IF(Arisings!D84>0,(Recycling!D102)/Arisings!D84,0) ->  | F98: ='Other Recycling'!N23 -> 0 | G98: ='Other Recycling'!O23 -> 0 | H98: ='Other Recycling'!P23 -> 0 | I98: ='Other Recycling'!Q23 -> 0 | J98: ='Other Recycling'!R23 -> 0
B99: =Lists!H15 -> Wood | D99: =IF(Arisings!D85>0,(Recycling!D103)/Arisings!D85,0) ->  | F99: ='Other Recycling'!N24 -> 0 | G99: ='Other Recycling'!O24 -> 0 | H99: ='Other Recycling'!P24 -> 0 | I99: ='Other Recycling'!Q24 -> 0 | J99: ='Other Recycling'!R24 -> 0
B100: =Lists!H16 -> WEEE | D100: =IF(Arisings!D86>0,(Recycling!D104)/Arisings!D86,0) ->  | F100: ='Other Recycling'!N25 -> 0 | G100: ='Other Recycling'!O25 -> 0 | H100: ='Other Recycling'!P25 -> 0 | I100: ='Other Recycling'!Q25 -> 0 | J100: ='Other Recycling'!R25 -> 0
B101: =Lists!H17 -> Food waste | D101: =IF(Arisings!D87>0,(Recycling!D105)/Arisings!D87,0) ->  | F101: ='Other Recycling'!N26 -> 0 | G101: ='Other Recycling'!O26 -> 0 | H101: ='Other Recycling'!P26 -> 0 | I101: ='Other Recycling'!Q26 -> 0 | J101: ='Other Recycling'!R26 -> 0
B102: =Lists!H18 -> Garden Waste | D102: =IF(Arisings!D88>0,(Recycling!D106)/Arisings!D88,0) ->  | F102: ='Other Recycling'!N27 -> 0 | G102: ='Other Recycling'!O27 -> 0 | H102: ='Other Recycling'!P27 -> 0 | I102: ='Other Recycling'!Q27 -> 0 | J102: ='Other Recycling'!R27 -> 0
B103: =Lists!H19 -> Mixed Food and Garden Waste | D103: =IF(Arisings!D89>0,(Recycling!D107)/Arisings!D89,0) ->  | F103: ='Other Recycling'!N28 -> 0 | G103: ='Other Recycling'!O28 -> 0 | H103: ='Other Recycling'!P28 -> 0 | I103: ='Other Recycling'!Q28 -> 0 | J103: ='Other Recycling'!R28 -> 0
B104: =Lists!H20 -> Material Recycled not classified (mineral oil etc.) | D104: =IF(Arisings!D90>0,(Recycling!D108)/Arisings!D90,0) ->  | F104: ='Other Recycling'!N29 -> 0 | G104: ='Other Recycling'!O29 -> 0 | H104: ='Other Recycling'!P29 -> 0 | I104: ='Other Recycling'!Q29 -> 0 | J104: ='Other Recycling'!R29 -> 0
B105: =Lists!H21 -> Rubble, Soil, Plasterboard | D105: =IF(Arisings!D91>0,(Recycling!D109)/Arisings!D91,0) ->  | F105: ='Other Recycling'!N30 -> 0 | G105: ='Other Recycling'!O30 -> 0 | H105: ='Other Recycling'!P30 -> 0 | I105: ='Other Recycling'!Q30 -> 0 | J105: ='Other Recycling'!R30 -> 0
B106: =Lists!H22 -> Other Materials
B108: Other WnfH Recycling Rate | D108: ='Recycling and Reuse'!D126 -> 0 | F108: ='Recycling and Reuse'!F126 -> 0 | G108: ='Recycling and Reuse'!G126 -> 0 | H108: ='Recycling and Reuse'!H126 -> 0 | I108: ='Recycling and Reuse'!I126 -> 0 | J108: ='Recycling and Reuse'!J126 -> 0

Sheet Other Assumptions
H3: =HYPERLINK("#'Explore Improvements'!B12","-> Return to Overview") -> -> Return to Overview
B11: Recap of Relevant Suggestions
P12: Supporting Notes or Calculations
B13: ='Current Performance'!G23 -> MRF Reject Rates | F13: ='Current Performance'!K23 -> N/A
B14: ='Current Performance'!G24 -> Pre-sorting of residual waste | F14: ='Current Performance'!K24 -> 
B15: ='Current Performance'!G25 -> Extraction of recyclables from residual treatment | F15: ='Current Performance'!K25 -> None
B16: ='Current Performance'!G27 -> Residual Treatment CIF | F16: ='Current Performance'!K27 -> 
A18: ="@"&COUNTIF(A$1:A17,"@*")+1 -> @1 | B18: Kerbside Collected Split Source Segregated / Co-mingled
B19: This sets the amount of dry recycling that is collected and sent direct to a reprocessor rather than to a MRF
C21: ='Explore Improvements'!D$17 -> Baseline | D21: Share | F21: ='Explore Improvements'!E$18 -> Name Scenario 1 | G21: ='Explore Improvements'!F$18 -> Name Scenario 2 | H21: ='Explore Improvements'!G$18 -> Name Scenario 3 | I21: ='Explore Improvements'!H$18 -> Name Scenario 4 | J21: ='Explore Improvements'!I$18 -> Name Scenario 5
B22: Source Segregated | C22: =Collections!$V$63-SUM(Collections!V57:V59) -> 0 | D22: =IF(SUM($C$22:$C$23)>0,C22/SUM($C$22:$C$23),0) -> 0 | F22: =1-F23 -> 0.01629742329 | G22: =1-G23 -> 0.01629742329 | H22: =1-H23 -> 0.01629742329 | I22: =1-I23 -> 0.01629742329 | J22: =1-J23 -> 0.01629742329
B23: Via MRF | C23: =Collections!$V$65 -> 0 | D23: =IF(SUM($C$22:$C$23)>0,C23/SUM($C$22:$C$23),0) -> 0 | F23: 0.9837025767 | G23: 0.9837025767 | H23: 0.9837025767 | I23: 0.9837025767 | J23: 0.9837025767
A25: ="@"&COUNTIF(A$1:A24,"@*")+1 -> @2 | B25: Edit recycling reject rates
B26: This metric controls how much additional non-recyclable waste is collected alongside dry recycling and subsequently rejected
F28: ='Explore Improvements'!E$18 -> Name Scenario 1 | G28: ='Explore Improvements'!F$18 -> Name Scenario 2 | H28: ='Explore Improvements'!G$18 -> Name Scenario 3 | I28: ='Explore Improvements'!H$18 -> Name Scenario 4 | J28: ='Explore Improvements'!I$18 -> Name Scenario 5
B29: Source segregated recycling reject rate | C29: =IF('Rejects (SS)'!D67>0,'Rejects (SS)'!O67/'Rejects (SS)'!D67,0) -> 0 | F29: -4.698474977e-18 | G29: -4.698474977e-18 | H29: -4.698474977e-18 | I29: -4.698474977e-18 | J29: -4.698474977e-18
B30: Co-mingled recycling (MRF) reject rate | C30: ='Co-mingled Comp'!$J$30 -> 0 | F30: 0.123865278 | G30: 0.123865278 | H30: 0.123865278 | I30: 0.123865278 | J30: 0.123865278
B32: N.B. | C32: By itself, changing these reject rates will not increase recycling performance. To model the impact of reducing the reject rate by improving the amount of material recycled, also adjust capture rates on the sheet 'edit recycling capture rates'.
A34: ="@"&COUNTIF(A$1:A33,"@*")+1 -> @3 | B34: Destination of MRF Rejects
B35: This split controls where rejected material from the MRF ends up.
D37: MRF Rejects | F37: ='Explore Improvements'!E$18 -> Name Scenario 1 | G37: ='Explore Improvements'!F$18 -> Name Scenario 2 | H37: ='Explore Improvements'!G$18 -> Name Scenario 3 | I37: ='Explore Improvements'!H$18 -> Name Scenario 4 | J37: ='Explore Improvements'!I$18 -> Name Scenario 5
B38: =Lists!D28 -> Incineration | D38: ='Treatment and Transport'!$K$81 -> 0 | F38: 1 | G38: 1 | H38: 1 | I38: 1 | J38: 1
B39: =Lists!D29 -> Gasification | D39: ='Treatment and Transport'!$K$82 -> 0 | F39: 0 | G39: 0 | H39: 0 | I39: 0 | J39: 0
B40: =Lists!D30 -> MBT | D40: ='Treatment and Transport'!$K$83 -> 0 | F40: 0 | G40: 0 | H40: 0 | I40: 0 | J40: 0
B41: =Lists!D32 -> Landfill (Rejects) | D41: ='Treatment and Transport'!$K$84 -> 0 | F41: =1-SUM(F38:F40) -> 0 | G41: =1-SUM(G38:G40) -> 0 | H41: =1-SUM(H38:H40) -> 0 | I41: =1-SUM(I38:I40) -> 0 | J41: =1-SUM(J38:J40) -> 0
B43: Anaerobic Digestion
B44: Set outputs of AD process and, if applicable, energy efficiencies for electricity generation (net) and utilised heat
D46: MRF Rejects | F46: ='Explore Improvements'!E$18 -> Name Scenario 1 | G46: ='Explore Improvements'!F$18 -> Name Scenario 2 | H46: ='Explore Improvements'!G$18 -> Name Scenario 3 | I46: ='Explore Improvements'!H$18 -> Name Scenario 4 | J46: ='Explore Improvements'!I$18 -> Name Scenario 5
B47: Set Operating Mode | D47: ='Treatment and Transport'!I11 -> Electricity Generation (CHP) | F47: Electricity Generation (CHP) | G47: Electricity Generation (CHP) | H47: Electricity Generation (CHP) | I47: Electricity Generation (CHP) | J47: Electricity Generation (CHP)
B48: Net Efficiency of Electricity Generation | D48: ='Treatment and Transport'!I12 -> 0.32 | F48: 0.32 | G48: 0.32 | H48: 0.32 | I48: 0.32 | J48: 0.32
B49: Efficiency of (Utilised) Heat Generation | D49: ='Treatment and Transport'!I13 -> 0.26 | F49: 0.26 | G49: 0.26 | H49: 0.26 | I49: 0.26 | J49: 0.26
B51: Residual Treatment
A53: ="@"&COUNTIF(A$1:A52,"@*")+1 -> @4 | B53: Initial Treatment Assumptions
B54: This table controls the initial residual treatment destination of collected residual waste.
C56: BL Tonnage Treated By Method | D56: % | F56: ='Explore Improvements'!E$18 -> Name Scenario 1 | G56: ='Explore Improvements'!F$18 -> Name Scenario 2 | H56: ='Explore Improvements'!G$18 -> Name Scenario 3 | I56: ='Explore Improvements'!H$18 -> Name Scenario 4 | J56: ='Explore Improvements'!I$18 -> Name Scenario 5
B57: Incineration (Energy from Waste) | C57: ='Treatment and Transport'!$K26 -> 0 | D57: =C57/$C$64 ->  | F57: 0.9833452776 | G57: 0.9833452776 | H57: 0.9833452776 | I57: 0.9833452776 | J57: 0.9833452776
B58: Gasification | C58: ='Treatment and Transport'!$K27 -> 0 | F58: 0 | G58: 0 | H58: 0 | I58: 0 | J58: 0
B59: =Lists!$B32 -> RDF/Autoclave | C59: ='Treatment and Transport'!$K28 -> 0 | F59: 0.003828302789 | G59: 0.003828302789 | H59: 0.003828302789 | I59: 0.003828302789 | J59: 0.003828302789
B60: MBT (Mechanical Biological Treatment) | C60: ='Treatment and Transport'!$K29 -> 0 | F60: 0 | G60: 0 | H60: 0 | I60: 0 | J60: 0
B61: R-MRF (Residual MRF) | C61: ='Treatment and Transport'!$K30 -> 0 | F61: 0 | G61: 0 | H61: 0 | I61: 0 | J61: 0
B62: =Lists!$B36 -> Landfill | C62: ='Treatment and Transport'!$K31 -> 0 | F62: 0.01081864085 | G62: 0.01081864085 | H62: 0.01081864085 | I62: 0.01081864085 | J62: 0.01081864085
B63: =Lists!$B37 -> Other | C63: ='Treatment and Transport'!$K32 -> 0 | F63: 0.002007778721 | G63: 0.002007778721 | H63: 0.002007778721 | I63: 0.002007778721 | J63: 0.002007778721
B64: Total | C64: =SUM(C57:C63) -> 0 | D64: =SUM(D57:D63) ->  | F64: =SUM(F57:F63) -> 1 | G64: =SUM(G57:G63) -> 1 | H64: =SUM(H57:H63) -> 1 | I64: =SUM(I57:I63) -> 1 | J64: =SUM(J57:J63) -> 1
A66: ="@"&COUNTIF(A$1:A65,"@*")+1 -> @5 | B66: Incineration Split by Facility Type
B67: These input cells control the electrical efficiency and the heat efficiency of waste sent to incineration.
B68: Up to three incinerators can be specified with different efficiencies, and the amount of waste going to each controlled in the top table
B69: This mix will apply both to waste sent straight to incineration and that sent after any pre-treatment.
D71: % | F71: ='Explore Improvements'!E$18 -> Name Scenario 1 | G71: ='Explore Improvements'!F$18 -> Name Scenario 2 | H71: ='Explore Improvements'!G$18 -> Name Scenario 3 | I71: ='Explore Improvements'!H$18 -> Name Scenario 4 | J71: ='Explore Improvements'!I$18 -> Name Scenario 5
B72: =Lists!$F$28 -> Incineration | D72: ='Treatment and Transport'!$D$44 -> 1 | F72: =1-SUM(F73:F74) -> 1 | G72: =1-SUM(G73:G74) -> 1 | H72: =1-SUM(H73:H74) -> 1 | I72: =1-SUM(I73:I74) -> 1 | J72: =1-SUM(J73:J74) -> 1
B73: =Lists!$F$29 -> Incineration (2) | D73: ='Treatment and Transport'!$D$45 -> 0 | F73: 0 | G73: 0 | H73: 0 | I73: 0 | J73: 0
D75: Baseline | F75: ='Explore Improvements'!E$18 -> Name Scenario 1 | G75: ='Explore Improvements'!F$18 -> Name Scenario 2 | H75: ='Explore Improvements'!G$18 -> Name Scenario 3 | I75: ='Explore Improvements'!H$18 -> Name Scenario 4 | J75: ='Explore Improvements'!I$18 -> Name Scenario 5
B76: =Lists!$F$28 -> Incineration | D76: ='Treatment and Transport'!C44 -> EPS Default | F76: EPS Default | G76: EPS Default | H76: EPS Default | I76: EPS Default | J76: EPS Default
B77: Electrical Efficiency (Gross) | D77: ='Treatment and Transport'!P44 -> 0.26 | F77: =INDEX('Carbon Assumptions'!K$96:K$105, MATCH(F76, 'Carbon Assumptions'!$B$96:$B$105, 0)) -> 0.26 | G77: =INDEX('Carbon Assumptions'!L$96:L$105, MATCH(G76, 'Carbon Assumptions'!$B$96:$B$105, 0)) -> 0.26 | H77: =INDEX('Carbon Assumptions'!M$96:M$105, MATCH(H76, 'Carbon Assumptions'!$B$96:$B$105, 0)) -> 0.26 | I77: =INDEX('Carbon Assumptions'!N$96:N$105, MATCH(I76, 'Carbon Assumptions'!$B$96:$B$105, 0)) -> 0.26 | J77: =INDEX('Carbon Assumptions'!O$96:O$105, MATCH(J76, 'Carbon Assumptions'!$B$96:$B$105, 0)) -> 0.26
B78: Heat Efficiency | D78: ='Treatment and Transport'!Q44 -> 0 | F78: =INDEX('Carbon Assumptions'!K$110:K$119, MATCH(F76, 'Carbon Assumptions'!$B$110:$B$119, 0)) -> 0 | G78: =INDEX('Carbon Assumptions'!L$110:L$119, MATCH(G76, 'Carbon Assumptions'!$B$110:$B$119, 0)) -> 0 | H78: =INDEX('Carbon Assumptions'!M$110:M$119, MATCH(H76, 'Carbon Assumptions'!$B$110:$B$119, 0)) -> 0 | I78: =INDEX('Carbon Assumptions'!N$110:N$119, MATCH(I76, 'Carbon Assumptions'!$B$110:$B$119, 0)) -> 0 | J78: =INDEX('Carbon Assumptions'!O$110:O$119, MATCH(J76, 'Carbon Assumptions'!$B$110:$B$119, 0)) -> 0
B79: =Lists!$F$29 -> Incineration (2) | D79: ='Treatment and Transport'!C45 -> EPS Default | F79: EPS Default | G79: EPS Default | H79: EPS Default | I79: EPS Default | J79: EPS Default
B80: Electrical Efficiency (Gross) | D80: ='Treatment and Transport'!P45 -> 0.26 | F80: =INDEX('Carbon Assumptions'!K$96:K$105, MATCH(F79, 'Carbon Assumptions'!$B$96:$B$105, 0)) -> 0.26 | G80: =INDEX('Carbon Assumptions'!L$96:L$105, MATCH(G79, 'Carbon Assumptions'!$B$96:$B$105, 0)) -> 0.26 | H80: =INDEX('Carbon Assumptions'!M$96:M$105, MATCH(H79, 'Carbon Assumptions'!$B$96:$B$105, 0)) -> 0.26 | I80: =INDEX('Carbon Assumptions'!N$96:N$105, MATCH(I79, 'Carbon Assumptions'!$B$96:$B$105, 0)) -> 0.26 | J80: =INDEX('Carbon Assumptions'!O$96:O$105, MATCH(J79, 'Carbon Assumptions'!$B$96:$B$105, 0)) -> 0.26
B81: Heat Efficiency | D81: ='Treatment and Transport'!Q45 -> 0 | F81: =INDEX('Carbon Assumptions'!K$110:K$119, MATCH(F79, 'Carbon Assumptions'!$B$110:$B$119, 0)) -> 0 | G81: =INDEX('Carbon Assumptions'!L$110:L$119, MATCH(G79, 'Carbon Assumptions'!$B$110:$B$119, 0)) -> 0 | H81: =INDEX('Carbon Assumptions'!M$110:M$119, MATCH(H79, 'Carbon Assumptions'!$B$110:$B$119, 0)) -> 0 | I81: =INDEX('Carbon Assumptions'!N$110:N$119, MATCH(I79, 'Carbon Assumptions'!$B$110:$B$119, 0)) -> 0 | J81: =INDEX('Carbon Assumptions'!O$110:O$119, MATCH(J79, 'Carbon Assumptions'!$B$110:$B$119, 0)) -> 0
B83: ='Treatment and Transport'!B46 -> Incineration following R-MRF | D83: ='Treatment and Transport'!C46 -> EPS Default | F83: EPS Default | G83: EPS Default | H83: EPS Default | I83: EPS Default | J83: EPS Default
B84: Electrical Efficiency (Gross) | D84: ='Treatment and Transport'!P46 -> 0.26 | F84: =INDEX('Carbon Assumptions'!K$96:K$105, MATCH(F83, 'Carbon Assumptions'!$B$96:$B$105, 0)) -> 0.26 | G84: =INDEX('Carbon Assumptions'!L$96:L$105, MATCH(G83, 'Carbon Assumptions'!$B$96:$B$105, 0)) -> 0.26 | H84: =INDEX('Carbon Assumptions'!M$96:M$105, MATCH(H83, 'Carbon Assumptions'!$B$96:$B$105, 0)) -> 0.26 | I84: =INDEX('Carbon Assumptions'!N$96:N$105, MATCH(I83, 'Carbon Assumptions'!$B$96:$B$105, 0)) -> 0.26 | J84: =INDEX('Carbon Assumptions'!O$96:O$105, MATCH(J83, 'Carbon Assumptions'!$B$96:$B$105, 0)) -> 0.26
B85: Heat Efficiency | D85: ='Treatment and Transport'!Q46 -> 0 | F85: =INDEX('Carbon Assumptions'!K$110:K$119, MATCH(F83, 'Carbon Assumptions'!$B$110:$B$119, 0)) -> 0 | G85: =INDEX('Carbon Assumptions'!L$110:L$119, MATCH(G83, 'Carbon Assumptions'!$B$110:$B$119, 0)) -> 0 | H85: =INDEX('Carbon Assumptions'!M$110:M$119, MATCH(H83, 'Carbon Assumptions'!$B$110:$B$119, 0)) -> 0 | I85: =INDEX('Carbon Assumptions'!N$110:N$119, MATCH(I83, 'Carbon Assumptions'!$B$110:$B$119, 0)) -> 0 | J85: =INDEX('Carbon Assumptions'!O$110:O$119, MATCH(J83, 'Carbon Assumptions'!$B$110:$B$119, 0)) -> 0
B87: ='Treatment and Transport'!B47 -> Incineration following RDF/Autoclave | D87: ='Treatment and Transport'!C47 -> EPS Default | F87: EPS Default | G87: EPS Default | H87: EPS Default | I87: EPS Default | J87: EPS Default
B88: Electrical Efficiency (Gross) | D88: ='Treatment and Transport'!P47 -> 0.26 | F88: =INDEX('Carbon Assumptions'!K$96:K$105, MATCH(F87, 'Carbon Assumptions'!$B$96:$B$105, 0)) -> 0.26 | G88: =INDEX('Carbon Assumptions'!L$96:L$105, MATCH(G87, 'Carbon Assumptions'!$B$96:$B$105, 0)) -> 0.26 | H88: =INDEX('Carbon Assumptions'!M$96:M$105, MATCH(H87, 'Carbon Assumptions'!$B$96:$B$105, 0)) -> 0.26 | I88: =INDEX('Carbon Assumptions'!N$96:N$105, MATCH(I87, 'Carbon Assumptions'!$B$96:$B$105, 0)) -> 0.26 | J88: =INDEX('Carbon Assumptions'!O$96:O$105, MATCH(J87, 'Carbon Assumptions'!$B$96:$B$105, 0)) -> 0.26
